{"text_format":"1","workbook":"xlsx","n_sheets":9,"sheets":["Instructions","GHG Calculator","Construction","Facility Operations","Vehicle Operations&Maintenance","Displaced Emissions","Dropdowns","Calculations","FactorMatrix"],"not_rendered":{"charts":0,"images":3,"macros":1,"external_links":1,"defined_names":30,"comments":0,"pivot_tables":0},"unopened":[],"bounds":{"document_bytes":16777216,"sheet_cells":100000,"rows_first":2000,"rows_last":500,"rows_between":2000,"halvings":0,"cell_chars":16384,"cell_head_chars":4096},"cells_cut":0,"cells_raw":0,"read":"whole","date_system":"1900"}

{"sheet":"Instructions","index":0,"n_rows":7,"n_cols":2,"rows_kept":7,"cut":false,"hidden":false,"merged":[[6,1,28,17]]}
[]
[]
[]
[]
[null,"Welcome to the FTA's Transit Greenhouse Gas Emissions Estimator "]
[]
[null,"OVERVIEW\nThe Federal Transit Administration's (FTA's) Transit Greenhouse Gas (GHG) Emissions Estimator v2.0 is a spreadsheet tool that allows users to estimate the partial lifecycle GHG emissions generated from the construction, operations, and maintenance phases of projects across select transit modes. Users input general information about a project, and the tool calculates annual GHG emissions by project phase. Total annual GHG emissions for a transit project is the sum of amortized construction emissions, annual maintenance emissions, and annual operations emissions, minus annual displaced emissions. The tool also calculates the total GHG emissions by project phase over the analysis period selected. \n\nThe Estimator was developed in connection with FTA's Greenhouse Gas Emissions from Transit Projects Programmatic Assessment (2016). Although the tool lacks the precision that may be attainable by using more complex emission models or route-specific ridership estimates, it provides a resource to generate coarse but informative estimates of greenhouse gas emissions for a broad range of transit projects. In no case is the use of this tool mandatory, and transit agencies should work with FTA Regions to determine whether to conduct project-specific analyses of GHG emissions and the best approach for doing so.\n\nNAVIGATING THE TOOL\nThe tool asks users to enter information associated with four different elements of a project - Construction; Facility Operations; Vehicle Operations and Maintenance, and Displaced Emissions. Users can navigate to the different data input screens using the buttons on the main calculator page. To begin, click the \"GHG Calculator\" tab.  \n\nADDITIONAL INFORMATION\nRefer to the accompanying user guide for detailed instructions on how to use the tool, as well as information about the GHG emissions factors, data sources, and assumptions used in the tool. The User Guide is available on the FTA Environmental Programs website. "]

{"sheet":"GHG Calculator","index":1,"n_rows":71,"n_cols":14,"rows_kept":71,"cut":false,"hidden":false,"merged":[[19,6,19,7],[20,6,20,7],[46,9,47,11],[8,10,8,12],[25,1,25,2],[34,1,34,2],[62,1,63,1],[1,1,1,13],[44,1,44,13],[2,1,2,13],[6,1,6,2],[8,4,9,4],[16,1,16,2],[18,6,18,7],[21,6,21,7],[22,6,22,7],[23,6,23,7],[8,5,8,8],[8,9,9,9]]}
[]
[null,"FTA's TRANSIT GREENHOUSE GAS EMISSIONS ESTIMATOR"]
[null,"The tables below summarize the construction, facilty operations, vehicle operations and maintenance, and displaced emissions inputs for the project. Users can navigate to the different data input screens using the associated buttons. Once the inputs are added, scroll to the Results section below to view results. "]
[]
[null,null,"1. Select State",null,"2. Enter Analysis Period (years)"]
[]
[null,"Construction Information"]
[]
[null,null,null,null,"Transit Mode:","Miles of New Track/Alignment",null,null,null,"Miles of Converted or Upgraded Track/Alignment","Number of Stations",null,null,{"$f":"Dropdowns!B15","v":0}]
[null,null,null,null,null,"Underground","Elevated","At-Grade","Catenary",null,"Underground","Elevated","At-Grade"]
[null,"Structured Parking Spots",{"$f":"Construction!C4","v":0},1,{"$f":"IF(OFFSET(Construction!B$7, $D11+$N$9, 0) = \"\", \"\", OFFSET(Construction!B$7, $D11+$N$9, 0))","v":""},{"$f":"IF(OFFSET(Construction!C$7, $D11+$N$9, 0) = \"\", \"\", OFFSET(Construction!C$7, $D11+$N$9, 0))","v":""},{"$f":"IF(OFFSET(Construction!D$7, $D11+$N$9, 0) = \"\", \"\", OFFSET(Construction!D$7, $D11+$N$9, 0))","v":""},{"$f":"IF(OFFSET(Construction!E$7, $D11+$N$9, 0) = \"\", \"\", OFFSET(Construction!E$7, $D11+$N$9, 0))","v":""},{"$f":"IF(OFFSET(Construction!F$7, $D11+$N$9, 0) = \"\", \"\", OFFSET(Construction!F$7, $D11+$N$9, 0))","v":""},{"$f":"IF(OFFSET(Construction!G$7, $D11+$N$9, 0) = \"\", \"\", OFFSET(Construction!G$7, $D11+$N$9, 0))","v":""},{"$f":"IF(OFFSET(Construction!H$7, $D11+$N$9, 0) = \"\", \"\", OFFSET(Construction!H$7, $D11+$N$9, 0))","v":""},{"$f":"IF(OFFSET(Construction!I$7, $D11+$N$9, 0) = \"\", \"\", OFFSET(Construction!I$7, $D11+$N$9, 0))","v":""},{"$f":"IF(OFFSET(Construction!J$7, $D11+$N$9, 0) = \"\", \"\", OFFSET(Construction!J$7, $D11+$N$9, 0))","v":""}]
[null,null,null,2,{"$f":"IF(OFFSET(Construction!B$7, $D12+$N$9, 0) = \"\", \"\", OFFSET(Construction!B$7, $D12+$N$9, 0))","v":""},{"$f":"IF(OFFSET(Construction!C$7, $D12+$N$9, 0) = \"\", \"\", OFFSET(Construction!C$7, $D12+$N$9, 0))","v":""},{"$f":"IF(OFFSET(Construction!D$7, $D12+$N$9, 0) = \"\", \"\", OFFSET(Construction!D$7, $D12+$N$9, 0))","v":""},{"$f":"IF(OFFSET(Construction!E$7, $D12+$N$9, 0) = \"\", \"\", OFFSET(Construction!E$7, $D12+$N$9, 0))","v":""},{"$f":"IF(OFFSET(Construction!F$7, $D12+$N$9, 0) = \"\", \"\", OFFSET(Construction!F$7, $D12+$N$9, 0))","v":""},{"$f":"IF(OFFSET(Construction!G$7, $D12+$N$9, 0) = \"\", \"\", OFFSET(Construction!G$7, $D12+$N$9, 0))","v":""},{"$f":"IF(OFFSET(Construction!H$7, $D12+$N$9, 0) = \"\", \"\", OFFSET(Construction!H$7, $D12+$N$9, 0))","v":""},{"$f":"IF(OFFSET(Construction!I$7, $D12+$N$9, 0) = \"\", \"\", OFFSET(Construction!I$7, $D12+$N$9, 0))","v":""},{"$f":"IF(OFFSET(Construction!J$7, $D12+$N$9, 0) = \"\", \"\", OFFSET(Construction!J$7, $D12+$N$9, 0))","v":""}]
[null,"Surface Parking Lot Spots",{"$f":"Construction!F4","v":0},3,{"$f":"IF(OFFSET(Construction!B$7, $D13+$N$9, 0) = \"\", \"\", OFFSET(Construction!B$7, $D13+$N$9, 0))","v":""},{"$f":"IF(OFFSET(Construction!C$7, $D13+$N$9, 0) = \"\", \"\", OFFSET(Construction!C$7, $D13+$N$9, 0))","v":""},{"$f":"IF(OFFSET(Construction!D$7, $D13+$N$9, 0) = \"\", \"\", OFFSET(Construction!D$7, $D13+$N$9, 0))","v":""},{"$f":"IF(OFFSET(Construction!E$7, $D13+$N$9, 0) = \"\", \"\", OFFSET(Construction!E$7, $D13+$N$9, 0))","v":""},{"$f":"IF(OFFSET(Construction!F$7, $D13+$N$9, 0) = \"\", \"\", OFFSET(Construction!F$7, $D13+$N$9, 0))","v":""},{"$f":"IF(OFFSET(Construction!G$7, $D13+$N$9, 0) = \"\", \"\", OFFSET(Construction!G$7, $D13+$N$9, 0))","v":""},{"$f":"IF(OFFSET(Construction!H$7, $D13+$N$9, 0) = \"\", \"\", OFFSET(Construction!H$7, $D13+$N$9, 0))","v":""},{"$f":"IF(OFFSET(Construction!I$7, $D13+$N$9, 0) = \"\", \"\", OFFSET(Construction!I$7, $D13+$N$9, 0))","v":""},{"$f":"IF(OFFSET(Construction!J$7, $D13+$N$9, 0) = \"\", \"\", OFFSET(Construction!J$7, $D13+$N$9, 0))","v":""}]
[null,null,null,4,{"$f":"IF(OFFSET(Construction!B$7, $D14+$N$9, 0) = \"\", \"\", OFFSET(Construction!B$7, $D14+$N$9, 0))","v":""},{"$f":"IF(OFFSET(Construction!C$7, $D14+$N$9, 0) = \"\", \"\", OFFSET(Construction!C$7, $D14+$N$9, 0))","v":""},{"$f":"IF(OFFSET(Construction!D$7, $D14+$N$9, 0) = \"\", \"\", OFFSET(Construction!D$7, $D14+$N$9, 0))","v":""},{"$f":"IF(OFFSET(Construction!E$7, $D14+$N$9, 0) = \"\", \"\", OFFSET(Construction!E$7, $D14+$N$9, 0))","v":""},{"$f":"IF(OFFSET(Construction!F$7, $D14+$N$9, 0) = \"\", \"\", OFFSET(Construction!F$7, $D14+$N$9, 0))","v":""},{"$f":"IF(OFFSET(Construction!G$7, $D14+$N$9, 0) = \"\", \"\", OFFSET(Construction!G$7, $D14+$N$9, 0))","v":""},{"$f":"IF(OFFSET(Construction!H$7, $D14+$N$9, 0) = \"\", \"\", OFFSET(Construction!H$7, $D14+$N$9, 0))","v":""},{"$f":"IF(OFFSET(Construction!I$7, $D14+$N$9, 0) = \"\", \"\", OFFSET(Construction!I$7, $D14+$N$9, 0))","v":""},{"$f":"IF(OFFSET(Construction!J$7, $D14+$N$9, 0) = \"\", \"\", OFFSET(Construction!J$7, $D14+$N$9, 0))","v":""}]
[1,"Trees Removed",{"$f":"Construction!H4","v":0},5,{"$f":"IF(OFFSET(Construction!B$7, $D15+$N$9, 0) = \"\", \"\", OFFSET(Construction!B$7, $D15+$N$9, 0))","v":""},{"$f":"IF(OFFSET(Construction!C$7, $D15+$N$9, 0) = \"\", \"\", OFFSET(Construction!C$7, $D15+$N$9, 0))","v":""},{"$f":"IF(OFFSET(Construction!D$7, $D15+$N$9, 0) = \"\", \"\", OFFSET(Construction!D$7, $D15+$N$9, 0))","v":""},{"$f":"IF(OFFSET(Construction!E$7, $D15+$N$9, 0) = \"\", \"\", OFFSET(Construction!E$7, $D15+$N$9, 0))","v":""},{"$f":"IF(OFFSET(Construction!F$7, $D15+$N$9, 0) = \"\", \"\", OFFSET(Construction!F$7, $D15+$N$9, 0))","v":""},{"$f":"IF(OFFSET(Construction!G$7, $D15+$N$9, 0) = \"\", \"\", OFFSET(Construction!G$7, $D15+$N$9, 0))","v":""},{"$f":"IF(OFFSET(Construction!H$7, $D15+$N$9, 0) = \"\", \"\", OFFSET(Construction!H$7, $D15+$N$9, 0))","v":""},{"$f":"IF(OFFSET(Construction!I$7, $D15+$N$9, 0) = \"\", \"\", OFFSET(Construction!I$7, $D15+$N$9, 0))","v":""},{"$f":"IF(OFFSET(Construction!J$7, $D15+$N$9, 0) = \"\", \"\", OFFSET(Construction!J$7, $D15+$N$9, 0))","v":""}]
[2]
[null,"Facility Operations Information"]
[null,null,null,null,null,null,null,null,null,{"$f":"Dropdowns!B16","v":0}]
[null,null,null,null,"Transit Mode","Building Type","Facility Square Footage "]
[null,null,null,1,{"$f":"IF(OFFSET('Facility Operations'!B$4, $D20+$J$18, 0) = \"\", \"\", OFFSET('Facility Operations'!B$4, $D20+$J$18, 0) )","v":""},{"$f":"IF(OFFSET('Facility Operations'!C$4, $D20+$J$18, 0) = \"\", \"\", OFFSET('Facility Operations'!C$4, $D20+$J$18, 0) )","v":""},{"$f":"IF(OFFSET('Facility Operations'!D$4, $D20+$J$18, 0) = \"\", \"\", OFFSET('Facility Operations'!D$4, $D20+$J$18, 0) )","v":""},{"$f":"IF(OFFSET('Facility Operations'!#REF!, $D20+$J$18, 0) = \"\", \"\", OFFSET('Facility Operations'!#REF!, $D20+$J$18, 0) )","v":{"$error":"#REF!"}}]
[null,null,null,2,{"$f":"IF(OFFSET('Facility Operations'!B$4, $D21+$J$18, 0) = \"\", \"\", OFFSET('Facility Operations'!B$4, $D21+$J$18, 0) )","v":""},{"$f":"IF(OFFSET('Facility Operations'!C$4, $D21+$J$18, 0) = \"\", \"\", OFFSET('Facility Operations'!C$4, $D21+$J$18, 0) )","v":""},{"$f":"IF(OFFSET('Facility Operations'!D$4, $D21+$J$18, 0) = \"\", \"\", OFFSET('Facility Operations'!D$4, $D21+$J$18, 0) )","v":""},{"$f":"IF(OFFSET('Facility Operations'!#REF!, $D21+$J$18, 0) = \"\", \"\", OFFSET('Facility Operations'!#REF!, $D21+$J$18, 0) )","v":{"$error":"#REF!"}}]
[null,null,null,3,{"$f":"IF(OFFSET('Facility Operations'!B$4, $D22+$J$18, 0) = \"\", \"\", OFFSET('Facility Operations'!B$4, $D22+$J$18, 0) )","v":""},{"$f":"IF(OFFSET('Facility Operations'!C$4, $D22+$J$18, 0) = \"\", \"\", OFFSET('Facility Operations'!C$4, $D22+$J$18, 0) )","v":""},{"$f":"IF(OFFSET('Facility Operations'!D$4, $D22+$J$18, 0) = \"\", \"\", OFFSET('Facility Operations'!D$4, $D22+$J$18, 0) )","v":""},{"$f":"IF(OFFSET('Facility Operations'!#REF!, $D22+$J$18, 0) = \"\", \"\", OFFSET('Facility Operations'!#REF!, $D22+$J$18, 0) )","v":{"$error":"#REF!"}}]
[null,null,null,4,{"$f":"IF(OFFSET('Facility Operations'!B$4, $D23+$J$18, 0) = \"\", \"\", OFFSET('Facility Operations'!B$4, $D23+$J$18, 0) )","v":""},{"$f":"IF(OFFSET('Facility Operations'!C$4, $D23+$J$18, 0) = \"\", \"\", OFFSET('Facility Operations'!C$4, $D23+$J$18, 0) )","v":""},{"$f":"IF(OFFSET('Facility Operations'!D$4, $D23+$J$18, 0) = \"\", \"\", OFFSET('Facility Operations'!D$4, $D23+$J$18, 0) )","v":""},{"$f":"IF(OFFSET('Facility Operations'!#REF!, $D23+$J$18, 0) = \"\", \"\", OFFSET('Facility Operations'!#REF!, $D23+$J$18, 0) )","v":{"$error":"#REF!"}}]
[null,null,null,5,{"$f":"IF(OFFSET('Facility Operations'!B$4, $D24+$J$18, 0) = \"\", \"\", OFFSET('Facility Operations'!B$4, $D24+$J$18, 0) )","v":""},{"$f":"IF(OFFSET('Facility Operations'!C$4, $D24+$J$18, 0) = \"\", \"\", OFFSET('Facility Operations'!C$4, $D24+$J$18, 0) )","v":""},{"$f":"IF(OFFSET('Facility Operations'!D$4, $D24+$J$18, 0) = \"\", \"\", OFFSET('Facility Operations'!D$4, $D24+$J$18, 0) )","v":""},{"$f":"IF(OFFSET('Facility Operations'!#REF!, $D24+$J$18, 0) = \"\", \"\", OFFSET('Facility Operations'!#REF!, $D24+$J$18, 0) )","v":{"$error":"#REF!"}}]
[null,null,null,5]
[null,"Vehicle Operations & Maintenance Information"]
[null,null,null,null,null,null,null,null,{"$f":"Dropdowns!B17","v":0},0]
[null,null,null,null,"Operation Mode ","Fuel Source","eGrid Subregion (if applicable)","VMT"]
[null,null,null,1,{"$f":"IF(OFFSET('Vehicle Operations&Maintenance'!B$4, $D29+$I$27, 0) = \"\", \"\", OFFSET('Vehicle Operations&Maintenance'!B$4, $D29+$I$27, 0) )","v":""},{"$f":"IF(OFFSET('Vehicle Operations&Maintenance'!C$4, $D29+$I$27, 0) = \"\", \"\", OFFSET('Vehicle Operations&Maintenance'!C$4, $D29+$I$27, 0) )","v":""},{"$f":"IF(OFFSET('Vehicle Operations&Maintenance'!D$4, $D29+$I$27, 0) = \"\", \"\", OFFSET('Vehicle Operations&Maintenance'!D$4, $D29+$I$27, 0) )","v":""},{"$f":"IF(OFFSET('Vehicle Operations&Maintenance'!E$4, $D29+$I$27, 0) = \"\", \"\", OFFSET('Vehicle Operations&Maintenance'!E$4, $D29+$I$27, 0) )","v":""}]
[null,null,null,2,{"$f":"IF(OFFSET('Vehicle Operations&Maintenance'!B$4, $D30+$I$27, 0) = \"\", \"\", OFFSET('Vehicle Operations&Maintenance'!B$4, $D30+$I$27, 0) )","v":""},{"$f":"IF(OFFSET('Vehicle Operations&Maintenance'!C$4, $D30+$I$27, 0) = \"\", \"\", OFFSET('Vehicle Operations&Maintenance'!C$4, $D30+$I$27, 0) )","v":""},{"$f":"IF(OFFSET('Vehicle Operations&Maintenance'!D$4, $D30+$I$27, 0) = \"\", \"\", OFFSET('Vehicle Operations&Maintenance'!D$4, $D30+$I$27, 0) )","v":""},{"$f":"IF(OFFSET('Vehicle Operations&Maintenance'!E$4, $D30+$I$27, 0) = \"\", \"\", OFFSET('Vehicle Operations&Maintenance'!E$4, $D30+$I$27, 0) )","v":""}]
[null,null,null,3,{"$f":"IF(OFFSET('Vehicle Operations&Maintenance'!B$4, $D31+$I$27, 0) = \"\", \"\", OFFSET('Vehicle Operations&Maintenance'!B$4, $D31+$I$27, 0) )","v":""},{"$f":"IF(OFFSET('Vehicle Operations&Maintenance'!C$4, $D31+$I$27, 0) = \"\", \"\", OFFSET('Vehicle Operations&Maintenance'!C$4, $D31+$I$27, 0) )","v":""},{"$f":"IF(OFFSET('Vehicle Operations&Maintenance'!D$4, $D31+$I$27, 0) = \"\", \"\", OFFSET('Vehicle Operations&Maintenance'!D$4, $D31+$I$27, 0) )","v":""},{"$f":"IF(OFFSET('Vehicle Operations&Maintenance'!E$4, $D31+$I$27, 0) = \"\", \"\", OFFSET('Vehicle Operations&Maintenance'!E$4, $D31+$I$27, 0) )","v":""}]
[null,null,null,4,{"$f":"IF(OFFSET('Vehicle Operations&Maintenance'!B$4, $D32+$I$27, 0) = \"\", \"\", OFFSET('Vehicle Operations&Maintenance'!B$4, $D32+$I$27, 0) )","v":""},{"$f":"IF(OFFSET('Vehicle Operations&Maintenance'!C$4, $D32+$I$27, 0) = \"\", \"\", OFFSET('Vehicle Operations&Maintenance'!C$4, $D32+$I$27, 0) )","v":""},{"$f":"IF(OFFSET('Vehicle Operations&Maintenance'!D$4, $D32+$I$27, 0) = \"\", \"\", OFFSET('Vehicle Operations&Maintenance'!D$4, $D32+$I$27, 0) )","v":""},{"$f":"IF(OFFSET('Vehicle Operations&Maintenance'!E$4, $D32+$I$27, 0) = \"\", \"\", OFFSET('Vehicle Operations&Maintenance'!E$4, $D32+$I$27, 0) )","v":""}]
[null,null,null,5,{"$f":"IF(OFFSET('Vehicle Operations&Maintenance'!B$4, $D33+$I$27, 0) = \"\", \"\", OFFSET('Vehicle Operations&Maintenance'!B$4, $D33+$I$27, 0) )","v":""},{"$f":"IF(OFFSET('Vehicle Operations&Maintenance'!C$4, $D33+$I$27, 0) = \"\", \"\", OFFSET('Vehicle Operations&Maintenance'!C$4, $D33+$I$27, 0) )","v":""},{"$f":"IF(OFFSET('Vehicle Operations&Maintenance'!D$4, $D33+$I$27, 0) = \"\", \"\", OFFSET('Vehicle Operations&Maintenance'!D$4, $D33+$I$27, 0) )","v":""},{"$f":"IF(OFFSET('Vehicle Operations&Maintenance'!E$4, $D33+$I$27, 0) = \"\", \"\", OFFSET('Vehicle Operations&Maintenance'!E$4, $D33+$I$27, 0) )","v":""}]
[null,null,null,5]
[null,"Displaced VMT"]
[null,null,null,null,null,null,null,null,null,null,null,{"$f":"Dropdowns!B18","v":0}]
[null,null,null,null,"Operation Mode ","Fuel Source","eGrid Subregion (if applicable)","VMT"]
[null,null,null,1,{"$f":"IF(OFFSET('Displaced Emissions'!B$4,$D38+ $L$36, 0) = \"\", \"\", OFFSET('Displaced Emissions'!B$4,$D38+ $L$36, 0) )","v":""},{"$f":"IF(OFFSET('Displaced Emissions'!C$4,$D38+ $L$36, 0) = \"\", \"\", OFFSET('Displaced Emissions'!C$4,$D38+ $L$36, 0) )","v":""},{"$f":"IF(OFFSET('Displaced Emissions'!D$4,$D38+ $L$36, 0) = \"\", \"\", OFFSET('Displaced Emissions'!D$4,$D38+ $L$36, 0) )","v":""},{"$f":"IF(OFFSET('Displaced Emissions'!E$4,$D38+ $L$36, 0) = \"\", \"\", OFFSET('Displaced Emissions'!E$4,$D38+ $L$36, 0) )","v":""}]
[null,null,null,2,{"$f":"IF(OFFSET('Displaced Emissions'!B$4,$D39+ $L$36, 0) = \"\", \"\", OFFSET('Displaced Emissions'!B$4,$D39+ $L$36, 0) )","v":""},{"$f":"IF(OFFSET('Displaced Emissions'!C$4,$D39+ $L$36, 0) = \"\", \"\", OFFSET('Displaced Emissions'!C$4,$D39+ $L$36, 0) )","v":""},{"$f":"IF(OFFSET('Displaced Emissions'!D$4,$D39+ $L$36, 0) = \"\", \"\", OFFSET('Displaced Emissions'!D$4,$D39+ $L$36, 0) )","v":""},{"$f":"IF(OFFSET('Displaced Emissions'!E$4,$D39+ $L$36, 0) = \"\", \"\", OFFSET('Displaced Emissions'!E$4,$D39+ $L$36, 0) )","v":""}]
[null,null,null,3,{"$f":"IF(OFFSET('Displaced Emissions'!B$4,$D40+ $L$36, 0) = \"\", \"\", OFFSET('Displaced Emissions'!B$4,$D40+ $L$36, 0) )","v":""},{"$f":"IF(OFFSET('Displaced Emissions'!C$4,$D40+ $L$36, 0) = \"\", \"\", OFFSET('Displaced Emissions'!C$4,$D40+ $L$36, 0) )","v":""},{"$f":"IF(OFFSET('Displaced Emissions'!D$4,$D40+ $L$36, 0) = \"\", \"\", OFFSET('Displaced Emissions'!D$4,$D40+ $L$36, 0) )","v":""},{"$f":"IF(OFFSET('Displaced Emissions'!E$4,$D40+ $L$36, 0) = \"\", \"\", OFFSET('Displaced Emissions'!E$4,$D40+ $L$36, 0) )","v":""}]
[null,null,null,4,{"$f":"IF(OFFSET('Displaced Emissions'!B$4,$D41+ $L$36, 0) = \"\", \"\", OFFSET('Displaced Emissions'!B$4,$D41+ $L$36, 0) )","v":""},{"$f":"IF(OFFSET('Displaced Emissions'!C$4,$D41+ $L$36, 0) = \"\", \"\", OFFSET('Displaced Emissions'!C$4,$D41+ $L$36, 0) )","v":""},{"$f":"IF(OFFSET('Displaced Emissions'!D$4,$D41+ $L$36, 0) = \"\", \"\", OFFSET('Displaced Emissions'!D$4,$D41+ $L$36, 0) )","v":""},{"$f":"IF(OFFSET('Displaced Emissions'!E$4,$D41+ $L$36, 0) = \"\", \"\", OFFSET('Displaced Emissions'!E$4,$D41+ $L$36, 0) )","v":""}]
[null,null,null,5,{"$f":"IF(OFFSET('Displaced Emissions'!B$4,$D42+ $L$36, 0) = \"\", \"\", OFFSET('Displaced Emissions'!B$4,$D42+ $L$36, 0) )","v":""},{"$f":"IF(OFFSET('Displaced Emissions'!C$4,$D42+ $L$36, 0) = \"\", \"\", OFFSET('Displaced Emissions'!C$4,$D42+ $L$36, 0) )","v":""},{"$f":"IF(OFFSET('Displaced Emissions'!D$4,$D42+ $L$36, 0) = \"\", \"\", OFFSET('Displaced Emissions'!D$4,$D42+ $L$36, 0) )","v":""},{"$f":"IF(OFFSET('Displaced Emissions'!E$4,$D42+ $L$36, 0) = \"\", \"\", OFFSET('Displaced Emissions'!E$4,$D42+ $L$36, 0) )","v":""}]
[]
[null,null,null,5]
[null,"RESULTS"]
[null,"Summary Results"]
[null,null,null,"Upstream Materials","Upstream Transport","Downstream ","Total",null,null,{"$f":"IF(Calculations!E2, \"\", \"Press 'Calculate Results' above to check for errors and calculate GHG emissions\")","v":"Press 'Calculate Results' above to check for errors and calculate GHG emissions"}]
[null,null,"Annual",{"$f":"IF( Calculations!$E$2, SUM(D54:D58)-SUM(D59), \"\")","v":""},{"$f":"IF( Calculations!$E$2, SUM(E54:E58)-SUM(E59), \"\")","v":""},{"$f":"IF( Calculations!$E$2, SUM(F54:F58)-SUM(F59), \"\")","v":""},{"$f":"IF( Calculations!$E$2, SUM(G54:G58)-SUM(G59), \"\")","v":""}]
[null,null,"Total Analysis Period",{"$f":"IF( Calculations!$E$2, SUM(D65:D69)-SUM(D70), \"\")","v":""},{"$f":"IF( Calculations!$E$2, SUM(E65:E69)-SUM(E70), \"\")","v":""},{"$f":"IF( Calculations!$E$2, SUM(F65:F69)-SUM(F70), \"\")","v":""},{"$f":"IF( Calculations!$E$2, SUM(G65:G69)-SUM(G70), \"\")","v":""}]
[]
[null,"Detailed Results"]
[null,"Annual GHG Emissions in MTCO2eq"]
[null,null,null,"Upstream Materials","Upstream Transport","Downstream ","Total "]
[null,null,"Construction ",{"$f":"IF(Calculations!$E$2, Calculations!B153, \"\")","v":""},{"$f":"IF(Calculations!$E$2, Calculations!C153, \"\")","v":""},{"$f":"IF(Calculations!$E$2, Calculations!D153, \"\")","v":""},{"$f":"IF(Calculations!$E$2, Calculations!E153, \"\")","v":""}]
[null,null,"Transitway Maintenance",{"$f":"IF(Calculations!$E$2, Calculations!B154, \"\")","v":""},{"$f":"IF(Calculations!$E$2, Calculations!C154, \"\")","v":""},{"$f":"IF(Calculations!$E$2, Calculations!D154, \"\")","v":""},{"$f":"IF(Calculations!$E$2, Calculations!E154, \"\")","v":""}]
[null,null,"Facility Operations",{"$f":"IF(Calculations!$E$2, Calculations!B155, \"\")","v":""},{"$f":"IF(Calculations!$E$2, Calculations!C155, \"\")","v":""},{"$f":"IF(Calculations!$E$2, Calculations!D155, \"\")","v":""},{"$f":"IF(Calculations!$E$2, Calculations!E155, \"\")","v":""}]
[null,null,"Vehicle Operations",{"$f":"IF(Calculations!$E$2, Calculations!B156, \"\")","v":""},{"$f":"IF(Calculations!$E$2, Calculations!C156, \"\")","v":""},{"$f":"IF(Calculations!$E$2, Calculations!D156, \"\")","v":""},{"$f":"IF(Calculations!$E$2, Calculations!E156, \"\")","v":""}]
[null,null,"Vehicle Maintenance",{"$f":"IF(Calculations!$E$2, Calculations!B157, \"\")","v":""},{"$f":"IF(Calculations!$E$2, Calculations!C157, \"\")","v":""},{"$f":"IF(Calculations!$E$2, Calculations!D157, \"\")","v":""},{"$f":"IF(Calculations!$E$2, Calculations!E157, \"\")","v":""}]
[null,null,"Displaced Emissions",{"$f":"IF(Calculations!$E$2, Calculations!B158, \"\")","v":""},{"$f":"IF(Calculations!$E$2, Calculations!C158, \"\")","v":""},{"$f":"IF(Calculations!$E$2, Calculations!D158, \"\")","v":""},{"$f":"IF(Calculations!$E$2, Calculations!E158, \"\")","v":""}]
[null,null,"Cumulative Emissions",{"$f":"IF(Calculations!$E$2, SUM(D54:D58)-SUM(D59), \"\")","v":""},{"$f":"IF(Calculations!$E$2, SUM(E54:E58)-SUM(E59), \"\")","v":""},{"$f":"IF(Calculations!$E$2, SUM(F54:F58)-SUM(F59), \"\")","v":""},{"$f":"IF(Calculations!$E$2, SUM(G54:G58)-SUM(G59), \"\")","v":""}]
[]
[]
[null,"Total GHG Emissions Over Analysis Period in MTCO2eq"]
[null,null,null,"Upstream Materials","Upstream Transport","Downstream ","Total"]
[null,null,"Construction ",{"$f":"IF(D54=\"\", \"\", D54*Years)","v":""},"","",""]
[null,null,"Transitway Maintenance","","","",""]
[null,null,"Facility Operations","","","",""]
[null,null,"Vehicle Operations","","","",""]
[null,null,"Vehicle Maintenance","","","",""]
[null,null,"Displaced Emissions","","","",""]
[null,null,"Cumulative Emissions",{"$f":"IF(Calculations!$E$2, SUM(D65:D69)-SUM(D70), \"\")","v":""},{"$f":"IF(Calculations!$E$2, SUM(E65:E69)-SUM(E70), \"\")","v":""},{"$f":"IF(Calculations!$E$2, SUM(F65:F69)-SUM(F70), \"\")","v":""},{"$f":"IF(Calculations!$E$2, SUM(G65:G69)-SUM(G70), \"\")","v":""}]

{"sheet":"Construction","index":2,"n_rows":7,"n_cols":11,"rows_kept":7,"cut":false,"hidden":false,"merged":[[1,1,1,9],[5,7,5,9],[5,1,6,1],[5,2,5,5],[5,6,6,6],[3,3,3,4],[3,8,3,9]]}
[]
[null,"CONSTRUCTION",null,null,null,null,null,null,null,null,"Return to Calculator"]
[]
[null,"1. Enter # of Structured Parking Spots to be Built:",null,"2. Enter # of Surface Parking Lot Spots to be Built:",null,null,"3. Enter the # of Trees to be Removed:*",null,"*If there will be a net gain in trees, enter the number as a negative (e.g., -5)"]
[]
[null,"4. Select Transit Mode:","5. Enter the Miles of New Track/Lanes and Catenary to be Built",null,null,null,"6. Enter the Miles of Track/Alignment to be Converted or Upgraded ","7. Enter the # of New Stations to be Built"]
[null,null,"Underground","Elevated","At-Grade","Catenary",null,"Underground","Elevated","At-Grade"]

{"sheet":"Facility Operations","index":3,"n_rows":4,"n_cols":5,"rows_kept":4,"cut":false,"hidden":false,"merged":[[1,1,1,3]]}
[]
[null,"FACILITY OPERATIONS",null,null,"Return to Calculator"]
[]
[null,"1. Select Transit Mode:","2. Select Facility Type","3. Enter Size (Square Footage) of Facility"]

{"sheet":"Vehicle Operations&Maintenance","index":4,"n_rows":24,"n_cols":6,"rows_kept":24,"cut":false,"hidden":false,"merged":[[1,1,1,4]]}
[]
[null,"TRANSIT VEHICLE OPERATIONS & MAINTENANCE",null,null,null,"Return to Calculator"]
[]
[null,"1. Select Transit Vehicle Type ","2. Select Fuel Source","3. Select eGrid Subregion (for electric operations)","4. Enter Annual Transit VMT Anticipated"]
[null,null,null,null,null,{"$f":"IF(C5=\"Electric\", TRUE, IF(C5=\"All Electric\", TRUE, IF(C5=\"Plug-in Hybrid Electric\", TRUE, FALSE)))","v":false}]
[null,null,null,null,null,{"$f":"IF(C6=\"Electric\", TRUE, IF(C6=\"All Electric\", TRUE, IF(C6=\"Plug-in Hybrid Electric\", TRUE, FALSE)))","v":false}]
[null,null,null,null,null,false]
[null,null,null,null,null,false]
[null,null,null,null,null,false]
[null,null,null,null,null,false]
[null,null,null,null,null,false]
[null,null,null,null,null,false]
[null,null,null,null,null,false]
[null,null,null,null,null,false]
[null,null,null,null,null,false]
[null,null,null,null,null,false]
[null,null,null,null,null,false]
[null,null,null,null,null,false]
[null,null,null,null,null,false]
[null,null,null,null,null,false]
[null,null,null,null,null,false]
[null,null,null,null,null,false]
[null,null,null,null,null,false]
[null,null,null,null,null,false]

{"sheet":"Displaced Emissions","index":5,"n_rows":24,"n_cols":6,"rows_kept":24,"cut":false,"hidden":false,"merged":[[1,1,1,4]]}
[]
[null,"DISPLACED EMISSIONS",null,null,null,"Return to Calculator"]
[]
[null,"1. Select Vehicle Type","2. Select Fuel Source","3. Select eGrid Subregion (for electric operations)","4. Enter Annual Vehicle VMT Displaced"]
[null,null,null,null,null,{"$f":"IF(C5=\"Electric\", TRUE, IF(C5=\"All Electric\", TRUE, IF(C5=\"Plug-in Hybrid Electric\", TRUE, FALSE)))","v":false}]
[null,null,null,null,null,{"$f":"IF(C6=\"Electric\", TRUE, IF(C6=\"All Electric\", TRUE, IF(C6=\"Plug-in Hybrid Electric\", TRUE, FALSE)))","v":false}]
[null,null,null,null,null,false]
[null,null,null,null,null,false]
[null,null,null,null,null,false]
[null,null,null,null,null,false]
[null,null,null,null,null,false]
[null,null,null,null,null,false]
[null,null,null,null,null,false]
[null,null,null,null,null,false]
[null,null,null,null,null,false]
[null,null,null,null,null,false]
[null,null,null,null,null,false]
[null,null,null,null,null,false]
[null,null,null,null,null,false]
[null,null,null,null,null,false]
[null,null,null,null,null,false]
[null,null,null,null,null,false]
[null,null,null,null,null,false]
[null,null,null,null,null,false]

{"sheet":"Dropdowns","index":6,"n_rows":54,"n_cols":16,"rows_kept":54,"cut":false,"hidden":true,"merged":[]}
[]
[null,"Transit Modes",null,"Maintenance and Operation Modes",null,"Veh Op Modes",null,"Operations Fuels",null,null,"eGRID Subregions","NERC Region",null,"Building Types",null,"States"]
[null,"Heavy Rail",null,"Heavy Rail",null,"Heavy Rail",null,null,null,null,"US Mix","US",null,"Station"]
[null,"Commuter Rail",null,"Commuter Rail",null,"Light Rail or Streetcar",null,"Heavy, Light, Streetcar",null,null,"AKGD","ASCC",null,"Maintenance/Storage Facility",null,"AL"]
[null,"Light Rail or Streetcar",null,"Light Rail or Streetcar",null,"Commuter Rail",null,"Electric",null,null,"AKMS","ASCC",null,null,null,"AK"]
[null,"Bus/BRT",null,"Bus/BRT",null,"Bus/BRT",null,null,null,null,"AZNM","WECC",null,null,null,"AZ"]
[null,null,null,null,null,"Vanpool",null,"Bus/BRT",null,null,"CAMX","WECC",null,null,null,"AR"]
[null,null,null,null,null,"School Bus",null,"Diesel",null,null,"ERCT","TRE",null,null,null,"CA"]
[null,"New or Converted ",null,null,null,"DR Bus",null,"CNG",null,null,"FRCC","FRCC",null,null,null,"CO"]
[null,"New Construction",null,null,null,"Sedan/Auto",null,"Hybrid Diesel",null,null,"HIMS","HICC",null,null,null,"CT"]
[null,"Converted or Upgraded",null,null,null,null,null,"Gas",null,null,"HIOA","HICC",null,null,null,"DC"]
[null,null,null,null,null,null,null,"Electric",null,null,"MROE","MRO",null,null,null,"DE"]
[null,null,null,null,null,null,null,null,null,null,"MROW","MRO",null,null,null,"FL"]
[null,"Scroll Controls",null,null,null,null,null,"Vanpool",null,null,"NEWE","NPCC",null,null,null,"GA"]
[null,0,null,null,null,null,null,"Diesel",null,null,"NWPP","WECC",null,null,null,"HI"]
[null,0,null,null,null,null,null,"Gas",null,null,"NYCW","NPCC",null,null,null,"ID"]
[null,0,null,null,null,null,null,null,null,null,"NYLI","NPCC",null,null,null,"IL"]
[null,0,null,null,null,null,null,"School Bus, Dr Bus",null,null,"NYUP","NPCC",null,null,null,"IN"]
[null,null,null,null,null,null,null,"Diesel",null,null,"PRMS","US",null,null,null,"IA"]
[null,null,null,null,null,null,null,"CNG",null,null,"RFCE","RFC",null,null,null,"KS"]
[null,null,null,null,null,null,null,null,null,null,"RFCM","RFC",null,null,null,"KY"]
[null,null,null,null,null,null,null,"Sedan/Auto",null,null,"RFCW","RFC",null,null,null,"LA"]
[null,null,null,null,null,null,null,"Gas",null,null,"RMPA","WECC",null,null,null,"ME"]
[null,null,null,null,null,null,null,"Diesel",null,null,"SPNO","SPP",null,null,null,"MD"]
[null,null,null,null,null,null,null,"Hybrid Electric",null,null,"SPSO","SPP",null,null,null,"MA"]
[null,null,null,null,null,null,null,"All Electric",null,null,"SRMV","SERC",null,null,null,"MI"]
[null,null,null,null,null,null,null,"Plug-in Hybrid Electric",null,null,"SRMW","SERC",null,null,null,"MN"]
[null,null,null,null,null,null,null,null,null,null,"SRSO","SERC",null,null,null,"MS"]
[null,null,null,null,null,null,null,"Commuter",null,null,"SRTV","SERC",null,null,null,"MO"]
[null,null,null,null,null,null,null,"Electric",null,null,"SRVC","SERC ",null,null,null,"MT"]
[null,null,null,null,null,null,null,"Diesel",null,null,null,null,null,null,null,"NE"]
[null,null,null,null,null,null,null,null,null,null,null,null,null,null,null,"NV"]
[null,null,null,null,null,null,null,null,null,null,null,null,null,null,null,"NH"]
[null,null,null,null,null,null,null,null,null,null,null,null,null,null,null,"NJ"]
[null,null,null,null,null,null,null,null,null,null,null,null,null,null,null,"NM"]
[null,null,null,null,null,null,null,null,null,null,null,null,null,null,null,"NY"]
[null,null,null,null,null,null,null,null,null,null,null,null,null,null,null,"NC"]
[null,null,null,null,null,null,null,null,null,null,null,null,null,null,null,"ND"]
[null,null,null,null,null,null,null,null,null,null,null,null,null,null,null,"OH"]
[null,null,null,null,null,null,null,null,null,null,null,null,null,null,null,"OK"]
[null,null,null,null,null,null,null,null,null,null,null,null,null,null,null,"OR"]
[null,null,null,null,null,null,null,null,null,null,null,null,null,null,null,"PA"]
[null,null,null,null,null,null,null,null,null,null,null,null,null,null,null,"RI"]
[null,null,null,null,null,null,null,null,null,null,null,null,null,null,null,"SC"]
[null,null,null,null,null,null,null,null,null,null,null,null,null,null,null,"SD"]
[null,null,null,null,null,null,null,null,null,null,null,null,null,null,null,"TN"]
[null,null,null,null,null,null,null,null,null,null,null,null,null,null,null,"TX"]
[null,null,null,null,null,null,null,null,null,null,null,null,null,null,null,"UT"]
[null,null,null,null,null,null,null,null,null,null,null,null,null,null,null,"VT"]
[null,null,null,null,null,null,null,null,null,null,null,null,null,null,null,"VA"]
[null,null,null,null,null,null,null,null,null,null,null,null,null,null,null,"WA"]
[null,null,null,null,null,null,null,null,null,null,null,null,null,null,null,"WV"]
[null,null,null,null,null,null,null,null,null,null,null,null,null,null,null,"WI"]
[null,null,null,null,null,null,null,null,null,null,null,null,null,null,null,"WY"]

{"sheet":"Calculations","index":7,"n_rows":158,"n_cols":40,"rows_kept":158,"cut":false,"hidden":true,"merged":[[31,2,31,4],[4,2,4,5]]}
["SelectState","State","Analysis Period",null,"Error Check"]
[{"$f":"B2","v":0},{"$f":"'GHG Calculator'!D5","v":0},{"$f":"'GHG Calculator'!$F$5","v":0},null,false]
[]
["Construction",null,null,null,null,null,null,null,null,null,"Upstream Materials",null,null,null,null,null,null,null,"Upstream Transport Emissions Factor",null,null,null,null,null,null,null,"Downstream Emissions Factor",null,null,null,null,null,null,null,"RESULTS",null,null,"FINAL RESULTS"]
["INPUTS",null,"Miles of New Track/Alignment",null,null,null,null,"Number of Stations"]
["row","Transit Mode:","Underground","Elevated","At-Grade","Catenary","CONVERTED OR UPGRADED","Underground","Elevated","At-Grade","Underground","Elevated","At-Grade","Catenary","CONVERTED OR UPGRADED","Underground","Elevated","At-Grade","Underground","Elevated","At-Grade","Catenary","Converted or Upgraded","Underground","Elevated","At-Grade","Underground","Elevated","At-Grade","Catenary","CONVERTED OR UPGRADED","Underground","Elevated","At-Grade","UPSTREAM MATERIALS","UPSTREAM TRANSPORT","DOWNSTREAM","UPSTREAM MATERIALS","UPSTREAM TRANSPORT","DOWNSTREAM"]
[1,{"$f":"Construction!B8","v":0},{"$f":"Construction!C8","v":0},{"$f":"Construction!D8","v":0},{"$f":"Construction!E8","v":0},{"$f":"Construction!F8","v":0},{"$f":"Construction!G8","v":0},{"$f":"Construction!H8","v":0},{"$f":"Construction!I8","v":0},{"$f":"Construction!J8","v":0},{"$f":"SUMIFS(FactorMatrix[[UPSTREAMMATERIALS]:[UPSTREAMMATERIALS]], FactorMatrix[[MODE]:[MODE]], $B7, FactorMatrix[[PHASE]:[PHASE]], $A$4, FactorMatrix[[GHGSOURCE]:[GHGSOURCE]], \"track mile\", FactorMatrix[[TYPE]:[TYPE]], K$6, FactorMatrix[[STATE /REGION]:[STATE /REGION]], StateCalc)","v":0},{"$f":"SUMIFS(FactorMatrix[[UPSTREAMMATERIALS]:[UPSTREAMMATERIALS]], FactorMatrix[[MODE]:[MODE]], $B7, FactorMatrix[[PHASE]:[PHASE]], $A$4, FactorMatrix[[GHGSOURCE]:[GHGSOURCE]], \"track mile\", FactorMatrix[[TYPE]:[TYPE]], L$6)","v":0},{"$f":"SUMIFS(FactorMatrix[[UPSTREAMMATERIALS]:[UPSTREAMMATERIALS]], FactorMatrix[[MODE]:[MODE]], $B7, FactorMatrix[[PHASE]:[PHASE]], $A$4, FactorMatrix[[GHGSOURCE]:[GHGSOURCE]], \"track mile\", FactorMatrix[[TYPE]:[TYPE]], M$6)","v":0},{"$f":"SUMIFS(FactorMatrix[[UPSTREAMMATERIALS]:[UPSTREAMMATERIALS]], FactorMatrix[[MODE]:[MODE]], $B7, FactorMatrix[[PHASE]:[PHASE]], $A$4, FactorMatrix[[GHGSOURCE]:[GHGSOURCE]], \"track mile\", FactorMatrix[[TYPE]:[TYPE]], N$6)","v":0},{"$f":"SUMIFS(FactorMatrix[[UPSTREAMMATERIALS]:[UPSTREAMMATERIALS]], FactorMatrix[[MODE]:[MODE]], $B7, FactorMatrix[[PHASE]:[PHASE]], $A$4, FactorMatrix[[GHGSOURCE]:[GHGSOURCE]], \"track mile\", FactorMatrix[[TYPE]:[TYPE]], O$6)","v":0},{"$f":"SUMIFS(FactorMatrix[[UPSTREAMMATERIALS]:[UPSTREAMMATERIALS]], FactorMatrix[[MODE]:[MODE]], $B7, FactorMatrix[[PHASE]:[PHASE]], $A$4, FactorMatrix[[GHGSOURCE]:[GHGSOURCE]], \"station\", FactorMatrix[[TYPE]:[TYPE]], P$6)","v":0},{"$f":"SUMIFS(FactorMatrix[[UPSTREAMMATERIALS]:[UPSTREAMMATERIALS]], FactorMatrix[[MODE]:[MODE]], $B7, FactorMatrix[[PHASE]:[PHASE]], $A$4, FactorMatrix[[GHGSOURCE]:[GHGSOURCE]], \"station\", FactorMatrix[[TYPE]:[TYPE]], Q$6)","v":0},{"$f":"SUMIFS(FactorMatrix[[UPSTREAMMATERIALS]:[UPSTREAMMATERIALS]], FactorMatrix[[MODE]:[MODE]], $B7, FactorMatrix[[PHASE]:[PHASE]], $A$4, FactorMatrix[[GHGSOURCE]:[GHGSOURCE]], \"station\", FactorMatrix[[TYPE]:[TYPE]], R$6)","v":0},{"$f":"SUMIFS(FactorMatrix[[UPSTREAMTRANSPORT]:[UPSTREAMTRANSPORT]], FactorMatrix[[MODE]:[MODE]], $B7, FactorMatrix[[PHASE]:[PHASE]], $A$4, FactorMatrix[[GHGSOURCE]:[GHGSOURCE]], \"track mile\", FactorMatrix[[TYPE]:[TYPE]], S$6, FactorMatrix[[STATE /REGION]:[STATE /REGION]], StateCalc)","v":0},{"$f":"SUMIFS(FactorMatrix[[UPSTREAMTRANSPORT]:[UPSTREAMTRANSPORT]], FactorMatrix[[MODE]:[MODE]], $B7, FactorMatrix[[PHASE]:[PHASE]], $A$4, FactorMatrix[[GHGSOURCE]:[GHGSOURCE]], \"track mile\", FactorMatrix[[TYPE]:[TYPE]], T$6)","v":0},{"$f":"SUMIFS(FactorMatrix[[UPSTREAMTRANSPORT]:[UPSTREAMTRANSPORT]], FactorMatrix[[MODE]:[MODE]], $B7, FactorMatrix[[PHASE]:[PHASE]], $A$4, FactorMatrix[[GHGSOURCE]:[GHGSOURCE]], \"track mile\", FactorMatrix[[TYPE]:[TYPE]], U$6)","v":0},{"$f":"SUMIFS(FactorMatrix[[UPSTREAMTRANSPORT]:[UPSTREAMTRANSPORT]], FactorMatrix[[MODE]:[MODE]], $B7, FactorMatrix[[PHASE]:[PHASE]], $A$4, FactorMatrix[[GHGSOURCE]:[GHGSOURCE]], \"track mile\", FactorMatrix[[TYPE]:[TYPE]], V$6)","v":0},{"$f":"SUMIFS(FactorMatrix[[UPSTREAMTRANSPORT]:[UPSTREAMTRANSPORT]], FactorMatrix[[MODE]:[MODE]], $B7, FactorMatrix[[PHASE]:[PHASE]], $A$4, FactorMatrix[[GHGSOURCE]:[GHGSOURCE]], \"track mile\", FactorMatrix[[TYPE]:[TYPE]], W$6)","v":0},{"$f":"SUMIFS(FactorMatrix[[UPSTREAMTRANSPORT]:[UPSTREAMTRANSPORT]], FactorMatrix[[MODE]:[MODE]], $B7, FactorMatrix[[PHASE]:[PHASE]], $A$4, FactorMatrix[[GHGSOURCE]:[GHGSOURCE]], \"station\", FactorMatrix[[TYPE]:[TYPE]], X$6)","v":0},{"$f":"SUMIFS(FactorMatrix[[UPSTREAMTRANSPORT]:[UPSTREAMTRANSPORT]], FactorMatrix[[MODE]:[MODE]], $B7, FactorMatrix[[PHASE]:[PHASE]], $A$4, FactorMatrix[[GHGSOURCE]:[GHGSOURCE]], \"station\", FactorMatrix[[TYPE]:[TYPE]], Y$6)","v":0},{"$f":"SUMIFS(FactorMatrix[[UPSTREAMTRANSPORT]:[UPSTREAMTRANSPORT]], FactorMatrix[[MODE]:[MODE]], $B7, FactorMatrix[[PHASE]:[PHASE]], $A$4, FactorMatrix[[GHGSOURCE]:[GHGSOURCE]], \"station\", FactorMatrix[[TYPE]:[TYPE]], Z$6)","v":0},{"$f":"SUMIFS(FactorMatrix[[DOWNSTREAM]:[DOWNSTREAM]], FactorMatrix[[MODE]:[MODE]], $B7, FactorMatrix[[PHASE]:[PHASE]], $A$4, FactorMatrix[[GHGSOURCE]:[GHGSOURCE]], \"track mile\", FactorMatrix[[TYPE]:[TYPE]], AA$6, FactorMatrix[[STATE /REGION]:[STATE /REGION]], StateCalc)","v":0},{"$f":"SUMIFS(FactorMatrix[[DOWNSTREAM]:[DOWNSTREAM]], FactorMatrix[[MODE]:[MODE]], $B7, FactorMatrix[[PHASE]:[PHASE]], $A$4, FactorMatrix[[GHGSOURCE]:[GHGSOURCE]], \"track mile\", FactorMatrix[[TYPE]:[TYPE]], AB$6)","v":0},{"$f":"SUMIFS(FactorMatrix[[DOWNSTREAM]:[DOWNSTREAM]], FactorMatrix[[MODE]:[MODE]], $B7, FactorMatrix[[PHASE]:[PHASE]], $A$4, FactorMatrix[[GHGSOURCE]:[GHGSOURCE]], \"track mile\", FactorMatrix[[TYPE]:[TYPE]], AC$6)","v":0},{"$f":"SUMIFS(FactorMatrix[[DOWNSTREAM]:[DOWNSTREAM]], FactorMatrix[[MODE]:[MODE]], $B7, FactorMatrix[[PHASE]:[PHASE]], $A$4, FactorMatrix[[GHGSOURCE]:[GHGSOURCE]], \"track mile\", FactorMatrix[[TYPE]:[TYPE]], AD$6)","v":0},{"$f":"SUMIFS(FactorMatrix[[DOWNSTREAM]:[DOWNSTREAM]], FactorMatrix[[MODE]:[MODE]], $B7, FactorMatrix[[PHASE]:[PHASE]], $A$4, FactorMatrix[[GHGSOURCE]:[GHGSOURCE]], \"track mile\", FactorMatrix[[TYPE]:[TYPE]], AE$6)","v":0},{"$f":"SUMIFS(FactorMatrix[[DOWNSTREAM]:[DOWNSTREAM]], FactorMatrix[[MODE]:[MODE]], $B7, FactorMatrix[[PHASE]:[PHASE]], $A$4, FactorMatrix[[GHGSOURCE]:[GHGSOURCE]], \"station\", FactorMatrix[[TYPE]:[TYPE]], AF$6)","v":0},{"$f":"SUMIFS(FactorMatrix[[DOWNSTREAM]:[DOWNSTREAM]], FactorMatrix[[MODE]:[MODE]], $B7, FactorMatrix[[PHASE]:[PHASE]], $A$4, FactorMatrix[[GHGSOURCE]:[GHGSOURCE]], \"station\", FactorMatrix[[TYPE]:[TYPE]], AG$6)","v":0},{"$f":"SUMIFS(FactorMatrix[[DOWNSTREAM]:[DOWNSTREAM]], FactorMatrix[[MODE]:[MODE]], $B7, FactorMatrix[[PHASE]:[PHASE]], $A$4, FactorMatrix[[GHGSOURCE]:[GHGSOURCE]], \"station\", FactorMatrix[[TYPE]:[TYPE]], AH$6)","v":0},{"$f":"SUMPRODUCT($C7:$J7, K7:R7)","v":0},{"$f":"SUMPRODUCT($C7:$J7, S7:Z7)","v":0},{"$f":"SUMPRODUCT($C7:$J7, AA7:AH7)","v":0},{"$f":"SUM(AI7:AI29)","v":0},{"$f":"SUM(AJ7:AJ29)","v":0},{"$f":"SUM(AK7:AK29)","v":0}]
[2,{"$f":"Construction!B9","v":0},{"$f":"Construction!C9","v":0},{"$f":"Construction!D9","v":0},{"$f":"Construction!E9","v":0},{"$f":"Construction!F9","v":0},{"$f":"Construction!G9","v":0},{"$f":"Construction!H9","v":0},{"$f":"Construction!I9","v":0},{"$f":"Construction!J9","v":0},{"$f":"SUMIFS(FactorMatrix[[UPSTREAMMATERIALS]:[UPSTREAMMATERIALS]], FactorMatrix[[MODE]:[MODE]], $B8, FactorMatrix[[PHASE]:[PHASE]], $A$4, FactorMatrix[[GHGSOURCE]:[GHGSOURCE]], \"track mile\", FactorMatrix[[TYPE]:[TYPE]], K$6, FactorMatrix[[STATE /REGION]:[STATE /REGION]], StateCalc)","v":0},{"$f":"SUMIFS(FactorMatrix[[UPSTREAMMATERIALS]:[UPSTREAMMATERIALS]], FactorMatrix[[MODE]:[MODE]], $B8, FactorMatrix[[PHASE]:[PHASE]], $A$4, FactorMatrix[[GHGSOURCE]:[GHGSOURCE]], \"track mile\", FactorMatrix[[TYPE]:[TYPE]], L$6)","v":0},{"$f":"SUMIFS(FactorMatrix[[UPSTREAMMATERIALS]:[UPSTREAMMATERIALS]], FactorMatrix[[MODE]:[MODE]], $B8, FactorMatrix[[PHASE]:[PHASE]], $A$4, FactorMatrix[[GHGSOURCE]:[GHGSOURCE]], \"track mile\", FactorMatrix[[TYPE]:[TYPE]], M$6)","v":0},{"$f":"SUMIFS(FactorMatrix[[UPSTREAMMATERIALS]:[UPSTREAMMATERIALS]], FactorMatrix[[MODE]:[MODE]], $B8, FactorMatrix[[PHASE]:[PHASE]], $A$4, FactorMatrix[[GHGSOURCE]:[GHGSOURCE]], \"track mile\", FactorMatrix[[TYPE]:[TYPE]], N$6)","v":0},{"$f":"SUMIFS(FactorMatrix[[UPSTREAMMATERIALS]:[UPSTREAMMATERIALS]], FactorMatrix[[MODE]:[MODE]], $B8, FactorMatrix[[PHASE]:[PHASE]], $A$4, FactorMatrix[[GHGSOURCE]:[GHGSOURCE]], \"track mile\", FactorMatrix[[TYPE]:[TYPE]], O$6)","v":0},{"$f":"SUMIFS(FactorMatrix[[UPSTREAMMATERIALS]:[UPSTREAMMATERIALS]], FactorMatrix[[MODE]:[MODE]], $B8, FactorMatrix[[PHASE]:[PHASE]], $A$4, FactorMatrix[[GHGSOURCE]:[GHGSOURCE]], \"station\", FactorMatrix[[TYPE]:[TYPE]], P$6)","v":0},{"$f":"SUMIFS(FactorMatrix[[UPSTREAMMATERIALS]:[UPSTREAMMATERIALS]], FactorMatrix[[MODE]:[MODE]], $B8, FactorMatrix[[PHASE]:[PHASE]], $A$4, FactorMatrix[[GHGSOURCE]:[GHGSOURCE]], \"station\", FactorMatrix[[TYPE]:[TYPE]], Q$6)","v":0},{"$f":"SUMIFS(FactorMatrix[[UPSTREAMMATERIALS]:[UPSTREAMMATERIALS]], FactorMatrix[[MODE]:[MODE]], $B8, FactorMatrix[[PHASE]:[PHASE]], $A$4, FactorMatrix[[GHGSOURCE]:[GHGSOURCE]], \"station\", FactorMatrix[[TYPE]:[TYPE]], R$6)","v":0},{"$f":"SUMIFS(FactorMatrix[[UPSTREAMTRANSPORT]:[UPSTREAMTRANSPORT]], FactorMatrix[[MODE]:[MODE]], $B8, FactorMatrix[[PHASE]:[PHASE]], $A$4, FactorMatrix[[GHGSOURCE]:[GHGSOURCE]], \"track mile\", FactorMatrix[[TYPE]:[TYPE]], S$6, FactorMatrix[[STATE /REGION]:[STATE /REGION]], StateCalc)","v":0},{"$f":"SUMIFS(FactorMatrix[[UPSTREAMTRANSPORT]:[UPSTREAMTRANSPORT]], FactorMatrix[[MODE]:[MODE]], $B8, FactorMatrix[[PHASE]:[PHASE]], $A$4, FactorMatrix[[GHGSOURCE]:[GHGSOURCE]], \"track mile\", FactorMatrix[[TYPE]:[TYPE]], T$6)","v":0},{"$f":"SUMIFS(FactorMatrix[[UPSTREAMTRANSPORT]:[UPSTREAMTRANSPORT]], FactorMatrix[[MODE]:[MODE]], $B8, FactorMatrix[[PHASE]:[PHASE]], $A$4, FactorMatrix[[GHGSOURCE]:[GHGSOURCE]], \"track mile\", FactorMatrix[[TYPE]:[TYPE]], U$6)","v":0},{"$f":"SUMIFS(FactorMatrix[[UPSTREAMTRANSPORT]:[UPSTREAMTRANSPORT]], FactorMatrix[[MODE]:[MODE]], $B8, FactorMatrix[[PHASE]:[PHASE]], $A$4, FactorMatrix[[GHGSOURCE]:[GHGSOURCE]], \"track mile\", FactorMatrix[[TYPE]:[TYPE]], V$6)","v":0},{"$f":"SUMIFS(FactorMatrix[[UPSTREAMTRANSPORT]:[UPSTREAMTRANSPORT]], FactorMatrix[[MODE]:[MODE]], $B8, FactorMatrix[[PHASE]:[PHASE]], $A$4, FactorMatrix[[GHGSOURCE]:[GHGSOURCE]], \"track mile\", FactorMatrix[[TYPE]:[TYPE]], W$6)","v":0},{"$f":"SUMIFS(FactorMatrix[[UPSTREAMTRANSPORT]:[UPSTREAMTRANSPORT]], FactorMatrix[[MODE]:[MODE]], $B8, FactorMatrix[[PHASE]:[PHASE]], $A$4, FactorMatrix[[GHGSOURCE]:[GHGSOURCE]], \"station\", FactorMatrix[[TYPE]:[TYPE]], X$6)","v":0},{"$f":"SUMIFS(FactorMatrix[[UPSTREAMTRANSPORT]:[UPSTREAMTRANSPORT]], FactorMatrix[[MODE]:[MODE]], $B8, FactorMatrix[[PHASE]:[PHASE]], $A$4, FactorMatrix[[GHGSOURCE]:[GHGSOURCE]], \"station\", FactorMatrix[[TYPE]:[TYPE]], Y$6)","v":0},{"$f":"SUMIFS(FactorMatrix[[UPSTREAMTRANSPORT]:[UPSTREAMTRANSPORT]], FactorMatrix[[MODE]:[MODE]], $B8, FactorMatrix[[PHASE]:[PHASE]], $A$4, FactorMatrix[[GHGSOURCE]:[GHGSOURCE]], \"station\", FactorMatrix[[TYPE]:[TYPE]], Z$6)","v":0},{"$f":"SUMIFS(FactorMatrix[[DOWNSTREAM]:[DOWNSTREAM]], FactorMatrix[[MODE]:[MODE]], $B8, FactorMatrix[[PHASE]:[PHASE]], $A$4, FactorMatrix[[GHGSOURCE]:[GHGSOURCE]], \"track mile\", FactorMatrix[[TYPE]:[TYPE]], AA$6, FactorMatrix[[STATE /REGION]:[STATE /REGION]], StateCalc)","v":0},{"$f":"SUMIFS(FactorMatrix[[DOWNSTREAM]:[DOWNSTREAM]], FactorMatrix[[MODE]:[MODE]], $B8, FactorMatrix[[PHASE]:[PHASE]], $A$4, FactorMatrix[[GHGSOURCE]:[GHGSOURCE]], \"track mile\", FactorMatrix[[TYPE]:[TYPE]], AB$6)","v":0},{"$f":"SUMIFS(FactorMatrix[[DOWNSTREAM]:[DOWNSTREAM]], FactorMatrix[[MODE]:[MODE]], $B8, FactorMatrix[[PHASE]:[PHASE]], $A$4, FactorMatrix[[GHGSOURCE]:[GHGSOURCE]], \"track mile\", FactorMatrix[[TYPE]:[TYPE]], AC$6)","v":0},{"$f":"SUMIFS(FactorMatrix[[DOWNSTREAM]:[DOWNSTREAM]], FactorMatrix[[MODE]:[MODE]], $B8, FactorMatrix[[PHASE]:[PHASE]], $A$4, FactorMatrix[[GHGSOURCE]:[GHGSOURCE]], \"track mile\", FactorMatrix[[TYPE]:[TYPE]], AD$6)","v":0},{"$f":"SUMIFS(FactorMatrix[[DOWNSTREAM]:[DOWNSTREAM]], FactorMatrix[[MODE]:[MODE]], $B8, FactorMatrix[[PHASE]:[PHASE]], $A$4, FactorMatrix[[GHGSOURCE]:[GHGSOURCE]], \"track mile\", FactorMatrix[[TYPE]:[TYPE]], AE$6)","v":0},{"$f":"SUMIFS(FactorMatrix[[DOWNSTREAM]:[DOWNSTREAM]], FactorMatrix[[MODE]:[MODE]], $B8, FactorMatrix[[PHASE]:[PHASE]], $A$4, FactorMatrix[[GHGSOURCE]:[GHGSOURCE]], \"station\", FactorMatrix[[TYPE]:[TYPE]], AF$6)","v":0},{"$f":"SUMIFS(FactorMatrix[[DOWNSTREAM]:[DOWNSTREAM]], FactorMatrix[[MODE]:[MODE]], $B8, FactorMatrix[[PHASE]:[PHASE]], $A$4, FactorMatrix[[GHGSOURCE]:[GHGSOURCE]], \"station\", FactorMatrix[[TYPE]:[TYPE]], AG$6)","v":0},{"$f":"SUMIFS(FactorMatrix[[DOWNSTREAM]:[DOWNSTREAM]], FactorMatrix[[MODE]:[MODE]], $B8, FactorMatrix[[PHASE]:[PHASE]], $A$4, FactorMatrix[[GHGSOURCE]:[GHGSOURCE]], \"station\", FactorMatrix[[TYPE]:[TYPE]], AH$6)","v":0},{"$f":"SUMPRODUCT($C8:$J8, K8:R8)","v":0},{"$f":"SUMPRODUCT($C8:$J8, S8:Z8)","v":0},{"$f":"SUMPRODUCT($C8:$J8, AA8:AH8)","v":0}]
[3,{"$f":"Construction!B10","v":0},{"$f":"Construction!C10","v":0},{"$f":"Construction!D10","v":0},{"$f":"Construction!E10","v":0},{"$f":"Construction!F10","v":0},{"$f":"Construction!G10","v":0},{"$f":"Construction!H10","v":0},{"$f":"Construction!I10","v":0},{"$f":"Construction!J10","v":0},{"$f":"SUMIFS(FactorMatrix[[UPSTREAMMATERIALS]:[UPSTREAMMATERIALS]], FactorMatrix[[MODE]:[MODE]], $B9, FactorMatrix[[PHASE]:[PHASE]], $A$4, FactorMatrix[[GHGSOURCE]:[GHGSOURCE]], \"track mile\", FactorMatrix[[TYPE]:[TYPE]], K$6, FactorMatrix[[STATE /REGION]:[STATE /REGION]], StateCalc)","v":0},{"$f":"SUMIFS(FactorMatrix[[UPSTREAMMATERIALS]:[UPSTREAMMATERIALS]], FactorMatrix[[MODE]:[MODE]], $B9, FactorMatrix[[PHASE]:[PHASE]], $A$4, FactorMatrix[[GHGSOURCE]:[GHGSOURCE]], \"track mile\", FactorMatrix[[TYPE]:[TYPE]], L$6)","v":0},{"$f":"SUMIFS(FactorMatrix[[UPSTREAMMATERIALS]:[UPSTREAMMATERIALS]], FactorMatrix[[MODE]:[MODE]], $B9, FactorMatrix[[PHASE]:[PHASE]], $A$4, FactorMatrix[[GHGSOURCE]:[GHGSOURCE]], \"track mile\", FactorMatrix[[TYPE]:[TYPE]], M$6)","v":0},{"$f":"SUMIFS(FactorMatrix[[UPSTREAMMATERIALS]:[UPSTREAMMATERIALS]], FactorMatrix[[MODE]:[MODE]], $B9, FactorMatrix[[PHASE]:[PHASE]], $A$4, FactorMatrix[[GHGSOURCE]:[GHGSOURCE]], \"track mile\", FactorMatrix[[TYPE]:[TYPE]], N$6)","v":0},{"$f":"SUMIFS(FactorMatrix[[UPSTREAMMATERIALS]:[UPSTREAMMATERIALS]], FactorMatrix[[MODE]:[MODE]], $B9, FactorMatrix[[PHASE]:[PHASE]], $A$4, FactorMatrix[[GHGSOURCE]:[GHGSOURCE]], \"track mile\", FactorMatrix[[TYPE]:[TYPE]], O$6)","v":0},{"$f":"SUMIFS(FactorMatrix[[UPSTREAMMATERIALS]:[UPSTREAMMATERIALS]], FactorMatrix[[MODE]:[MODE]], $B9, FactorMatrix[[PHASE]:[PHASE]], $A$4, FactorMatrix[[GHGSOURCE]:[GHGSOURCE]], \"station\", FactorMatrix[[TYPE]:[TYPE]], P$6)","v":0},{"$f":"SUMIFS(FactorMatrix[[UPSTREAMMATERIALS]:[UPSTREAMMATERIALS]], FactorMatrix[[MODE]:[MODE]], $B9, FactorMatrix[[PHASE]:[PHASE]], $A$4, FactorMatrix[[GHGSOURCE]:[GHGSOURCE]], \"station\", FactorMatrix[[TYPE]:[TYPE]], Q$6)","v":0},{"$f":"SUMIFS(FactorMatrix[[UPSTREAMMATERIALS]:[UPSTREAMMATERIALS]], FactorMatrix[[MODE]:[MODE]], $B9, FactorMatrix[[PHASE]:[PHASE]], $A$4, FactorMatrix[[GHGSOURCE]:[GHGSOURCE]], \"station\", FactorMatrix[[TYPE]:[TYPE]], R$6)","v":0},{"$f":"SUMIFS(FactorMatrix[[UPSTREAMTRANSPORT]:[UPSTREAMTRANSPORT]], FactorMatrix[[MODE]:[MODE]], $B9, FactorMatrix[[PHASE]:[PHASE]], $A$4, FactorMatrix[[GHGSOURCE]:[GHGSOURCE]], \"track mile\", FactorMatrix[[TYPE]:[TYPE]], S$6, FactorMatrix[[STATE /REGION]:[STATE /REGION]], StateCalc)","v":0},{"$f":"SUMIFS(FactorMatrix[[UPSTREAMTRANSPORT]:[UPSTREAMTRANSPORT]], FactorMatrix[[MODE]:[MODE]], $B9, FactorMatrix[[PHASE]:[PHASE]], $A$4, FactorMatrix[[GHGSOURCE]:[GHGSOURCE]], \"track mile\", FactorMatrix[[TYPE]:[TYPE]], T$6)","v":0},{"$f":"SUMIFS(FactorMatrix[[UPSTREAMTRANSPORT]:[UPSTREAMTRANSPORT]], FactorMatrix[[MODE]:[MODE]], $B9, FactorMatrix[[PHASE]:[PHASE]], $A$4, FactorMatrix[[GHGSOURCE]:[GHGSOURCE]], \"track mile\", FactorMatrix[[TYPE]:[TYPE]], U$6)","v":0},{"$f":"SUMIFS(FactorMatrix[[UPSTREAMTRANSPORT]:[UPSTREAMTRANSPORT]], FactorMatrix[[MODE]:[MODE]], $B9, FactorMatrix[[PHASE]:[PHASE]], $A$4, FactorMatrix[[GHGSOURCE]:[GHGSOURCE]], \"track mile\", FactorMatrix[[TYPE]:[TYPE]], V$6)","v":0},{"$f":"SUMIFS(FactorMatrix[[UPSTREAMTRANSPORT]:[UPSTREAMTRANSPORT]], FactorMatrix[[MODE]:[MODE]], $B9, FactorMatrix[[PHASE]:[PHASE]], $A$4, FactorMatrix[[GHGSOURCE]:[GHGSOURCE]], \"track mile\", FactorMatrix[[TYPE]:[TYPE]], W$6)","v":0},{"$f":"SUMIFS(FactorMatrix[[UPSTREAMTRANSPORT]:[UPSTREAMTRANSPORT]], FactorMatrix[[MODE]:[MODE]], $B9, FactorMatrix[[PHASE]:[PHASE]], $A$4, FactorMatrix[[GHGSOURCE]:[GHGSOURCE]], \"station\", FactorMatrix[[TYPE]:[TYPE]], X$6)","v":0},{"$f":"SUMIFS(FactorMatrix[[UPSTREAMTRANSPORT]:[UPSTREAMTRANSPORT]], FactorMatrix[[MODE]:[MODE]], $B9, FactorMatrix[[PHASE]:[PHASE]], $A$4, FactorMatrix[[GHGSOURCE]:[GHGSOURCE]], \"station\", FactorMatrix[[TYPE]:[TYPE]], Y$6)","v":0},{"$f":"SUMIFS(FactorMatrix[[UPSTREAMTRANSPORT]:[UPSTREAMTRANSPORT]], FactorMatrix[[MODE]:[MODE]], $B9, FactorMatrix[[PHASE]:[PHASE]], $A$4, FactorMatrix[[GHGSOURCE]:[GHGSOURCE]], \"station\", FactorMatrix[[TYPE]:[TYPE]], Z$6)","v":0},{"$f":"SUMIFS(FactorMatrix[[DOWNSTREAM]:[DOWNSTREAM]], FactorMatrix[[MODE]:[MODE]], $B9, FactorMatrix[[PHASE]:[PHASE]], $A$4, FactorMatrix[[GHGSOURCE]:[GHGSOURCE]], \"track mile\", FactorMatrix[[TYPE]:[TYPE]], AA$6, FactorMatrix[[STATE /REGION]:[STATE /REGION]], StateCalc)","v":0},{"$f":"SUMIFS(FactorMatrix[[DOWNSTREAM]:[DOWNSTREAM]], FactorMatrix[[MODE]:[MODE]], $B9, FactorMatrix[[PHASE]:[PHASE]], $A$4, FactorMatrix[[GHGSOURCE]:[GHGSOURCE]], \"track mile\", FactorMatrix[[TYPE]:[TYPE]], AB$6)","v":0},{"$f":"SUMIFS(FactorMatrix[[DOWNSTREAM]:[DOWNSTREAM]], FactorMatrix[[MODE]:[MODE]], $B9, FactorMatrix[[PHASE]:[PHASE]], $A$4, FactorMatrix[[GHGSOURCE]:[GHGSOURCE]], \"track mile\", FactorMatrix[[TYPE]:[TYPE]], AC$6)","v":0},{"$f":"SUMIFS(FactorMatrix[[DOWNSTREAM]:[DOWNSTREAM]], FactorMatrix[[MODE]:[MODE]], $B9, FactorMatrix[[PHASE]:[PHASE]], $A$4, FactorMatrix[[GHGSOURCE]:[GHGSOURCE]], \"track mile\", FactorMatrix[[TYPE]:[TYPE]], AD$6)","v":0},{"$f":"SUMIFS(FactorMatrix[[DOWNSTREAM]:[DOWNSTREAM]], FactorMatrix[[MODE]:[MODE]], $B9, FactorMatrix[[PHASE]:[PHASE]], $A$4, FactorMatrix[[GHGSOURCE]:[GHGSOURCE]], \"track mile\", FactorMatrix[[TYPE]:[TYPE]], AE$6)","v":0},{"$f":"SUMIFS(FactorMatrix[[DOWNSTREAM]:[DOWNSTREAM]], FactorMatrix[[MODE]:[MODE]], $B9, FactorMatrix[[PHASE]:[PHASE]], $A$4, FactorMatrix[[GHGSOURCE]:[GHGSOURCE]], \"station\", FactorMatrix[[TYPE]:[TYPE]], AF$6)","v":0},{"$f":"SUMIFS(FactorMatrix[[DOWNSTREAM]:[DOWNSTREAM]], FactorMatrix[[MODE]:[MODE]], $B9, FactorMatrix[[PHASE]:[PHASE]], $A$4, FactorMatrix[[GHGSOURCE]:[GHGSOURCE]], \"station\", FactorMatrix[[TYPE]:[TYPE]], AG$6)","v":0},{"$f":"SUMIFS(FactorMatrix[[DOWNSTREAM]:[DOWNSTREAM]], FactorMatrix[[MODE]:[MODE]], $B9, FactorMatrix[[PHASE]:[PHASE]], $A$4, FactorMatrix[[GHGSOURCE]:[GHGSOURCE]], \"station\", FactorMatrix[[TYPE]:[TYPE]], AH$6)","v":0},0,0,0,"Annual"]
[4,{"$f":"Construction!B11","v":0},{"$f":"Construction!C11","v":0},{"$f":"Construction!D11","v":0},{"$f":"Construction!E11","v":0},{"$f":"Construction!F11","v":0},{"$f":"Construction!G11","v":0},{"$f":"Construction!H11","v":0},{"$f":"Construction!I11","v":0},{"$f":"Construction!J11","v":0},{"$f":"SUMIFS(FactorMatrix[[UPSTREAMMATERIALS]:[UPSTREAMMATERIALS]], FactorMatrix[[MODE]:[MODE]], $B10, FactorMatrix[[PHASE]:[PHASE]], $A$4, FactorMatrix[[GHGSOURCE]:[GHGSOURCE]], \"track mile\", FactorMatrix[[TYPE]:[TYPE]], K$6, FactorMatrix[[STATE /REGION]:[STATE /REGION]], StateCalc)","v":0},{"$f":"SUMIFS(FactorMatrix[[UPSTREAMMATERIALS]:[UPSTREAMMATERIALS]], FactorMatrix[[MODE]:[MODE]], $B10, FactorMatrix[[PHASE]:[PHASE]], $A$4, FactorMatrix[[GHGSOURCE]:[GHGSOURCE]], \"track mile\", FactorMatrix[[TYPE]:[TYPE]], L$6)","v":0},{"$f":"SUMIFS(FactorMatrix[[UPSTREAMMATERIALS]:[UPSTREAMMATERIALS]], FactorMatrix[[MODE]:[MODE]], $B10, FactorMatrix[[PHASE]:[PHASE]], $A$4, FactorMatrix[[GHGSOURCE]:[GHGSOURCE]], \"track mile\", FactorMatrix[[TYPE]:[TYPE]], M$6)","v":0},{"$f":"SUMIFS(FactorMatrix[[UPSTREAMMATERIALS]:[UPSTREAMMATERIALS]], FactorMatrix[[MODE]:[MODE]], $B10, FactorMatrix[[PHASE]:[PHASE]], $A$4, FactorMatrix[[GHGSOURCE]:[GHGSOURCE]], \"track mile\", FactorMatrix[[TYPE]:[TYPE]], N$6)","v":0},{"$f":"SUMIFS(FactorMatrix[[UPSTREAMMATERIALS]:[UPSTREAMMATERIALS]], FactorMatrix[[MODE]:[MODE]], $B10, FactorMatrix[[PHASE]:[PHASE]], $A$4, FactorMatrix[[GHGSOURCE]:[GHGSOURCE]], \"track mile\", FactorMatrix[[TYPE]:[TYPE]], O$6)","v":0},{"$f":"SUMIFS(FactorMatrix[[UPSTREAMMATERIALS]:[UPSTREAMMATERIALS]], FactorMatrix[[MODE]:[MODE]], $B10, FactorMatrix[[PHASE]:[PHASE]], $A$4, FactorMatrix[[GHGSOURCE]:[GHGSOURCE]], \"station\", FactorMatrix[[TYPE]:[TYPE]], P$6)","v":0},{"$f":"SUMIFS(FactorMatrix[[UPSTREAMMATERIALS]:[UPSTREAMMATERIALS]], FactorMatrix[[MODE]:[MODE]], $B10, FactorMatrix[[PHASE]:[PHASE]], $A$4, FactorMatrix[[GHGSOURCE]:[GHGSOURCE]], \"station\", FactorMatrix[[TYPE]:[TYPE]], Q$6)","v":0},{"$f":"SUMIFS(FactorMatrix[[UPSTREAMMATERIALS]:[UPSTREAMMATERIALS]], FactorMatrix[[MODE]:[MODE]], $B10, FactorMatrix[[PHASE]:[PHASE]], $A$4, FactorMatrix[[GHGSOURCE]:[GHGSOURCE]], \"station\", FactorMatrix[[TYPE]:[TYPE]], R$6)","v":0},{"$f":"SUMIFS(FactorMatrix[[UPSTREAMTRANSPORT]:[UPSTREAMTRANSPORT]], FactorMatrix[[MODE]:[MODE]], $B10, FactorMatrix[[PHASE]:[PHASE]], $A$4, FactorMatrix[[GHGSOURCE]:[GHGSOURCE]], \"track mile\", FactorMatrix[[TYPE]:[TYPE]], S$6, FactorMatrix[[STATE /REGION]:[STATE /REGION]], StateCalc)","v":0},{"$f":"SUMIFS(FactorMatrix[[UPSTREAMTRANSPORT]:[UPSTREAMTRANSPORT]], FactorMatrix[[MODE]:[MODE]], $B10, FactorMatrix[[PHASE]:[PHASE]], $A$4, FactorMatrix[[GHGSOURCE]:[GHGSOURCE]], \"track mile\", FactorMatrix[[TYPE]:[TYPE]], T$6)","v":0},{"$f":"SUMIFS(FactorMatrix[[UPSTREAMTRANSPORT]:[UPSTREAMTRANSPORT]], FactorMatrix[[MODE]:[MODE]], $B10, FactorMatrix[[PHASE]:[PHASE]], $A$4, FactorMatrix[[GHGSOURCE]:[GHGSOURCE]], \"track mile\", FactorMatrix[[TYPE]:[TYPE]], U$6)","v":0},{"$f":"SUMIFS(FactorMatrix[[UPSTREAMTRANSPORT]:[UPSTREAMTRANSPORT]], FactorMatrix[[MODE]:[MODE]], $B10, FactorMatrix[[PHASE]:[PHASE]], $A$4, FactorMatrix[[GHGSOURCE]:[GHGSOURCE]], \"track mile\", FactorMatrix[[TYPE]:[TYPE]], V$6)","v":0},{"$f":"SUMIFS(FactorMatrix[[UPSTREAMTRANSPORT]:[UPSTREAMTRANSPORT]], FactorMatrix[[MODE]:[MODE]], $B10, FactorMatrix[[PHASE]:[PHASE]], $A$4, FactorMatrix[[GHGSOURCE]:[GHGSOURCE]], \"track mile\", FactorMatrix[[TYPE]:[TYPE]], W$6)","v":0},{"$f":"SUMIFS(FactorMatrix[[UPSTREAMTRANSPORT]:[UPSTREAMTRANSPORT]], FactorMatrix[[MODE]:[MODE]], $B10, FactorMatrix[[PHASE]:[PHASE]], $A$4, FactorMatrix[[GHGSOURCE]:[GHGSOURCE]], \"station\", FactorMatrix[[TYPE]:[TYPE]], X$6)","v":0},{"$f":"SUMIFS(FactorMatrix[[UPSTREAMTRANSPORT]:[UPSTREAMTRANSPORT]], FactorMatrix[[MODE]:[MODE]], $B10, FactorMatrix[[PHASE]:[PHASE]], $A$4, FactorMatrix[[GHGSOURCE]:[GHGSOURCE]], \"station\", FactorMatrix[[TYPE]:[TYPE]], Y$6)","v":0},{"$f":"SUMIFS(FactorMatrix[[UPSTREAMTRANSPORT]:[UPSTREAMTRANSPORT]], FactorMatrix[[MODE]:[MODE]], $B10, FactorMatrix[[PHASE]:[PHASE]], $A$4, FactorMatrix[[GHGSOURCE]:[GHGSOURCE]], \"station\", FactorMatrix[[TYPE]:[TYPE]], Z$6)","v":0},{"$f":"SUMIFS(FactorMatrix[[DOWNSTREAM]:[DOWNSTREAM]], FactorMatrix[[MODE]:[MODE]], $B10, FactorMatrix[[PHASE]:[PHASE]], $A$4, FactorMatrix[[GHGSOURCE]:[GHGSOURCE]], \"track mile\", FactorMatrix[[TYPE]:[TYPE]], AA$6, FactorMatrix[[STATE /REGION]:[STATE /REGION]], StateCalc)","v":0},{"$f":"SUMIFS(FactorMatrix[[DOWNSTREAM]:[DOWNSTREAM]], FactorMatrix[[MODE]:[MODE]], $B10, FactorMatrix[[PHASE]:[PHASE]], $A$4, FactorMatrix[[GHGSOURCE]:[GHGSOURCE]], \"track mile\", FactorMatrix[[TYPE]:[TYPE]], AB$6)","v":0},{"$f":"SUMIFS(FactorMatrix[[DOWNSTREAM]:[DOWNSTREAM]], FactorMatrix[[MODE]:[MODE]], $B10, FactorMatrix[[PHASE]:[PHASE]], $A$4, FactorMatrix[[GHGSOURCE]:[GHGSOURCE]], \"track mile\", FactorMatrix[[TYPE]:[TYPE]], AC$6)","v":0},{"$f":"SUMIFS(FactorMatrix[[DOWNSTREAM]:[DOWNSTREAM]], FactorMatrix[[MODE]:[MODE]], $B10, FactorMatrix[[PHASE]:[PHASE]], $A$4, FactorMatrix[[GHGSOURCE]:[GHGSOURCE]], \"track mile\", FactorMatrix[[TYPE]:[TYPE]], AD$6)","v":0},{"$f":"SUMIFS(FactorMatrix[[DOWNSTREAM]:[DOWNSTREAM]], FactorMatrix[[MODE]:[MODE]], $B10, FactorMatrix[[PHASE]:[PHASE]], $A$4, FactorMatrix[[GHGSOURCE]:[GHGSOURCE]], \"track mile\", FactorMatrix[[TYPE]:[TYPE]], AE$6)","v":0},{"$f":"SUMIFS(FactorMatrix[[DOWNSTREAM]:[DOWNSTREAM]], FactorMatrix[[MODE]:[MODE]], $B10, FactorMatrix[[PHASE]:[PHASE]], $A$4, FactorMatrix[[GHGSOURCE]:[GHGSOURCE]], \"station\", FactorMatrix[[TYPE]:[TYPE]], AF$6)","v":0},{"$f":"SUMIFS(FactorMatrix[[DOWNSTREAM]:[DOWNSTREAM]], FactorMatrix[[MODE]:[MODE]], $B10, FactorMatrix[[PHASE]:[PHASE]], $A$4, FactorMatrix[[GHGSOURCE]:[GHGSOURCE]], \"station\", FactorMatrix[[TYPE]:[TYPE]], AG$6)","v":0},{"$f":"SUMIFS(FactorMatrix[[DOWNSTREAM]:[DOWNSTREAM]], FactorMatrix[[MODE]:[MODE]], $B10, FactorMatrix[[PHASE]:[PHASE]], $A$4, FactorMatrix[[GHGSOURCE]:[GHGSOURCE]], \"station\", FactorMatrix[[TYPE]:[TYPE]], AH$6)","v":0},0,0,0]
[5,{"$f":"Construction!B12","v":0},{"$f":"Construction!C12","v":0},{"$f":"Construction!D12","v":0},{"$f":"Construction!E12","v":0},{"$f":"Construction!F12","v":0},{"$f":"Construction!G12","v":0},{"$f":"Construction!H12","v":0},{"$f":"Construction!I12","v":0},{"$f":"Construction!J12","v":0},{"$f":"SUMIFS(FactorMatrix[[UPSTREAMMATERIALS]:[UPSTREAMMATERIALS]], FactorMatrix[[MODE]:[MODE]], $B11, FactorMatrix[[PHASE]:[PHASE]], $A$4, FactorMatrix[[GHGSOURCE]:[GHGSOURCE]], \"track mile\", FactorMatrix[[TYPE]:[TYPE]], K$6, FactorMatrix[[STATE /REGION]:[STATE /REGION]], StateCalc)","v":0},{"$f":"SUMIFS(FactorMatrix[[UPSTREAMMATERIALS]:[UPSTREAMMATERIALS]], FactorMatrix[[MODE]:[MODE]], $B11, FactorMatrix[[PHASE]:[PHASE]], $A$4, FactorMatrix[[GHGSOURCE]:[GHGSOURCE]], \"track mile\", FactorMatrix[[TYPE]:[TYPE]], L$6)","v":0},{"$f":"SUMIFS(FactorMatrix[[UPSTREAMMATERIALS]:[UPSTREAMMATERIALS]], FactorMatrix[[MODE]:[MODE]], $B11, FactorMatrix[[PHASE]:[PHASE]], $A$4, FactorMatrix[[GHGSOURCE]:[GHGSOURCE]], \"track mile\", FactorMatrix[[TYPE]:[TYPE]], M$6)","v":0},{"$f":"SUMIFS(FactorMatrix[[UPSTREAMMATERIALS]:[UPSTREAMMATERIALS]], FactorMatrix[[MODE]:[MODE]], $B11, FactorMatrix[[PHASE]:[PHASE]], $A$4, FactorMatrix[[GHGSOURCE]:[GHGSOURCE]], \"track mile\", FactorMatrix[[TYPE]:[TYPE]], N$6)","v":0},{"$f":"SUMIFS(FactorMatrix[[UPSTREAMMATERIALS]:[UPSTREAMMATERIALS]], FactorMatrix[[MODE]:[MODE]], $B11, FactorMatrix[[PHASE]:[PHASE]], $A$4, FactorMatrix[[GHGSOURCE]:[GHGSOURCE]], \"track mile\", FactorMatrix[[TYPE]:[TYPE]], O$6)","v":0},{"$f":"SUMIFS(FactorMatrix[[UPSTREAMMATERIALS]:[UPSTREAMMATERIALS]], FactorMatrix[[MODE]:[MODE]], $B11, FactorMatrix[[PHASE]:[PHASE]], $A$4, FactorMatrix[[GHGSOURCE]:[GHGSOURCE]], \"station\", FactorMatrix[[TYPE]:[TYPE]], P$6)","v":0},{"$f":"SUMIFS(FactorMatrix[[UPSTREAMMATERIALS]:[UPSTREAMMATERIALS]], FactorMatrix[[MODE]:[MODE]], $B11, FactorMatrix[[PHASE]:[PHASE]], $A$4, FactorMatrix[[GHGSOURCE]:[GHGSOURCE]], \"station\", FactorMatrix[[TYPE]:[TYPE]], Q$6)","v":0},{"$f":"SUMIFS(FactorMatrix[[UPSTREAMMATERIALS]:[UPSTREAMMATERIALS]], FactorMatrix[[MODE]:[MODE]], $B11, FactorMatrix[[PHASE]:[PHASE]], $A$4, FactorMatrix[[GHGSOURCE]:[GHGSOURCE]], \"station\", FactorMatrix[[TYPE]:[TYPE]], R$6)","v":0},{"$f":"SUMIFS(FactorMatrix[[UPSTREAMTRANSPORT]:[UPSTREAMTRANSPORT]], FactorMatrix[[MODE]:[MODE]], $B11, FactorMatrix[[PHASE]:[PHASE]], $A$4, FactorMatrix[[GHGSOURCE]:[GHGSOURCE]], \"track mile\", FactorMatrix[[TYPE]:[TYPE]], S$6, FactorMatrix[[STATE /REGION]:[STATE /REGION]], StateCalc)","v":0},{"$f":"SUMIFS(FactorMatrix[[UPSTREAMTRANSPORT]:[UPSTREAMTRANSPORT]], FactorMatrix[[MODE]:[MODE]], $B11, FactorMatrix[[PHASE]:[PHASE]], $A$4, FactorMatrix[[GHGSOURCE]:[GHGSOURCE]], \"track mile\", FactorMatrix[[TYPE]:[TYPE]], T$6)","v":0},{"$f":"SUMIFS(FactorMatrix[[UPSTREAMTRANSPORT]:[UPSTREAMTRANSPORT]], FactorMatrix[[MODE]:[MODE]], $B11, FactorMatrix[[PHASE]:[PHASE]], $A$4, FactorMatrix[[GHGSOURCE]:[GHGSOURCE]], \"track mile\", FactorMatrix[[TYPE]:[TYPE]], U$6)","v":0},{"$f":"SUMIFS(FactorMatrix[[UPSTREAMTRANSPORT]:[UPSTREAMTRANSPORT]], FactorMatrix[[MODE]:[MODE]], $B11, FactorMatrix[[PHASE]:[PHASE]], $A$4, FactorMatrix[[GHGSOURCE]:[GHGSOURCE]], \"track mile\", FactorMatrix[[TYPE]:[TYPE]], V$6)","v":0},{"$f":"SUMIFS(FactorMatrix[[UPSTREAMTRANSPORT]:[UPSTREAMTRANSPORT]], FactorMatrix[[MODE]:[MODE]], $B11, FactorMatrix[[PHASE]:[PHASE]], $A$4, FactorMatrix[[GHGSOURCE]:[GHGSOURCE]], \"track mile\", FactorMatrix[[TYPE]:[TYPE]], W$6)","v":0},{"$f":"SUMIFS(FactorMatrix[[UPSTREAMTRANSPORT]:[UPSTREAMTRANSPORT]], FactorMatrix[[MODE]:[MODE]], $B11, FactorMatrix[[PHASE]:[PHASE]], $A$4, FactorMatrix[[GHGSOURCE]:[GHGSOURCE]], \"station\", FactorMatrix[[TYPE]:[TYPE]], X$6)","v":0},{"$f":"SUMIFS(FactorMatrix[[UPSTREAMTRANSPORT]:[UPSTREAMTRANSPORT]], FactorMatrix[[MODE]:[MODE]], $B11, FactorMatrix[[PHASE]:[PHASE]], $A$4, FactorMatrix[[GHGSOURCE]:[GHGSOURCE]], \"station\", FactorMatrix[[TYPE]:[TYPE]], Y$6)","v":0},{"$f":"SUMIFS(FactorMatrix[[UPSTREAMTRANSPORT]:[UPSTREAMTRANSPORT]], FactorMatrix[[MODE]:[MODE]], $B11, FactorMatrix[[PHASE]:[PHASE]], $A$4, FactorMatrix[[GHGSOURCE]:[GHGSOURCE]], \"station\", FactorMatrix[[TYPE]:[TYPE]], Z$6)","v":0},{"$f":"SUMIFS(FactorMatrix[[DOWNSTREAM]:[DOWNSTREAM]], FactorMatrix[[MODE]:[MODE]], $B11, FactorMatrix[[PHASE]:[PHASE]], $A$4, FactorMatrix[[GHGSOURCE]:[GHGSOURCE]], \"track mile\", FactorMatrix[[TYPE]:[TYPE]], AA$6, FactorMatrix[[STATE /REGION]:[STATE /REGION]], StateCalc)","v":0},{"$f":"SUMIFS(FactorMatrix[[DOWNSTREAM]:[DOWNSTREAM]], FactorMatrix[[MODE]:[MODE]], $B11, FactorMatrix[[PHASE]:[PHASE]], $A$4, FactorMatrix[[GHGSOURCE]:[GHGSOURCE]], \"track mile\", FactorMatrix[[TYPE]:[TYPE]], AB$6)","v":0},{"$f":"SUMIFS(FactorMatrix[[DOWNSTREAM]:[DOWNSTREAM]], FactorMatrix[[MODE]:[MODE]], $B11, FactorMatrix[[PHASE]:[PHASE]], $A$4, FactorMatrix[[GHGSOURCE]:[GHGSOURCE]], \"track mile\", FactorMatrix[[TYPE]:[TYPE]], AC$6)","v":0},{"$f":"SUMIFS(FactorMatrix[[DOWNSTREAM]:[DOWNSTREAM]], FactorMatrix[[MODE]:[MODE]], $B11, FactorMatrix[[PHASE]:[PHASE]], $A$4, FactorMatrix[[GHGSOURCE]:[GHGSOURCE]], \"track mile\", FactorMatrix[[TYPE]:[TYPE]], AD$6)","v":0},{"$f":"SUMIFS(FactorMatrix[[DOWNSTREAM]:[DOWNSTREAM]], FactorMatrix[[MODE]:[MODE]], $B11, FactorMatrix[[PHASE]:[PHASE]], $A$4, FactorMatrix[[GHGSOURCE]:[GHGSOURCE]], \"track mile\", FactorMatrix[[TYPE]:[TYPE]], AE$6)","v":0},{"$f":"SUMIFS(FactorMatrix[[DOWNSTREAM]:[DOWNSTREAM]], FactorMatrix[[MODE]:[MODE]], $B11, FactorMatrix[[PHASE]:[PHASE]], $A$4, FactorMatrix[[GHGSOURCE]:[GHGSOURCE]], \"station\", FactorMatrix[[TYPE]:[TYPE]], AF$6)","v":0},{"$f":"SUMIFS(FactorMatrix[[DOWNSTREAM]:[DOWNSTREAM]], FactorMatrix[[MODE]:[MODE]], $B11, FactorMatrix[[PHASE]:[PHASE]], $A$4, FactorMatrix[[GHGSOURCE]:[GHGSOURCE]], \"station\", FactorMatrix[[TYPE]:[TYPE]], AG$6)","v":0},{"$f":"SUMIFS(FactorMatrix[[DOWNSTREAM]:[DOWNSTREAM]], FactorMatrix[[MODE]:[MODE]], $B11, FactorMatrix[[PHASE]:[PHASE]], $A$4, FactorMatrix[[GHGSOURCE]:[GHGSOURCE]], \"station\", FactorMatrix[[TYPE]:[TYPE]], AH$6)","v":0},0,0,0,"UPSTREAM MATERIALS","UPSTREAM TRANSPORT","DOWNSTREAM"]
[6,{"$f":"Construction!B13","v":0},{"$f":"Construction!C13","v":0},{"$f":"Construction!D13","v":0},{"$f":"Construction!E13","v":0},{"$f":"Construction!F13","v":0},{"$f":"Construction!G13","v":0},{"$f":"Construction!H13","v":0},{"$f":"Construction!I13","v":0},{"$f":"Construction!J13","v":0},{"$f":"SUMIFS(FactorMatrix[[UPSTREAMMATERIALS]:[UPSTREAMMATERIALS]], FactorMatrix[[MODE]:[MODE]], $B12, FactorMatrix[[PHASE]:[PHASE]], $A$4, FactorMatrix[[GHGSOURCE]:[GHGSOURCE]], \"track mile\", FactorMatrix[[TYPE]:[TYPE]], K$6, FactorMatrix[[STATE /REGION]:[STATE /REGION]], StateCalc)","v":0},{"$f":"SUMIFS(FactorMatrix[[UPSTREAMMATERIALS]:[UPSTREAMMATERIALS]], FactorMatrix[[MODE]:[MODE]], $B12, FactorMatrix[[PHASE]:[PHASE]], $A$4, FactorMatrix[[GHGSOURCE]:[GHGSOURCE]], \"track mile\", FactorMatrix[[TYPE]:[TYPE]], L$6)","v":0},{"$f":"SUMIFS(FactorMatrix[[UPSTREAMMATERIALS]:[UPSTREAMMATERIALS]], FactorMatrix[[MODE]:[MODE]], $B12, FactorMatrix[[PHASE]:[PHASE]], $A$4, FactorMatrix[[GHGSOURCE]:[GHGSOURCE]], \"track mile\", FactorMatrix[[TYPE]:[TYPE]], M$6)","v":0},{"$f":"SUMIFS(FactorMatrix[[UPSTREAMMATERIALS]:[UPSTREAMMATERIALS]], FactorMatrix[[MODE]:[MODE]], $B12, FactorMatrix[[PHASE]:[PHASE]], $A$4, FactorMatrix[[GHGSOURCE]:[GHGSOURCE]], \"track mile\", FactorMatrix[[TYPE]:[TYPE]], N$6)","v":0},{"$f":"SUMIFS(FactorMatrix[[UPSTREAMMATERIALS]:[UPSTREAMMATERIALS]], FactorMatrix[[MODE]:[MODE]], $B12, FactorMatrix[[PHASE]:[PHASE]], $A$4, FactorMatrix[[GHGSOURCE]:[GHGSOURCE]], \"track mile\", FactorMatrix[[TYPE]:[TYPE]], O$6)","v":0},{"$f":"SUMIFS(FactorMatrix[[UPSTREAMMATERIALS]:[UPSTREAMMATERIALS]], FactorMatrix[[MODE]:[MODE]], $B12, FactorMatrix[[PHASE]:[PHASE]], $A$4, FactorMatrix[[GHGSOURCE]:[GHGSOURCE]], \"station\", FactorMatrix[[TYPE]:[TYPE]], P$6)","v":0},{"$f":"SUMIFS(FactorMatrix[[UPSTREAMMATERIALS]:[UPSTREAMMATERIALS]], FactorMatrix[[MODE]:[MODE]], $B12, FactorMatrix[[PHASE]:[PHASE]], $A$4, FactorMatrix[[GHGSOURCE]:[GHGSOURCE]], \"station\", FactorMatrix[[TYPE]:[TYPE]], Q$6)","v":0},{"$f":"SUMIFS(FactorMatrix[[UPSTREAMMATERIALS]:[UPSTREAMMATERIALS]], FactorMatrix[[MODE]:[MODE]], $B12, FactorMatrix[[PHASE]:[PHASE]], $A$4, FactorMatrix[[GHGSOURCE]:[GHGSOURCE]], \"station\", FactorMatrix[[TYPE]:[TYPE]], R$6)","v":0},{"$f":"SUMIFS(FactorMatrix[[UPSTREAMTRANSPORT]:[UPSTREAMTRANSPORT]], FactorMatrix[[MODE]:[MODE]], $B12, FactorMatrix[[PHASE]:[PHASE]], $A$4, FactorMatrix[[GHGSOURCE]:[GHGSOURCE]], \"track mile\", FactorMatrix[[TYPE]:[TYPE]], S$6, FactorMatrix[[STATE /REGION]:[STATE /REGION]], StateCalc)","v":0},{"$f":"SUMIFS(FactorMatrix[[UPSTREAMTRANSPORT]:[UPSTREAMTRANSPORT]], FactorMatrix[[MODE]:[MODE]], $B12, FactorMatrix[[PHASE]:[PHASE]], $A$4, FactorMatrix[[GHGSOURCE]:[GHGSOURCE]], \"track mile\", FactorMatrix[[TYPE]:[TYPE]], T$6)","v":0},{"$f":"SUMIFS(FactorMatrix[[UPSTREAMTRANSPORT]:[UPSTREAMTRANSPORT]], FactorMatrix[[MODE]:[MODE]], $B12, FactorMatrix[[PHASE]:[PHASE]], $A$4, FactorMatrix[[GHGSOURCE]:[GHGSOURCE]], \"track mile\", FactorMatrix[[TYPE]:[TYPE]], U$6)","v":0},{"$f":"SUMIFS(FactorMatrix[[UPSTREAMTRANSPORT]:[UPSTREAMTRANSPORT]], FactorMatrix[[MODE]:[MODE]], $B12, FactorMatrix[[PHASE]:[PHASE]], $A$4, FactorMatrix[[GHGSOURCE]:[GHGSOURCE]], \"track mile\", FactorMatrix[[TYPE]:[TYPE]], V$6)","v":0},{"$f":"SUMIFS(FactorMatrix[[UPSTREAMTRANSPORT]:[UPSTREAMTRANSPORT]], FactorMatrix[[MODE]:[MODE]], $B12, FactorMatrix[[PHASE]:[PHASE]], $A$4, FactorMatrix[[GHGSOURCE]:[GHGSOURCE]], \"track mile\", FactorMatrix[[TYPE]:[TYPE]], W$6)","v":0},{"$f":"SUMIFS(FactorMatrix[[UPSTREAMTRANSPORT]:[UPSTREAMTRANSPORT]], FactorMatrix[[MODE]:[MODE]], $B12, FactorMatrix[[PHASE]:[PHASE]], $A$4, FactorMatrix[[GHGSOURCE]:[GHGSOURCE]], \"station\", FactorMatrix[[TYPE]:[TYPE]], X$6)","v":0},{"$f":"SUMIFS(FactorMatrix[[UPSTREAMTRANSPORT]:[UPSTREAMTRANSPORT]], FactorMatrix[[MODE]:[MODE]], $B12, FactorMatrix[[PHASE]:[PHASE]], $A$4, FactorMatrix[[GHGSOURCE]:[GHGSOURCE]], \"station\", FactorMatrix[[TYPE]:[TYPE]], Y$6)","v":0},{"$f":"SUMIFS(FactorMatrix[[UPSTREAMTRANSPORT]:[UPSTREAMTRANSPORT]], FactorMatrix[[MODE]:[MODE]], $B12, FactorMatrix[[PHASE]:[PHASE]], $A$4, FactorMatrix[[GHGSOURCE]:[GHGSOURCE]], \"station\", FactorMatrix[[TYPE]:[TYPE]], Z$6)","v":0},{"$f":"SUMIFS(FactorMatrix[[DOWNSTREAM]:[DOWNSTREAM]], FactorMatrix[[MODE]:[MODE]], $B12, FactorMatrix[[PHASE]:[PHASE]], $A$4, FactorMatrix[[GHGSOURCE]:[GHGSOURCE]], \"track mile\", FactorMatrix[[TYPE]:[TYPE]], AA$6, FactorMatrix[[STATE /REGION]:[STATE /REGION]], StateCalc)","v":0},{"$f":"SUMIFS(FactorMatrix[[DOWNSTREAM]:[DOWNSTREAM]], FactorMatrix[[MODE]:[MODE]], $B12, FactorMatrix[[PHASE]:[PHASE]], $A$4, FactorMatrix[[GHGSOURCE]:[GHGSOURCE]], \"track mile\", FactorMatrix[[TYPE]:[TYPE]], AB$6)","v":0},{"$f":"SUMIFS(FactorMatrix[[DOWNSTREAM]:[DOWNSTREAM]], FactorMatrix[[MODE]:[MODE]], $B12, FactorMatrix[[PHASE]:[PHASE]], $A$4, FactorMatrix[[GHGSOURCE]:[GHGSOURCE]], \"track mile\", FactorMatrix[[TYPE]:[TYPE]], AC$6)","v":0},{"$f":"SUMIFS(FactorMatrix[[DOWNSTREAM]:[DOWNSTREAM]], FactorMatrix[[MODE]:[MODE]], $B12, FactorMatrix[[PHASE]:[PHASE]], $A$4, FactorMatrix[[GHGSOURCE]:[GHGSOURCE]], \"track mile\", FactorMatrix[[TYPE]:[TYPE]], AD$6)","v":0},{"$f":"SUMIFS(FactorMatrix[[DOWNSTREAM]:[DOWNSTREAM]], FactorMatrix[[MODE]:[MODE]], $B12, FactorMatrix[[PHASE]:[PHASE]], $A$4, FactorMatrix[[GHGSOURCE]:[GHGSOURCE]], \"track mile\", FactorMatrix[[TYPE]:[TYPE]], AE$6)","v":0},{"$f":"SUMIFS(FactorMatrix[[DOWNSTREAM]:[DOWNSTREAM]], FactorMatrix[[MODE]:[MODE]], $B12, FactorMatrix[[PHASE]:[PHASE]], $A$4, FactorMatrix[[GHGSOURCE]:[GHGSOURCE]], \"station\", FactorMatrix[[TYPE]:[TYPE]], AF$6)","v":0},{"$f":"SUMIFS(FactorMatrix[[DOWNSTREAM]:[DOWNSTREAM]], FactorMatrix[[MODE]:[MODE]], $B12, FactorMatrix[[PHASE]:[PHASE]], $A$4, FactorMatrix[[GHGSOURCE]:[GHGSOURCE]], \"station\", FactorMatrix[[TYPE]:[TYPE]], AG$6)","v":0},{"$f":"SUMIFS(FactorMatrix[[DOWNSTREAM]:[DOWNSTREAM]], FactorMatrix[[MODE]:[MODE]], $B12, FactorMatrix[[PHASE]:[PHASE]], $A$4, FactorMatrix[[GHGSOURCE]:[GHGSOURCE]], \"station\", FactorMatrix[[TYPE]:[TYPE]], AH$6)","v":0},0,0,0,{"$f":"AL7/$C$2","v":{"$error":"#DIV/0!"}},{"$f":"AM7/$C$2","v":{"$error":"#DIV/0!"}},{"$f":"AN7/$C$2","v":{"$error":"#DIV/0!"}}]
[7,{"$f":"Construction!B14","v":0},{"$f":"Construction!C14","v":0},{"$f":"Construction!D14","v":0},{"$f":"Construction!E14","v":0},{"$f":"Construction!F14","v":0},{"$f":"Construction!G14","v":0},{"$f":"Construction!H14","v":0},{"$f":"Construction!I14","v":0},{"$f":"Construction!J14","v":0},{"$f":"SUMIFS(FactorMatrix[[UPSTREAMMATERIALS]:[UPSTREAMMATERIALS]], FactorMatrix[[MODE]:[MODE]], $B13, FactorMatrix[[PHASE]:[PHASE]], $A$4, FactorMatrix[[GHGSOURCE]:[GHGSOURCE]], \"track mile\", FactorMatrix[[TYPE]:[TYPE]], K$6, FactorMatrix[[STATE /REGION]:[STATE /REGION]], StateCalc)","v":0},{"$f":"SUMIFS(FactorMatrix[[UPSTREAMMATERIALS]:[UPSTREAMMATERIALS]], FactorMatrix[[MODE]:[MODE]], $B13, FactorMatrix[[PHASE]:[PHASE]], $A$4, FactorMatrix[[GHGSOURCE]:[GHGSOURCE]], \"track mile\", FactorMatrix[[TYPE]:[TYPE]], L$6)","v":0},{"$f":"SUMIFS(FactorMatrix[[UPSTREAMMATERIALS]:[UPSTREAMMATERIALS]], FactorMatrix[[MODE]:[MODE]], $B13, FactorMatrix[[PHASE]:[PHASE]], $A$4, FactorMatrix[[GHGSOURCE]:[GHGSOURCE]], \"track mile\", FactorMatrix[[TYPE]:[TYPE]], M$6)","v":0},{"$f":"SUMIFS(FactorMatrix[[UPSTREAMMATERIALS]:[UPSTREAMMATERIALS]], FactorMatrix[[MODE]:[MODE]], $B13, FactorMatrix[[PHASE]:[PHASE]], $A$4, FactorMatrix[[GHGSOURCE]:[GHGSOURCE]], \"track mile\", FactorMatrix[[TYPE]:[TYPE]], N$6)","v":0},{"$f":"SUMIFS(FactorMatrix[[UPSTREAMMATERIALS]:[UPSTREAMMATERIALS]], FactorMatrix[[MODE]:[MODE]], $B13, FactorMatrix[[PHASE]:[PHASE]], $A$4, FactorMatrix[[GHGSOURCE]:[GHGSOURCE]], \"track mile\", FactorMatrix[[TYPE]:[TYPE]], O$6)","v":0},{"$f":"SUMIFS(FactorMatrix[[UPSTREAMMATERIALS]:[UPSTREAMMATERIALS]], FactorMatrix[[MODE]:[MODE]], $B13, FactorMatrix[[PHASE]:[PHASE]], $A$4, FactorMatrix[[GHGSOURCE]:[GHGSOURCE]], \"station\", FactorMatrix[[TYPE]:[TYPE]], P$6)","v":0},{"$f":"SUMIFS(FactorMatrix[[UPSTREAMMATERIALS]:[UPSTREAMMATERIALS]], FactorMatrix[[MODE]:[MODE]], $B13, FactorMatrix[[PHASE]:[PHASE]], $A$4, FactorMatrix[[GHGSOURCE]:[GHGSOURCE]], \"station\", FactorMatrix[[TYPE]:[TYPE]], Q$6)","v":0},{"$f":"SUMIFS(FactorMatrix[[UPSTREAMMATERIALS]:[UPSTREAMMATERIALS]], FactorMatrix[[MODE]:[MODE]], $B13, FactorMatrix[[PHASE]:[PHASE]], $A$4, FactorMatrix[[GHGSOURCE]:[GHGSOURCE]], \"station\", FactorMatrix[[TYPE]:[TYPE]], R$6)","v":0},{"$f":"SUMIFS(FactorMatrix[[UPSTREAMTRANSPORT]:[UPSTREAMTRANSPORT]], FactorMatrix[[MODE]:[MODE]], $B13, FactorMatrix[[PHASE]:[PHASE]], $A$4, FactorMatrix[[GHGSOURCE]:[GHGSOURCE]], \"track mile\", FactorMatrix[[TYPE]:[TYPE]], S$6, FactorMatrix[[STATE /REGION]:[STATE /REGION]], StateCalc)","v":0},{"$f":"SUMIFS(FactorMatrix[[UPSTREAMTRANSPORT]:[UPSTREAMTRANSPORT]], FactorMatrix[[MODE]:[MODE]], $B13, FactorMatrix[[PHASE]:[PHASE]], $A$4, FactorMatrix[[GHGSOURCE]:[GHGSOURCE]], \"track mile\", FactorMatrix[[TYPE]:[TYPE]], T$6)","v":0},{"$f":"SUMIFS(FactorMatrix[[UPSTREAMTRANSPORT]:[UPSTREAMTRANSPORT]], FactorMatrix[[MODE]:[MODE]], $B13, FactorMatrix[[PHASE]:[PHASE]], $A$4, FactorMatrix[[GHGSOURCE]:[GHGSOURCE]], \"track mile\", FactorMatrix[[TYPE]:[TYPE]], U$6)","v":0},{"$f":"SUMIFS(FactorMatrix[[UPSTREAMTRANSPORT]:[UPSTREAMTRANSPORT]], FactorMatrix[[MODE]:[MODE]], $B13, FactorMatrix[[PHASE]:[PHASE]], $A$4, FactorMatrix[[GHGSOURCE]:[GHGSOURCE]], \"track mile\", FactorMatrix[[TYPE]:[TYPE]], V$6)","v":0},{"$f":"SUMIFS(FactorMatrix[[UPSTREAMTRANSPORT]:[UPSTREAMTRANSPORT]], FactorMatrix[[MODE]:[MODE]], $B13, FactorMatrix[[PHASE]:[PHASE]], $A$4, FactorMatrix[[GHGSOURCE]:[GHGSOURCE]], \"track mile\", FactorMatrix[[TYPE]:[TYPE]], W$6)","v":0},{"$f":"SUMIFS(FactorMatrix[[UPSTREAMTRANSPORT]:[UPSTREAMTRANSPORT]], FactorMatrix[[MODE]:[MODE]], $B13, FactorMatrix[[PHASE]:[PHASE]], $A$4, FactorMatrix[[GHGSOURCE]:[GHGSOURCE]], \"station\", FactorMatrix[[TYPE]:[TYPE]], X$6)","v":0},{"$f":"SUMIFS(FactorMatrix[[UPSTREAMTRANSPORT]:[UPSTREAMTRANSPORT]], FactorMatrix[[MODE]:[MODE]], $B13, FactorMatrix[[PHASE]:[PHASE]], $A$4, FactorMatrix[[GHGSOURCE]:[GHGSOURCE]], \"station\", FactorMatrix[[TYPE]:[TYPE]], Y$6)","v":0},{"$f":"SUMIFS(FactorMatrix[[UPSTREAMTRANSPORT]:[UPSTREAMTRANSPORT]], FactorMatrix[[MODE]:[MODE]], $B13, FactorMatrix[[PHASE]:[PHASE]], $A$4, FactorMatrix[[GHGSOURCE]:[GHGSOURCE]], \"station\", FactorMatrix[[TYPE]:[TYPE]], Z$6)","v":0},{"$f":"SUMIFS(FactorMatrix[[DOWNSTREAM]:[DOWNSTREAM]], FactorMatrix[[MODE]:[MODE]], $B13, FactorMatrix[[PHASE]:[PHASE]], $A$4, FactorMatrix[[GHGSOURCE]:[GHGSOURCE]], \"track mile\", FactorMatrix[[TYPE]:[TYPE]], AA$6, FactorMatrix[[STATE /REGION]:[STATE /REGION]], StateCalc)","v":0},{"$f":"SUMIFS(FactorMatrix[[DOWNSTREAM]:[DOWNSTREAM]], FactorMatrix[[MODE]:[MODE]], $B13, FactorMatrix[[PHASE]:[PHASE]], $A$4, FactorMatrix[[GHGSOURCE]:[GHGSOURCE]], \"track mile\", FactorMatrix[[TYPE]:[TYPE]], AB$6)","v":0},{"$f":"SUMIFS(FactorMatrix[[DOWNSTREAM]:[DOWNSTREAM]], FactorMatrix[[MODE]:[MODE]], $B13, FactorMatrix[[PHASE]:[PHASE]], $A$4, FactorMatrix[[GHGSOURCE]:[GHGSOURCE]], \"track mile\", FactorMatrix[[TYPE]:[TYPE]], AC$6)","v":0},{"$f":"SUMIFS(FactorMatrix[[DOWNSTREAM]:[DOWNSTREAM]], FactorMatrix[[MODE]:[MODE]], $B13, FactorMatrix[[PHASE]:[PHASE]], $A$4, FactorMatrix[[GHGSOURCE]:[GHGSOURCE]], \"track mile\", FactorMatrix[[TYPE]:[TYPE]], AD$6)","v":0},{"$f":"SUMIFS(FactorMatrix[[DOWNSTREAM]:[DOWNSTREAM]], FactorMatrix[[MODE]:[MODE]], $B13, FactorMatrix[[PHASE]:[PHASE]], $A$4, FactorMatrix[[GHGSOURCE]:[GHGSOURCE]], \"track mile\", FactorMatrix[[TYPE]:[TYPE]], AE$6)","v":0},{"$f":"SUMIFS(FactorMatrix[[DOWNSTREAM]:[DOWNSTREAM]], FactorMatrix[[MODE]:[MODE]], $B13, FactorMatrix[[PHASE]:[PHASE]], $A$4, FactorMatrix[[GHGSOURCE]:[GHGSOURCE]], \"station\", FactorMatrix[[TYPE]:[TYPE]], AF$6)","v":0},{"$f":"SUMIFS(FactorMatrix[[DOWNSTREAM]:[DOWNSTREAM]], FactorMatrix[[MODE]:[MODE]], $B13, FactorMatrix[[PHASE]:[PHASE]], $A$4, FactorMatrix[[GHGSOURCE]:[GHGSOURCE]], \"station\", FactorMatrix[[TYPE]:[TYPE]], AG$6)","v":0},{"$f":"SUMIFS(FactorMatrix[[DOWNSTREAM]:[DOWNSTREAM]], FactorMatrix[[MODE]:[MODE]], $B13, FactorMatrix[[PHASE]:[PHASE]], $A$4, FactorMatrix[[GHGSOURCE]:[GHGSOURCE]], \"station\", FactorMatrix[[TYPE]:[TYPE]], AH$6)","v":0},0,0,{"$f":"SUMPRODUCT($C13:$J13, AA13:AH13)","v":0}]
[8,{"$f":"Construction!B15","v":0},{"$f":"Construction!C15","v":0},{"$f":"Construction!D15","v":0},{"$f":"Construction!E15","v":0},{"$f":"Construction!F15","v":0},{"$f":"Construction!G15","v":0},{"$f":"Construction!H15","v":0},{"$f":"Construction!I15","v":0},{"$f":"Construction!J15","v":0},{"$f":"SUMIFS(FactorMatrix[[UPSTREAMMATERIALS]:[UPSTREAMMATERIALS]], FactorMatrix[[MODE]:[MODE]], $B14, FactorMatrix[[PHASE]:[PHASE]], $A$4, FactorMatrix[[GHGSOURCE]:[GHGSOURCE]], \"track mile\", FactorMatrix[[TYPE]:[TYPE]], K$6, FactorMatrix[[STATE /REGION]:[STATE /REGION]], StateCalc)","v":0},{"$f":"SUMIFS(FactorMatrix[[UPSTREAMMATERIALS]:[UPSTREAMMATERIALS]], FactorMatrix[[MODE]:[MODE]], $B14, FactorMatrix[[PHASE]:[PHASE]], $A$4, FactorMatrix[[GHGSOURCE]:[GHGSOURCE]], \"track mile\", FactorMatrix[[TYPE]:[TYPE]], L$6)","v":0},{"$f":"SUMIFS(FactorMatrix[[UPSTREAMMATERIALS]:[UPSTREAMMATERIALS]], FactorMatrix[[MODE]:[MODE]], $B14, FactorMatrix[[PHASE]:[PHASE]], $A$4, FactorMatrix[[GHGSOURCE]:[GHGSOURCE]], \"track mile\", FactorMatrix[[TYPE]:[TYPE]], M$6)","v":0},{"$f":"SUMIFS(FactorMatrix[[UPSTREAMMATERIALS]:[UPSTREAMMATERIALS]], FactorMatrix[[MODE]:[MODE]], $B14, FactorMatrix[[PHASE]:[PHASE]], $A$4, FactorMatrix[[GHGSOURCE]:[GHGSOURCE]], \"track mile\", FactorMatrix[[TYPE]:[TYPE]], N$6)","v":0},{"$f":"SUMIFS(FactorMatrix[[UPSTREAMMATERIALS]:[UPSTREAMMATERIALS]], FactorMatrix[[MODE]:[MODE]], $B14, FactorMatrix[[PHASE]:[PHASE]], $A$4, FactorMatrix[[GHGSOURCE]:[GHGSOURCE]], \"track mile\", FactorMatrix[[TYPE]:[TYPE]], O$6)","v":0},{"$f":"SUMIFS(FactorMatrix[[UPSTREAMMATERIALS]:[UPSTREAMMATERIALS]], FactorMatrix[[MODE]:[MODE]], $B14, FactorMatrix[[PHASE]:[PHASE]], $A$4, FactorMatrix[[GHGSOURCE]:[GHGSOURCE]], \"station\", FactorMatrix[[TYPE]:[TYPE]], P$6)","v":0},{"$f":"SUMIFS(FactorMatrix[[UPSTREAMMATERIALS]:[UPSTREAMMATERIALS]], FactorMatrix[[MODE]:[MODE]], $B14, FactorMatrix[[PHASE]:[PHASE]], $A$4, FactorMatrix[[GHGSOURCE]:[GHGSOURCE]], \"station\", FactorMatrix[[TYPE]:[TYPE]], Q$6)","v":0},{"$f":"SUMIFS(FactorMatrix[[UPSTREAMMATERIALS]:[UPSTREAMMATERIALS]], FactorMatrix[[MODE]:[MODE]], $B14, FactorMatrix[[PHASE]:[PHASE]], $A$4, FactorMatrix[[GHGSOURCE]:[GHGSOURCE]], \"station\", FactorMatrix[[TYPE]:[TYPE]], R$6)","v":0},{"$f":"SUMIFS(FactorMatrix[[UPSTREAMTRANSPORT]:[UPSTREAMTRANSPORT]], FactorMatrix[[MODE]:[MODE]], $B14, FactorMatrix[[PHASE]:[PHASE]], $A$4, FactorMatrix[[GHGSOURCE]:[GHGSOURCE]], \"track mile\", FactorMatrix[[TYPE]:[TYPE]], S$6, FactorMatrix[[STATE /REGION]:[STATE /REGION]], StateCalc)","v":0},{"$f":"SUMIFS(FactorMatrix[[UPSTREAMTRANSPORT]:[UPSTREAMTRANSPORT]], FactorMatrix[[MODE]:[MODE]], $B14, FactorMatrix[[PHASE]:[PHASE]], $A$4, FactorMatrix[[GHGSOURCE]:[GHGSOURCE]], \"track mile\", FactorMatrix[[TYPE]:[TYPE]], T$6)","v":0},{"$f":"SUMIFS(FactorMatrix[[UPSTREAMTRANSPORT]:[UPSTREAMTRANSPORT]], FactorMatrix[[MODE]:[MODE]], $B14, FactorMatrix[[PHASE]:[PHASE]], $A$4, FactorMatrix[[GHGSOURCE]:[GHGSOURCE]], \"track mile\", FactorMatrix[[TYPE]:[TYPE]], U$6)","v":0},{"$f":"SUMIFS(FactorMatrix[[UPSTREAMTRANSPORT]:[UPSTREAMTRANSPORT]], FactorMatrix[[MODE]:[MODE]], $B14, FactorMatrix[[PHASE]:[PHASE]], $A$4, FactorMatrix[[GHGSOURCE]:[GHGSOURCE]], \"track mile\", FactorMatrix[[TYPE]:[TYPE]], V$6)","v":0},{"$f":"SUMIFS(FactorMatrix[[UPSTREAMTRANSPORT]:[UPSTREAMTRANSPORT]], FactorMatrix[[MODE]:[MODE]], $B14, FactorMatrix[[PHASE]:[PHASE]], $A$4, FactorMatrix[[GHGSOURCE]:[GHGSOURCE]], \"track mile\", FactorMatrix[[TYPE]:[TYPE]], W$6)","v":0},{"$f":"SUMIFS(FactorMatrix[[UPSTREAMTRANSPORT]:[UPSTREAMTRANSPORT]], FactorMatrix[[MODE]:[MODE]], $B14, FactorMatrix[[PHASE]:[PHASE]], $A$4, FactorMatrix[[GHGSOURCE]:[GHGSOURCE]], \"station\", FactorMatrix[[TYPE]:[TYPE]], X$6)","v":0},{"$f":"SUMIFS(FactorMatrix[[UPSTREAMTRANSPORT]:[UPSTREAMTRANSPORT]], FactorMatrix[[MODE]:[MODE]], $B14, FactorMatrix[[PHASE]:[PHASE]], $A$4, FactorMatrix[[GHGSOURCE]:[GHGSOURCE]], \"station\", FactorMatrix[[TYPE]:[TYPE]], Y$6)","v":0},{"$f":"SUMIFS(FactorMatrix[[UPSTREAMTRANSPORT]:[UPSTREAMTRANSPORT]], FactorMatrix[[MODE]:[MODE]], $B14, FactorMatrix[[PHASE]:[PHASE]], $A$4, FactorMatrix[[GHGSOURCE]:[GHGSOURCE]], \"station\", FactorMatrix[[TYPE]:[TYPE]], Z$6)","v":0},{"$f":"SUMIFS(FactorMatrix[[DOWNSTREAM]:[DOWNSTREAM]], FactorMatrix[[MODE]:[MODE]], $B14, FactorMatrix[[PHASE]:[PHASE]], $A$4, FactorMatrix[[GHGSOURCE]:[GHGSOURCE]], \"track mile\", FactorMatrix[[TYPE]:[TYPE]], AA$6, FactorMatrix[[STATE /REGION]:[STATE /REGION]], StateCalc)","v":0},{"$f":"SUMIFS(FactorMatrix[[DOWNSTREAM]:[DOWNSTREAM]], FactorMatrix[[MODE]:[MODE]], $B14, FactorMatrix[[PHASE]:[PHASE]], $A$4, FactorMatrix[[GHGSOURCE]:[GHGSOURCE]], \"track mile\", FactorMatrix[[TYPE]:[TYPE]], AB$6)","v":0},{"$f":"SUMIFS(FactorMatrix[[DOWNSTREAM]:[DOWNSTREAM]], FactorMatrix[[MODE]:[MODE]], $B14, FactorMatrix[[PHASE]:[PHASE]], $A$4, FactorMatrix[[GHGSOURCE]:[GHGSOURCE]], \"track mile\", FactorMatrix[[TYPE]:[TYPE]], AC$6)","v":0},{"$f":"SUMIFS(FactorMatrix[[DOWNSTREAM]:[DOWNSTREAM]], FactorMatrix[[MODE]:[MODE]], $B14, FactorMatrix[[PHASE]:[PHASE]], $A$4, FactorMatrix[[GHGSOURCE]:[GHGSOURCE]], \"track mile\", FactorMatrix[[TYPE]:[TYPE]], AD$6)","v":0},{"$f":"SUMIFS(FactorMatrix[[DOWNSTREAM]:[DOWNSTREAM]], FactorMatrix[[MODE]:[MODE]], $B14, FactorMatrix[[PHASE]:[PHASE]], $A$4, FactorMatrix[[GHGSOURCE]:[GHGSOURCE]], \"track mile\", FactorMatrix[[TYPE]:[TYPE]], AE$6)","v":0},{"$f":"SUMIFS(FactorMatrix[[DOWNSTREAM]:[DOWNSTREAM]], FactorMatrix[[MODE]:[MODE]], $B14, FactorMatrix[[PHASE]:[PHASE]], $A$4, FactorMatrix[[GHGSOURCE]:[GHGSOURCE]], \"station\", FactorMatrix[[TYPE]:[TYPE]], AF$6)","v":0},{"$f":"SUMIFS(FactorMatrix[[DOWNSTREAM]:[DOWNSTREAM]], FactorMatrix[[MODE]:[MODE]], $B14, FactorMatrix[[PHASE]:[PHASE]], $A$4, FactorMatrix[[GHGSOURCE]:[GHGSOURCE]], \"station\", FactorMatrix[[TYPE]:[TYPE]], AG$6)","v":0},{"$f":"SUMIFS(FactorMatrix[[DOWNSTREAM]:[DOWNSTREAM]], FactorMatrix[[MODE]:[MODE]], $B14, FactorMatrix[[PHASE]:[PHASE]], $A$4, FactorMatrix[[GHGSOURCE]:[GHGSOURCE]], \"station\", FactorMatrix[[TYPE]:[TYPE]], AH$6)","v":0},0,0,0]
[9,{"$f":"Construction!B16","v":0},{"$f":"Construction!C16","v":0},{"$f":"Construction!D16","v":0},{"$f":"Construction!E16","v":0},{"$f":"Construction!F16","v":0},{"$f":"Construction!G16","v":0},{"$f":"Construction!H16","v":0},{"$f":"Construction!I16","v":0},{"$f":"Construction!J16","v":0},{"$f":"SUMIFS(FactorMatrix[[UPSTREAMMATERIALS]:[UPSTREAMMATERIALS]], FactorMatrix[[MODE]:[MODE]], $B15, FactorMatrix[[PHASE]:[PHASE]], $A$4, FactorMatrix[[GHGSOURCE]:[GHGSOURCE]], \"track mile\", FactorMatrix[[TYPE]:[TYPE]], K$6, FactorMatrix[[STATE /REGION]:[STATE /REGION]], StateCalc)","v":0},{"$f":"SUMIFS(FactorMatrix[[UPSTREAMMATERIALS]:[UPSTREAMMATERIALS]], FactorMatrix[[MODE]:[MODE]], $B15, FactorMatrix[[PHASE]:[PHASE]], $A$4, FactorMatrix[[GHGSOURCE]:[GHGSOURCE]], \"track mile\", FactorMatrix[[TYPE]:[TYPE]], L$6)","v":0},{"$f":"SUMIFS(FactorMatrix[[UPSTREAMMATERIALS]:[UPSTREAMMATERIALS]], FactorMatrix[[MODE]:[MODE]], $B15, FactorMatrix[[PHASE]:[PHASE]], $A$4, FactorMatrix[[GHGSOURCE]:[GHGSOURCE]], \"track mile\", FactorMatrix[[TYPE]:[TYPE]], M$6)","v":0},{"$f":"SUMIFS(FactorMatrix[[UPSTREAMMATERIALS]:[UPSTREAMMATERIALS]], FactorMatrix[[MODE]:[MODE]], $B15, FactorMatrix[[PHASE]:[PHASE]], $A$4, FactorMatrix[[GHGSOURCE]:[GHGSOURCE]], \"track mile\", FactorMatrix[[TYPE]:[TYPE]], N$6)","v":0},{"$f":"SUMIFS(FactorMatrix[[UPSTREAMMATERIALS]:[UPSTREAMMATERIALS]], FactorMatrix[[MODE]:[MODE]], $B15, FactorMatrix[[PHASE]:[PHASE]], $A$4, FactorMatrix[[GHGSOURCE]:[GHGSOURCE]], \"track mile\", FactorMatrix[[TYPE]:[TYPE]], O$6)","v":0},{"$f":"SUMIFS(FactorMatrix[[UPSTREAMMATERIALS]:[UPSTREAMMATERIALS]], FactorMatrix[[MODE]:[MODE]], $B15, FactorMatrix[[PHASE]:[PHASE]], $A$4, FactorMatrix[[GHGSOURCE]:[GHGSOURCE]], \"station\", FactorMatrix[[TYPE]:[TYPE]], P$6)","v":0},{"$f":"SUMIFS(FactorMatrix[[UPSTREAMMATERIALS]:[UPSTREAMMATERIALS]], FactorMatrix[[MODE]:[MODE]], $B15, FactorMatrix[[PHASE]:[PHASE]], $A$4, FactorMatrix[[GHGSOURCE]:[GHGSOURCE]], \"station\", FactorMatrix[[TYPE]:[TYPE]], Q$6)","v":0},{"$f":"SUMIFS(FactorMatrix[[UPSTREAMMATERIALS]:[UPSTREAMMATERIALS]], FactorMatrix[[MODE]:[MODE]], $B15, FactorMatrix[[PHASE]:[PHASE]], $A$4, FactorMatrix[[GHGSOURCE]:[GHGSOURCE]], \"station\", FactorMatrix[[TYPE]:[TYPE]], R$6)","v":0},{"$f":"SUMIFS(FactorMatrix[[UPSTREAMTRANSPORT]:[UPSTREAMTRANSPORT]], FactorMatrix[[MODE]:[MODE]], $B15, FactorMatrix[[PHASE]:[PHASE]], $A$4, FactorMatrix[[GHGSOURCE]:[GHGSOURCE]], \"track mile\", FactorMatrix[[TYPE]:[TYPE]], S$6, FactorMatrix[[STATE /REGION]:[STATE /REGION]], StateCalc)","v":0},{"$f":"SUMIFS(FactorMatrix[[UPSTREAMTRANSPORT]:[UPSTREAMTRANSPORT]], FactorMatrix[[MODE]:[MODE]], $B15, FactorMatrix[[PHASE]:[PHASE]], $A$4, FactorMatrix[[GHGSOURCE]:[GHGSOURCE]], \"track mile\", FactorMatrix[[TYPE]:[TYPE]], T$6)","v":0},{"$f":"SUMIFS(FactorMatrix[[UPSTREAMTRANSPORT]:[UPSTREAMTRANSPORT]], FactorMatrix[[MODE]:[MODE]], $B15, FactorMatrix[[PHASE]:[PHASE]], $A$4, FactorMatrix[[GHGSOURCE]:[GHGSOURCE]], \"track mile\", FactorMatrix[[TYPE]:[TYPE]], U$6)","v":0},{"$f":"SUMIFS(FactorMatrix[[UPSTREAMTRANSPORT]:[UPSTREAMTRANSPORT]], FactorMatrix[[MODE]:[MODE]], $B15, FactorMatrix[[PHASE]:[PHASE]], $A$4, FactorMatrix[[GHGSOURCE]:[GHGSOURCE]], \"track mile\", FactorMatrix[[TYPE]:[TYPE]], V$6)","v":0},{"$f":"SUMIFS(FactorMatrix[[UPSTREAMTRANSPORT]:[UPSTREAMTRANSPORT]], FactorMatrix[[MODE]:[MODE]], $B15, FactorMatrix[[PHASE]:[PHASE]], $A$4, FactorMatrix[[GHGSOURCE]:[GHGSOURCE]], \"track mile\", FactorMatrix[[TYPE]:[TYPE]], W$6)","v":0},{"$f":"SUMIFS(FactorMatrix[[UPSTREAMTRANSPORT]:[UPSTREAMTRANSPORT]], FactorMatrix[[MODE]:[MODE]], $B15, FactorMatrix[[PHASE]:[PHASE]], $A$4, FactorMatrix[[GHGSOURCE]:[GHGSOURCE]], \"station\", FactorMatrix[[TYPE]:[TYPE]], X$6)","v":0},{"$f":"SUMIFS(FactorMatrix[[UPSTREAMTRANSPORT]:[UPSTREAMTRANSPORT]], FactorMatrix[[MODE]:[MODE]], $B15, FactorMatrix[[PHASE]:[PHASE]], $A$4, FactorMatrix[[GHGSOURCE]:[GHGSOURCE]], \"station\", FactorMatrix[[TYPE]:[TYPE]], Y$6)","v":0},{"$f":"SUMIFS(FactorMatrix[[UPSTREAMTRANSPORT]:[UPSTREAMTRANSPORT]], FactorMatrix[[MODE]:[MODE]], $B15, FactorMatrix[[PHASE]:[PHASE]], $A$4, FactorMatrix[[GHGSOURCE]:[GHGSOURCE]], \"station\", FactorMatrix[[TYPE]:[TYPE]], Z$6)","v":0},{"$f":"SUMIFS(FactorMatrix[[DOWNSTREAM]:[DOWNSTREAM]], FactorMatrix[[MODE]:[MODE]], $B15, FactorMatrix[[PHASE]:[PHASE]], $A$4, FactorMatrix[[GHGSOURCE]:[GHGSOURCE]], \"track mile\", FactorMatrix[[TYPE]:[TYPE]], AA$6, FactorMatrix[[STATE /REGION]:[STATE /REGION]], StateCalc)","v":0},{"$f":"SUMIFS(FactorMatrix[[DOWNSTREAM]:[DOWNSTREAM]], FactorMatrix[[MODE]:[MODE]], $B15, FactorMatrix[[PHASE]:[PHASE]], $A$4, FactorMatrix[[GHGSOURCE]:[GHGSOURCE]], \"track mile\", FactorMatrix[[TYPE]:[TYPE]], AB$6)","v":0},{"$f":"SUMIFS(FactorMatrix[[DOWNSTREAM]:[DOWNSTREAM]], FactorMatrix[[MODE]:[MODE]], $B15, FactorMatrix[[PHASE]:[PHASE]], $A$4, FactorMatrix[[GHGSOURCE]:[GHGSOURCE]], \"track mile\", FactorMatrix[[TYPE]:[TYPE]], AC$6)","v":0},{"$f":"SUMIFS(FactorMatrix[[DOWNSTREAM]:[DOWNSTREAM]], FactorMatrix[[MODE]:[MODE]], $B15, FactorMatrix[[PHASE]:[PHASE]], $A$4, FactorMatrix[[GHGSOURCE]:[GHGSOURCE]], \"track mile\", FactorMatrix[[TYPE]:[TYPE]], AD$6)","v":0},{"$f":"SUMIFS(FactorMatrix[[DOWNSTREAM]:[DOWNSTREAM]], FactorMatrix[[MODE]:[MODE]], $B15, FactorMatrix[[PHASE]:[PHASE]], $A$4, FactorMatrix[[GHGSOURCE]:[GHGSOURCE]], \"track mile\", FactorMatrix[[TYPE]:[TYPE]], AE$6)","v":0},{"$f":"SUMIFS(FactorMatrix[[DOWNSTREAM]:[DOWNSTREAM]], FactorMatrix[[MODE]:[MODE]], $B15, FactorMatrix[[PHASE]:[PHASE]], $A$4, FactorMatrix[[GHGSOURCE]:[GHGSOURCE]], \"station\", FactorMatrix[[TYPE]:[TYPE]], AF$6)","v":0},{"$f":"SUMIFS(FactorMatrix[[DOWNSTREAM]:[DOWNSTREAM]], FactorMatrix[[MODE]:[MODE]], $B15, FactorMatrix[[PHASE]:[PHASE]], $A$4, FactorMatrix[[GHGSOURCE]:[GHGSOURCE]], \"station\", FactorMatrix[[TYPE]:[TYPE]], AG$6)","v":0},{"$f":"SUMIFS(FactorMatrix[[DOWNSTREAM]:[DOWNSTREAM]], FactorMatrix[[MODE]:[MODE]], $B15, FactorMatrix[[PHASE]:[PHASE]], $A$4, FactorMatrix[[GHGSOURCE]:[GHGSOURCE]], \"station\", FactorMatrix[[TYPE]:[TYPE]], AH$6)","v":0},0,0,0]
[10,{"$f":"Construction!B17","v":0},{"$f":"Construction!C17","v":0},{"$f":"Construction!D17","v":0},{"$f":"Construction!E17","v":0},{"$f":"Construction!F17","v":0},{"$f":"Construction!G17","v":0},{"$f":"Construction!H17","v":0},{"$f":"Construction!I17","v":0},{"$f":"Construction!J17","v":0},{"$f":"SUMIFS(FactorMatrix[[UPSTREAMMATERIALS]:[UPSTREAMMATERIALS]], FactorMatrix[[MODE]:[MODE]], $B16, FactorMatrix[[PHASE]:[PHASE]], $A$4, FactorMatrix[[GHGSOURCE]:[GHGSOURCE]], \"track mile\", FactorMatrix[[TYPE]:[TYPE]], K$6, FactorMatrix[[STATE /REGION]:[STATE /REGION]], StateCalc)","v":0},{"$f":"SUMIFS(FactorMatrix[[UPSTREAMMATERIALS]:[UPSTREAMMATERIALS]], FactorMatrix[[MODE]:[MODE]], $B16, FactorMatrix[[PHASE]:[PHASE]], $A$4, FactorMatrix[[GHGSOURCE]:[GHGSOURCE]], \"track mile\", FactorMatrix[[TYPE]:[TYPE]], L$6)","v":0},{"$f":"SUMIFS(FactorMatrix[[UPSTREAMMATERIALS]:[UPSTREAMMATERIALS]], FactorMatrix[[MODE]:[MODE]], $B16, FactorMatrix[[PHASE]:[PHASE]], $A$4, FactorMatrix[[GHGSOURCE]:[GHGSOURCE]], \"track mile\", FactorMatrix[[TYPE]:[TYPE]], M$6)","v":0},{"$f":"SUMIFS(FactorMatrix[[UPSTREAMMATERIALS]:[UPSTREAMMATERIALS]], FactorMatrix[[MODE]:[MODE]], $B16, FactorMatrix[[PHASE]:[PHASE]], $A$4, FactorMatrix[[GHGSOURCE]:[GHGSOURCE]], \"track mile\", FactorMatrix[[TYPE]:[TYPE]], N$6)","v":0},{"$f":"SUMIFS(FactorMatrix[[UPSTREAMMATERIALS]:[UPSTREAMMATERIALS]], FactorMatrix[[MODE]:[MODE]], $B16, FactorMatrix[[PHASE]:[PHASE]], $A$4, FactorMatrix[[GHGSOURCE]:[GHGSOURCE]], \"track mile\", FactorMatrix[[TYPE]:[TYPE]], O$6)","v":0},{"$f":"SUMIFS(FactorMatrix[[UPSTREAMMATERIALS]:[UPSTREAMMATERIALS]], FactorMatrix[[MODE]:[MODE]], $B16, FactorMatrix[[PHASE]:[PHASE]], $A$4, FactorMatrix[[GHGSOURCE]:[GHGSOURCE]], \"station\", FactorMatrix[[TYPE]:[TYPE]], P$6)","v":0},{"$f":"SUMIFS(FactorMatrix[[UPSTREAMMATERIALS]:[UPSTREAMMATERIALS]], FactorMatrix[[MODE]:[MODE]], $B16, FactorMatrix[[PHASE]:[PHASE]], $A$4, FactorMatrix[[GHGSOURCE]:[GHGSOURCE]], \"station\", FactorMatrix[[TYPE]:[TYPE]], Q$6)","v":0},{"$f":"SUMIFS(FactorMatrix[[UPSTREAMMATERIALS]:[UPSTREAMMATERIALS]], FactorMatrix[[MODE]:[MODE]], $B16, FactorMatrix[[PHASE]:[PHASE]], $A$4, FactorMatrix[[GHGSOURCE]:[GHGSOURCE]], \"station\", FactorMatrix[[TYPE]:[TYPE]], R$6)","v":0},{"$f":"SUMIFS(FactorMatrix[[UPSTREAMTRANSPORT]:[UPSTREAMTRANSPORT]], FactorMatrix[[MODE]:[MODE]], $B16, FactorMatrix[[PHASE]:[PHASE]], $A$4, FactorMatrix[[GHGSOURCE]:[GHGSOURCE]], \"track mile\", FactorMatrix[[TYPE]:[TYPE]], S$6, FactorMatrix[[STATE /REGION]:[STATE /REGION]], StateCalc)","v":0},{"$f":"SUMIFS(FactorMatrix[[UPSTREAMTRANSPORT]:[UPSTREAMTRANSPORT]], FactorMatrix[[MODE]:[MODE]], $B16, FactorMatrix[[PHASE]:[PHASE]], $A$4, FactorMatrix[[GHGSOURCE]:[GHGSOURCE]], \"track mile\", FactorMatrix[[TYPE]:[TYPE]], T$6)","v":0},{"$f":"SUMIFS(FactorMatrix[[UPSTREAMTRANSPORT]:[UPSTREAMTRANSPORT]], FactorMatrix[[MODE]:[MODE]], $B16, FactorMatrix[[PHASE]:[PHASE]], $A$4, FactorMatrix[[GHGSOURCE]:[GHGSOURCE]], \"track mile\", FactorMatrix[[TYPE]:[TYPE]], U$6)","v":0},{"$f":"SUMIFS(FactorMatrix[[UPSTREAMTRANSPORT]:[UPSTREAMTRANSPORT]], FactorMatrix[[MODE]:[MODE]], $B16, FactorMatrix[[PHASE]:[PHASE]], $A$4, FactorMatrix[[GHGSOURCE]:[GHGSOURCE]], \"track mile\", FactorMatrix[[TYPE]:[TYPE]], V$6)","v":0},{"$f":"SUMIFS(FactorMatrix[[UPSTREAMTRANSPORT]:[UPSTREAMTRANSPORT]], FactorMatrix[[MODE]:[MODE]], $B16, FactorMatrix[[PHASE]:[PHASE]], $A$4, FactorMatrix[[GHGSOURCE]:[GHGSOURCE]], \"track mile\", FactorMatrix[[TYPE]:[TYPE]], W$6)","v":0},{"$f":"SUMIFS(FactorMatrix[[UPSTREAMTRANSPORT]:[UPSTREAMTRANSPORT]], FactorMatrix[[MODE]:[MODE]], $B16, FactorMatrix[[PHASE]:[PHASE]], $A$4, FactorMatrix[[GHGSOURCE]:[GHGSOURCE]], \"station\", FactorMatrix[[TYPE]:[TYPE]], X$6)","v":0},{"$f":"SUMIFS(FactorMatrix[[UPSTREAMTRANSPORT]:[UPSTREAMTRANSPORT]], FactorMatrix[[MODE]:[MODE]], $B16, FactorMatrix[[PHASE]:[PHASE]], $A$4, FactorMatrix[[GHGSOURCE]:[GHGSOURCE]], \"station\", FactorMatrix[[TYPE]:[TYPE]], Y$6)","v":0},{"$f":"SUMIFS(FactorMatrix[[UPSTREAMTRANSPORT]:[UPSTREAMTRANSPORT]], FactorMatrix[[MODE]:[MODE]], $B16, FactorMatrix[[PHASE]:[PHASE]], $A$4, FactorMatrix[[GHGSOURCE]:[GHGSOURCE]], \"station\", FactorMatrix[[TYPE]:[TYPE]], Z$6)","v":0},{"$f":"SUMIFS(FactorMatrix[[DOWNSTREAM]:[DOWNSTREAM]], FactorMatrix[[MODE]:[MODE]], $B16, FactorMatrix[[PHASE]:[PHASE]], $A$4, FactorMatrix[[GHGSOURCE]:[GHGSOURCE]], \"track mile\", FactorMatrix[[TYPE]:[TYPE]], AA$6, FactorMatrix[[STATE /REGION]:[STATE /REGION]], StateCalc)","v":0},{"$f":"SUMIFS(FactorMatrix[[DOWNSTREAM]:[DOWNSTREAM]], FactorMatrix[[MODE]:[MODE]], $B16, FactorMatrix[[PHASE]:[PHASE]], $A$4, FactorMatrix[[GHGSOURCE]:[GHGSOURCE]], \"track mile\", FactorMatrix[[TYPE]:[TYPE]], AB$6)","v":0},{"$f":"SUMIFS(FactorMatrix[[DOWNSTREAM]:[DOWNSTREAM]], FactorMatrix[[MODE]:[MODE]], $B16, FactorMatrix[[PHASE]:[PHASE]], $A$4, FactorMatrix[[GHGSOURCE]:[GHGSOURCE]], \"track mile\", FactorMatrix[[TYPE]:[TYPE]], AC$6)","v":0},{"$f":"SUMIFS(FactorMatrix[[DOWNSTREAM]:[DOWNSTREAM]], FactorMatrix[[MODE]:[MODE]], $B16, FactorMatrix[[PHASE]:[PHASE]], $A$4, FactorMatrix[[GHGSOURCE]:[GHGSOURCE]], \"track mile\", FactorMatrix[[TYPE]:[TYPE]], AD$6)","v":0},{"$f":"SUMIFS(FactorMatrix[[DOWNSTREAM]:[DOWNSTREAM]], FactorMatrix[[MODE]:[MODE]], $B16, FactorMatrix[[PHASE]:[PHASE]], $A$4, FactorMatrix[[GHGSOURCE]:[GHGSOURCE]], \"track mile\", FactorMatrix[[TYPE]:[TYPE]], AE$6)","v":0},{"$f":"SUMIFS(FactorMatrix[[DOWNSTREAM]:[DOWNSTREAM]], FactorMatrix[[MODE]:[MODE]], $B16, FactorMatrix[[PHASE]:[PHASE]], $A$4, FactorMatrix[[GHGSOURCE]:[GHGSOURCE]], \"station\", FactorMatrix[[TYPE]:[TYPE]], AF$6)","v":0},{"$f":"SUMIFS(FactorMatrix[[DOWNSTREAM]:[DOWNSTREAM]], FactorMatrix[[MODE]:[MODE]], $B16, FactorMatrix[[PHASE]:[PHASE]], $A$4, FactorMatrix[[GHGSOURCE]:[GHGSOURCE]], \"station\", FactorMatrix[[TYPE]:[TYPE]], AG$6)","v":0},{"$f":"SUMIFS(FactorMatrix[[DOWNSTREAM]:[DOWNSTREAM]], FactorMatrix[[MODE]:[MODE]], $B16, FactorMatrix[[PHASE]:[PHASE]], $A$4, FactorMatrix[[GHGSOURCE]:[GHGSOURCE]], \"station\", FactorMatrix[[TYPE]:[TYPE]], AH$6)","v":0},0,0,0]
[11,{"$f":"Construction!B18","v":0},{"$f":"Construction!C18","v":0},{"$f":"Construction!D18","v":0},{"$f":"Construction!E18","v":0},{"$f":"Construction!F18","v":0},{"$f":"Construction!G18","v":0},{"$f":"Construction!H18","v":0},{"$f":"Construction!I18","v":0},{"$f":"Construction!J18","v":0},{"$f":"SUMIFS(FactorMatrix[[UPSTREAMMATERIALS]:[UPSTREAMMATERIALS]], FactorMatrix[[MODE]:[MODE]], $B17, FactorMatrix[[PHASE]:[PHASE]], $A$4, FactorMatrix[[GHGSOURCE]:[GHGSOURCE]], \"track mile\", FactorMatrix[[TYPE]:[TYPE]], K$6, FactorMatrix[[STATE /REGION]:[STATE /REGION]], StateCalc)","v":0},{"$f":"SUMIFS(FactorMatrix[[UPSTREAMMATERIALS]:[UPSTREAMMATERIALS]], FactorMatrix[[MODE]:[MODE]], $B17, FactorMatrix[[PHASE]:[PHASE]], $A$4, FactorMatrix[[GHGSOURCE]:[GHGSOURCE]], \"track mile\", FactorMatrix[[TYPE]:[TYPE]], L$6)","v":0},{"$f":"SUMIFS(FactorMatrix[[UPSTREAMMATERIALS]:[UPSTREAMMATERIALS]], FactorMatrix[[MODE]:[MODE]], $B17, FactorMatrix[[PHASE]:[PHASE]], $A$4, FactorMatrix[[GHGSOURCE]:[GHGSOURCE]], \"track mile\", FactorMatrix[[TYPE]:[TYPE]], M$6)","v":0},{"$f":"SUMIFS(FactorMatrix[[UPSTREAMMATERIALS]:[UPSTREAMMATERIALS]], FactorMatrix[[MODE]:[MODE]], $B17, FactorMatrix[[PHASE]:[PHASE]], $A$4, FactorMatrix[[GHGSOURCE]:[GHGSOURCE]], \"track mile\", FactorMatrix[[TYPE]:[TYPE]], N$6)","v":0},{"$f":"SUMIFS(FactorMatrix[[UPSTREAMMATERIALS]:[UPSTREAMMATERIALS]], FactorMatrix[[MODE]:[MODE]], $B17, FactorMatrix[[PHASE]:[PHASE]], $A$4, FactorMatrix[[GHGSOURCE]:[GHGSOURCE]], \"track mile\", FactorMatrix[[TYPE]:[TYPE]], O$6)","v":0},{"$f":"SUMIFS(FactorMatrix[[UPSTREAMMATERIALS]:[UPSTREAMMATERIALS]], FactorMatrix[[MODE]:[MODE]], $B17, FactorMatrix[[PHASE]:[PHASE]], $A$4, FactorMatrix[[GHGSOURCE]:[GHGSOURCE]], \"station\", FactorMatrix[[TYPE]:[TYPE]], P$6)","v":0},{"$f":"SUMIFS(FactorMatrix[[UPSTREAMMATERIALS]:[UPSTREAMMATERIALS]], FactorMatrix[[MODE]:[MODE]], $B17, FactorMatrix[[PHASE]:[PHASE]], $A$4, FactorMatrix[[GHGSOURCE]:[GHGSOURCE]], \"station\", FactorMatrix[[TYPE]:[TYPE]], Q$6)","v":0},{"$f":"SUMIFS(FactorMatrix[[UPSTREAMMATERIALS]:[UPSTREAMMATERIALS]], FactorMatrix[[MODE]:[MODE]], $B17, FactorMatrix[[PHASE]:[PHASE]], $A$4, FactorMatrix[[GHGSOURCE]:[GHGSOURCE]], \"station\", FactorMatrix[[TYPE]:[TYPE]], R$6)","v":0},{"$f":"SUMIFS(FactorMatrix[[UPSTREAMTRANSPORT]:[UPSTREAMTRANSPORT]], FactorMatrix[[MODE]:[MODE]], $B17, FactorMatrix[[PHASE]:[PHASE]], $A$4, FactorMatrix[[GHGSOURCE]:[GHGSOURCE]], \"track mile\", FactorMatrix[[TYPE]:[TYPE]], S$6, FactorMatrix[[STATE /REGION]:[STATE /REGION]], StateCalc)","v":0},{"$f":"SUMIFS(FactorMatrix[[UPSTREAMTRANSPORT]:[UPSTREAMTRANSPORT]], FactorMatrix[[MODE]:[MODE]], $B17, FactorMatrix[[PHASE]:[PHASE]], $A$4, FactorMatrix[[GHGSOURCE]:[GHGSOURCE]], \"track mile\", FactorMatrix[[TYPE]:[TYPE]], T$6)","v":0},{"$f":"SUMIFS(FactorMatrix[[UPSTREAMTRANSPORT]:[UPSTREAMTRANSPORT]], FactorMatrix[[MODE]:[MODE]], $B17, FactorMatrix[[PHASE]:[PHASE]], $A$4, FactorMatrix[[GHGSOURCE]:[GHGSOURCE]], \"track mile\", FactorMatrix[[TYPE]:[TYPE]], U$6)","v":0},{"$f":"SUMIFS(FactorMatrix[[UPSTREAMTRANSPORT]:[UPSTREAMTRANSPORT]], FactorMatrix[[MODE]:[MODE]], $B17, FactorMatrix[[PHASE]:[PHASE]], $A$4, FactorMatrix[[GHGSOURCE]:[GHGSOURCE]], \"track mile\", FactorMatrix[[TYPE]:[TYPE]], V$6)","v":0},{"$f":"SUMIFS(FactorMatrix[[UPSTREAMTRANSPORT]:[UPSTREAMTRANSPORT]], FactorMatrix[[MODE]:[MODE]], $B17, FactorMatrix[[PHASE]:[PHASE]], $A$4, FactorMatrix[[GHGSOURCE]:[GHGSOURCE]], \"track mile\", FactorMatrix[[TYPE]:[TYPE]], W$6)","v":0},{"$f":"SUMIFS(FactorMatrix[[UPSTREAMTRANSPORT]:[UPSTREAMTRANSPORT]], FactorMatrix[[MODE]:[MODE]], $B17, FactorMatrix[[PHASE]:[PHASE]], $A$4, FactorMatrix[[GHGSOURCE]:[GHGSOURCE]], \"station\", FactorMatrix[[TYPE]:[TYPE]], X$6)","v":0},{"$f":"SUMIFS(FactorMatrix[[UPSTREAMTRANSPORT]:[UPSTREAMTRANSPORT]], FactorMatrix[[MODE]:[MODE]], $B17, FactorMatrix[[PHASE]:[PHASE]], $A$4, FactorMatrix[[GHGSOURCE]:[GHGSOURCE]], \"station\", FactorMatrix[[TYPE]:[TYPE]], Y$6)","v":0},{"$f":"SUMIFS(FactorMatrix[[UPSTREAMTRANSPORT]:[UPSTREAMTRANSPORT]], FactorMatrix[[MODE]:[MODE]], $B17, FactorMatrix[[PHASE]:[PHASE]], $A$4, FactorMatrix[[GHGSOURCE]:[GHGSOURCE]], \"station\", FactorMatrix[[TYPE]:[TYPE]], Z$6)","v":0},{"$f":"SUMIFS(FactorMatrix[[DOWNSTREAM]:[DOWNSTREAM]], FactorMatrix[[MODE]:[MODE]], $B17, FactorMatrix[[PHASE]:[PHASE]], $A$4, FactorMatrix[[GHGSOURCE]:[GHGSOURCE]], \"track mile\", FactorMatrix[[TYPE]:[TYPE]], AA$6, FactorMatrix[[STATE /REGION]:[STATE /REGION]], StateCalc)","v":0},{"$f":"SUMIFS(FactorMatrix[[DOWNSTREAM]:[DOWNSTREAM]], FactorMatrix[[MODE]:[MODE]], $B17, FactorMatrix[[PHASE]:[PHASE]], $A$4, FactorMatrix[[GHGSOURCE]:[GHGSOURCE]], \"track mile\", FactorMatrix[[TYPE]:[TYPE]], AB$6)","v":0},{"$f":"SUMIFS(FactorMatrix[[DOWNSTREAM]:[DOWNSTREAM]], FactorMatrix[[MODE]:[MODE]], $B17, FactorMatrix[[PHASE]:[PHASE]], $A$4, FactorMatrix[[GHGSOURCE]:[GHGSOURCE]], \"track mile\", FactorMatrix[[TYPE]:[TYPE]], AC$6)","v":0},{"$f":"SUMIFS(FactorMatrix[[DOWNSTREAM]:[DOWNSTREAM]], FactorMatrix[[MODE]:[MODE]], $B17, FactorMatrix[[PHASE]:[PHASE]], $A$4, FactorMatrix[[GHGSOURCE]:[GHGSOURCE]], \"track mile\", FactorMatrix[[TYPE]:[TYPE]], AD$6)","v":0},{"$f":"SUMIFS(FactorMatrix[[DOWNSTREAM]:[DOWNSTREAM]], FactorMatrix[[MODE]:[MODE]], $B17, FactorMatrix[[PHASE]:[PHASE]], $A$4, FactorMatrix[[GHGSOURCE]:[GHGSOURCE]], \"track mile\", FactorMatrix[[TYPE]:[TYPE]], AE$6)","v":0},{"$f":"SUMIFS(FactorMatrix[[DOWNSTREAM]:[DOWNSTREAM]], FactorMatrix[[MODE]:[MODE]], $B17, FactorMatrix[[PHASE]:[PHASE]], $A$4, FactorMatrix[[GHGSOURCE]:[GHGSOURCE]], \"station\", FactorMatrix[[TYPE]:[TYPE]], AF$6)","v":0},{"$f":"SUMIFS(FactorMatrix[[DOWNSTREAM]:[DOWNSTREAM]], FactorMatrix[[MODE]:[MODE]], $B17, FactorMatrix[[PHASE]:[PHASE]], $A$4, FactorMatrix[[GHGSOURCE]:[GHGSOURCE]], \"station\", FactorMatrix[[TYPE]:[TYPE]], AG$6)","v":0},{"$f":"SUMIFS(FactorMatrix[[DOWNSTREAM]:[DOWNSTREAM]], FactorMatrix[[MODE]:[MODE]], $B17, FactorMatrix[[PHASE]:[PHASE]], $A$4, FactorMatrix[[GHGSOURCE]:[GHGSOURCE]], \"station\", FactorMatrix[[TYPE]:[TYPE]], AH$6)","v":0},0,0,0]
[12,{"$f":"Construction!B19","v":0},{"$f":"Construction!C19","v":0},{"$f":"Construction!D19","v":0},{"$f":"Construction!E19","v":0},{"$f":"Construction!F19","v":0},{"$f":"Construction!G19","v":0},{"$f":"Construction!H19","v":0},{"$f":"Construction!I19","v":0},{"$f":"Construction!J19","v":0},{"$f":"SUMIFS(FactorMatrix[[UPSTREAMMATERIALS]:[UPSTREAMMATERIALS]], FactorMatrix[[MODE]:[MODE]], $B18, FactorMatrix[[PHASE]:[PHASE]], $A$4, FactorMatrix[[GHGSOURCE]:[GHGSOURCE]], \"track mile\", FactorMatrix[[TYPE]:[TYPE]], K$6, FactorMatrix[[STATE /REGION]:[STATE /REGION]], StateCalc)","v":0},{"$f":"SUMIFS(FactorMatrix[[UPSTREAMMATERIALS]:[UPSTREAMMATERIALS]], FactorMatrix[[MODE]:[MODE]], $B18, FactorMatrix[[PHASE]:[PHASE]], $A$4, FactorMatrix[[GHGSOURCE]:[GHGSOURCE]], \"track mile\", FactorMatrix[[TYPE]:[TYPE]], L$6)","v":0},{"$f":"SUMIFS(FactorMatrix[[UPSTREAMMATERIALS]:[UPSTREAMMATERIALS]], FactorMatrix[[MODE]:[MODE]], $B18, FactorMatrix[[PHASE]:[PHASE]], $A$4, FactorMatrix[[GHGSOURCE]:[GHGSOURCE]], \"track mile\", FactorMatrix[[TYPE]:[TYPE]], M$6)","v":0},{"$f":"SUMIFS(FactorMatrix[[UPSTREAMMATERIALS]:[UPSTREAMMATERIALS]], FactorMatrix[[MODE]:[MODE]], $B18, FactorMatrix[[PHASE]:[PHASE]], $A$4, FactorMatrix[[GHGSOURCE]:[GHGSOURCE]], \"track mile\", FactorMatrix[[TYPE]:[TYPE]], N$6)","v":0},{"$f":"SUMIFS(FactorMatrix[[UPSTREAMMATERIALS]:[UPSTREAMMATERIALS]], FactorMatrix[[MODE]:[MODE]], $B18, FactorMatrix[[PHASE]:[PHASE]], $A$4, FactorMatrix[[GHGSOURCE]:[GHGSOURCE]], \"track mile\", FactorMatrix[[TYPE]:[TYPE]], O$6)","v":0},{"$f":"SUMIFS(FactorMatrix[[UPSTREAMMATERIALS]:[UPSTREAMMATERIALS]], FactorMatrix[[MODE]:[MODE]], $B18, FactorMatrix[[PHASE]:[PHASE]], $A$4, FactorMatrix[[GHGSOURCE]:[GHGSOURCE]], \"station\", FactorMatrix[[TYPE]:[TYPE]], P$6)","v":0},{"$f":"SUMIFS(FactorMatrix[[UPSTREAMMATERIALS]:[UPSTREAMMATERIALS]], FactorMatrix[[MODE]:[MODE]], $B18, FactorMatrix[[PHASE]:[PHASE]], $A$4, FactorMatrix[[GHGSOURCE]:[GHGSOURCE]], \"station\", FactorMatrix[[TYPE]:[TYPE]], Q$6)","v":0},{"$f":"SUMIFS(FactorMatrix[[UPSTREAMMATERIALS]:[UPSTREAMMATERIALS]], FactorMatrix[[MODE]:[MODE]], $B18, FactorMatrix[[PHASE]:[PHASE]], $A$4, FactorMatrix[[GHGSOURCE]:[GHGSOURCE]], \"station\", FactorMatrix[[TYPE]:[TYPE]], R$6)","v":0},{"$f":"SUMIFS(FactorMatrix[[UPSTREAMTRANSPORT]:[UPSTREAMTRANSPORT]], FactorMatrix[[MODE]:[MODE]], $B18, FactorMatrix[[PHASE]:[PHASE]], $A$4, FactorMatrix[[GHGSOURCE]:[GHGSOURCE]], \"track mile\", FactorMatrix[[TYPE]:[TYPE]], S$6, FactorMatrix[[STATE /REGION]:[STATE /REGION]], StateCalc)","v":0},{"$f":"SUMIFS(FactorMatrix[[UPSTREAMTRANSPORT]:[UPSTREAMTRANSPORT]], FactorMatrix[[MODE]:[MODE]], $B18, FactorMatrix[[PHASE]:[PHASE]], $A$4, FactorMatrix[[GHGSOURCE]:[GHGSOURCE]], \"track mile\", FactorMatrix[[TYPE]:[TYPE]], T$6)","v":0},{"$f":"SUMIFS(FactorMatrix[[UPSTREAMTRANSPORT]:[UPSTREAMTRANSPORT]], FactorMatrix[[MODE]:[MODE]], $B18, FactorMatrix[[PHASE]:[PHASE]], $A$4, FactorMatrix[[GHGSOURCE]:[GHGSOURCE]], \"track mile\", FactorMatrix[[TYPE]:[TYPE]], U$6)","v":0},{"$f":"SUMIFS(FactorMatrix[[UPSTREAMTRANSPORT]:[UPSTREAMTRANSPORT]], FactorMatrix[[MODE]:[MODE]], $B18, FactorMatrix[[PHASE]:[PHASE]], $A$4, FactorMatrix[[GHGSOURCE]:[GHGSOURCE]], \"track mile\", FactorMatrix[[TYPE]:[TYPE]], V$6)","v":0},{"$f":"SUMIFS(FactorMatrix[[UPSTREAMTRANSPORT]:[UPSTREAMTRANSPORT]], FactorMatrix[[MODE]:[MODE]], $B18, FactorMatrix[[PHASE]:[PHASE]], $A$4, FactorMatrix[[GHGSOURCE]:[GHGSOURCE]], \"track mile\", FactorMatrix[[TYPE]:[TYPE]], W$6)","v":0},{"$f":"SUMIFS(FactorMatrix[[UPSTREAMTRANSPORT]:[UPSTREAMTRANSPORT]], FactorMatrix[[MODE]:[MODE]], $B18, FactorMatrix[[PHASE]:[PHASE]], $A$4, FactorMatrix[[GHGSOURCE]:[GHGSOURCE]], \"station\", FactorMatrix[[TYPE]:[TYPE]], X$6)","v":0},{"$f":"SUMIFS(FactorMatrix[[UPSTREAMTRANSPORT]:[UPSTREAMTRANSPORT]], FactorMatrix[[MODE]:[MODE]], $B18, FactorMatrix[[PHASE]:[PHASE]], $A$4, FactorMatrix[[GHGSOURCE]:[GHGSOURCE]], \"station\", FactorMatrix[[TYPE]:[TYPE]], Y$6)","v":0},{"$f":"SUMIFS(FactorMatrix[[UPSTREAMTRANSPORT]:[UPSTREAMTRANSPORT]], FactorMatrix[[MODE]:[MODE]], $B18, FactorMatrix[[PHASE]:[PHASE]], $A$4, FactorMatrix[[GHGSOURCE]:[GHGSOURCE]], \"station\", FactorMatrix[[TYPE]:[TYPE]], Z$6)","v":0},{"$f":"SUMIFS(FactorMatrix[[DOWNSTREAM]:[DOWNSTREAM]], FactorMatrix[[MODE]:[MODE]], $B18, FactorMatrix[[PHASE]:[PHASE]], $A$4, FactorMatrix[[GHGSOURCE]:[GHGSOURCE]], \"track mile\", FactorMatrix[[TYPE]:[TYPE]], AA$6, FactorMatrix[[STATE /REGION]:[STATE /REGION]], StateCalc)","v":0},{"$f":"SUMIFS(FactorMatrix[[DOWNSTREAM]:[DOWNSTREAM]], FactorMatrix[[MODE]:[MODE]], $B18, FactorMatrix[[PHASE]:[PHASE]], $A$4, FactorMatrix[[GHGSOURCE]:[GHGSOURCE]], \"track mile\", FactorMatrix[[TYPE]:[TYPE]], AB$6)","v":0},{"$f":"SUMIFS(FactorMatrix[[DOWNSTREAM]:[DOWNSTREAM]], FactorMatrix[[MODE]:[MODE]], $B18, FactorMatrix[[PHASE]:[PHASE]], $A$4, FactorMatrix[[GHGSOURCE]:[GHGSOURCE]], \"track mile\", FactorMatrix[[TYPE]:[TYPE]], AC$6)","v":0},{"$f":"SUMIFS(FactorMatrix[[DOWNSTREAM]:[DOWNSTREAM]], FactorMatrix[[MODE]:[MODE]], $B18, FactorMatrix[[PHASE]:[PHASE]], $A$4, FactorMatrix[[GHGSOURCE]:[GHGSOURCE]], \"track mile\", FactorMatrix[[TYPE]:[TYPE]], AD$6)","v":0},{"$f":"SUMIFS(FactorMatrix[[DOWNSTREAM]:[DOWNSTREAM]], FactorMatrix[[MODE]:[MODE]], $B18, FactorMatrix[[PHASE]:[PHASE]], $A$4, FactorMatrix[[GHGSOURCE]:[GHGSOURCE]], \"track mile\", FactorMatrix[[TYPE]:[TYPE]], AE$6)","v":0},{"$f":"SUMIFS(FactorMatrix[[DOWNSTREAM]:[DOWNSTREAM]], FactorMatrix[[MODE]:[MODE]], $B18, FactorMatrix[[PHASE]:[PHASE]], $A$4, FactorMatrix[[GHGSOURCE]:[GHGSOURCE]], \"station\", FactorMatrix[[TYPE]:[TYPE]], AF$6)","v":0},{"$f":"SUMIFS(FactorMatrix[[DOWNSTREAM]:[DOWNSTREAM]], FactorMatrix[[MODE]:[MODE]], $B18, FactorMatrix[[PHASE]:[PHASE]], $A$4, FactorMatrix[[GHGSOURCE]:[GHGSOURCE]], \"station\", FactorMatrix[[TYPE]:[TYPE]], AG$6)","v":0},{"$f":"SUMIFS(FactorMatrix[[DOWNSTREAM]:[DOWNSTREAM]], FactorMatrix[[MODE]:[MODE]], $B18, FactorMatrix[[PHASE]:[PHASE]], $A$4, FactorMatrix[[GHGSOURCE]:[GHGSOURCE]], \"station\", FactorMatrix[[TYPE]:[TYPE]], AH$6)","v":0},0,0,0]
[13,{"$f":"Construction!B20","v":0},{"$f":"Construction!C20","v":0},{"$f":"Construction!D20","v":0},{"$f":"Construction!E20","v":0},{"$f":"Construction!F20","v":0},{"$f":"Construction!G20","v":0},{"$f":"Construction!H20","v":0},{"$f":"Construction!I20","v":0},{"$f":"Construction!J20","v":0},{"$f":"SUMIFS(FactorMatrix[[UPSTREAMMATERIALS]:[UPSTREAMMATERIALS]], FactorMatrix[[MODE]:[MODE]], $B19, FactorMatrix[[PHASE]:[PHASE]], $A$4, FactorMatrix[[GHGSOURCE]:[GHGSOURCE]], \"track mile\", FactorMatrix[[TYPE]:[TYPE]], K$6, FactorMatrix[[STATE /REGION]:[STATE /REGION]], StateCalc)","v":0},{"$f":"SUMIFS(FactorMatrix[[UPSTREAMMATERIALS]:[UPSTREAMMATERIALS]], FactorMatrix[[MODE]:[MODE]], $B19, FactorMatrix[[PHASE]:[PHASE]], $A$4, FactorMatrix[[GHGSOURCE]:[GHGSOURCE]], \"track mile\", FactorMatrix[[TYPE]:[TYPE]], L$6)","v":0},{"$f":"SUMIFS(FactorMatrix[[UPSTREAMMATERIALS]:[UPSTREAMMATERIALS]], FactorMatrix[[MODE]:[MODE]], $B19, FactorMatrix[[PHASE]:[PHASE]], $A$4, FactorMatrix[[GHGSOURCE]:[GHGSOURCE]], \"track mile\", FactorMatrix[[TYPE]:[TYPE]], M$6)","v":0},{"$f":"SUMIFS(FactorMatrix[[UPSTREAMMATERIALS]:[UPSTREAMMATERIALS]], FactorMatrix[[MODE]:[MODE]], $B19, FactorMatrix[[PHASE]:[PHASE]], $A$4, FactorMatrix[[GHGSOURCE]:[GHGSOURCE]], \"track mile\", FactorMatrix[[TYPE]:[TYPE]], N$6)","v":0},{"$f":"SUMIFS(FactorMatrix[[UPSTREAMMATERIALS]:[UPSTREAMMATERIALS]], FactorMatrix[[MODE]:[MODE]], $B19, FactorMatrix[[PHASE]:[PHASE]], $A$4, FactorMatrix[[GHGSOURCE]:[GHGSOURCE]], \"track mile\", FactorMatrix[[TYPE]:[TYPE]], O$6)","v":0},{"$f":"SUMIFS(FactorMatrix[[UPSTREAMMATERIALS]:[UPSTREAMMATERIALS]], FactorMatrix[[MODE]:[MODE]], $B19, FactorMatrix[[PHASE]:[PHASE]], $A$4, FactorMatrix[[GHGSOURCE]:[GHGSOURCE]], \"station\", FactorMatrix[[TYPE]:[TYPE]], P$6)","v":0},{"$f":"SUMIFS(FactorMatrix[[UPSTREAMMATERIALS]:[UPSTREAMMATERIALS]], FactorMatrix[[MODE]:[MODE]], $B19, FactorMatrix[[PHASE]:[PHASE]], $A$4, FactorMatrix[[GHGSOURCE]:[GHGSOURCE]], \"station\", FactorMatrix[[TYPE]:[TYPE]], Q$6)","v":0},{"$f":"SUMIFS(FactorMatrix[[UPSTREAMMATERIALS]:[UPSTREAMMATERIALS]], FactorMatrix[[MODE]:[MODE]], $B19, FactorMatrix[[PHASE]:[PHASE]], $A$4, FactorMatrix[[GHGSOURCE]:[GHGSOURCE]], \"station\", FactorMatrix[[TYPE]:[TYPE]], R$6)","v":0},{"$f":"SUMIFS(FactorMatrix[[UPSTREAMTRANSPORT]:[UPSTREAMTRANSPORT]], FactorMatrix[[MODE]:[MODE]], $B19, FactorMatrix[[PHASE]:[PHASE]], $A$4, FactorMatrix[[GHGSOURCE]:[GHGSOURCE]], \"track mile\", FactorMatrix[[TYPE]:[TYPE]], S$6, FactorMatrix[[STATE /REGION]:[STATE /REGION]], StateCalc)","v":0},{"$f":"SUMIFS(FactorMatrix[[UPSTREAMTRANSPORT]:[UPSTREAMTRANSPORT]], FactorMatrix[[MODE]:[MODE]], $B19, FactorMatrix[[PHASE]:[PHASE]], $A$4, FactorMatrix[[GHGSOURCE]:[GHGSOURCE]], \"track mile\", FactorMatrix[[TYPE]:[TYPE]], T$6)","v":0},{"$f":"SUMIFS(FactorMatrix[[UPSTREAMTRANSPORT]:[UPSTREAMTRANSPORT]], FactorMatrix[[MODE]:[MODE]], $B19, FactorMatrix[[PHASE]:[PHASE]], $A$4, FactorMatrix[[GHGSOURCE]:[GHGSOURCE]], \"track mile\", FactorMatrix[[TYPE]:[TYPE]], U$6)","v":0},{"$f":"SUMIFS(FactorMatrix[[UPSTREAMTRANSPORT]:[UPSTREAMTRANSPORT]], FactorMatrix[[MODE]:[MODE]], $B19, FactorMatrix[[PHASE]:[PHASE]], $A$4, FactorMatrix[[GHGSOURCE]:[GHGSOURCE]], \"track mile\", FactorMatrix[[TYPE]:[TYPE]], V$6)","v":0},{"$f":"SUMIFS(FactorMatrix[[UPSTREAMTRANSPORT]:[UPSTREAMTRANSPORT]], FactorMatrix[[MODE]:[MODE]], $B19, FactorMatrix[[PHASE]:[PHASE]], $A$4, FactorMatrix[[GHGSOURCE]:[GHGSOURCE]], \"track mile\", FactorMatrix[[TYPE]:[TYPE]], W$6)","v":0},{"$f":"SUMIFS(FactorMatrix[[UPSTREAMTRANSPORT]:[UPSTREAMTRANSPORT]], FactorMatrix[[MODE]:[MODE]], $B19, FactorMatrix[[PHASE]:[PHASE]], $A$4, FactorMatrix[[GHGSOURCE]:[GHGSOURCE]], \"station\", FactorMatrix[[TYPE]:[TYPE]], X$6)","v":0},{"$f":"SUMIFS(FactorMatrix[[UPSTREAMTRANSPORT]:[UPSTREAMTRANSPORT]], FactorMatrix[[MODE]:[MODE]], $B19, FactorMatrix[[PHASE]:[PHASE]], $A$4, FactorMatrix[[GHGSOURCE]:[GHGSOURCE]], \"station\", FactorMatrix[[TYPE]:[TYPE]], Y$6)","v":0},{"$f":"SUMIFS(FactorMatrix[[UPSTREAMTRANSPORT]:[UPSTREAMTRANSPORT]], FactorMatrix[[MODE]:[MODE]], $B19, FactorMatrix[[PHASE]:[PHASE]], $A$4, FactorMatrix[[GHGSOURCE]:[GHGSOURCE]], \"station\", FactorMatrix[[TYPE]:[TYPE]], Z$6)","v":0},{"$f":"SUMIFS(FactorMatrix[[DOWNSTREAM]:[DOWNSTREAM]], FactorMatrix[[MODE]:[MODE]], $B19, FactorMatrix[[PHASE]:[PHASE]], $A$4, FactorMatrix[[GHGSOURCE]:[GHGSOURCE]], \"track mile\", FactorMatrix[[TYPE]:[TYPE]], AA$6, FactorMatrix[[STATE /REGION]:[STATE /REGION]], StateCalc)","v":0},{"$f":"SUMIFS(FactorMatrix[[DOWNSTREAM]:[DOWNSTREAM]], FactorMatrix[[MODE]:[MODE]], $B19, FactorMatrix[[PHASE]:[PHASE]], $A$4, FactorMatrix[[GHGSOURCE]:[GHGSOURCE]], \"track mile\", FactorMatrix[[TYPE]:[TYPE]], AB$6)","v":0},{"$f":"SUMIFS(FactorMatrix[[DOWNSTREAM]:[DOWNSTREAM]], FactorMatrix[[MODE]:[MODE]], $B19, FactorMatrix[[PHASE]:[PHASE]], $A$4, FactorMatrix[[GHGSOURCE]:[GHGSOURCE]], \"track mile\", FactorMatrix[[TYPE]:[TYPE]], AC$6)","v":0},{"$f":"SUMIFS(FactorMatrix[[DOWNSTREAM]:[DOWNSTREAM]], FactorMatrix[[MODE]:[MODE]], $B19, FactorMatrix[[PHASE]:[PHASE]], $A$4, FactorMatrix[[GHGSOURCE]:[GHGSOURCE]], \"track mile\", FactorMatrix[[TYPE]:[TYPE]], AD$6)","v":0},{"$f":"SUMIFS(FactorMatrix[[DOWNSTREAM]:[DOWNSTREAM]], FactorMatrix[[MODE]:[MODE]], $B19, FactorMatrix[[PHASE]:[PHASE]], $A$4, FactorMatrix[[GHGSOURCE]:[GHGSOURCE]], \"track mile\", FactorMatrix[[TYPE]:[TYPE]], AE$6)","v":0},{"$f":"SUMIFS(FactorMatrix[[DOWNSTREAM]:[DOWNSTREAM]], FactorMatrix[[MODE]:[MODE]], $B19, FactorMatrix[[PHASE]:[PHASE]], $A$4, FactorMatrix[[GHGSOURCE]:[GHGSOURCE]], \"station\", FactorMatrix[[TYPE]:[TYPE]], AF$6)","v":0},{"$f":"SUMIFS(FactorMatrix[[DOWNSTREAM]:[DOWNSTREAM]], FactorMatrix[[MODE]:[MODE]], $B19, FactorMatrix[[PHASE]:[PHASE]], $A$4, FactorMatrix[[GHGSOURCE]:[GHGSOURCE]], \"station\", FactorMatrix[[TYPE]:[TYPE]], AG$6)","v":0},{"$f":"SUMIFS(FactorMatrix[[DOWNSTREAM]:[DOWNSTREAM]], FactorMatrix[[MODE]:[MODE]], $B19, FactorMatrix[[PHASE]:[PHASE]], $A$4, FactorMatrix[[GHGSOURCE]:[GHGSOURCE]], \"station\", FactorMatrix[[TYPE]:[TYPE]], AH$6)","v":0},0,0,{"$f":"SUMPRODUCT($C19:$J19, AA19:AH19)","v":0}]
[14,{"$f":"Construction!B21","v":0},{"$f":"Construction!C21","v":0},{"$f":"Construction!D21","v":0},{"$f":"Construction!E21","v":0},{"$f":"Construction!F21","v":0},{"$f":"Construction!G21","v":0},{"$f":"Construction!H21","v":0},{"$f":"Construction!I21","v":0},{"$f":"Construction!J21","v":0},{"$f":"SUMIFS(FactorMatrix[[UPSTREAMMATERIALS]:[UPSTREAMMATERIALS]], FactorMatrix[[MODE]:[MODE]], $B20, FactorMatrix[[PHASE]:[PHASE]], $A$4, FactorMatrix[[GHGSOURCE]:[GHGSOURCE]], \"track mile\", FactorMatrix[[TYPE]:[TYPE]], K$6, FactorMatrix[[STATE /REGION]:[STATE /REGION]], StateCalc)","v":0},{"$f":"SUMIFS(FactorMatrix[[UPSTREAMMATERIALS]:[UPSTREAMMATERIALS]], FactorMatrix[[MODE]:[MODE]], $B20, FactorMatrix[[PHASE]:[PHASE]], $A$4, FactorMatrix[[GHGSOURCE]:[GHGSOURCE]], \"track mile\", FactorMatrix[[TYPE]:[TYPE]], L$6)","v":0},{"$f":"SUMIFS(FactorMatrix[[UPSTREAMMATERIALS]:[UPSTREAMMATERIALS]], FactorMatrix[[MODE]:[MODE]], $B20, FactorMatrix[[PHASE]:[PHASE]], $A$4, FactorMatrix[[GHGSOURCE]:[GHGSOURCE]], \"track mile\", FactorMatrix[[TYPE]:[TYPE]], M$6)","v":0},{"$f":"SUMIFS(FactorMatrix[[UPSTREAMMATERIALS]:[UPSTREAMMATERIALS]], FactorMatrix[[MODE]:[MODE]], $B20, FactorMatrix[[PHASE]:[PHASE]], $A$4, FactorMatrix[[GHGSOURCE]:[GHGSOURCE]], \"track mile\", FactorMatrix[[TYPE]:[TYPE]], N$6)","v":0},{"$f":"SUMIFS(FactorMatrix[[UPSTREAMMATERIALS]:[UPSTREAMMATERIALS]], FactorMatrix[[MODE]:[MODE]], $B20, FactorMatrix[[PHASE]:[PHASE]], $A$4, FactorMatrix[[GHGSOURCE]:[GHGSOURCE]], \"track mile\", FactorMatrix[[TYPE]:[TYPE]], O$6)","v":0},{"$f":"SUMIFS(FactorMatrix[[UPSTREAMMATERIALS]:[UPSTREAMMATERIALS]], FactorMatrix[[MODE]:[MODE]], $B20, FactorMatrix[[PHASE]:[PHASE]], $A$4, FactorMatrix[[GHGSOURCE]:[GHGSOURCE]], \"station\", FactorMatrix[[TYPE]:[TYPE]], P$6)","v":0},{"$f":"SUMIFS(FactorMatrix[[UPSTREAMMATERIALS]:[UPSTREAMMATERIALS]], FactorMatrix[[MODE]:[MODE]], $B20, FactorMatrix[[PHASE]:[PHASE]], $A$4, FactorMatrix[[GHGSOURCE]:[GHGSOURCE]], \"station\", FactorMatrix[[TYPE]:[TYPE]], Q$6)","v":0},{"$f":"SUMIFS(FactorMatrix[[UPSTREAMMATERIALS]:[UPSTREAMMATERIALS]], FactorMatrix[[MODE]:[MODE]], $B20, FactorMatrix[[PHASE]:[PHASE]], $A$4, FactorMatrix[[GHGSOURCE]:[GHGSOURCE]], \"station\", FactorMatrix[[TYPE]:[TYPE]], R$6)","v":0},{"$f":"SUMIFS(FactorMatrix[[UPSTREAMTRANSPORT]:[UPSTREAMTRANSPORT]], FactorMatrix[[MODE]:[MODE]], $B20, FactorMatrix[[PHASE]:[PHASE]], $A$4, FactorMatrix[[GHGSOURCE]:[GHGSOURCE]], \"track mile\", FactorMatrix[[TYPE]:[TYPE]], S$6, FactorMatrix[[STATE /REGION]:[STATE /REGION]], StateCalc)","v":0},{"$f":"SUMIFS(FactorMatrix[[UPSTREAMTRANSPORT]:[UPSTREAMTRANSPORT]], FactorMatrix[[MODE]:[MODE]], $B20, FactorMatrix[[PHASE]:[PHASE]], $A$4, FactorMatrix[[GHGSOURCE]:[GHGSOURCE]], \"track mile\", FactorMatrix[[TYPE]:[TYPE]], T$6)","v":0},{"$f":"SUMIFS(FactorMatrix[[UPSTREAMTRANSPORT]:[UPSTREAMTRANSPORT]], FactorMatrix[[MODE]:[MODE]], $B20, FactorMatrix[[PHASE]:[PHASE]], $A$4, FactorMatrix[[GHGSOURCE]:[GHGSOURCE]], \"track mile\", FactorMatrix[[TYPE]:[TYPE]], U$6)","v":0},{"$f":"SUMIFS(FactorMatrix[[UPSTREAMTRANSPORT]:[UPSTREAMTRANSPORT]], FactorMatrix[[MODE]:[MODE]], $B20, FactorMatrix[[PHASE]:[PHASE]], $A$4, FactorMatrix[[GHGSOURCE]:[GHGSOURCE]], \"track mile\", FactorMatrix[[TYPE]:[TYPE]], V$6)","v":0},{"$f":"SUMIFS(FactorMatrix[[UPSTREAMTRANSPORT]:[UPSTREAMTRANSPORT]], FactorMatrix[[MODE]:[MODE]], $B20, FactorMatrix[[PHASE]:[PHASE]], $A$4, FactorMatrix[[GHGSOURCE]:[GHGSOURCE]], \"track mile\", FactorMatrix[[TYPE]:[TYPE]], W$6)","v":0},{"$f":"SUMIFS(FactorMatrix[[UPSTREAMTRANSPORT]:[UPSTREAMTRANSPORT]], FactorMatrix[[MODE]:[MODE]], $B20, FactorMatrix[[PHASE]:[PHASE]], $A$4, FactorMatrix[[GHGSOURCE]:[GHGSOURCE]], \"station\", FactorMatrix[[TYPE]:[TYPE]], X$6)","v":0},{"$f":"SUMIFS(FactorMatrix[[UPSTREAMTRANSPORT]:[UPSTREAMTRANSPORT]], FactorMatrix[[MODE]:[MODE]], $B20, FactorMatrix[[PHASE]:[PHASE]], $A$4, FactorMatrix[[GHGSOURCE]:[GHGSOURCE]], \"station\", FactorMatrix[[TYPE]:[TYPE]], Y$6)","v":0},{"$f":"SUMIFS(FactorMatrix[[UPSTREAMTRANSPORT]:[UPSTREAMTRANSPORT]], FactorMatrix[[MODE]:[MODE]], $B20, FactorMatrix[[PHASE]:[PHASE]], $A$4, FactorMatrix[[GHGSOURCE]:[GHGSOURCE]], \"station\", FactorMatrix[[TYPE]:[TYPE]], Z$6)","v":0},{"$f":"SUMIFS(FactorMatrix[[DOWNSTREAM]:[DOWNSTREAM]], FactorMatrix[[MODE]:[MODE]], $B20, FactorMatrix[[PHASE]:[PHASE]], $A$4, FactorMatrix[[GHGSOURCE]:[GHGSOURCE]], \"track mile\", FactorMatrix[[TYPE]:[TYPE]], AA$6, FactorMatrix[[STATE /REGION]:[STATE /REGION]], StateCalc)","v":0},{"$f":"SUMIFS(FactorMatrix[[DOWNSTREAM]:[DOWNSTREAM]], FactorMatrix[[MODE]:[MODE]], $B20, FactorMatrix[[PHASE]:[PHASE]], $A$4, FactorMatrix[[GHGSOURCE]:[GHGSOURCE]], \"track mile\", FactorMatrix[[TYPE]:[TYPE]], AB$6)","v":0},{"$f":"SUMIFS(FactorMatrix[[DOWNSTREAM]:[DOWNSTREAM]], FactorMatrix[[MODE]:[MODE]], $B20, FactorMatrix[[PHASE]:[PHASE]], $A$4, FactorMatrix[[GHGSOURCE]:[GHGSOURCE]], \"track mile\", FactorMatrix[[TYPE]:[TYPE]], AC$6)","v":0},{"$f":"SUMIFS(FactorMatrix[[DOWNSTREAM]:[DOWNSTREAM]], FactorMatrix[[MODE]:[MODE]], $B20, FactorMatrix[[PHASE]:[PHASE]], $A$4, FactorMatrix[[GHGSOURCE]:[GHGSOURCE]], \"track mile\", FactorMatrix[[TYPE]:[TYPE]], AD$6)","v":0},{"$f":"SUMIFS(FactorMatrix[[DOWNSTREAM]:[DOWNSTREAM]], FactorMatrix[[MODE]:[MODE]], $B20, FactorMatrix[[PHASE]:[PHASE]], $A$4, FactorMatrix[[GHGSOURCE]:[GHGSOURCE]], \"track mile\", FactorMatrix[[TYPE]:[TYPE]], AE$6)","v":0},{"$f":"SUMIFS(FactorMatrix[[DOWNSTREAM]:[DOWNSTREAM]], FactorMatrix[[MODE]:[MODE]], $B20, FactorMatrix[[PHASE]:[PHASE]], $A$4, FactorMatrix[[GHGSOURCE]:[GHGSOURCE]], \"station\", FactorMatrix[[TYPE]:[TYPE]], AF$6)","v":0},{"$f":"SUMIFS(FactorMatrix[[DOWNSTREAM]:[DOWNSTREAM]], FactorMatrix[[MODE]:[MODE]], $B20, FactorMatrix[[PHASE]:[PHASE]], $A$4, FactorMatrix[[GHGSOURCE]:[GHGSOURCE]], \"station\", FactorMatrix[[TYPE]:[TYPE]], AG$6)","v":0},{"$f":"SUMIFS(FactorMatrix[[DOWNSTREAM]:[DOWNSTREAM]], FactorMatrix[[MODE]:[MODE]], $B20, FactorMatrix[[PHASE]:[PHASE]], $A$4, FactorMatrix[[GHGSOURCE]:[GHGSOURCE]], \"station\", FactorMatrix[[TYPE]:[TYPE]], AH$6)","v":0},0,0,0]
[15,{"$f":"Construction!B22","v":0},{"$f":"Construction!C22","v":0},{"$f":"Construction!D22","v":0},{"$f":"Construction!E22","v":0},{"$f":"Construction!F22","v":0},{"$f":"Construction!G22","v":0},{"$f":"Construction!H22","v":0},{"$f":"Construction!I22","v":0},{"$f":"Construction!J22","v":0},{"$f":"SUMIFS(FactorMatrix[[UPSTREAMMATERIALS]:[UPSTREAMMATERIALS]], FactorMatrix[[MODE]:[MODE]], $B21, FactorMatrix[[PHASE]:[PHASE]], $A$4, FactorMatrix[[GHGSOURCE]:[GHGSOURCE]], \"track mile\", FactorMatrix[[TYPE]:[TYPE]], K$6, FactorMatrix[[STATE /REGION]:[STATE /REGION]], StateCalc)","v":0},{"$f":"SUMIFS(FactorMatrix[[UPSTREAMMATERIALS]:[UPSTREAMMATERIALS]], FactorMatrix[[MODE]:[MODE]], $B21, FactorMatrix[[PHASE]:[PHASE]], $A$4, FactorMatrix[[GHGSOURCE]:[GHGSOURCE]], \"track mile\", FactorMatrix[[TYPE]:[TYPE]], L$6)","v":0},{"$f":"SUMIFS(FactorMatrix[[UPSTREAMMATERIALS]:[UPSTREAMMATERIALS]], FactorMatrix[[MODE]:[MODE]], $B21, FactorMatrix[[PHASE]:[PHASE]], $A$4, FactorMatrix[[GHGSOURCE]:[GHGSOURCE]], \"track mile\", FactorMatrix[[TYPE]:[TYPE]], M$6)","v":0},{"$f":"SUMIFS(FactorMatrix[[UPSTREAMMATERIALS]:[UPSTREAMMATERIALS]], FactorMatrix[[MODE]:[MODE]], $B21, FactorMatrix[[PHASE]:[PHASE]], $A$4, FactorMatrix[[GHGSOURCE]:[GHGSOURCE]], \"track mile\", FactorMatrix[[TYPE]:[TYPE]], N$6)","v":0},{"$f":"SUMIFS(FactorMatrix[[UPSTREAMMATERIALS]:[UPSTREAMMATERIALS]], FactorMatrix[[MODE]:[MODE]], $B21, FactorMatrix[[PHASE]:[PHASE]], $A$4, FactorMatrix[[GHGSOURCE]:[GHGSOURCE]], \"track mile\", FactorMatrix[[TYPE]:[TYPE]], O$6)","v":0},{"$f":"SUMIFS(FactorMatrix[[UPSTREAMMATERIALS]:[UPSTREAMMATERIALS]], FactorMatrix[[MODE]:[MODE]], $B21, FactorMatrix[[PHASE]:[PHASE]], $A$4, FactorMatrix[[GHGSOURCE]:[GHGSOURCE]], \"station\", FactorMatrix[[TYPE]:[TYPE]], P$6)","v":0},{"$f":"SUMIFS(FactorMatrix[[UPSTREAMMATERIALS]:[UPSTREAMMATERIALS]], FactorMatrix[[MODE]:[MODE]], $B21, FactorMatrix[[PHASE]:[PHASE]], $A$4, FactorMatrix[[GHGSOURCE]:[GHGSOURCE]], \"station\", FactorMatrix[[TYPE]:[TYPE]], Q$6)","v":0},{"$f":"SUMIFS(FactorMatrix[[UPSTREAMMATERIALS]:[UPSTREAMMATERIALS]], FactorMatrix[[MODE]:[MODE]], $B21, FactorMatrix[[PHASE]:[PHASE]], $A$4, FactorMatrix[[GHGSOURCE]:[GHGSOURCE]], \"station\", FactorMatrix[[TYPE]:[TYPE]], R$6)","v":0},{"$f":"SUMIFS(FactorMatrix[[UPSTREAMTRANSPORT]:[UPSTREAMTRANSPORT]], FactorMatrix[[MODE]:[MODE]], $B21, FactorMatrix[[PHASE]:[PHASE]], $A$4, FactorMatrix[[GHGSOURCE]:[GHGSOURCE]], \"track mile\", FactorMatrix[[TYPE]:[TYPE]], S$6, FactorMatrix[[STATE /REGION]:[STATE /REGION]], StateCalc)","v":0},{"$f":"SUMIFS(FactorMatrix[[UPSTREAMTRANSPORT]:[UPSTREAMTRANSPORT]], FactorMatrix[[MODE]:[MODE]], $B21, FactorMatrix[[PHASE]:[PHASE]], $A$4, FactorMatrix[[GHGSOURCE]:[GHGSOURCE]], \"track mile\", FactorMatrix[[TYPE]:[TYPE]], T$6)","v":0},{"$f":"SUMIFS(FactorMatrix[[UPSTREAMTRANSPORT]:[UPSTREAMTRANSPORT]], FactorMatrix[[MODE]:[MODE]], $B21, FactorMatrix[[PHASE]:[PHASE]], $A$4, FactorMatrix[[GHGSOURCE]:[GHGSOURCE]], \"track mile\", FactorMatrix[[TYPE]:[TYPE]], U$6)","v":0},{"$f":"SUMIFS(FactorMatrix[[UPSTREAMTRANSPORT]:[UPSTREAMTRANSPORT]], FactorMatrix[[MODE]:[MODE]], $B21, FactorMatrix[[PHASE]:[PHASE]], $A$4, FactorMatrix[[GHGSOURCE]:[GHGSOURCE]], \"track mile\", FactorMatrix[[TYPE]:[TYPE]], V$6)","v":0},{"$f":"SUMIFS(FactorMatrix[[UPSTREAMTRANSPORT]:[UPSTREAMTRANSPORT]], FactorMatrix[[MODE]:[MODE]], $B21, FactorMatrix[[PHASE]:[PHASE]], $A$4, FactorMatrix[[GHGSOURCE]:[GHGSOURCE]], \"track mile\", FactorMatrix[[TYPE]:[TYPE]], W$6)","v":0},{"$f":"SUMIFS(FactorMatrix[[UPSTREAMTRANSPORT]:[UPSTREAMTRANSPORT]], FactorMatrix[[MODE]:[MODE]], $B21, FactorMatrix[[PHASE]:[PHASE]], $A$4, FactorMatrix[[GHGSOURCE]:[GHGSOURCE]], \"station\", FactorMatrix[[TYPE]:[TYPE]], X$6)","v":0},{"$f":"SUMIFS(FactorMatrix[[UPSTREAMTRANSPORT]:[UPSTREAMTRANSPORT]], FactorMatrix[[MODE]:[MODE]], $B21, FactorMatrix[[PHASE]:[PHASE]], $A$4, FactorMatrix[[GHGSOURCE]:[GHGSOURCE]], \"station\", FactorMatrix[[TYPE]:[TYPE]], Y$6)","v":0},{"$f":"SUMIFS(FactorMatrix[[UPSTREAMTRANSPORT]:[UPSTREAMTRANSPORT]], FactorMatrix[[MODE]:[MODE]], $B21, FactorMatrix[[PHASE]:[PHASE]], $A$4, FactorMatrix[[GHGSOURCE]:[GHGSOURCE]], \"station\", FactorMatrix[[TYPE]:[TYPE]], Z$6)","v":0},{"$f":"SUMIFS(FactorMatrix[[DOWNSTREAM]:[DOWNSTREAM]], FactorMatrix[[MODE]:[MODE]], $B21, FactorMatrix[[PHASE]:[PHASE]], $A$4, FactorMatrix[[GHGSOURCE]:[GHGSOURCE]], \"track mile\", FactorMatrix[[TYPE]:[TYPE]], AA$6, FactorMatrix[[STATE /REGION]:[STATE /REGION]], StateCalc)","v":0},{"$f":"SUMIFS(FactorMatrix[[DOWNSTREAM]:[DOWNSTREAM]], FactorMatrix[[MODE]:[MODE]], $B21, FactorMatrix[[PHASE]:[PHASE]], $A$4, FactorMatrix[[GHGSOURCE]:[GHGSOURCE]], \"track mile\", FactorMatrix[[TYPE]:[TYPE]], AB$6)","v":0},{"$f":"SUMIFS(FactorMatrix[[DOWNSTREAM]:[DOWNSTREAM]], FactorMatrix[[MODE]:[MODE]], $B21, FactorMatrix[[PHASE]:[PHASE]], $A$4, FactorMatrix[[GHGSOURCE]:[GHGSOURCE]], \"track mile\", FactorMatrix[[TYPE]:[TYPE]], AC$6)","v":0},{"$f":"SUMIFS(FactorMatrix[[DOWNSTREAM]:[DOWNSTREAM]], FactorMatrix[[MODE]:[MODE]], $B21, FactorMatrix[[PHASE]:[PHASE]], $A$4, FactorMatrix[[GHGSOURCE]:[GHGSOURCE]], \"track mile\", FactorMatrix[[TYPE]:[TYPE]], AD$6)","v":0},{"$f":"SUMIFS(FactorMatrix[[DOWNSTREAM]:[DOWNSTREAM]], FactorMatrix[[MODE]:[MODE]], $B21, FactorMatrix[[PHASE]:[PHASE]], $A$4, FactorMatrix[[GHGSOURCE]:[GHGSOURCE]], \"track mile\", FactorMatrix[[TYPE]:[TYPE]], AE$6)","v":0},{"$f":"SUMIFS(FactorMatrix[[DOWNSTREAM]:[DOWNSTREAM]], FactorMatrix[[MODE]:[MODE]], $B21, FactorMatrix[[PHASE]:[PHASE]], $A$4, FactorMatrix[[GHGSOURCE]:[GHGSOURCE]], \"station\", FactorMatrix[[TYPE]:[TYPE]], AF$6)","v":0},{"$f":"SUMIFS(FactorMatrix[[DOWNSTREAM]:[DOWNSTREAM]], FactorMatrix[[MODE]:[MODE]], $B21, FactorMatrix[[PHASE]:[PHASE]], $A$4, FactorMatrix[[GHGSOURCE]:[GHGSOURCE]], \"station\", FactorMatrix[[TYPE]:[TYPE]], AG$6)","v":0},{"$f":"SUMIFS(FactorMatrix[[DOWNSTREAM]:[DOWNSTREAM]], FactorMatrix[[MODE]:[MODE]], $B21, FactorMatrix[[PHASE]:[PHASE]], $A$4, FactorMatrix[[GHGSOURCE]:[GHGSOURCE]], \"station\", FactorMatrix[[TYPE]:[TYPE]], AH$6)","v":0},0,0,0]
[16,{"$f":"Construction!B23","v":0},{"$f":"Construction!C23","v":0},{"$f":"Construction!D23","v":0},{"$f":"Construction!E23","v":0},{"$f":"Construction!F23","v":0},{"$f":"Construction!G23","v":0},{"$f":"Construction!H23","v":0},{"$f":"Construction!I23","v":0},{"$f":"Construction!J23","v":0},{"$f":"SUMIFS(FactorMatrix[[UPSTREAMMATERIALS]:[UPSTREAMMATERIALS]], FactorMatrix[[MODE]:[MODE]], $B22, FactorMatrix[[PHASE]:[PHASE]], $A$4, FactorMatrix[[GHGSOURCE]:[GHGSOURCE]], \"track mile\", FactorMatrix[[TYPE]:[TYPE]], K$6, FactorMatrix[[STATE /REGION]:[STATE /REGION]], StateCalc)","v":0},{"$f":"SUMIFS(FactorMatrix[[UPSTREAMMATERIALS]:[UPSTREAMMATERIALS]], FactorMatrix[[MODE]:[MODE]], $B22, FactorMatrix[[PHASE]:[PHASE]], $A$4, FactorMatrix[[GHGSOURCE]:[GHGSOURCE]], \"track mile\", FactorMatrix[[TYPE]:[TYPE]], L$6)","v":0},{"$f":"SUMIFS(FactorMatrix[[UPSTREAMMATERIALS]:[UPSTREAMMATERIALS]], FactorMatrix[[MODE]:[MODE]], $B22, FactorMatrix[[PHASE]:[PHASE]], $A$4, FactorMatrix[[GHGSOURCE]:[GHGSOURCE]], \"track mile\", FactorMatrix[[TYPE]:[TYPE]], M$6)","v":0},{"$f":"SUMIFS(FactorMatrix[[UPSTREAMMATERIALS]:[UPSTREAMMATERIALS]], FactorMatrix[[MODE]:[MODE]], $B22, FactorMatrix[[PHASE]:[PHASE]], $A$4, FactorMatrix[[GHGSOURCE]:[GHGSOURCE]], \"track mile\", FactorMatrix[[TYPE]:[TYPE]], N$6)","v":0},{"$f":"SUMIFS(FactorMatrix[[UPSTREAMMATERIALS]:[UPSTREAMMATERIALS]], FactorMatrix[[MODE]:[MODE]], $B22, FactorMatrix[[PHASE]:[PHASE]], $A$4, FactorMatrix[[GHGSOURCE]:[GHGSOURCE]], \"track mile\", FactorMatrix[[TYPE]:[TYPE]], O$6)","v":0},{"$f":"SUMIFS(FactorMatrix[[UPSTREAMMATERIALS]:[UPSTREAMMATERIALS]], FactorMatrix[[MODE]:[MODE]], $B22, FactorMatrix[[PHASE]:[PHASE]], $A$4, FactorMatrix[[GHGSOURCE]:[GHGSOURCE]], \"station\", FactorMatrix[[TYPE]:[TYPE]], P$6)","v":0},{"$f":"SUMIFS(FactorMatrix[[UPSTREAMMATERIALS]:[UPSTREAMMATERIALS]], FactorMatrix[[MODE]:[MODE]], $B22, FactorMatrix[[PHASE]:[PHASE]], $A$4, FactorMatrix[[GHGSOURCE]:[GHGSOURCE]], \"station\", FactorMatrix[[TYPE]:[TYPE]], Q$6)","v":0},{"$f":"SUMIFS(FactorMatrix[[UPSTREAMMATERIALS]:[UPSTREAMMATERIALS]], FactorMatrix[[MODE]:[MODE]], $B22, FactorMatrix[[PHASE]:[PHASE]], $A$4, FactorMatrix[[GHGSOURCE]:[GHGSOURCE]], \"station\", FactorMatrix[[TYPE]:[TYPE]], R$6)","v":0},{"$f":"SUMIFS(FactorMatrix[[UPSTREAMTRANSPORT]:[UPSTREAMTRANSPORT]], FactorMatrix[[MODE]:[MODE]], $B22, FactorMatrix[[PHASE]:[PHASE]], $A$4, FactorMatrix[[GHGSOURCE]:[GHGSOURCE]], \"track mile\", FactorMatrix[[TYPE]:[TYPE]], S$6, FactorMatrix[[STATE /REGION]:[STATE /REGION]], StateCalc)","v":0},{"$f":"SUMIFS(FactorMatrix[[UPSTREAMTRANSPORT]:[UPSTREAMTRANSPORT]], FactorMatrix[[MODE]:[MODE]], $B22, FactorMatrix[[PHASE]:[PHASE]], $A$4, FactorMatrix[[GHGSOURCE]:[GHGSOURCE]], \"track mile\", FactorMatrix[[TYPE]:[TYPE]], T$6)","v":0},{"$f":"SUMIFS(FactorMatrix[[UPSTREAMTRANSPORT]:[UPSTREAMTRANSPORT]], FactorMatrix[[MODE]:[MODE]], $B22, FactorMatrix[[PHASE]:[PHASE]], $A$4, FactorMatrix[[GHGSOURCE]:[GHGSOURCE]], \"track mile\", FactorMatrix[[TYPE]:[TYPE]], U$6)","v":0},{"$f":"SUMIFS(FactorMatrix[[UPSTREAMTRANSPORT]:[UPSTREAMTRANSPORT]], FactorMatrix[[MODE]:[MODE]], $B22, FactorMatrix[[PHASE]:[PHASE]], $A$4, FactorMatrix[[GHGSOURCE]:[GHGSOURCE]], \"track mile\", FactorMatrix[[TYPE]:[TYPE]], V$6)","v":0},{"$f":"SUMIFS(FactorMatrix[[UPSTREAMTRANSPORT]:[UPSTREAMTRANSPORT]], FactorMatrix[[MODE]:[MODE]], $B22, FactorMatrix[[PHASE]:[PHASE]], $A$4, FactorMatrix[[GHGSOURCE]:[GHGSOURCE]], \"track mile\", FactorMatrix[[TYPE]:[TYPE]], W$6)","v":0},{"$f":"SUMIFS(FactorMatrix[[UPSTREAMTRANSPORT]:[UPSTREAMTRANSPORT]], FactorMatrix[[MODE]:[MODE]], $B22, FactorMatrix[[PHASE]:[PHASE]], $A$4, FactorMatrix[[GHGSOURCE]:[GHGSOURCE]], \"station\", FactorMatrix[[TYPE]:[TYPE]], X$6)","v":0},{"$f":"SUMIFS(FactorMatrix[[UPSTREAMTRANSPORT]:[UPSTREAMTRANSPORT]], FactorMatrix[[MODE]:[MODE]], $B22, FactorMatrix[[PHASE]:[PHASE]], $A$4, FactorMatrix[[GHGSOURCE]:[GHGSOURCE]], \"station\", FactorMatrix[[TYPE]:[TYPE]], Y$6)","v":0},{"$f":"SUMIFS(FactorMatrix[[UPSTREAMTRANSPORT]:[UPSTREAMTRANSPORT]], FactorMatrix[[MODE]:[MODE]], $B22, FactorMatrix[[PHASE]:[PHASE]], $A$4, FactorMatrix[[GHGSOURCE]:[GHGSOURCE]], \"station\", FactorMatrix[[TYPE]:[TYPE]], Z$6)","v":0},{"$f":"SUMIFS(FactorMatrix[[DOWNSTREAM]:[DOWNSTREAM]], FactorMatrix[[MODE]:[MODE]], $B22, FactorMatrix[[PHASE]:[PHASE]], $A$4, FactorMatrix[[GHGSOURCE]:[GHGSOURCE]], \"track mile\", FactorMatrix[[TYPE]:[TYPE]], AA$6, FactorMatrix[[STATE /REGION]:[STATE /REGION]], StateCalc)","v":0},{"$f":"SUMIFS(FactorMatrix[[DOWNSTREAM]:[DOWNSTREAM]], FactorMatrix[[MODE]:[MODE]], $B22, FactorMatrix[[PHASE]:[PHASE]], $A$4, FactorMatrix[[GHGSOURCE]:[GHGSOURCE]], \"track mile\", FactorMatrix[[TYPE]:[TYPE]], AB$6)","v":0},{"$f":"SUMIFS(FactorMatrix[[DOWNSTREAM]:[DOWNSTREAM]], FactorMatrix[[MODE]:[MODE]], $B22, FactorMatrix[[PHASE]:[PHASE]], $A$4, FactorMatrix[[GHGSOURCE]:[GHGSOURCE]], \"track mile\", FactorMatrix[[TYPE]:[TYPE]], AC$6)","v":0},{"$f":"SUMIFS(FactorMatrix[[DOWNSTREAM]:[DOWNSTREAM]], FactorMatrix[[MODE]:[MODE]], $B22, FactorMatrix[[PHASE]:[PHASE]], $A$4, FactorMatrix[[GHGSOURCE]:[GHGSOURCE]], \"track mile\", FactorMatrix[[TYPE]:[TYPE]], AD$6)","v":0},{"$f":"SUMIFS(FactorMatrix[[DOWNSTREAM]:[DOWNSTREAM]], FactorMatrix[[MODE]:[MODE]], $B22, FactorMatrix[[PHASE]:[PHASE]], $A$4, FactorMatrix[[GHGSOURCE]:[GHGSOURCE]], \"track mile\", FactorMatrix[[TYPE]:[TYPE]], AE$6)","v":0},{"$f":"SUMIFS(FactorMatrix[[DOWNSTREAM]:[DOWNSTREAM]], FactorMatrix[[MODE]:[MODE]], $B22, FactorMatrix[[PHASE]:[PHASE]], $A$4, FactorMatrix[[GHGSOURCE]:[GHGSOURCE]], \"station\", FactorMatrix[[TYPE]:[TYPE]], AF$6)","v":0},{"$f":"SUMIFS(FactorMatrix[[DOWNSTREAM]:[DOWNSTREAM]], FactorMatrix[[MODE]:[MODE]], $B22, FactorMatrix[[PHASE]:[PHASE]], $A$4, FactorMatrix[[GHGSOURCE]:[GHGSOURCE]], \"station\", FactorMatrix[[TYPE]:[TYPE]], AG$6)","v":0},{"$f":"SUMIFS(FactorMatrix[[DOWNSTREAM]:[DOWNSTREAM]], FactorMatrix[[MODE]:[MODE]], $B22, FactorMatrix[[PHASE]:[PHASE]], $A$4, FactorMatrix[[GHGSOURCE]:[GHGSOURCE]], \"station\", FactorMatrix[[TYPE]:[TYPE]], AH$6)","v":0},0,0,0]
[17,{"$f":"Construction!B24","v":0},{"$f":"Construction!C24","v":0},{"$f":"Construction!D24","v":0},{"$f":"Construction!E24","v":0},{"$f":"Construction!F24","v":0},{"$f":"Construction!G24","v":0},{"$f":"Construction!H24","v":0},{"$f":"Construction!I24","v":0},{"$f":"Construction!J24","v":0},{"$f":"SUMIFS(FactorMatrix[[UPSTREAMMATERIALS]:[UPSTREAMMATERIALS]], FactorMatrix[[MODE]:[MODE]], $B23, FactorMatrix[[PHASE]:[PHASE]], $A$4, FactorMatrix[[GHGSOURCE]:[GHGSOURCE]], \"track mile\", FactorMatrix[[TYPE]:[TYPE]], K$6, FactorMatrix[[STATE /REGION]:[STATE /REGION]], StateCalc)","v":0},{"$f":"SUMIFS(FactorMatrix[[UPSTREAMMATERIALS]:[UPSTREAMMATERIALS]], FactorMatrix[[MODE]:[MODE]], $B23, FactorMatrix[[PHASE]:[PHASE]], $A$4, FactorMatrix[[GHGSOURCE]:[GHGSOURCE]], \"track mile\", FactorMatrix[[TYPE]:[TYPE]], L$6)","v":0},{"$f":"SUMIFS(FactorMatrix[[UPSTREAMMATERIALS]:[UPSTREAMMATERIALS]], FactorMatrix[[MODE]:[MODE]], $B23, FactorMatrix[[PHASE]:[PHASE]], $A$4, FactorMatrix[[GHGSOURCE]:[GHGSOURCE]], \"track mile\", FactorMatrix[[TYPE]:[TYPE]], M$6)","v":0},{"$f":"SUMIFS(FactorMatrix[[UPSTREAMMATERIALS]:[UPSTREAMMATERIALS]], FactorMatrix[[MODE]:[MODE]], $B23, FactorMatrix[[PHASE]:[PHASE]], $A$4, FactorMatrix[[GHGSOURCE]:[GHGSOURCE]], \"track mile\", FactorMatrix[[TYPE]:[TYPE]], N$6)","v":0},{"$f":"SUMIFS(FactorMatrix[[UPSTREAMMATERIALS]:[UPSTREAMMATERIALS]], FactorMatrix[[MODE]:[MODE]], $B23, FactorMatrix[[PHASE]:[PHASE]], $A$4, FactorMatrix[[GHGSOURCE]:[GHGSOURCE]], \"track mile\", FactorMatrix[[TYPE]:[TYPE]], O$6)","v":0},{"$f":"SUMIFS(FactorMatrix[[UPSTREAMMATERIALS]:[UPSTREAMMATERIALS]], FactorMatrix[[MODE]:[MODE]], $B23, FactorMatrix[[PHASE]:[PHASE]], $A$4, FactorMatrix[[GHGSOURCE]:[GHGSOURCE]], \"station\", FactorMatrix[[TYPE]:[TYPE]], P$6)","v":0},{"$f":"SUMIFS(FactorMatrix[[UPSTREAMMATERIALS]:[UPSTREAMMATERIALS]], FactorMatrix[[MODE]:[MODE]], $B23, FactorMatrix[[PHASE]:[PHASE]], $A$4, FactorMatrix[[GHGSOURCE]:[GHGSOURCE]], \"station\", FactorMatrix[[TYPE]:[TYPE]], Q$6)","v":0},{"$f":"SUMIFS(FactorMatrix[[UPSTREAMMATERIALS]:[UPSTREAMMATERIALS]], FactorMatrix[[MODE]:[MODE]], $B23, FactorMatrix[[PHASE]:[PHASE]], $A$4, FactorMatrix[[GHGSOURCE]:[GHGSOURCE]], \"station\", FactorMatrix[[TYPE]:[TYPE]], R$6)","v":0},{"$f":"SUMIFS(FactorMatrix[[UPSTREAMTRANSPORT]:[UPSTREAMTRANSPORT]], FactorMatrix[[MODE]:[MODE]], $B23, FactorMatrix[[PHASE]:[PHASE]], $A$4, FactorMatrix[[GHGSOURCE]:[GHGSOURCE]], \"track mile\", FactorMatrix[[TYPE]:[TYPE]], S$6, FactorMatrix[[STATE /REGION]:[STATE /REGION]], StateCalc)","v":0},{"$f":"SUMIFS(FactorMatrix[[UPSTREAMTRANSPORT]:[UPSTREAMTRANSPORT]], FactorMatrix[[MODE]:[MODE]], $B23, FactorMatrix[[PHASE]:[PHASE]], $A$4, FactorMatrix[[GHGSOURCE]:[GHGSOURCE]], \"track mile\", FactorMatrix[[TYPE]:[TYPE]], T$6)","v":0},{"$f":"SUMIFS(FactorMatrix[[UPSTREAMTRANSPORT]:[UPSTREAMTRANSPORT]], FactorMatrix[[MODE]:[MODE]], $B23, FactorMatrix[[PHASE]:[PHASE]], $A$4, FactorMatrix[[GHGSOURCE]:[GHGSOURCE]], \"track mile\", FactorMatrix[[TYPE]:[TYPE]], U$6)","v":0},{"$f":"SUMIFS(FactorMatrix[[UPSTREAMTRANSPORT]:[UPSTREAMTRANSPORT]], FactorMatrix[[MODE]:[MODE]], $B23, FactorMatrix[[PHASE]:[PHASE]], $A$4, FactorMatrix[[GHGSOURCE]:[GHGSOURCE]], \"track mile\", FactorMatrix[[TYPE]:[TYPE]], V$6)","v":0},{"$f":"SUMIFS(FactorMatrix[[UPSTREAMTRANSPORT]:[UPSTREAMTRANSPORT]], FactorMatrix[[MODE]:[MODE]], $B23, FactorMatrix[[PHASE]:[PHASE]], $A$4, FactorMatrix[[GHGSOURCE]:[GHGSOURCE]], \"track mile\", FactorMatrix[[TYPE]:[TYPE]], W$6)","v":0},{"$f":"SUMIFS(FactorMatrix[[UPSTREAMTRANSPORT]:[UPSTREAMTRANSPORT]], FactorMatrix[[MODE]:[MODE]], $B23, FactorMatrix[[PHASE]:[PHASE]], $A$4, FactorMatrix[[GHGSOURCE]:[GHGSOURCE]], \"station\", FactorMatrix[[TYPE]:[TYPE]], X$6)","v":0},{"$f":"SUMIFS(FactorMatrix[[UPSTREAMTRANSPORT]:[UPSTREAMTRANSPORT]], FactorMatrix[[MODE]:[MODE]], $B23, FactorMatrix[[PHASE]:[PHASE]], $A$4, FactorMatrix[[GHGSOURCE]:[GHGSOURCE]], \"station\", FactorMatrix[[TYPE]:[TYPE]], Y$6)","v":0},{"$f":"SUMIFS(FactorMatrix[[UPSTREAMTRANSPORT]:[UPSTREAMTRANSPORT]], FactorMatrix[[MODE]:[MODE]], $B23, FactorMatrix[[PHASE]:[PHASE]], $A$4, FactorMatrix[[GHGSOURCE]:[GHGSOURCE]], \"station\", FactorMatrix[[TYPE]:[TYPE]], Z$6)","v":0},{"$f":"SUMIFS(FactorMatrix[[DOWNSTREAM]:[DOWNSTREAM]], FactorMatrix[[MODE]:[MODE]], $B23, FactorMatrix[[PHASE]:[PHASE]], $A$4, FactorMatrix[[GHGSOURCE]:[GHGSOURCE]], \"track mile\", FactorMatrix[[TYPE]:[TYPE]], AA$6, FactorMatrix[[STATE /REGION]:[STATE /REGION]], StateCalc)","v":0},{"$f":"SUMIFS(FactorMatrix[[DOWNSTREAM]:[DOWNSTREAM]], FactorMatrix[[MODE]:[MODE]], $B23, FactorMatrix[[PHASE]:[PHASE]], $A$4, FactorMatrix[[GHGSOURCE]:[GHGSOURCE]], \"track mile\", FactorMatrix[[TYPE]:[TYPE]], AB$6)","v":0},{"$f":"SUMIFS(FactorMatrix[[DOWNSTREAM]:[DOWNSTREAM]], FactorMatrix[[MODE]:[MODE]], $B23, FactorMatrix[[PHASE]:[PHASE]], $A$4, FactorMatrix[[GHGSOURCE]:[GHGSOURCE]], \"track mile\", FactorMatrix[[TYPE]:[TYPE]], AC$6)","v":0},{"$f":"SUMIFS(FactorMatrix[[DOWNSTREAM]:[DOWNSTREAM]], FactorMatrix[[MODE]:[MODE]], $B23, FactorMatrix[[PHASE]:[PHASE]], $A$4, FactorMatrix[[GHGSOURCE]:[GHGSOURCE]], \"track mile\", FactorMatrix[[TYPE]:[TYPE]], AD$6)","v":0},{"$f":"SUMIFS(FactorMatrix[[DOWNSTREAM]:[DOWNSTREAM]], FactorMatrix[[MODE]:[MODE]], $B23, FactorMatrix[[PHASE]:[PHASE]], $A$4, FactorMatrix[[GHGSOURCE]:[GHGSOURCE]], \"track mile\", FactorMatrix[[TYPE]:[TYPE]], AE$6)","v":0},{"$f":"SUMIFS(FactorMatrix[[DOWNSTREAM]:[DOWNSTREAM]], FactorMatrix[[MODE]:[MODE]], $B23, FactorMatrix[[PHASE]:[PHASE]], $A$4, FactorMatrix[[GHGSOURCE]:[GHGSOURCE]], \"station\", FactorMatrix[[TYPE]:[TYPE]], AF$6)","v":0},{"$f":"SUMIFS(FactorMatrix[[DOWNSTREAM]:[DOWNSTREAM]], FactorMatrix[[MODE]:[MODE]], $B23, FactorMatrix[[PHASE]:[PHASE]], $A$4, FactorMatrix[[GHGSOURCE]:[GHGSOURCE]], \"station\", FactorMatrix[[TYPE]:[TYPE]], AG$6)","v":0},{"$f":"SUMIFS(FactorMatrix[[DOWNSTREAM]:[DOWNSTREAM]], FactorMatrix[[MODE]:[MODE]], $B23, FactorMatrix[[PHASE]:[PHASE]], $A$4, FactorMatrix[[GHGSOURCE]:[GHGSOURCE]], \"station\", FactorMatrix[[TYPE]:[TYPE]], AH$6)","v":0},0,0,0]
[18,{"$f":"Construction!B25","v":0},{"$f":"Construction!C25","v":0},{"$f":"Construction!D25","v":0},{"$f":"Construction!E25","v":0},{"$f":"Construction!F25","v":0},{"$f":"Construction!G25","v":0},{"$f":"Construction!H25","v":0},{"$f":"Construction!I25","v":0},{"$f":"Construction!J25","v":0},{"$f":"SUMIFS(FactorMatrix[[UPSTREAMMATERIALS]:[UPSTREAMMATERIALS]], FactorMatrix[[MODE]:[MODE]], $B24, FactorMatrix[[PHASE]:[PHASE]], $A$4, FactorMatrix[[GHGSOURCE]:[GHGSOURCE]], \"track mile\", FactorMatrix[[TYPE]:[TYPE]], K$6, FactorMatrix[[STATE /REGION]:[STATE /REGION]], StateCalc)","v":0},{"$f":"SUMIFS(FactorMatrix[[UPSTREAMMATERIALS]:[UPSTREAMMATERIALS]], FactorMatrix[[MODE]:[MODE]], $B24, FactorMatrix[[PHASE]:[PHASE]], $A$4, FactorMatrix[[GHGSOURCE]:[GHGSOURCE]], \"track mile\", FactorMatrix[[TYPE]:[TYPE]], L$6)","v":0},{"$f":"SUMIFS(FactorMatrix[[UPSTREAMMATERIALS]:[UPSTREAMMATERIALS]], FactorMatrix[[MODE]:[MODE]], $B24, FactorMatrix[[PHASE]:[PHASE]], $A$4, FactorMatrix[[GHGSOURCE]:[GHGSOURCE]], \"track mile\", FactorMatrix[[TYPE]:[TYPE]], M$6)","v":0},{"$f":"SUMIFS(FactorMatrix[[UPSTREAMMATERIALS]:[UPSTREAMMATERIALS]], FactorMatrix[[MODE]:[MODE]], $B24, FactorMatrix[[PHASE]:[PHASE]], $A$4, FactorMatrix[[GHGSOURCE]:[GHGSOURCE]], \"track mile\", FactorMatrix[[TYPE]:[TYPE]], N$6)","v":0},{"$f":"SUMIFS(FactorMatrix[[UPSTREAMMATERIALS]:[UPSTREAMMATERIALS]], FactorMatrix[[MODE]:[MODE]], $B24, FactorMatrix[[PHASE]:[PHASE]], $A$4, FactorMatrix[[GHGSOURCE]:[GHGSOURCE]], \"track mile\", FactorMatrix[[TYPE]:[TYPE]], O$6)","v":0},{"$f":"SUMIFS(FactorMatrix[[UPSTREAMMATERIALS]:[UPSTREAMMATERIALS]], FactorMatrix[[MODE]:[MODE]], $B24, FactorMatrix[[PHASE]:[PHASE]], $A$4, FactorMatrix[[GHGSOURCE]:[GHGSOURCE]], \"station\", FactorMatrix[[TYPE]:[TYPE]], P$6)","v":0},{"$f":"SUMIFS(FactorMatrix[[UPSTREAMMATERIALS]:[UPSTREAMMATERIALS]], FactorMatrix[[MODE]:[MODE]], $B24, FactorMatrix[[PHASE]:[PHASE]], $A$4, FactorMatrix[[GHGSOURCE]:[GHGSOURCE]], \"station\", FactorMatrix[[TYPE]:[TYPE]], Q$6)","v":0},{"$f":"SUMIFS(FactorMatrix[[UPSTREAMMATERIALS]:[UPSTREAMMATERIALS]], FactorMatrix[[MODE]:[MODE]], $B24, FactorMatrix[[PHASE]:[PHASE]], $A$4, FactorMatrix[[GHGSOURCE]:[GHGSOURCE]], \"station\", FactorMatrix[[TYPE]:[TYPE]], R$6)","v":0},{"$f":"SUMIFS(FactorMatrix[[UPSTREAMTRANSPORT]:[UPSTREAMTRANSPORT]], FactorMatrix[[MODE]:[MODE]], $B24, FactorMatrix[[PHASE]:[PHASE]], $A$4, FactorMatrix[[GHGSOURCE]:[GHGSOURCE]], \"track mile\", FactorMatrix[[TYPE]:[TYPE]], S$6, FactorMatrix[[STATE /REGION]:[STATE /REGION]], StateCalc)","v":0},{"$f":"SUMIFS(FactorMatrix[[UPSTREAMTRANSPORT]:[UPSTREAMTRANSPORT]], FactorMatrix[[MODE]:[MODE]], $B24, FactorMatrix[[PHASE]:[PHASE]], $A$4, FactorMatrix[[GHGSOURCE]:[GHGSOURCE]], \"track mile\", FactorMatrix[[TYPE]:[TYPE]], T$6)","v":0},{"$f":"SUMIFS(FactorMatrix[[UPSTREAMTRANSPORT]:[UPSTREAMTRANSPORT]], FactorMatrix[[MODE]:[MODE]], $B24, FactorMatrix[[PHASE]:[PHASE]], $A$4, FactorMatrix[[GHGSOURCE]:[GHGSOURCE]], \"track mile\", FactorMatrix[[TYPE]:[TYPE]], U$6)","v":0},{"$f":"SUMIFS(FactorMatrix[[UPSTREAMTRANSPORT]:[UPSTREAMTRANSPORT]], FactorMatrix[[MODE]:[MODE]], $B24, FactorMatrix[[PHASE]:[PHASE]], $A$4, FactorMatrix[[GHGSOURCE]:[GHGSOURCE]], \"track mile\", FactorMatrix[[TYPE]:[TYPE]], V$6)","v":0},{"$f":"SUMIFS(FactorMatrix[[UPSTREAMTRANSPORT]:[UPSTREAMTRANSPORT]], FactorMatrix[[MODE]:[MODE]], $B24, FactorMatrix[[PHASE]:[PHASE]], $A$4, FactorMatrix[[GHGSOURCE]:[GHGSOURCE]], \"track mile\", FactorMatrix[[TYPE]:[TYPE]], W$6)","v":0},{"$f":"SUMIFS(FactorMatrix[[UPSTREAMTRANSPORT]:[UPSTREAMTRANSPORT]], FactorMatrix[[MODE]:[MODE]], $B24, FactorMatrix[[PHASE]:[PHASE]], $A$4, FactorMatrix[[GHGSOURCE]:[GHGSOURCE]], \"station\", FactorMatrix[[TYPE]:[TYPE]], X$6)","v":0},{"$f":"SUMIFS(FactorMatrix[[UPSTREAMTRANSPORT]:[UPSTREAMTRANSPORT]], FactorMatrix[[MODE]:[MODE]], $B24, FactorMatrix[[PHASE]:[PHASE]], $A$4, FactorMatrix[[GHGSOURCE]:[GHGSOURCE]], \"station\", FactorMatrix[[TYPE]:[TYPE]], Y$6)","v":0},{"$f":"SUMIFS(FactorMatrix[[UPSTREAMTRANSPORT]:[UPSTREAMTRANSPORT]], FactorMatrix[[MODE]:[MODE]], $B24, FactorMatrix[[PHASE]:[PHASE]], $A$4, FactorMatrix[[GHGSOURCE]:[GHGSOURCE]], \"station\", FactorMatrix[[TYPE]:[TYPE]], Z$6)","v":0},{"$f":"SUMIFS(FactorMatrix[[DOWNSTREAM]:[DOWNSTREAM]], FactorMatrix[[MODE]:[MODE]], $B24, FactorMatrix[[PHASE]:[PHASE]], $A$4, FactorMatrix[[GHGSOURCE]:[GHGSOURCE]], \"track mile\", FactorMatrix[[TYPE]:[TYPE]], AA$6, FactorMatrix[[STATE /REGION]:[STATE /REGION]], StateCalc)","v":0},{"$f":"SUMIFS(FactorMatrix[[DOWNSTREAM]:[DOWNSTREAM]], FactorMatrix[[MODE]:[MODE]], $B24, FactorMatrix[[PHASE]:[PHASE]], $A$4, FactorMatrix[[GHGSOURCE]:[GHGSOURCE]], \"track mile\", FactorMatrix[[TYPE]:[TYPE]], AB$6)","v":0},{"$f":"SUMIFS(FactorMatrix[[DOWNSTREAM]:[DOWNSTREAM]], FactorMatrix[[MODE]:[MODE]], $B24, FactorMatrix[[PHASE]:[PHASE]], $A$4, FactorMatrix[[GHGSOURCE]:[GHGSOURCE]], \"track mile\", FactorMatrix[[TYPE]:[TYPE]], AC$6)","v":0},{"$f":"SUMIFS(FactorMatrix[[DOWNSTREAM]:[DOWNSTREAM]], FactorMatrix[[MODE]:[MODE]], $B24, FactorMatrix[[PHASE]:[PHASE]], $A$4, FactorMatrix[[GHGSOURCE]:[GHGSOURCE]], \"track mile\", FactorMatrix[[TYPE]:[TYPE]], AD$6)","v":0},{"$f":"SUMIFS(FactorMatrix[[DOWNSTREAM]:[DOWNSTREAM]], FactorMatrix[[MODE]:[MODE]], $B24, FactorMatrix[[PHASE]:[PHASE]], $A$4, FactorMatrix[[GHGSOURCE]:[GHGSOURCE]], \"track mile\", FactorMatrix[[TYPE]:[TYPE]], AE$6)","v":0},{"$f":"SUMIFS(FactorMatrix[[DOWNSTREAM]:[DOWNSTREAM]], FactorMatrix[[MODE]:[MODE]], $B24, FactorMatrix[[PHASE]:[PHASE]], $A$4, FactorMatrix[[GHGSOURCE]:[GHGSOURCE]], \"station\", FactorMatrix[[TYPE]:[TYPE]], AF$6)","v":0},{"$f":"SUMIFS(FactorMatrix[[DOWNSTREAM]:[DOWNSTREAM]], FactorMatrix[[MODE]:[MODE]], $B24, FactorMatrix[[PHASE]:[PHASE]], $A$4, FactorMatrix[[GHGSOURCE]:[GHGSOURCE]], \"station\", FactorMatrix[[TYPE]:[TYPE]], AG$6)","v":0},{"$f":"SUMIFS(FactorMatrix[[DOWNSTREAM]:[DOWNSTREAM]], FactorMatrix[[MODE]:[MODE]], $B24, FactorMatrix[[PHASE]:[PHASE]], $A$4, FactorMatrix[[GHGSOURCE]:[GHGSOURCE]], \"station\", FactorMatrix[[TYPE]:[TYPE]], AH$6)","v":0},0,0,0]
[19,{"$f":"Construction!B26","v":0},{"$f":"Construction!C26","v":0},{"$f":"Construction!D26","v":0},{"$f":"Construction!E26","v":0},{"$f":"Construction!F26","v":0},{"$f":"Construction!G26","v":0},{"$f":"Construction!H26","v":0},{"$f":"Construction!I26","v":0},{"$f":"Construction!J26","v":0},{"$f":"SUMIFS(FactorMatrix[[UPSTREAMMATERIALS]:[UPSTREAMMATERIALS]], FactorMatrix[[MODE]:[MODE]], $B25, FactorMatrix[[PHASE]:[PHASE]], $A$4, FactorMatrix[[GHGSOURCE]:[GHGSOURCE]], \"track mile\", FactorMatrix[[TYPE]:[TYPE]], K$6, FactorMatrix[[STATE /REGION]:[STATE /REGION]], StateCalc)","v":0},{"$f":"SUMIFS(FactorMatrix[[UPSTREAMMATERIALS]:[UPSTREAMMATERIALS]], FactorMatrix[[MODE]:[MODE]], $B25, FactorMatrix[[PHASE]:[PHASE]], $A$4, FactorMatrix[[GHGSOURCE]:[GHGSOURCE]], \"track mile\", FactorMatrix[[TYPE]:[TYPE]], L$6)","v":0},{"$f":"SUMIFS(FactorMatrix[[UPSTREAMMATERIALS]:[UPSTREAMMATERIALS]], FactorMatrix[[MODE]:[MODE]], $B25, FactorMatrix[[PHASE]:[PHASE]], $A$4, FactorMatrix[[GHGSOURCE]:[GHGSOURCE]], \"track mile\", FactorMatrix[[TYPE]:[TYPE]], M$6)","v":0},{"$f":"SUMIFS(FactorMatrix[[UPSTREAMMATERIALS]:[UPSTREAMMATERIALS]], FactorMatrix[[MODE]:[MODE]], $B25, FactorMatrix[[PHASE]:[PHASE]], $A$4, FactorMatrix[[GHGSOURCE]:[GHGSOURCE]], \"track mile\", FactorMatrix[[TYPE]:[TYPE]], N$6)","v":0},{"$f":"SUMIFS(FactorMatrix[[UPSTREAMMATERIALS]:[UPSTREAMMATERIALS]], FactorMatrix[[MODE]:[MODE]], $B25, FactorMatrix[[PHASE]:[PHASE]], $A$4, FactorMatrix[[GHGSOURCE]:[GHGSOURCE]], \"track mile\", FactorMatrix[[TYPE]:[TYPE]], O$6)","v":0},{"$f":"SUMIFS(FactorMatrix[[UPSTREAMMATERIALS]:[UPSTREAMMATERIALS]], FactorMatrix[[MODE]:[MODE]], $B25, FactorMatrix[[PHASE]:[PHASE]], $A$4, FactorMatrix[[GHGSOURCE]:[GHGSOURCE]], \"station\", FactorMatrix[[TYPE]:[TYPE]], P$6)","v":0},{"$f":"SUMIFS(FactorMatrix[[UPSTREAMMATERIALS]:[UPSTREAMMATERIALS]], FactorMatrix[[MODE]:[MODE]], $B25, FactorMatrix[[PHASE]:[PHASE]], $A$4, FactorMatrix[[GHGSOURCE]:[GHGSOURCE]], \"station\", FactorMatrix[[TYPE]:[TYPE]], Q$6)","v":0},{"$f":"SUMIFS(FactorMatrix[[UPSTREAMMATERIALS]:[UPSTREAMMATERIALS]], FactorMatrix[[MODE]:[MODE]], $B25, FactorMatrix[[PHASE]:[PHASE]], $A$4, FactorMatrix[[GHGSOURCE]:[GHGSOURCE]], \"station\", FactorMatrix[[TYPE]:[TYPE]], R$6)","v":0},{"$f":"SUMIFS(FactorMatrix[[UPSTREAMTRANSPORT]:[UPSTREAMTRANSPORT]], FactorMatrix[[MODE]:[MODE]], $B25, FactorMatrix[[PHASE]:[PHASE]], $A$4, FactorMatrix[[GHGSOURCE]:[GHGSOURCE]], \"track mile\", FactorMatrix[[TYPE]:[TYPE]], S$6, FactorMatrix[[STATE /REGION]:[STATE /REGION]], StateCalc)","v":0},{"$f":"SUMIFS(FactorMatrix[[UPSTREAMTRANSPORT]:[UPSTREAMTRANSPORT]], FactorMatrix[[MODE]:[MODE]], $B25, FactorMatrix[[PHASE]:[PHASE]], $A$4, FactorMatrix[[GHGSOURCE]:[GHGSOURCE]], \"track mile\", FactorMatrix[[TYPE]:[TYPE]], T$6)","v":0},{"$f":"SUMIFS(FactorMatrix[[UPSTREAMTRANSPORT]:[UPSTREAMTRANSPORT]], FactorMatrix[[MODE]:[MODE]], $B25, FactorMatrix[[PHASE]:[PHASE]], $A$4, FactorMatrix[[GHGSOURCE]:[GHGSOURCE]], \"track mile\", FactorMatrix[[TYPE]:[TYPE]], U$6)","v":0},{"$f":"SUMIFS(FactorMatrix[[UPSTREAMTRANSPORT]:[UPSTREAMTRANSPORT]], FactorMatrix[[MODE]:[MODE]], $B25, FactorMatrix[[PHASE]:[PHASE]], $A$4, FactorMatrix[[GHGSOURCE]:[GHGSOURCE]], \"track mile\", FactorMatrix[[TYPE]:[TYPE]], V$6)","v":0},{"$f":"SUMIFS(FactorMatrix[[UPSTREAMTRANSPORT]:[UPSTREAMTRANSPORT]], FactorMatrix[[MODE]:[MODE]], $B25, FactorMatrix[[PHASE]:[PHASE]], $A$4, FactorMatrix[[GHGSOURCE]:[GHGSOURCE]], \"track mile\", FactorMatrix[[TYPE]:[TYPE]], W$6)","v":0},{"$f":"SUMIFS(FactorMatrix[[UPSTREAMTRANSPORT]:[UPSTREAMTRANSPORT]], FactorMatrix[[MODE]:[MODE]], $B25, FactorMatrix[[PHASE]:[PHASE]], $A$4, FactorMatrix[[GHGSOURCE]:[GHGSOURCE]], \"station\", FactorMatrix[[TYPE]:[TYPE]], X$6)","v":0},{"$f":"SUMIFS(FactorMatrix[[UPSTREAMTRANSPORT]:[UPSTREAMTRANSPORT]], FactorMatrix[[MODE]:[MODE]], $B25, FactorMatrix[[PHASE]:[PHASE]], $A$4, FactorMatrix[[GHGSOURCE]:[GHGSOURCE]], \"station\", FactorMatrix[[TYPE]:[TYPE]], Y$6)","v":0},{"$f":"SUMIFS(FactorMatrix[[UPSTREAMTRANSPORT]:[UPSTREAMTRANSPORT]], FactorMatrix[[MODE]:[MODE]], $B25, FactorMatrix[[PHASE]:[PHASE]], $A$4, FactorMatrix[[GHGSOURCE]:[GHGSOURCE]], \"station\", FactorMatrix[[TYPE]:[TYPE]], Z$6)","v":0},{"$f":"SUMIFS(FactorMatrix[[DOWNSTREAM]:[DOWNSTREAM]], FactorMatrix[[MODE]:[MODE]], $B25, FactorMatrix[[PHASE]:[PHASE]], $A$4, FactorMatrix[[GHGSOURCE]:[GHGSOURCE]], \"track mile\", FactorMatrix[[TYPE]:[TYPE]], AA$6, FactorMatrix[[STATE /REGION]:[STATE /REGION]], StateCalc)","v":0},{"$f":"SUMIFS(FactorMatrix[[DOWNSTREAM]:[DOWNSTREAM]], FactorMatrix[[MODE]:[MODE]], $B25, FactorMatrix[[PHASE]:[PHASE]], $A$4, FactorMatrix[[GHGSOURCE]:[GHGSOURCE]], \"track mile\", FactorMatrix[[TYPE]:[TYPE]], AB$6)","v":0},{"$f":"SUMIFS(FactorMatrix[[DOWNSTREAM]:[DOWNSTREAM]], FactorMatrix[[MODE]:[MODE]], $B25, FactorMatrix[[PHASE]:[PHASE]], $A$4, FactorMatrix[[GHGSOURCE]:[GHGSOURCE]], \"track mile\", FactorMatrix[[TYPE]:[TYPE]], AC$6)","v":0},{"$f":"SUMIFS(FactorMatrix[[DOWNSTREAM]:[DOWNSTREAM]], FactorMatrix[[MODE]:[MODE]], $B25, FactorMatrix[[PHASE]:[PHASE]], $A$4, FactorMatrix[[GHGSOURCE]:[GHGSOURCE]], \"track mile\", FactorMatrix[[TYPE]:[TYPE]], AD$6)","v":0},{"$f":"SUMIFS(FactorMatrix[[DOWNSTREAM]:[DOWNSTREAM]], FactorMatrix[[MODE]:[MODE]], $B25, FactorMatrix[[PHASE]:[PHASE]], $A$4, FactorMatrix[[GHGSOURCE]:[GHGSOURCE]], \"track mile\", FactorMatrix[[TYPE]:[TYPE]], AE$6)","v":0},{"$f":"SUMIFS(FactorMatrix[[DOWNSTREAM]:[DOWNSTREAM]], FactorMatrix[[MODE]:[MODE]], $B25, FactorMatrix[[PHASE]:[PHASE]], $A$4, FactorMatrix[[GHGSOURCE]:[GHGSOURCE]], \"station\", FactorMatrix[[TYPE]:[TYPE]], AF$6)","v":0},{"$f":"SUMIFS(FactorMatrix[[DOWNSTREAM]:[DOWNSTREAM]], FactorMatrix[[MODE]:[MODE]], $B25, FactorMatrix[[PHASE]:[PHASE]], $A$4, FactorMatrix[[GHGSOURCE]:[GHGSOURCE]], \"station\", FactorMatrix[[TYPE]:[TYPE]], AG$6)","v":0},{"$f":"SUMIFS(FactorMatrix[[DOWNSTREAM]:[DOWNSTREAM]], FactorMatrix[[MODE]:[MODE]], $B25, FactorMatrix[[PHASE]:[PHASE]], $A$4, FactorMatrix[[GHGSOURCE]:[GHGSOURCE]], \"station\", FactorMatrix[[TYPE]:[TYPE]], AH$6)","v":0},0,0,0]
[20,{"$f":"Construction!B27","v":0},{"$f":"Construction!C27","v":0},{"$f":"Construction!D27","v":0},{"$f":"Construction!E27","v":0},{"$f":"Construction!F27","v":0},{"$f":"Construction!G27","v":0},{"$f":"Construction!H27","v":0},{"$f":"Construction!I27","v":0},{"$f":"Construction!J27","v":0},{"$f":"SUMIFS(FactorMatrix[[UPSTREAMMATERIALS]:[UPSTREAMMATERIALS]], FactorMatrix[[MODE]:[MODE]], $B26, FactorMatrix[[PHASE]:[PHASE]], $A$4, FactorMatrix[[GHGSOURCE]:[GHGSOURCE]], \"track mile\", FactorMatrix[[TYPE]:[TYPE]], K$6, FactorMatrix[[STATE /REGION]:[STATE /REGION]], StateCalc)","v":0},{"$f":"SUMIFS(FactorMatrix[[UPSTREAMMATERIALS]:[UPSTREAMMATERIALS]], FactorMatrix[[MODE]:[MODE]], $B26, FactorMatrix[[PHASE]:[PHASE]], $A$4, FactorMatrix[[GHGSOURCE]:[GHGSOURCE]], \"track mile\", FactorMatrix[[TYPE]:[TYPE]], L$6)","v":0},{"$f":"SUMIFS(FactorMatrix[[UPSTREAMMATERIALS]:[UPSTREAMMATERIALS]], FactorMatrix[[MODE]:[MODE]], $B26, FactorMatrix[[PHASE]:[PHASE]], $A$4, FactorMatrix[[GHGSOURCE]:[GHGSOURCE]], \"track mile\", FactorMatrix[[TYPE]:[TYPE]], M$6)","v":0},{"$f":"SUMIFS(FactorMatrix[[UPSTREAMMATERIALS]:[UPSTREAMMATERIALS]], FactorMatrix[[MODE]:[MODE]], $B26, FactorMatrix[[PHASE]:[PHASE]], $A$4, FactorMatrix[[GHGSOURCE]:[GHGSOURCE]], \"track mile\", FactorMatrix[[TYPE]:[TYPE]], N$6)","v":0},{"$f":"SUMIFS(FactorMatrix[[UPSTREAMMATERIALS]:[UPSTREAMMATERIALS]], FactorMatrix[[MODE]:[MODE]], $B26, FactorMatrix[[PHASE]:[PHASE]], $A$4, FactorMatrix[[GHGSOURCE]:[GHGSOURCE]], \"track mile\", FactorMatrix[[TYPE]:[TYPE]], O$6)","v":0},{"$f":"SUMIFS(FactorMatrix[[UPSTREAMMATERIALS]:[UPSTREAMMATERIALS]], FactorMatrix[[MODE]:[MODE]], $B26, FactorMatrix[[PHASE]:[PHASE]], $A$4, FactorMatrix[[GHGSOURCE]:[GHGSOURCE]], \"station\", FactorMatrix[[TYPE]:[TYPE]], P$6)","v":0},{"$f":"SUMIFS(FactorMatrix[[UPSTREAMMATERIALS]:[UPSTREAMMATERIALS]], FactorMatrix[[MODE]:[MODE]], $B26, FactorMatrix[[PHASE]:[PHASE]], $A$4, FactorMatrix[[GHGSOURCE]:[GHGSOURCE]], \"station\", FactorMatrix[[TYPE]:[TYPE]], Q$6)","v":0},{"$f":"SUMIFS(FactorMatrix[[UPSTREAMMATERIALS]:[UPSTREAMMATERIALS]], FactorMatrix[[MODE]:[MODE]], $B26, FactorMatrix[[PHASE]:[PHASE]], $A$4, FactorMatrix[[GHGSOURCE]:[GHGSOURCE]], \"station\", FactorMatrix[[TYPE]:[TYPE]], R$6)","v":0},{"$f":"SUMIFS(FactorMatrix[[UPSTREAMTRANSPORT]:[UPSTREAMTRANSPORT]], FactorMatrix[[MODE]:[MODE]], $B26, FactorMatrix[[PHASE]:[PHASE]], $A$4, FactorMatrix[[GHGSOURCE]:[GHGSOURCE]], \"track mile\", FactorMatrix[[TYPE]:[TYPE]], S$6, FactorMatrix[[STATE /REGION]:[STATE /REGION]], StateCalc)","v":0},{"$f":"SUMIFS(FactorMatrix[[UPSTREAMTRANSPORT]:[UPSTREAMTRANSPORT]], FactorMatrix[[MODE]:[MODE]], $B26, FactorMatrix[[PHASE]:[PHASE]], $A$4, FactorMatrix[[GHGSOURCE]:[GHGSOURCE]], \"track mile\", FactorMatrix[[TYPE]:[TYPE]], T$6)","v":0},{"$f":"SUMIFS(FactorMatrix[[UPSTREAMTRANSPORT]:[UPSTREAMTRANSPORT]], FactorMatrix[[MODE]:[MODE]], $B26, FactorMatrix[[PHASE]:[PHASE]], $A$4, FactorMatrix[[GHGSOURCE]:[GHGSOURCE]], \"track mile\", FactorMatrix[[TYPE]:[TYPE]], U$6)","v":0},{"$f":"SUMIFS(FactorMatrix[[UPSTREAMTRANSPORT]:[UPSTREAMTRANSPORT]], FactorMatrix[[MODE]:[MODE]], $B26, FactorMatrix[[PHASE]:[PHASE]], $A$4, FactorMatrix[[GHGSOURCE]:[GHGSOURCE]], \"track mile\", FactorMatrix[[TYPE]:[TYPE]], V$6)","v":0},{"$f":"SUMIFS(FactorMatrix[[UPSTREAMTRANSPORT]:[UPSTREAMTRANSPORT]], FactorMatrix[[MODE]:[MODE]], $B26, FactorMatrix[[PHASE]:[PHASE]], $A$4, FactorMatrix[[GHGSOURCE]:[GHGSOURCE]], \"track mile\", FactorMatrix[[TYPE]:[TYPE]], W$6)","v":0},{"$f":"SUMIFS(FactorMatrix[[UPSTREAMTRANSPORT]:[UPSTREAMTRANSPORT]], FactorMatrix[[MODE]:[MODE]], $B26, FactorMatrix[[PHASE]:[PHASE]], $A$4, FactorMatrix[[GHGSOURCE]:[GHGSOURCE]], \"station\", FactorMatrix[[TYPE]:[TYPE]], X$6)","v":0},{"$f":"SUMIFS(FactorMatrix[[UPSTREAMTRANSPORT]:[UPSTREAMTRANSPORT]], FactorMatrix[[MODE]:[MODE]], $B26, FactorMatrix[[PHASE]:[PHASE]], $A$4, FactorMatrix[[GHGSOURCE]:[GHGSOURCE]], \"station\", FactorMatrix[[TYPE]:[TYPE]], Y$6)","v":0},{"$f":"SUMIFS(FactorMatrix[[UPSTREAMTRANSPORT]:[UPSTREAMTRANSPORT]], FactorMatrix[[MODE]:[MODE]], $B26, FactorMatrix[[PHASE]:[PHASE]], $A$4, FactorMatrix[[GHGSOURCE]:[GHGSOURCE]], \"station\", FactorMatrix[[TYPE]:[TYPE]], Z$6)","v":0},{"$f":"SUMIFS(FactorMatrix[[DOWNSTREAM]:[DOWNSTREAM]], FactorMatrix[[MODE]:[MODE]], $B26, FactorMatrix[[PHASE]:[PHASE]], $A$4, FactorMatrix[[GHGSOURCE]:[GHGSOURCE]], \"track mile\", FactorMatrix[[TYPE]:[TYPE]], AA$6, FactorMatrix[[STATE /REGION]:[STATE /REGION]], StateCalc)","v":0},{"$f":"SUMIFS(FactorMatrix[[DOWNSTREAM]:[DOWNSTREAM]], FactorMatrix[[MODE]:[MODE]], $B26, FactorMatrix[[PHASE]:[PHASE]], $A$4, FactorMatrix[[GHGSOURCE]:[GHGSOURCE]], \"track mile\", FactorMatrix[[TYPE]:[TYPE]], AB$6)","v":0},{"$f":"SUMIFS(FactorMatrix[[DOWNSTREAM]:[DOWNSTREAM]], FactorMatrix[[MODE]:[MODE]], $B26, FactorMatrix[[PHASE]:[PHASE]], $A$4, FactorMatrix[[GHGSOURCE]:[GHGSOURCE]], \"track mile\", FactorMatrix[[TYPE]:[TYPE]], AC$6)","v":0},{"$f":"SUMIFS(FactorMatrix[[DOWNSTREAM]:[DOWNSTREAM]], FactorMatrix[[MODE]:[MODE]], $B26, FactorMatrix[[PHASE]:[PHASE]], $A$4, FactorMatrix[[GHGSOURCE]:[GHGSOURCE]], \"track mile\", FactorMatrix[[TYPE]:[TYPE]], AD$6)","v":0},{"$f":"SUMIFS(FactorMatrix[[DOWNSTREAM]:[DOWNSTREAM]], FactorMatrix[[MODE]:[MODE]], $B26, FactorMatrix[[PHASE]:[PHASE]], $A$4, FactorMatrix[[GHGSOURCE]:[GHGSOURCE]], \"track mile\", FactorMatrix[[TYPE]:[TYPE]], AE$6)","v":0},{"$f":"SUMIFS(FactorMatrix[[DOWNSTREAM]:[DOWNSTREAM]], FactorMatrix[[MODE]:[MODE]], $B26, FactorMatrix[[PHASE]:[PHASE]], $A$4, FactorMatrix[[GHGSOURCE]:[GHGSOURCE]], \"station\", FactorMatrix[[TYPE]:[TYPE]], AF$6)","v":0},{"$f":"SUMIFS(FactorMatrix[[DOWNSTREAM]:[DOWNSTREAM]], FactorMatrix[[MODE]:[MODE]], $B26, FactorMatrix[[PHASE]:[PHASE]], $A$4, FactorMatrix[[GHGSOURCE]:[GHGSOURCE]], \"station\", FactorMatrix[[TYPE]:[TYPE]], AG$6)","v":0},{"$f":"SUMIFS(FactorMatrix[[DOWNSTREAM]:[DOWNSTREAM]], FactorMatrix[[MODE]:[MODE]], $B26, FactorMatrix[[PHASE]:[PHASE]], $A$4, FactorMatrix[[GHGSOURCE]:[GHGSOURCE]], \"station\", FactorMatrix[[TYPE]:[TYPE]], AH$6)","v":0},0,0,0]
["Construction All",null,null,null,"Range for Factors"]
[null,"Structured Parking Spots","Lot Parking Spots","Trees Removed","Structured Parking Spots","Lot Parking Spots","Trees Removed",null,null,null,"Structured Parking Spots","Lot Parking Spots","Trees Removed",null,null,null,null,null,"Structured Parking Spots","Lot Parking Spots","Trees Removed",null,null,null,null,null,"Structured Parking Spots","Lot Parking Spots","Trees Removed",null,null,null,null,null,"UPSTREAM MATERIALS","UPSTREAM TRANSPORT","DOWNSTREAM"]
[null,{"$f":"Construction!C4","v":0},{"$f":"Construction!F4","v":0},{"$f":"Construction!H4","v":0},{"$f":"IF(B29>500,\"Garage > 500\",IF(B29>50,\"Garage 50 0 500\", \"GARAGE < 50\"))","v":"GARAGE < 50"},{"$f":"IF(C29>500,\"Lot > 500\",IF(C29>50,\"Lot 50 0 500\", \"Lot < 50\"))","v":"Lot < 50"},{"$f":"D29","v":0},null,null,null,{"$f":"SUMIFS(FactorMatrix[[UPSTREAMMATERIALS]:[UPSTREAMMATERIALS]], FactorMatrix[[MODE]:[MODE]], \"Parking\", FactorMatrix[[PHASE]:[PHASE]], \"CONSTRUCTION\", FactorMatrix[[GHGSOURCE]:[GHGSOURCE]], $E$29)","v":5.3},{"$f":"SUMIFS(FactorMatrix[[UPSTREAMMATERIALS]:[UPSTREAMMATERIALS]], FactorMatrix[[MODE]:[MODE]], \"Parking\", FactorMatrix[[PHASE]:[PHASE]], \"CONSTRUCTION\", FactorMatrix[[GHGSOURCE]:[GHGSOURCE]], $F$29)","v":0.17},{"$f":"SUMIFS(FactorMatrix[[UPSTREAMMATERIALS]:[UPSTREAMMATERIALS]], FactorMatrix[[MODE]:[MODE]], \"C Storage\")*$C$2","v":0},null,null,null,null,null,{"$f":"SUMIFS(FactorMatrix[[UPSTREAMTRANSPORT]:[UPSTREAMTRANSPORT]], FactorMatrix[[MODE]:[MODE]], \"Parking\", FactorMatrix[[PHASE]:[PHASE]], \"CONSTRUCTION\", FactorMatrix[[GHGSOURCE]:[GHGSOURCE]], $E$29)","v":0.14000000000000001},{"$f":"SUMIFS(FactorMatrix[[UPSTREAMTRANSPORT]:[UPSTREAMTRANSPORT]], FactorMatrix[[MODE]:[MODE]], \"Parking\", FactorMatrix[[PHASE]:[PHASE]], \"CONSTRUCTION\", FactorMatrix[[GHGSOURCE]:[GHGSOURCE]], $F$29)","v":7.0000000000000007E-2},{"$f":"SUMIFS(FactorMatrix[[UPSTREAMTRANSPORT]:[UPSTREAMTRANSPORT]], FactorMatrix[[MODE]:[MODE]], \"C Storage\")*$C$2","v":0},null,null,null,null,null,{"$f":"SUMIFS(FactorMatrix[[DOWNSTREAM]:[DOWNSTREAM]], FactorMatrix[[MODE]:[MODE]], \"Parking\", FactorMatrix[[PHASE]:[PHASE]], \"CONSTRUCTION\", FactorMatrix[[GHGSOURCE]:[GHGSOURCE]], $E$29)","v":1},{"$f":"SUMIFS(FactorMatrix[[DOWNSTREAM]:[DOWNSTREAM]], FactorMatrix[[MODE]:[MODE]], \"Parking\", FactorMatrix[[PHASE]:[PHASE]], \"CONSTRUCTION\", FactorMatrix[[GHGSOURCE]:[GHGSOURCE]], $F$29)","v":0.18},{"$f":"SUMIFS(FactorMatrix[[DOWNSTREAM]:[DOWNSTREAM]], FactorMatrix[[MODE]:[MODE]], \"C Storage\")*$C$2","v":0},null,null,null,null,null,{"$f":"SUMPRODUCT($B29:$D29, K29:M29)","v":0},{"$f":"SUMPRODUCT($B29:$D29, S29:U29)","v":0},{"$f":"SUMPRODUCT($B29:$D29, AA29:AC29)","v":0}]
[]
["Facility Maintenance",null,null,null,null,null,"UPSTREAM MATERIALS",null,null,null,"UPSTREAM TRANSPORT",null,null,null,"DOWNSTREAM",null,null,null,"RESULTS",null,null,"FINAL RESULTS"]
["INPUTS","Transit Mode","Miles of Track/Alignment"]
["row",null,"Underground","Elevated","At-Grade","Converted Upgraded","Underground","Elevated","At-Grade","Converted or Upgraded","Underground","Elevated","At-Grade","Converted or Upgraded","Underground","Elevated","At-Grade","Converted or Upgraded","UPSTREAM MATERIALS","UPSTREAM TRANSPORT","DOWNSTREAM","UPSTREAM MATERIALS","UPSTREAM TRANSPORT","DOWNSTREAM"]
[1,{"$f":"B7","v":0},0,0,0,{"$f":"G7","v":0},{"$f":"SUMIFS(FactorMatrix[[UPSTREAMMATERIALS]:[UPSTREAMMATERIALS]], FactorMatrix[[MODE]:[MODE]], $B34, FactorMatrix[[PHASE]:[PHASE]],\"MAINTENANCE\", FactorMatrix[[GHGSOURCE]:[GHGSOURCE]], \"track mile\", FactorMatrix[[TYPE]:[TYPE]], G$33)*Years","v":0},{"$f":"SUMIFS(FactorMatrix[[UPSTREAMMATERIALS]:[UPSTREAMMATERIALS]], FactorMatrix[[MODE]:[MODE]], $B34, FactorMatrix[[PHASE]:[PHASE]],\"MAINTENANCE\", FactorMatrix[[GHGSOURCE]:[GHGSOURCE]], \"track mile\", FactorMatrix[[TYPE]:[TYPE]], H$33)*Years","v":0},{"$f":"SUMIFS(FactorMatrix[[UPSTREAMMATERIALS]:[UPSTREAMMATERIALS]], FactorMatrix[[MODE]:[MODE]], $B34, FactorMatrix[[PHASE]:[PHASE]],\"MAINTENANCE\", FactorMatrix[[GHGSOURCE]:[GHGSOURCE]], \"track mile\", FactorMatrix[[TYPE]:[TYPE]], I$33)*Years","v":0},{"$f":"SUMIFS(FactorMatrix[[UPSTREAMMATERIALS]:[UPSTREAMMATERIALS]], FactorMatrix[[MODE]:[MODE]], $B34, FactorMatrix[[PHASE]:[PHASE]],\"MAINTENANCE\", FactorMatrix[[GHGSOURCE]:[GHGSOURCE]], \"track mile\", FactorMatrix[[TYPE]:[TYPE]], J$33)*Years","v":0},{"$f":"SUMIFS(FactorMatrix[[UPSTREAMTRANSPORT]:[UPSTREAMTRANSPORT]], FactorMatrix[[MODE]:[MODE]], $B34, FactorMatrix[[PHASE]:[PHASE]],\"MAINTENANCE\", FactorMatrix[[GHGSOURCE]:[GHGSOURCE]], \"track mile\", FactorMatrix[[TYPE]:[TYPE]], K$33)*Years","v":0},{"$f":"SUMIFS(FactorMatrix[[UPSTREAMTRANSPORT]:[UPSTREAMTRANSPORT]], FactorMatrix[[MODE]:[MODE]], $B34, FactorMatrix[[PHASE]:[PHASE]],\"MAINTENANCE\", FactorMatrix[[GHGSOURCE]:[GHGSOURCE]], \"track mile\", FactorMatrix[[TYPE]:[TYPE]], L$33)*Years","v":0},{"$f":"SUMIFS(FactorMatrix[[UPSTREAMTRANSPORT]:[UPSTREAMTRANSPORT]], FactorMatrix[[MODE]:[MODE]], $B34, FactorMatrix[[PHASE]:[PHASE]],\"MAINTENANCE\", FactorMatrix[[GHGSOURCE]:[GHGSOURCE]], \"track mile\", FactorMatrix[[TYPE]:[TYPE]], M$33)*Years","v":0},{"$f":"SUMIFS(FactorMatrix[[UPSTREAMTRANSPORT]:[UPSTREAMTRANSPORT]], FactorMatrix[[MODE]:[MODE]], $B34, FactorMatrix[[PHASE]:[PHASE]],\"MAINTENANCE\", FactorMatrix[[GHGSOURCE]:[GHGSOURCE]], \"track mile\", FactorMatrix[[TYPE]:[TYPE]], N$33)*Years","v":0},{"$f":"SUMIFS(FactorMatrix[[DOWNSTREAM]:[DOWNSTREAM]], FactorMatrix[[MODE]:[MODE]], $B34, FactorMatrix[[PHASE]:[PHASE]],\"MAINTENANCE\", FactorMatrix[[GHGSOURCE]:[GHGSOURCE]], \"track mile\", FactorMatrix[[TYPE]:[TYPE]], O$33)*Years","v":0},{"$f":"SUMIFS(FactorMatrix[[DOWNSTREAM]:[DOWNSTREAM]], FactorMatrix[[MODE]:[MODE]], $B34, FactorMatrix[[PHASE]:[PHASE]],\"MAINTENANCE\", FactorMatrix[[GHGSOURCE]:[GHGSOURCE]], \"track mile\", FactorMatrix[[TYPE]:[TYPE]], P$33)*Years","v":0},{"$f":"SUMIFS(FactorMatrix[[DOWNSTREAM]:[DOWNSTREAM]], FactorMatrix[[MODE]:[MODE]], $B34, FactorMatrix[[PHASE]:[PHASE]],\"MAINTENANCE\", FactorMatrix[[GHGSOURCE]:[GHGSOURCE]], \"track mile\", FactorMatrix[[TYPE]:[TYPE]], Q$33)*Years","v":0},{"$f":"SUMIFS(FactorMatrix[[DOWNSTREAM]:[DOWNSTREAM]], FactorMatrix[[MODE]:[MODE]], $B34, FactorMatrix[[PHASE]:[PHASE]],\"MAINTENANCE\", FactorMatrix[[GHGSOURCE]:[GHGSOURCE]], \"track mile\", FactorMatrix[[TYPE]:[TYPE]], R$33)*Years","v":0},{"$f":" SUMPRODUCT($C34:$F34,G34:J34)","v":0},{"$f":" SUMPRODUCT($C34:$F34,K34:N34)","v":0},{"$f":" SUMPRODUCT($C34:$F34,O34:R34)","v":0},{"$f":"SUM(S34:S53)","v":0},{"$f":"SUM(T34:T53)","v":0},{"$f":"SUM(U34:U53)","v":0}]
[2,0,0,0,0,{"$f":"G8","v":0},{"$f":"SUMIFS(FactorMatrix[[UPSTREAMMATERIALS]:[UPSTREAMMATERIALS]], FactorMatrix[[MODE]:[MODE]], $B35, FactorMatrix[[PHASE]:[PHASE]],\"MAINTENANCE\", FactorMatrix[[GHGSOURCE]:[GHGSOURCE]], \"track mile\", FactorMatrix[[TYPE]:[TYPE]], G$33)*Years","v":0},{"$f":"SUMIFS(FactorMatrix[[UPSTREAMMATERIALS]:[UPSTREAMMATERIALS]], FactorMatrix[[MODE]:[MODE]], $B35, FactorMatrix[[PHASE]:[PHASE]],\"MAINTENANCE\", FactorMatrix[[GHGSOURCE]:[GHGSOURCE]], \"track mile\", FactorMatrix[[TYPE]:[TYPE]], H$33)*Years","v":0},{"$f":"SUMIFS(FactorMatrix[[UPSTREAMMATERIALS]:[UPSTREAMMATERIALS]], FactorMatrix[[MODE]:[MODE]], $B35, FactorMatrix[[PHASE]:[PHASE]],\"MAINTENANCE\", FactorMatrix[[GHGSOURCE]:[GHGSOURCE]], \"track mile\", FactorMatrix[[TYPE]:[TYPE]], I$33)*Years","v":0},{"$f":"SUMIFS(FactorMatrix[[UPSTREAMMATERIALS]:[UPSTREAMMATERIALS]], FactorMatrix[[MODE]:[MODE]], $B35, FactorMatrix[[PHASE]:[PHASE]],\"MAINTENANCE\", FactorMatrix[[GHGSOURCE]:[GHGSOURCE]], \"track mile\", FactorMatrix[[TYPE]:[TYPE]], J$33)*Years","v":0},{"$f":"SUMIFS(FactorMatrix[[UPSTREAMTRANSPORT]:[UPSTREAMTRANSPORT]], FactorMatrix[[MODE]:[MODE]], $B35, FactorMatrix[[PHASE]:[PHASE]],\"MAINTENANCE\", FactorMatrix[[GHGSOURCE]:[GHGSOURCE]], \"track mile\", FactorMatrix[[TYPE]:[TYPE]], K$33)*Years","v":0},{"$f":"SUMIFS(FactorMatrix[[UPSTREAMTRANSPORT]:[UPSTREAMTRANSPORT]], FactorMatrix[[MODE]:[MODE]], $B35, FactorMatrix[[PHASE]:[PHASE]],\"MAINTENANCE\", FactorMatrix[[GHGSOURCE]:[GHGSOURCE]], \"track mile\", FactorMatrix[[TYPE]:[TYPE]], L$33)*Years","v":0},{"$f":"SUMIFS(FactorMatrix[[UPSTREAMTRANSPORT]:[UPSTREAMTRANSPORT]], FactorMatrix[[MODE]:[MODE]], $B35, FactorMatrix[[PHASE]:[PHASE]],\"MAINTENANCE\", FactorMatrix[[GHGSOURCE]:[GHGSOURCE]], \"track mile\", FactorMatrix[[TYPE]:[TYPE]], M$33)*Years","v":0},{"$f":"SUMIFS(FactorMatrix[[UPSTREAMTRANSPORT]:[UPSTREAMTRANSPORT]], FactorMatrix[[MODE]:[MODE]], $B35, FactorMatrix[[PHASE]:[PHASE]],\"MAINTENANCE\", FactorMatrix[[GHGSOURCE]:[GHGSOURCE]], \"track mile\", FactorMatrix[[TYPE]:[TYPE]], N$33)*Years","v":0},{"$f":"SUMIFS(FactorMatrix[[DOWNSTREAM]:[DOWNSTREAM]], FactorMatrix[[MODE]:[MODE]], $B35, FactorMatrix[[PHASE]:[PHASE]],\"MAINTENANCE\", FactorMatrix[[GHGSOURCE]:[GHGSOURCE]], \"track mile\", FactorMatrix[[TYPE]:[TYPE]], O$33)*Years","v":0},{"$f":"SUMIFS(FactorMatrix[[DOWNSTREAM]:[DOWNSTREAM]], FactorMatrix[[MODE]:[MODE]], $B35, FactorMatrix[[PHASE]:[PHASE]],\"MAINTENANCE\", FactorMatrix[[GHGSOURCE]:[GHGSOURCE]], \"track mile\", FactorMatrix[[TYPE]:[TYPE]], P$33)*Years","v":0},{"$f":"SUMIFS(FactorMatrix[[DOWNSTREAM]:[DOWNSTREAM]], FactorMatrix[[MODE]:[MODE]], $B35, FactorMatrix[[PHASE]:[PHASE]],\"MAINTENANCE\", FactorMatrix[[GHGSOURCE]:[GHGSOURCE]], \"track mile\", FactorMatrix[[TYPE]:[TYPE]], Q$33)*Years","v":0},{"$f":"SUMIFS(FactorMatrix[[DOWNSTREAM]:[DOWNSTREAM]], FactorMatrix[[MODE]:[MODE]], $B35, FactorMatrix[[PHASE]:[PHASE]],\"MAINTENANCE\", FactorMatrix[[GHGSOURCE]:[GHGSOURCE]], \"track mile\", FactorMatrix[[TYPE]:[TYPE]], R$33)*Years","v":0},{"$f":" SUMPRODUCT($C35:$F35,G35:J35)","v":0},{"$f":" SUMPRODUCT($C35:$F35,K35:N35)","v":0},{"$f":" SUMPRODUCT($C35:$F35,O35:R35)","v":0}]
[3,0,0,0,0,0,{"$f":"SUMIFS(FactorMatrix[[UPSTREAMMATERIALS]:[UPSTREAMMATERIALS]], FactorMatrix[[MODE]:[MODE]], $B36, FactorMatrix[[PHASE]:[PHASE]],\"MAINTENANCE\", FactorMatrix[[GHGSOURCE]:[GHGSOURCE]], \"track mile\", FactorMatrix[[TYPE]:[TYPE]], G$33)*Years","v":0},{"$f":"SUMIFS(FactorMatrix[[UPSTREAMMATERIALS]:[UPSTREAMMATERIALS]], FactorMatrix[[MODE]:[MODE]], $B36, FactorMatrix[[PHASE]:[PHASE]],\"MAINTENANCE\", FactorMatrix[[GHGSOURCE]:[GHGSOURCE]], \"track mile\", FactorMatrix[[TYPE]:[TYPE]], H$33)*Years","v":0},{"$f":"SUMIFS(FactorMatrix[[UPSTREAMMATERIALS]:[UPSTREAMMATERIALS]], FactorMatrix[[MODE]:[MODE]], $B36, FactorMatrix[[PHASE]:[PHASE]],\"MAINTENANCE\", FactorMatrix[[GHGSOURCE]:[GHGSOURCE]], \"track mile\", FactorMatrix[[TYPE]:[TYPE]], I$33)*Years","v":0},{"$f":"SUMIFS(FactorMatrix[[UPSTREAMMATERIALS]:[UPSTREAMMATERIALS]], FactorMatrix[[MODE]:[MODE]], $B36, FactorMatrix[[PHASE]:[PHASE]],\"MAINTENANCE\", FactorMatrix[[GHGSOURCE]:[GHGSOURCE]], \"track mile\", FactorMatrix[[TYPE]:[TYPE]], J$33)*Years","v":0},{"$f":"SUMIFS(FactorMatrix[[UPSTREAMTRANSPORT]:[UPSTREAMTRANSPORT]], FactorMatrix[[MODE]:[MODE]], $B36, FactorMatrix[[PHASE]:[PHASE]],\"MAINTENANCE\", FactorMatrix[[GHGSOURCE]:[GHGSOURCE]], \"track mile\", FactorMatrix[[TYPE]:[TYPE]], K$33)*Years","v":0},{"$f":"SUMIFS(FactorMatrix[[UPSTREAMTRANSPORT]:[UPSTREAMTRANSPORT]], FactorMatrix[[MODE]:[MODE]], $B36, FactorMatrix[[PHASE]:[PHASE]],\"MAINTENANCE\", FactorMatrix[[GHGSOURCE]:[GHGSOURCE]], \"track mile\", FactorMatrix[[TYPE]:[TYPE]], L$33)*Years","v":0},{"$f":"SUMIFS(FactorMatrix[[UPSTREAMTRANSPORT]:[UPSTREAMTRANSPORT]], FactorMatrix[[MODE]:[MODE]], $B36, FactorMatrix[[PHASE]:[PHASE]],\"MAINTENANCE\", FactorMatrix[[GHGSOURCE]:[GHGSOURCE]], \"track mile\", FactorMatrix[[TYPE]:[TYPE]], M$33)*Years","v":0},{"$f":"SUMIFS(FactorMatrix[[UPSTREAMTRANSPORT]:[UPSTREAMTRANSPORT]], FactorMatrix[[MODE]:[MODE]], $B36, FactorMatrix[[PHASE]:[PHASE]],\"MAINTENANCE\", FactorMatrix[[GHGSOURCE]:[GHGSOURCE]], \"track mile\", FactorMatrix[[TYPE]:[TYPE]], N$33)*Years","v":0},{"$f":"SUMIFS(FactorMatrix[[DOWNSTREAM]:[DOWNSTREAM]], FactorMatrix[[MODE]:[MODE]], $B36, FactorMatrix[[PHASE]:[PHASE]],\"MAINTENANCE\", FactorMatrix[[GHGSOURCE]:[GHGSOURCE]], \"track mile\", FactorMatrix[[TYPE]:[TYPE]], O$33)*Years","v":0},{"$f":"SUMIFS(FactorMatrix[[DOWNSTREAM]:[DOWNSTREAM]], FactorMatrix[[MODE]:[MODE]], $B36, FactorMatrix[[PHASE]:[PHASE]],\"MAINTENANCE\", FactorMatrix[[GHGSOURCE]:[GHGSOURCE]], \"track mile\", FactorMatrix[[TYPE]:[TYPE]], P$33)*Years","v":0},{"$f":"SUMIFS(FactorMatrix[[DOWNSTREAM]:[DOWNSTREAM]], FactorMatrix[[MODE]:[MODE]], $B36, FactorMatrix[[PHASE]:[PHASE]],\"MAINTENANCE\", FactorMatrix[[GHGSOURCE]:[GHGSOURCE]], \"track mile\", FactorMatrix[[TYPE]:[TYPE]], Q$33)*Years","v":0},{"$f":"SUMIFS(FactorMatrix[[DOWNSTREAM]:[DOWNSTREAM]], FactorMatrix[[MODE]:[MODE]], $B36, FactorMatrix[[PHASE]:[PHASE]],\"MAINTENANCE\", FactorMatrix[[GHGSOURCE]:[GHGSOURCE]], \"track mile\", FactorMatrix[[TYPE]:[TYPE]], R$33)*Years","v":0},0,0,0,"Annual"]
[4,0,0,0,0,0,{"$f":"SUMIFS(FactorMatrix[[UPSTREAMMATERIALS]:[UPSTREAMMATERIALS]], FactorMatrix[[MODE]:[MODE]], $B37, FactorMatrix[[PHASE]:[PHASE]],\"MAINTENANCE\", FactorMatrix[[GHGSOURCE]:[GHGSOURCE]], \"track mile\", FactorMatrix[[TYPE]:[TYPE]], G$33)*Years","v":0},{"$f":"SUMIFS(FactorMatrix[[UPSTREAMMATERIALS]:[UPSTREAMMATERIALS]], FactorMatrix[[MODE]:[MODE]], $B37, FactorMatrix[[PHASE]:[PHASE]],\"MAINTENANCE\", FactorMatrix[[GHGSOURCE]:[GHGSOURCE]], \"track mile\", FactorMatrix[[TYPE]:[TYPE]], H$33)*Years","v":0},{"$f":"SUMIFS(FactorMatrix[[UPSTREAMMATERIALS]:[UPSTREAMMATERIALS]], FactorMatrix[[MODE]:[MODE]], $B37, FactorMatrix[[PHASE]:[PHASE]],\"MAINTENANCE\", FactorMatrix[[GHGSOURCE]:[GHGSOURCE]], \"track mile\", FactorMatrix[[TYPE]:[TYPE]], I$33)*Years","v":0},{"$f":"SUMIFS(FactorMatrix[[UPSTREAMMATERIALS]:[UPSTREAMMATERIALS]], FactorMatrix[[MODE]:[MODE]], $B37, FactorMatrix[[PHASE]:[PHASE]],\"MAINTENANCE\", FactorMatrix[[GHGSOURCE]:[GHGSOURCE]], \"track mile\", FactorMatrix[[TYPE]:[TYPE]], J$33)*Years","v":0},{"$f":"SUMIFS(FactorMatrix[[UPSTREAMTRANSPORT]:[UPSTREAMTRANSPORT]], FactorMatrix[[MODE]:[MODE]], $B37, FactorMatrix[[PHASE]:[PHASE]],\"MAINTENANCE\", FactorMatrix[[GHGSOURCE]:[GHGSOURCE]], \"track mile\", FactorMatrix[[TYPE]:[TYPE]], K$33)*Years","v":0},{"$f":"SUMIFS(FactorMatrix[[UPSTREAMTRANSPORT]:[UPSTREAMTRANSPORT]], FactorMatrix[[MODE]:[MODE]], $B37, FactorMatrix[[PHASE]:[PHASE]],\"MAINTENANCE\", FactorMatrix[[GHGSOURCE]:[GHGSOURCE]], \"track mile\", FactorMatrix[[TYPE]:[TYPE]], L$33)*Years","v":0},{"$f":"SUMIFS(FactorMatrix[[UPSTREAMTRANSPORT]:[UPSTREAMTRANSPORT]], FactorMatrix[[MODE]:[MODE]], $B37, FactorMatrix[[PHASE]:[PHASE]],\"MAINTENANCE\", FactorMatrix[[GHGSOURCE]:[GHGSOURCE]], \"track mile\", FactorMatrix[[TYPE]:[TYPE]], M$33)*Years","v":0},{"$f":"SUMIFS(FactorMatrix[[UPSTREAMTRANSPORT]:[UPSTREAMTRANSPORT]], FactorMatrix[[MODE]:[MODE]], $B37, FactorMatrix[[PHASE]:[PHASE]],\"MAINTENANCE\", FactorMatrix[[GHGSOURCE]:[GHGSOURCE]], \"track mile\", FactorMatrix[[TYPE]:[TYPE]], N$33)*Years","v":0},{"$f":"SUMIFS(FactorMatrix[[DOWNSTREAM]:[DOWNSTREAM]], FactorMatrix[[MODE]:[MODE]], $B37, FactorMatrix[[PHASE]:[PHASE]],\"MAINTENANCE\", FactorMatrix[[GHGSOURCE]:[GHGSOURCE]], \"track mile\", FactorMatrix[[TYPE]:[TYPE]], O$33)*Years","v":0},{"$f":"SUMIFS(FactorMatrix[[DOWNSTREAM]:[DOWNSTREAM]], FactorMatrix[[MODE]:[MODE]], $B37, FactorMatrix[[PHASE]:[PHASE]],\"MAINTENANCE\", FactorMatrix[[GHGSOURCE]:[GHGSOURCE]], \"track mile\", FactorMatrix[[TYPE]:[TYPE]], P$33)*Years","v":0},{"$f":"SUMIFS(FactorMatrix[[DOWNSTREAM]:[DOWNSTREAM]], FactorMatrix[[MODE]:[MODE]], $B37, FactorMatrix[[PHASE]:[PHASE]],\"MAINTENANCE\", FactorMatrix[[GHGSOURCE]:[GHGSOURCE]], \"track mile\", FactorMatrix[[TYPE]:[TYPE]], Q$33)*Years","v":0},{"$f":"SUMIFS(FactorMatrix[[DOWNSTREAM]:[DOWNSTREAM]], FactorMatrix[[MODE]:[MODE]], $B37, FactorMatrix[[PHASE]:[PHASE]],\"MAINTENANCE\", FactorMatrix[[GHGSOURCE]:[GHGSOURCE]], \"track mile\", FactorMatrix[[TYPE]:[TYPE]], R$33)*Years","v":0},0,0,0]
[5,0,0,0,0,0,{"$f":"SUMIFS(FactorMatrix[[UPSTREAMMATERIALS]:[UPSTREAMMATERIALS]], FactorMatrix[[MODE]:[MODE]], $B38, FactorMatrix[[PHASE]:[PHASE]],\"MAINTENANCE\", FactorMatrix[[GHGSOURCE]:[GHGSOURCE]], \"track mile\", FactorMatrix[[TYPE]:[TYPE]], G$33)*Years","v":0},{"$f":"SUMIFS(FactorMatrix[[UPSTREAMMATERIALS]:[UPSTREAMMATERIALS]], FactorMatrix[[MODE]:[MODE]], $B38, FactorMatrix[[PHASE]:[PHASE]],\"MAINTENANCE\", FactorMatrix[[GHGSOURCE]:[GHGSOURCE]], \"track mile\", FactorMatrix[[TYPE]:[TYPE]], H$33)*Years","v":0},{"$f":"SUMIFS(FactorMatrix[[UPSTREAMMATERIALS]:[UPSTREAMMATERIALS]], FactorMatrix[[MODE]:[MODE]], $B38, FactorMatrix[[PHASE]:[PHASE]],\"MAINTENANCE\", FactorMatrix[[GHGSOURCE]:[GHGSOURCE]], \"track mile\", FactorMatrix[[TYPE]:[TYPE]], I$33)*Years","v":0},{"$f":"SUMIFS(FactorMatrix[[UPSTREAMMATERIALS]:[UPSTREAMMATERIALS]], FactorMatrix[[MODE]:[MODE]], $B38, FactorMatrix[[PHASE]:[PHASE]],\"MAINTENANCE\", FactorMatrix[[GHGSOURCE]:[GHGSOURCE]], \"track mile\", FactorMatrix[[TYPE]:[TYPE]], J$33)*Years","v":0},{"$f":"SUMIFS(FactorMatrix[[UPSTREAMTRANSPORT]:[UPSTREAMTRANSPORT]], FactorMatrix[[MODE]:[MODE]], $B38, FactorMatrix[[PHASE]:[PHASE]],\"MAINTENANCE\", FactorMatrix[[GHGSOURCE]:[GHGSOURCE]], \"track mile\", FactorMatrix[[TYPE]:[TYPE]], K$33)*Years","v":0},{"$f":"SUMIFS(FactorMatrix[[UPSTREAMTRANSPORT]:[UPSTREAMTRANSPORT]], FactorMatrix[[MODE]:[MODE]], $B38, FactorMatrix[[PHASE]:[PHASE]],\"MAINTENANCE\", FactorMatrix[[GHGSOURCE]:[GHGSOURCE]], \"track mile\", FactorMatrix[[TYPE]:[TYPE]], L$33)*Years","v":0},{"$f":"SUMIFS(FactorMatrix[[UPSTREAMTRANSPORT]:[UPSTREAMTRANSPORT]], FactorMatrix[[MODE]:[MODE]], $B38, FactorMatrix[[PHASE]:[PHASE]],\"MAINTENANCE\", FactorMatrix[[GHGSOURCE]:[GHGSOURCE]], \"track mile\", FactorMatrix[[TYPE]:[TYPE]], M$33)*Years","v":0},{"$f":"SUMIFS(FactorMatrix[[UPSTREAMTRANSPORT]:[UPSTREAMTRANSPORT]], FactorMatrix[[MODE]:[MODE]], $B38, FactorMatrix[[PHASE]:[PHASE]],\"MAINTENANCE\", FactorMatrix[[GHGSOURCE]:[GHGSOURCE]], \"track mile\", FactorMatrix[[TYPE]:[TYPE]], N$33)*Years","v":0},{"$f":"SUMIFS(FactorMatrix[[DOWNSTREAM]:[DOWNSTREAM]], FactorMatrix[[MODE]:[MODE]], $B38, FactorMatrix[[PHASE]:[PHASE]],\"MAINTENANCE\", FactorMatrix[[GHGSOURCE]:[GHGSOURCE]], \"track mile\", FactorMatrix[[TYPE]:[TYPE]], O$33)*Years","v":0},{"$f":"SUMIFS(FactorMatrix[[DOWNSTREAM]:[DOWNSTREAM]], FactorMatrix[[MODE]:[MODE]], $B38, FactorMatrix[[PHASE]:[PHASE]],\"MAINTENANCE\", FactorMatrix[[GHGSOURCE]:[GHGSOURCE]], \"track mile\", FactorMatrix[[TYPE]:[TYPE]], P$33)*Years","v":0},{"$f":"SUMIFS(FactorMatrix[[DOWNSTREAM]:[DOWNSTREAM]], FactorMatrix[[MODE]:[MODE]], $B38, FactorMatrix[[PHASE]:[PHASE]],\"MAINTENANCE\", FactorMatrix[[GHGSOURCE]:[GHGSOURCE]], \"track mile\", FactorMatrix[[TYPE]:[TYPE]], Q$33)*Years","v":0},{"$f":"SUMIFS(FactorMatrix[[DOWNSTREAM]:[DOWNSTREAM]], FactorMatrix[[MODE]:[MODE]], $B38, FactorMatrix[[PHASE]:[PHASE]],\"MAINTENANCE\", FactorMatrix[[GHGSOURCE]:[GHGSOURCE]], \"track mile\", FactorMatrix[[TYPE]:[TYPE]], R$33)*Years","v":0},0,0,0,"UPSTREAM MATERIALS","UPSTREAM TRANSPORT","DOWNSTREAM"]
[6,0,0,0,0,0,{"$f":"SUMIFS(FactorMatrix[[UPSTREAMMATERIALS]:[UPSTREAMMATERIALS]], FactorMatrix[[MODE]:[MODE]], $B39, FactorMatrix[[PHASE]:[PHASE]],\"MAINTENANCE\", FactorMatrix[[GHGSOURCE]:[GHGSOURCE]], \"track mile\", FactorMatrix[[TYPE]:[TYPE]], G$33)*Years","v":0},{"$f":"SUMIFS(FactorMatrix[[UPSTREAMMATERIALS]:[UPSTREAMMATERIALS]], FactorMatrix[[MODE]:[MODE]], $B39, FactorMatrix[[PHASE]:[PHASE]],\"MAINTENANCE\", FactorMatrix[[GHGSOURCE]:[GHGSOURCE]], \"track mile\", FactorMatrix[[TYPE]:[TYPE]], H$33)*Years","v":0},{"$f":"SUMIFS(FactorMatrix[[UPSTREAMMATERIALS]:[UPSTREAMMATERIALS]], FactorMatrix[[MODE]:[MODE]], $B39, FactorMatrix[[PHASE]:[PHASE]],\"MAINTENANCE\", FactorMatrix[[GHGSOURCE]:[GHGSOURCE]], \"track mile\", FactorMatrix[[TYPE]:[TYPE]], I$33)*Years","v":0},{"$f":"SUMIFS(FactorMatrix[[UPSTREAMMATERIALS]:[UPSTREAMMATERIALS]], FactorMatrix[[MODE]:[MODE]], $B39, FactorMatrix[[PHASE]:[PHASE]],\"MAINTENANCE\", FactorMatrix[[GHGSOURCE]:[GHGSOURCE]], \"track mile\", FactorMatrix[[TYPE]:[TYPE]], J$33)*Years","v":0},{"$f":"SUMIFS(FactorMatrix[[UPSTREAMTRANSPORT]:[UPSTREAMTRANSPORT]], FactorMatrix[[MODE]:[MODE]], $B39, FactorMatrix[[PHASE]:[PHASE]],\"MAINTENANCE\", FactorMatrix[[GHGSOURCE]:[GHGSOURCE]], \"track mile\", FactorMatrix[[TYPE]:[TYPE]], K$33)*Years","v":0},{"$f":"SUMIFS(FactorMatrix[[UPSTREAMTRANSPORT]:[UPSTREAMTRANSPORT]], FactorMatrix[[MODE]:[MODE]], $B39, FactorMatrix[[PHASE]:[PHASE]],\"MAINTENANCE\", FactorMatrix[[GHGSOURCE]:[GHGSOURCE]], \"track mile\", FactorMatrix[[TYPE]:[TYPE]], L$33)*Years","v":0},{"$f":"SUMIFS(FactorMatrix[[UPSTREAMTRANSPORT]:[UPSTREAMTRANSPORT]], FactorMatrix[[MODE]:[MODE]], $B39, FactorMatrix[[PHASE]:[PHASE]],\"MAINTENANCE\", FactorMatrix[[GHGSOURCE]:[GHGSOURCE]], \"track mile\", FactorMatrix[[TYPE]:[TYPE]], M$33)*Years","v":0},{"$f":"SUMIFS(FactorMatrix[[UPSTREAMTRANSPORT]:[UPSTREAMTRANSPORT]], FactorMatrix[[MODE]:[MODE]], $B39, FactorMatrix[[PHASE]:[PHASE]],\"MAINTENANCE\", FactorMatrix[[GHGSOURCE]:[GHGSOURCE]], \"track mile\", FactorMatrix[[TYPE]:[TYPE]], N$33)*Years","v":0},{"$f":"SUMIFS(FactorMatrix[[DOWNSTREAM]:[DOWNSTREAM]], FactorMatrix[[MODE]:[MODE]], $B39, FactorMatrix[[PHASE]:[PHASE]],\"MAINTENANCE\", FactorMatrix[[GHGSOURCE]:[GHGSOURCE]], \"track mile\", FactorMatrix[[TYPE]:[TYPE]], O$33)*Years","v":0},{"$f":"SUMIFS(FactorMatrix[[DOWNSTREAM]:[DOWNSTREAM]], FactorMatrix[[MODE]:[MODE]], $B39, FactorMatrix[[PHASE]:[PHASE]],\"MAINTENANCE\", FactorMatrix[[GHGSOURCE]:[GHGSOURCE]], \"track mile\", FactorMatrix[[TYPE]:[TYPE]], P$33)*Years","v":0},{"$f":"SUMIFS(FactorMatrix[[DOWNSTREAM]:[DOWNSTREAM]], FactorMatrix[[MODE]:[MODE]], $B39, FactorMatrix[[PHASE]:[PHASE]],\"MAINTENANCE\", FactorMatrix[[GHGSOURCE]:[GHGSOURCE]], \"track mile\", FactorMatrix[[TYPE]:[TYPE]], Q$33)*Years","v":0},{"$f":"SUMIFS(FactorMatrix[[DOWNSTREAM]:[DOWNSTREAM]], FactorMatrix[[MODE]:[MODE]], $B39, FactorMatrix[[PHASE]:[PHASE]],\"MAINTENANCE\", FactorMatrix[[GHGSOURCE]:[GHGSOURCE]], \"track mile\", FactorMatrix[[TYPE]:[TYPE]], R$33)*Years","v":0},0,0,0,{"$f":"V34/Years","v":{"$error":"#DIV/0!"}},{"$f":"W34/Years","v":{"$error":"#DIV/0!"}},{"$f":"X34/Years","v":{"$error":"#DIV/0!"}}]
[7,0,0,0,0,0,{"$f":"SUMIFS(FactorMatrix[[UPSTREAMMATERIALS]:[UPSTREAMMATERIALS]], FactorMatrix[[MODE]:[MODE]], $B40, FactorMatrix[[PHASE]:[PHASE]],\"MAINTENANCE\", FactorMatrix[[GHGSOURCE]:[GHGSOURCE]], \"track mile\", FactorMatrix[[TYPE]:[TYPE]], G$33)*Years","v":0},{"$f":"SUMIFS(FactorMatrix[[UPSTREAMMATERIALS]:[UPSTREAMMATERIALS]], FactorMatrix[[MODE]:[MODE]], $B40, FactorMatrix[[PHASE]:[PHASE]],\"MAINTENANCE\", FactorMatrix[[GHGSOURCE]:[GHGSOURCE]], \"track mile\", FactorMatrix[[TYPE]:[TYPE]], H$33)*Years","v":0},{"$f":"SUMIFS(FactorMatrix[[UPSTREAMMATERIALS]:[UPSTREAMMATERIALS]], FactorMatrix[[MODE]:[MODE]], $B40, FactorMatrix[[PHASE]:[PHASE]],\"MAINTENANCE\", FactorMatrix[[GHGSOURCE]:[GHGSOURCE]], \"track mile\", FactorMatrix[[TYPE]:[TYPE]], I$33)*Years","v":0},{"$f":"SUMIFS(FactorMatrix[[UPSTREAMMATERIALS]:[UPSTREAMMATERIALS]], FactorMatrix[[MODE]:[MODE]], $B40, FactorMatrix[[PHASE]:[PHASE]],\"MAINTENANCE\", FactorMatrix[[GHGSOURCE]:[GHGSOURCE]], \"track mile\", FactorMatrix[[TYPE]:[TYPE]], J$33)*Years","v":0},{"$f":"SUMIFS(FactorMatrix[[UPSTREAMTRANSPORT]:[UPSTREAMTRANSPORT]], FactorMatrix[[MODE]:[MODE]], $B40, FactorMatrix[[PHASE]:[PHASE]],\"MAINTENANCE\", FactorMatrix[[GHGSOURCE]:[GHGSOURCE]], \"track mile\", FactorMatrix[[TYPE]:[TYPE]], K$33)*Years","v":0},{"$f":"SUMIFS(FactorMatrix[[UPSTREAMTRANSPORT]:[UPSTREAMTRANSPORT]], FactorMatrix[[MODE]:[MODE]], $B40, FactorMatrix[[PHASE]:[PHASE]],\"MAINTENANCE\", FactorMatrix[[GHGSOURCE]:[GHGSOURCE]], \"track mile\", FactorMatrix[[TYPE]:[TYPE]], L$33)*Years","v":0},{"$f":"SUMIFS(FactorMatrix[[UPSTREAMTRANSPORT]:[UPSTREAMTRANSPORT]], FactorMatrix[[MODE]:[MODE]], $B40, FactorMatrix[[PHASE]:[PHASE]],\"MAINTENANCE\", FactorMatrix[[GHGSOURCE]:[GHGSOURCE]], \"track mile\", FactorMatrix[[TYPE]:[TYPE]], M$33)*Years","v":0},{"$f":"SUMIFS(FactorMatrix[[UPSTREAMTRANSPORT]:[UPSTREAMTRANSPORT]], FactorMatrix[[MODE]:[MODE]], $B40, FactorMatrix[[PHASE]:[PHASE]],\"MAINTENANCE\", FactorMatrix[[GHGSOURCE]:[GHGSOURCE]], \"track mile\", FactorMatrix[[TYPE]:[TYPE]], N$33)*Years","v":0},{"$f":"SUMIFS(FactorMatrix[[DOWNSTREAM]:[DOWNSTREAM]], FactorMatrix[[MODE]:[MODE]], $B40, FactorMatrix[[PHASE]:[PHASE]],\"MAINTENANCE\", FactorMatrix[[GHGSOURCE]:[GHGSOURCE]], \"track mile\", FactorMatrix[[TYPE]:[TYPE]], O$33)*Years","v":0},{"$f":"SUMIFS(FactorMatrix[[DOWNSTREAM]:[DOWNSTREAM]], FactorMatrix[[MODE]:[MODE]], $B40, FactorMatrix[[PHASE]:[PHASE]],\"MAINTENANCE\", FactorMatrix[[GHGSOURCE]:[GHGSOURCE]], \"track mile\", FactorMatrix[[TYPE]:[TYPE]], P$33)*Years","v":0},{"$f":"SUMIFS(FactorMatrix[[DOWNSTREAM]:[DOWNSTREAM]], FactorMatrix[[MODE]:[MODE]], $B40, FactorMatrix[[PHASE]:[PHASE]],\"MAINTENANCE\", FactorMatrix[[GHGSOURCE]:[GHGSOURCE]], \"track mile\", FactorMatrix[[TYPE]:[TYPE]], Q$33)*Years","v":0},{"$f":"SUMIFS(FactorMatrix[[DOWNSTREAM]:[DOWNSTREAM]], FactorMatrix[[MODE]:[MODE]], $B40, FactorMatrix[[PHASE]:[PHASE]],\"MAINTENANCE\", FactorMatrix[[GHGSOURCE]:[GHGSOURCE]], \"track mile\", FactorMatrix[[TYPE]:[TYPE]], R$33)*Years","v":0},0,0,0]
[8,0,0,0,0,0,{"$f":"SUMIFS(FactorMatrix[[UPSTREAMMATERIALS]:[UPSTREAMMATERIALS]], FactorMatrix[[MODE]:[MODE]], $B41, FactorMatrix[[PHASE]:[PHASE]],\"MAINTENANCE\", FactorMatrix[[GHGSOURCE]:[GHGSOURCE]], \"track mile\", FactorMatrix[[TYPE]:[TYPE]], G$33)*Years","v":0},{"$f":"SUMIFS(FactorMatrix[[UPSTREAMMATERIALS]:[UPSTREAMMATERIALS]], FactorMatrix[[MODE]:[MODE]], $B41, FactorMatrix[[PHASE]:[PHASE]],\"MAINTENANCE\", FactorMatrix[[GHGSOURCE]:[GHGSOURCE]], \"track mile\", FactorMatrix[[TYPE]:[TYPE]], H$33)*Years","v":0},{"$f":"SUMIFS(FactorMatrix[[UPSTREAMMATERIALS]:[UPSTREAMMATERIALS]], FactorMatrix[[MODE]:[MODE]], $B41, FactorMatrix[[PHASE]:[PHASE]],\"MAINTENANCE\", FactorMatrix[[GHGSOURCE]:[GHGSOURCE]], \"track mile\", FactorMatrix[[TYPE]:[TYPE]], I$33)*Years","v":0},{"$f":"SUMIFS(FactorMatrix[[UPSTREAMMATERIALS]:[UPSTREAMMATERIALS]], FactorMatrix[[MODE]:[MODE]], $B41, FactorMatrix[[PHASE]:[PHASE]],\"MAINTENANCE\", FactorMatrix[[GHGSOURCE]:[GHGSOURCE]], \"track mile\", FactorMatrix[[TYPE]:[TYPE]], J$33)*Years","v":0},{"$f":"SUMIFS(FactorMatrix[[UPSTREAMTRANSPORT]:[UPSTREAMTRANSPORT]], FactorMatrix[[MODE]:[MODE]], $B41, FactorMatrix[[PHASE]:[PHASE]],\"MAINTENANCE\", FactorMatrix[[GHGSOURCE]:[GHGSOURCE]], \"track mile\", FactorMatrix[[TYPE]:[TYPE]], K$33)*Years","v":0},{"$f":"SUMIFS(FactorMatrix[[UPSTREAMTRANSPORT]:[UPSTREAMTRANSPORT]], FactorMatrix[[MODE]:[MODE]], $B41, FactorMatrix[[PHASE]:[PHASE]],\"MAINTENANCE\", FactorMatrix[[GHGSOURCE]:[GHGSOURCE]], \"track mile\", FactorMatrix[[TYPE]:[TYPE]], L$33)*Years","v":0},{"$f":"SUMIFS(FactorMatrix[[UPSTREAMTRANSPORT]:[UPSTREAMTRANSPORT]], FactorMatrix[[MODE]:[MODE]], $B41, FactorMatrix[[PHASE]:[PHASE]],\"MAINTENANCE\", FactorMatrix[[GHGSOURCE]:[GHGSOURCE]], \"track mile\", FactorMatrix[[TYPE]:[TYPE]], M$33)*Years","v":0},{"$f":"SUMIFS(FactorMatrix[[UPSTREAMTRANSPORT]:[UPSTREAMTRANSPORT]], FactorMatrix[[MODE]:[MODE]], $B41, FactorMatrix[[PHASE]:[PHASE]],\"MAINTENANCE\", FactorMatrix[[GHGSOURCE]:[GHGSOURCE]], \"track mile\", FactorMatrix[[TYPE]:[TYPE]], N$33)*Years","v":0},{"$f":"SUMIFS(FactorMatrix[[DOWNSTREAM]:[DOWNSTREAM]], FactorMatrix[[MODE]:[MODE]], $B41, FactorMatrix[[PHASE]:[PHASE]],\"MAINTENANCE\", FactorMatrix[[GHGSOURCE]:[GHGSOURCE]], \"track mile\", FactorMatrix[[TYPE]:[TYPE]], O$33)*Years","v":0},{"$f":"SUMIFS(FactorMatrix[[DOWNSTREAM]:[DOWNSTREAM]], FactorMatrix[[MODE]:[MODE]], $B41, FactorMatrix[[PHASE]:[PHASE]],\"MAINTENANCE\", FactorMatrix[[GHGSOURCE]:[GHGSOURCE]], \"track mile\", FactorMatrix[[TYPE]:[TYPE]], P$33)*Years","v":0},{"$f":"SUMIFS(FactorMatrix[[DOWNSTREAM]:[DOWNSTREAM]], FactorMatrix[[MODE]:[MODE]], $B41, FactorMatrix[[PHASE]:[PHASE]],\"MAINTENANCE\", FactorMatrix[[GHGSOURCE]:[GHGSOURCE]], \"track mile\", FactorMatrix[[TYPE]:[TYPE]], Q$33)*Years","v":0},{"$f":"SUMIFS(FactorMatrix[[DOWNSTREAM]:[DOWNSTREAM]], FactorMatrix[[MODE]:[MODE]], $B41, FactorMatrix[[PHASE]:[PHASE]],\"MAINTENANCE\", FactorMatrix[[GHGSOURCE]:[GHGSOURCE]], \"track mile\", FactorMatrix[[TYPE]:[TYPE]], R$33)*Years","v":0},0,0,0]
[9,0,0,0,0,0,{"$f":"SUMIFS(FactorMatrix[[UPSTREAMMATERIALS]:[UPSTREAMMATERIALS]], FactorMatrix[[MODE]:[MODE]], $B42, FactorMatrix[[PHASE]:[PHASE]],\"MAINTENANCE\", FactorMatrix[[GHGSOURCE]:[GHGSOURCE]], \"track mile\", FactorMatrix[[TYPE]:[TYPE]], G$33)*Years","v":0},{"$f":"SUMIFS(FactorMatrix[[UPSTREAMMATERIALS]:[UPSTREAMMATERIALS]], FactorMatrix[[MODE]:[MODE]], $B42, FactorMatrix[[PHASE]:[PHASE]],\"MAINTENANCE\", FactorMatrix[[GHGSOURCE]:[GHGSOURCE]], \"track mile\", FactorMatrix[[TYPE]:[TYPE]], H$33)*Years","v":0},{"$f":"SUMIFS(FactorMatrix[[UPSTREAMMATERIALS]:[UPSTREAMMATERIALS]], FactorMatrix[[MODE]:[MODE]], $B42, FactorMatrix[[PHASE]:[PHASE]],\"MAINTENANCE\", FactorMatrix[[GHGSOURCE]:[GHGSOURCE]], \"track mile\", FactorMatrix[[TYPE]:[TYPE]], I$33)*Years","v":0},{"$f":"SUMIFS(FactorMatrix[[UPSTREAMMATERIALS]:[UPSTREAMMATERIALS]], FactorMatrix[[MODE]:[MODE]], $B42, FactorMatrix[[PHASE]:[PHASE]],\"MAINTENANCE\", FactorMatrix[[GHGSOURCE]:[GHGSOURCE]], \"track mile\", FactorMatrix[[TYPE]:[TYPE]], J$33)*Years","v":0},{"$f":"SUMIFS(FactorMatrix[[UPSTREAMTRANSPORT]:[UPSTREAMTRANSPORT]], FactorMatrix[[MODE]:[MODE]], $B42, FactorMatrix[[PHASE]:[PHASE]],\"MAINTENANCE\", FactorMatrix[[GHGSOURCE]:[GHGSOURCE]], \"track mile\", FactorMatrix[[TYPE]:[TYPE]], K$33)*Years","v":0},{"$f":"SUMIFS(FactorMatrix[[UPSTREAMTRANSPORT]:[UPSTREAMTRANSPORT]], FactorMatrix[[MODE]:[MODE]], $B42, FactorMatrix[[PHASE]:[PHASE]],\"MAINTENANCE\", FactorMatrix[[GHGSOURCE]:[GHGSOURCE]], \"track mile\", FactorMatrix[[TYPE]:[TYPE]], L$33)*Years","v":0},{"$f":"SUMIFS(FactorMatrix[[UPSTREAMTRANSPORT]:[UPSTREAMTRANSPORT]], FactorMatrix[[MODE]:[MODE]], $B42, FactorMatrix[[PHASE]:[PHASE]],\"MAINTENANCE\", FactorMatrix[[GHGSOURCE]:[GHGSOURCE]], \"track mile\", FactorMatrix[[TYPE]:[TYPE]], M$33)*Years","v":0},{"$f":"SUMIFS(FactorMatrix[[UPSTREAMTRANSPORT]:[UPSTREAMTRANSPORT]], FactorMatrix[[MODE]:[MODE]], $B42, FactorMatrix[[PHASE]:[PHASE]],\"MAINTENANCE\", FactorMatrix[[GHGSOURCE]:[GHGSOURCE]], \"track mile\", FactorMatrix[[TYPE]:[TYPE]], N$33)*Years","v":0},{"$f":"SUMIFS(FactorMatrix[[DOWNSTREAM]:[DOWNSTREAM]], FactorMatrix[[MODE]:[MODE]], $B42, FactorMatrix[[PHASE]:[PHASE]],\"MAINTENANCE\", FactorMatrix[[GHGSOURCE]:[GHGSOURCE]], \"track mile\", FactorMatrix[[TYPE]:[TYPE]], O$33)*Years","v":0},{"$f":"SUMIFS(FactorMatrix[[DOWNSTREAM]:[DOWNSTREAM]], FactorMatrix[[MODE]:[MODE]], $B42, FactorMatrix[[PHASE]:[PHASE]],\"MAINTENANCE\", FactorMatrix[[GHGSOURCE]:[GHGSOURCE]], \"track mile\", FactorMatrix[[TYPE]:[TYPE]], P$33)*Years","v":0},{"$f":"SUMIFS(FactorMatrix[[DOWNSTREAM]:[DOWNSTREAM]], FactorMatrix[[MODE]:[MODE]], $B42, FactorMatrix[[PHASE]:[PHASE]],\"MAINTENANCE\", FactorMatrix[[GHGSOURCE]:[GHGSOURCE]], \"track mile\", FactorMatrix[[TYPE]:[TYPE]], Q$33)*Years","v":0},{"$f":"SUMIFS(FactorMatrix[[DOWNSTREAM]:[DOWNSTREAM]], FactorMatrix[[MODE]:[MODE]], $B42, FactorMatrix[[PHASE]:[PHASE]],\"MAINTENANCE\", FactorMatrix[[GHGSOURCE]:[GHGSOURCE]], \"track mile\", FactorMatrix[[TYPE]:[TYPE]], R$33)*Years","v":0},0,0,0]
[10,0,0,0,0,0,{"$f":"SUMIFS(FactorMatrix[[UPSTREAMMATERIALS]:[UPSTREAMMATERIALS]], FactorMatrix[[MODE]:[MODE]], $B43, FactorMatrix[[PHASE]:[PHASE]],\"MAINTENANCE\", FactorMatrix[[GHGSOURCE]:[GHGSOURCE]], \"track mile\", FactorMatrix[[TYPE]:[TYPE]], G$33)*Years","v":0},{"$f":"SUMIFS(FactorMatrix[[UPSTREAMMATERIALS]:[UPSTREAMMATERIALS]], FactorMatrix[[MODE]:[MODE]], $B43, FactorMatrix[[PHASE]:[PHASE]],\"MAINTENANCE\", FactorMatrix[[GHGSOURCE]:[GHGSOURCE]], \"track mile\", FactorMatrix[[TYPE]:[TYPE]], H$33)*Years","v":0},{"$f":"SUMIFS(FactorMatrix[[UPSTREAMMATERIALS]:[UPSTREAMMATERIALS]], FactorMatrix[[MODE]:[MODE]], $B43, FactorMatrix[[PHASE]:[PHASE]],\"MAINTENANCE\", FactorMatrix[[GHGSOURCE]:[GHGSOURCE]], \"track mile\", FactorMatrix[[TYPE]:[TYPE]], I$33)*Years","v":0},{"$f":"SUMIFS(FactorMatrix[[UPSTREAMMATERIALS]:[UPSTREAMMATERIALS]], FactorMatrix[[MODE]:[MODE]], $B43, FactorMatrix[[PHASE]:[PHASE]],\"MAINTENANCE\", FactorMatrix[[GHGSOURCE]:[GHGSOURCE]], \"track mile\", FactorMatrix[[TYPE]:[TYPE]], J$33)*Years","v":0},{"$f":"SUMIFS(FactorMatrix[[UPSTREAMTRANSPORT]:[UPSTREAMTRANSPORT]], FactorMatrix[[MODE]:[MODE]], $B43, FactorMatrix[[PHASE]:[PHASE]],\"MAINTENANCE\", FactorMatrix[[GHGSOURCE]:[GHGSOURCE]], \"track mile\", FactorMatrix[[TYPE]:[TYPE]], K$33)*Years","v":0},{"$f":"SUMIFS(FactorMatrix[[UPSTREAMTRANSPORT]:[UPSTREAMTRANSPORT]], FactorMatrix[[MODE]:[MODE]], $B43, FactorMatrix[[PHASE]:[PHASE]],\"MAINTENANCE\", FactorMatrix[[GHGSOURCE]:[GHGSOURCE]], \"track mile\", FactorMatrix[[TYPE]:[TYPE]], L$33)*Years","v":0},{"$f":"SUMIFS(FactorMatrix[[UPSTREAMTRANSPORT]:[UPSTREAMTRANSPORT]], FactorMatrix[[MODE]:[MODE]], $B43, FactorMatrix[[PHASE]:[PHASE]],\"MAINTENANCE\", FactorMatrix[[GHGSOURCE]:[GHGSOURCE]], \"track mile\", FactorMatrix[[TYPE]:[TYPE]], M$33)*Years","v":0},{"$f":"SUMIFS(FactorMatrix[[UPSTREAMTRANSPORT]:[UPSTREAMTRANSPORT]], FactorMatrix[[MODE]:[MODE]], $B43, FactorMatrix[[PHASE]:[PHASE]],\"MAINTENANCE\", FactorMatrix[[GHGSOURCE]:[GHGSOURCE]], \"track mile\", FactorMatrix[[TYPE]:[TYPE]], N$33)*Years","v":0},{"$f":"SUMIFS(FactorMatrix[[DOWNSTREAM]:[DOWNSTREAM]], FactorMatrix[[MODE]:[MODE]], $B43, FactorMatrix[[PHASE]:[PHASE]],\"MAINTENANCE\", FactorMatrix[[GHGSOURCE]:[GHGSOURCE]], \"track mile\", FactorMatrix[[TYPE]:[TYPE]], O$33)*Years","v":0},{"$f":"SUMIFS(FactorMatrix[[DOWNSTREAM]:[DOWNSTREAM]], FactorMatrix[[MODE]:[MODE]], $B43, FactorMatrix[[PHASE]:[PHASE]],\"MAINTENANCE\", FactorMatrix[[GHGSOURCE]:[GHGSOURCE]], \"track mile\", FactorMatrix[[TYPE]:[TYPE]], P$33)*Years","v":0},{"$f":"SUMIFS(FactorMatrix[[DOWNSTREAM]:[DOWNSTREAM]], FactorMatrix[[MODE]:[MODE]], $B43, FactorMatrix[[PHASE]:[PHASE]],\"MAINTENANCE\", FactorMatrix[[GHGSOURCE]:[GHGSOURCE]], \"track mile\", FactorMatrix[[TYPE]:[TYPE]], Q$33)*Years","v":0},{"$f":"SUMIFS(FactorMatrix[[DOWNSTREAM]:[DOWNSTREAM]], FactorMatrix[[MODE]:[MODE]], $B43, FactorMatrix[[PHASE]:[PHASE]],\"MAINTENANCE\", FactorMatrix[[GHGSOURCE]:[GHGSOURCE]], \"track mile\", FactorMatrix[[TYPE]:[TYPE]], R$33)*Years","v":0},0,0,0]
[11,0,0,0,0,0,{"$f":"SUMIFS(FactorMatrix[[UPSTREAMMATERIALS]:[UPSTREAMMATERIALS]], FactorMatrix[[MODE]:[MODE]], $B44, FactorMatrix[[PHASE]:[PHASE]],\"MAINTENANCE\", FactorMatrix[[GHGSOURCE]:[GHGSOURCE]], \"track mile\", FactorMatrix[[TYPE]:[TYPE]], G$33)*Years","v":0},{"$f":"SUMIFS(FactorMatrix[[UPSTREAMMATERIALS]:[UPSTREAMMATERIALS]], FactorMatrix[[MODE]:[MODE]], $B44, FactorMatrix[[PHASE]:[PHASE]],\"MAINTENANCE\", FactorMatrix[[GHGSOURCE]:[GHGSOURCE]], \"track mile\", FactorMatrix[[TYPE]:[TYPE]], H$33)*Years","v":0},{"$f":"SUMIFS(FactorMatrix[[UPSTREAMMATERIALS]:[UPSTREAMMATERIALS]], FactorMatrix[[MODE]:[MODE]], $B44, FactorMatrix[[PHASE]:[PHASE]],\"MAINTENANCE\", FactorMatrix[[GHGSOURCE]:[GHGSOURCE]], \"track mile\", FactorMatrix[[TYPE]:[TYPE]], I$33)*Years","v":0},{"$f":"SUMIFS(FactorMatrix[[UPSTREAMMATERIALS]:[UPSTREAMMATERIALS]], FactorMatrix[[MODE]:[MODE]], $B44, FactorMatrix[[PHASE]:[PHASE]],\"MAINTENANCE\", FactorMatrix[[GHGSOURCE]:[GHGSOURCE]], \"track mile\", FactorMatrix[[TYPE]:[TYPE]], J$33)*Years","v":0},{"$f":"SUMIFS(FactorMatrix[[UPSTREAMTRANSPORT]:[UPSTREAMTRANSPORT]], FactorMatrix[[MODE]:[MODE]], $B44, FactorMatrix[[PHASE]:[PHASE]],\"MAINTENANCE\", FactorMatrix[[GHGSOURCE]:[GHGSOURCE]], \"track mile\", FactorMatrix[[TYPE]:[TYPE]], K$33)*Years","v":0},{"$f":"SUMIFS(FactorMatrix[[UPSTREAMTRANSPORT]:[UPSTREAMTRANSPORT]], FactorMatrix[[MODE]:[MODE]], $B44, FactorMatrix[[PHASE]:[PHASE]],\"MAINTENANCE\", FactorMatrix[[GHGSOURCE]:[GHGSOURCE]], \"track mile\", FactorMatrix[[TYPE]:[TYPE]], L$33)*Years","v":0},{"$f":"SUMIFS(FactorMatrix[[UPSTREAMTRANSPORT]:[UPSTREAMTRANSPORT]], FactorMatrix[[MODE]:[MODE]], $B44, FactorMatrix[[PHASE]:[PHASE]],\"MAINTENANCE\", FactorMatrix[[GHGSOURCE]:[GHGSOURCE]], \"track mile\", FactorMatrix[[TYPE]:[TYPE]], M$33)*Years","v":0},{"$f":"SUMIFS(FactorMatrix[[UPSTREAMTRANSPORT]:[UPSTREAMTRANSPORT]], FactorMatrix[[MODE]:[MODE]], $B44, FactorMatrix[[PHASE]:[PHASE]],\"MAINTENANCE\", FactorMatrix[[GHGSOURCE]:[GHGSOURCE]], \"track mile\", FactorMatrix[[TYPE]:[TYPE]], N$33)*Years","v":0},{"$f":"SUMIFS(FactorMatrix[[DOWNSTREAM]:[DOWNSTREAM]], FactorMatrix[[MODE]:[MODE]], $B44, FactorMatrix[[PHASE]:[PHASE]],\"MAINTENANCE\", FactorMatrix[[GHGSOURCE]:[GHGSOURCE]], \"track mile\", FactorMatrix[[TYPE]:[TYPE]], O$33)*Years","v":0},{"$f":"SUMIFS(FactorMatrix[[DOWNSTREAM]:[DOWNSTREAM]], FactorMatrix[[MODE]:[MODE]], $B44, FactorMatrix[[PHASE]:[PHASE]],\"MAINTENANCE\", FactorMatrix[[GHGSOURCE]:[GHGSOURCE]], \"track mile\", FactorMatrix[[TYPE]:[TYPE]], P$33)*Years","v":0},{"$f":"SUMIFS(FactorMatrix[[DOWNSTREAM]:[DOWNSTREAM]], FactorMatrix[[MODE]:[MODE]], $B44, FactorMatrix[[PHASE]:[PHASE]],\"MAINTENANCE\", FactorMatrix[[GHGSOURCE]:[GHGSOURCE]], \"track mile\", FactorMatrix[[TYPE]:[TYPE]], Q$33)*Years","v":0},{"$f":"SUMIFS(FactorMatrix[[DOWNSTREAM]:[DOWNSTREAM]], FactorMatrix[[MODE]:[MODE]], $B44, FactorMatrix[[PHASE]:[PHASE]],\"MAINTENANCE\", FactorMatrix[[GHGSOURCE]:[GHGSOURCE]], \"track mile\", FactorMatrix[[TYPE]:[TYPE]], R$33)*Years","v":0},0,0,0]
[12,0,0,0,0,0,{"$f":"SUMIFS(FactorMatrix[[UPSTREAMMATERIALS]:[UPSTREAMMATERIALS]], FactorMatrix[[MODE]:[MODE]], $B45, FactorMatrix[[PHASE]:[PHASE]],\"MAINTENANCE\", FactorMatrix[[GHGSOURCE]:[GHGSOURCE]], \"track mile\", FactorMatrix[[TYPE]:[TYPE]], G$33)*Years","v":0},{"$f":"SUMIFS(FactorMatrix[[UPSTREAMMATERIALS]:[UPSTREAMMATERIALS]], FactorMatrix[[MODE]:[MODE]], $B45, FactorMatrix[[PHASE]:[PHASE]],\"MAINTENANCE\", FactorMatrix[[GHGSOURCE]:[GHGSOURCE]], \"track mile\", FactorMatrix[[TYPE]:[TYPE]], H$33)*Years","v":0},{"$f":"SUMIFS(FactorMatrix[[UPSTREAMMATERIALS]:[UPSTREAMMATERIALS]], FactorMatrix[[MODE]:[MODE]], $B45, FactorMatrix[[PHASE]:[PHASE]],\"MAINTENANCE\", FactorMatrix[[GHGSOURCE]:[GHGSOURCE]], \"track mile\", FactorMatrix[[TYPE]:[TYPE]], I$33)*Years","v":0},{"$f":"SUMIFS(FactorMatrix[[UPSTREAMMATERIALS]:[UPSTREAMMATERIALS]], FactorMatrix[[MODE]:[MODE]], $B45, FactorMatrix[[PHASE]:[PHASE]],\"MAINTENANCE\", FactorMatrix[[GHGSOURCE]:[GHGSOURCE]], \"track mile\", FactorMatrix[[TYPE]:[TYPE]], J$33)*Years","v":0},{"$f":"SUMIFS(FactorMatrix[[UPSTREAMTRANSPORT]:[UPSTREAMTRANSPORT]], FactorMatrix[[MODE]:[MODE]], $B45, FactorMatrix[[PHASE]:[PHASE]],\"MAINTENANCE\", FactorMatrix[[GHGSOURCE]:[GHGSOURCE]], \"track mile\", FactorMatrix[[TYPE]:[TYPE]], K$33)*Years","v":0},{"$f":"SUMIFS(FactorMatrix[[UPSTREAMTRANSPORT]:[UPSTREAMTRANSPORT]], FactorMatrix[[MODE]:[MODE]], $B45, FactorMatrix[[PHASE]:[PHASE]],\"MAINTENANCE\", FactorMatrix[[GHGSOURCE]:[GHGSOURCE]], \"track mile\", FactorMatrix[[TYPE]:[TYPE]], L$33)*Years","v":0},{"$f":"SUMIFS(FactorMatrix[[UPSTREAMTRANSPORT]:[UPSTREAMTRANSPORT]], FactorMatrix[[MODE]:[MODE]], $B45, FactorMatrix[[PHASE]:[PHASE]],\"MAINTENANCE\", FactorMatrix[[GHGSOURCE]:[GHGSOURCE]], \"track mile\", FactorMatrix[[TYPE]:[TYPE]], M$33)*Years","v":0},{"$f":"SUMIFS(FactorMatrix[[UPSTREAMTRANSPORT]:[UPSTREAMTRANSPORT]], FactorMatrix[[MODE]:[MODE]], $B45, FactorMatrix[[PHASE]:[PHASE]],\"MAINTENANCE\", FactorMatrix[[GHGSOURCE]:[GHGSOURCE]], \"track mile\", FactorMatrix[[TYPE]:[TYPE]], N$33)*Years","v":0},{"$f":"SUMIFS(FactorMatrix[[DOWNSTREAM]:[DOWNSTREAM]], FactorMatrix[[MODE]:[MODE]], $B45, FactorMatrix[[PHASE]:[PHASE]],\"MAINTENANCE\", FactorMatrix[[GHGSOURCE]:[GHGSOURCE]], \"track mile\", FactorMatrix[[TYPE]:[TYPE]], O$33)*Years","v":0},{"$f":"SUMIFS(FactorMatrix[[DOWNSTREAM]:[DOWNSTREAM]], FactorMatrix[[MODE]:[MODE]], $B45, FactorMatrix[[PHASE]:[PHASE]],\"MAINTENANCE\", FactorMatrix[[GHGSOURCE]:[GHGSOURCE]], \"track mile\", FactorMatrix[[TYPE]:[TYPE]], P$33)*Years","v":0},{"$f":"SUMIFS(FactorMatrix[[DOWNSTREAM]:[DOWNSTREAM]], FactorMatrix[[MODE]:[MODE]], $B45, FactorMatrix[[PHASE]:[PHASE]],\"MAINTENANCE\", FactorMatrix[[GHGSOURCE]:[GHGSOURCE]], \"track mile\", FactorMatrix[[TYPE]:[TYPE]], Q$33)*Years","v":0},{"$f":"SUMIFS(FactorMatrix[[DOWNSTREAM]:[DOWNSTREAM]], FactorMatrix[[MODE]:[MODE]], $B45, FactorMatrix[[PHASE]:[PHASE]],\"MAINTENANCE\", FactorMatrix[[GHGSOURCE]:[GHGSOURCE]], \"track mile\", FactorMatrix[[TYPE]:[TYPE]], R$33)*Years","v":0},0,0,0]
[13,0,0,0,0,0,{"$f":"SUMIFS(FactorMatrix[[UPSTREAMMATERIALS]:[UPSTREAMMATERIALS]], FactorMatrix[[MODE]:[MODE]], $B46, FactorMatrix[[PHASE]:[PHASE]],\"MAINTENANCE\", FactorMatrix[[GHGSOURCE]:[GHGSOURCE]], \"track mile\", FactorMatrix[[TYPE]:[TYPE]], G$33)*Years","v":0},{"$f":"SUMIFS(FactorMatrix[[UPSTREAMMATERIALS]:[UPSTREAMMATERIALS]], FactorMatrix[[MODE]:[MODE]], $B46, FactorMatrix[[PHASE]:[PHASE]],\"MAINTENANCE\", FactorMatrix[[GHGSOURCE]:[GHGSOURCE]], \"track mile\", FactorMatrix[[TYPE]:[TYPE]], H$33)*Years","v":0},{"$f":"SUMIFS(FactorMatrix[[UPSTREAMMATERIALS]:[UPSTREAMMATERIALS]], FactorMatrix[[MODE]:[MODE]], $B46, FactorMatrix[[PHASE]:[PHASE]],\"MAINTENANCE\", FactorMatrix[[GHGSOURCE]:[GHGSOURCE]], \"track mile\", FactorMatrix[[TYPE]:[TYPE]], I$33)*Years","v":0},{"$f":"SUMIFS(FactorMatrix[[UPSTREAMMATERIALS]:[UPSTREAMMATERIALS]], FactorMatrix[[MODE]:[MODE]], $B46, FactorMatrix[[PHASE]:[PHASE]],\"MAINTENANCE\", FactorMatrix[[GHGSOURCE]:[GHGSOURCE]], \"track mile\", FactorMatrix[[TYPE]:[TYPE]], J$33)*Years","v":0},{"$f":"SUMIFS(FactorMatrix[[UPSTREAMTRANSPORT]:[UPSTREAMTRANSPORT]], FactorMatrix[[MODE]:[MODE]], $B46, FactorMatrix[[PHASE]:[PHASE]],\"MAINTENANCE\", FactorMatrix[[GHGSOURCE]:[GHGSOURCE]], \"track mile\", FactorMatrix[[TYPE]:[TYPE]], K$33)*Years","v":0},{"$f":"SUMIFS(FactorMatrix[[UPSTREAMTRANSPORT]:[UPSTREAMTRANSPORT]], FactorMatrix[[MODE]:[MODE]], $B46, FactorMatrix[[PHASE]:[PHASE]],\"MAINTENANCE\", FactorMatrix[[GHGSOURCE]:[GHGSOURCE]], \"track mile\", FactorMatrix[[TYPE]:[TYPE]], L$33)*Years","v":0},{"$f":"SUMIFS(FactorMatrix[[UPSTREAMTRANSPORT]:[UPSTREAMTRANSPORT]], FactorMatrix[[MODE]:[MODE]], $B46, FactorMatrix[[PHASE]:[PHASE]],\"MAINTENANCE\", FactorMatrix[[GHGSOURCE]:[GHGSOURCE]], \"track mile\", FactorMatrix[[TYPE]:[TYPE]], M$33)*Years","v":0},{"$f":"SUMIFS(FactorMatrix[[UPSTREAMTRANSPORT]:[UPSTREAMTRANSPORT]], FactorMatrix[[MODE]:[MODE]], $B46, FactorMatrix[[PHASE]:[PHASE]],\"MAINTENANCE\", FactorMatrix[[GHGSOURCE]:[GHGSOURCE]], \"track mile\", FactorMatrix[[TYPE]:[TYPE]], N$33)*Years","v":0},{"$f":"SUMIFS(FactorMatrix[[DOWNSTREAM]:[DOWNSTREAM]], FactorMatrix[[MODE]:[MODE]], $B46, FactorMatrix[[PHASE]:[PHASE]],\"MAINTENANCE\", FactorMatrix[[GHGSOURCE]:[GHGSOURCE]], \"track mile\", FactorMatrix[[TYPE]:[TYPE]], O$33)*Years","v":0},{"$f":"SUMIFS(FactorMatrix[[DOWNSTREAM]:[DOWNSTREAM]], FactorMatrix[[MODE]:[MODE]], $B46, FactorMatrix[[PHASE]:[PHASE]],\"MAINTENANCE\", FactorMatrix[[GHGSOURCE]:[GHGSOURCE]], \"track mile\", FactorMatrix[[TYPE]:[TYPE]], P$33)*Years","v":0},{"$f":"SUMIFS(FactorMatrix[[DOWNSTREAM]:[DOWNSTREAM]], FactorMatrix[[MODE]:[MODE]], $B46, FactorMatrix[[PHASE]:[PHASE]],\"MAINTENANCE\", FactorMatrix[[GHGSOURCE]:[GHGSOURCE]], \"track mile\", FactorMatrix[[TYPE]:[TYPE]], Q$33)*Years","v":0},{"$f":"SUMIFS(FactorMatrix[[DOWNSTREAM]:[DOWNSTREAM]], FactorMatrix[[MODE]:[MODE]], $B46, FactorMatrix[[PHASE]:[PHASE]],\"MAINTENANCE\", FactorMatrix[[GHGSOURCE]:[GHGSOURCE]], \"track mile\", FactorMatrix[[TYPE]:[TYPE]], R$33)*Years","v":0},0,0,0]
[14,0,0,0,0,0,{"$f":"SUMIFS(FactorMatrix[[UPSTREAMMATERIALS]:[UPSTREAMMATERIALS]], FactorMatrix[[MODE]:[MODE]], $B47, FactorMatrix[[PHASE]:[PHASE]],\"MAINTENANCE\", FactorMatrix[[GHGSOURCE]:[GHGSOURCE]], \"track mile\", FactorMatrix[[TYPE]:[TYPE]], G$33)*Years","v":0},{"$f":"SUMIFS(FactorMatrix[[UPSTREAMMATERIALS]:[UPSTREAMMATERIALS]], FactorMatrix[[MODE]:[MODE]], $B47, FactorMatrix[[PHASE]:[PHASE]],\"MAINTENANCE\", FactorMatrix[[GHGSOURCE]:[GHGSOURCE]], \"track mile\", FactorMatrix[[TYPE]:[TYPE]], H$33)*Years","v":0},{"$f":"SUMIFS(FactorMatrix[[UPSTREAMMATERIALS]:[UPSTREAMMATERIALS]], FactorMatrix[[MODE]:[MODE]], $B47, FactorMatrix[[PHASE]:[PHASE]],\"MAINTENANCE\", FactorMatrix[[GHGSOURCE]:[GHGSOURCE]], \"track mile\", FactorMatrix[[TYPE]:[TYPE]], I$33)*Years","v":0},{"$f":"SUMIFS(FactorMatrix[[UPSTREAMMATERIALS]:[UPSTREAMMATERIALS]], FactorMatrix[[MODE]:[MODE]], $B47, FactorMatrix[[PHASE]:[PHASE]],\"MAINTENANCE\", FactorMatrix[[GHGSOURCE]:[GHGSOURCE]], \"track mile\", FactorMatrix[[TYPE]:[TYPE]], J$33)*Years","v":0},{"$f":"SUMIFS(FactorMatrix[[UPSTREAMTRANSPORT]:[UPSTREAMTRANSPORT]], FactorMatrix[[MODE]:[MODE]], $B47, FactorMatrix[[PHASE]:[PHASE]],\"MAINTENANCE\", FactorMatrix[[GHGSOURCE]:[GHGSOURCE]], \"track mile\", FactorMatrix[[TYPE]:[TYPE]], K$33)*Years","v":0},{"$f":"SUMIFS(FactorMatrix[[UPSTREAMTRANSPORT]:[UPSTREAMTRANSPORT]], FactorMatrix[[MODE]:[MODE]], $B47, FactorMatrix[[PHASE]:[PHASE]],\"MAINTENANCE\", FactorMatrix[[GHGSOURCE]:[GHGSOURCE]], \"track mile\", FactorMatrix[[TYPE]:[TYPE]], L$33)*Years","v":0},{"$f":"SUMIFS(FactorMatrix[[UPSTREAMTRANSPORT]:[UPSTREAMTRANSPORT]], FactorMatrix[[MODE]:[MODE]], $B47, FactorMatrix[[PHASE]:[PHASE]],\"MAINTENANCE\", FactorMatrix[[GHGSOURCE]:[GHGSOURCE]], \"track mile\", FactorMatrix[[TYPE]:[TYPE]], M$33)*Years","v":0},{"$f":"SUMIFS(FactorMatrix[[UPSTREAMTRANSPORT]:[UPSTREAMTRANSPORT]], FactorMatrix[[MODE]:[MODE]], $B47, FactorMatrix[[PHASE]:[PHASE]],\"MAINTENANCE\", FactorMatrix[[GHGSOURCE]:[GHGSOURCE]], \"track mile\", FactorMatrix[[TYPE]:[TYPE]], N$33)*Years","v":0},{"$f":"SUMIFS(FactorMatrix[[DOWNSTREAM]:[DOWNSTREAM]], FactorMatrix[[MODE]:[MODE]], $B47, FactorMatrix[[PHASE]:[PHASE]],\"MAINTENANCE\", FactorMatrix[[GHGSOURCE]:[GHGSOURCE]], \"track mile\", FactorMatrix[[TYPE]:[TYPE]], O$33)*Years","v":0},{"$f":"SUMIFS(FactorMatrix[[DOWNSTREAM]:[DOWNSTREAM]], FactorMatrix[[MODE]:[MODE]], $B47, FactorMatrix[[PHASE]:[PHASE]],\"MAINTENANCE\", FactorMatrix[[GHGSOURCE]:[GHGSOURCE]], \"track mile\", FactorMatrix[[TYPE]:[TYPE]], P$33)*Years","v":0},{"$f":"SUMIFS(FactorMatrix[[DOWNSTREAM]:[DOWNSTREAM]], FactorMatrix[[MODE]:[MODE]], $B47, FactorMatrix[[PHASE]:[PHASE]],\"MAINTENANCE\", FactorMatrix[[GHGSOURCE]:[GHGSOURCE]], \"track mile\", FactorMatrix[[TYPE]:[TYPE]], Q$33)*Years","v":0},{"$f":"SUMIFS(FactorMatrix[[DOWNSTREAM]:[DOWNSTREAM]], FactorMatrix[[MODE]:[MODE]], $B47, FactorMatrix[[PHASE]:[PHASE]],\"MAINTENANCE\", FactorMatrix[[GHGSOURCE]:[GHGSOURCE]], \"track mile\", FactorMatrix[[TYPE]:[TYPE]], R$33)*Years","v":0},0,0,0]
[15,0,0,0,0,0,{"$f":"SUMIFS(FactorMatrix[[UPSTREAMMATERIALS]:[UPSTREAMMATERIALS]], FactorMatrix[[MODE]:[MODE]], $B48, FactorMatrix[[PHASE]:[PHASE]],\"MAINTENANCE\", FactorMatrix[[GHGSOURCE]:[GHGSOURCE]], \"track mile\", FactorMatrix[[TYPE]:[TYPE]], G$33)*Years","v":0},{"$f":"SUMIFS(FactorMatrix[[UPSTREAMMATERIALS]:[UPSTREAMMATERIALS]], FactorMatrix[[MODE]:[MODE]], $B48, FactorMatrix[[PHASE]:[PHASE]],\"MAINTENANCE\", FactorMatrix[[GHGSOURCE]:[GHGSOURCE]], \"track mile\", FactorMatrix[[TYPE]:[TYPE]], H$33)*Years","v":0},{"$f":"SUMIFS(FactorMatrix[[UPSTREAMMATERIALS]:[UPSTREAMMATERIALS]], FactorMatrix[[MODE]:[MODE]], $B48, FactorMatrix[[PHASE]:[PHASE]],\"MAINTENANCE\", FactorMatrix[[GHGSOURCE]:[GHGSOURCE]], \"track mile\", FactorMatrix[[TYPE]:[TYPE]], I$33)*Years","v":0},{"$f":"SUMIFS(FactorMatrix[[UPSTREAMMATERIALS]:[UPSTREAMMATERIALS]], FactorMatrix[[MODE]:[MODE]], $B48, FactorMatrix[[PHASE]:[PHASE]],\"MAINTENANCE\", FactorMatrix[[GHGSOURCE]:[GHGSOURCE]], \"track mile\", FactorMatrix[[TYPE]:[TYPE]], J$33)*Years","v":0},{"$f":"SUMIFS(FactorMatrix[[UPSTREAMTRANSPORT]:[UPSTREAMTRANSPORT]], FactorMatrix[[MODE]:[MODE]], $B48, FactorMatrix[[PHASE]:[PHASE]],\"MAINTENANCE\", FactorMatrix[[GHGSOURCE]:[GHGSOURCE]], \"track mile\", FactorMatrix[[TYPE]:[TYPE]], K$33)*Years","v":0},{"$f":"SUMIFS(FactorMatrix[[UPSTREAMTRANSPORT]:[UPSTREAMTRANSPORT]], FactorMatrix[[MODE]:[MODE]], $B48, FactorMatrix[[PHASE]:[PHASE]],\"MAINTENANCE\", FactorMatrix[[GHGSOURCE]:[GHGSOURCE]], \"track mile\", FactorMatrix[[TYPE]:[TYPE]], L$33)*Years","v":0},{"$f":"SUMIFS(FactorMatrix[[UPSTREAMTRANSPORT]:[UPSTREAMTRANSPORT]], FactorMatrix[[MODE]:[MODE]], $B48, FactorMatrix[[PHASE]:[PHASE]],\"MAINTENANCE\", FactorMatrix[[GHGSOURCE]:[GHGSOURCE]], \"track mile\", FactorMatrix[[TYPE]:[TYPE]], M$33)*Years","v":0},{"$f":"SUMIFS(FactorMatrix[[UPSTREAMTRANSPORT]:[UPSTREAMTRANSPORT]], FactorMatrix[[MODE]:[MODE]], $B48, FactorMatrix[[PHASE]:[PHASE]],\"MAINTENANCE\", FactorMatrix[[GHGSOURCE]:[GHGSOURCE]], \"track mile\", FactorMatrix[[TYPE]:[TYPE]], N$33)*Years","v":0},{"$f":"SUMIFS(FactorMatrix[[DOWNSTREAM]:[DOWNSTREAM]], FactorMatrix[[MODE]:[MODE]], $B48, FactorMatrix[[PHASE]:[PHASE]],\"MAINTENANCE\", FactorMatrix[[GHGSOURCE]:[GHGSOURCE]], \"track mile\", FactorMatrix[[TYPE]:[TYPE]], O$33)*Years","v":0},{"$f":"SUMIFS(FactorMatrix[[DOWNSTREAM]:[DOWNSTREAM]], FactorMatrix[[MODE]:[MODE]], $B48, FactorMatrix[[PHASE]:[PHASE]],\"MAINTENANCE\", FactorMatrix[[GHGSOURCE]:[GHGSOURCE]], \"track mile\", FactorMatrix[[TYPE]:[TYPE]], P$33)*Years","v":0},{"$f":"SUMIFS(FactorMatrix[[DOWNSTREAM]:[DOWNSTREAM]], FactorMatrix[[MODE]:[MODE]], $B48, FactorMatrix[[PHASE]:[PHASE]],\"MAINTENANCE\", FactorMatrix[[GHGSOURCE]:[GHGSOURCE]], \"track mile\", FactorMatrix[[TYPE]:[TYPE]], Q$33)*Years","v":0},{"$f":"SUMIFS(FactorMatrix[[DOWNSTREAM]:[DOWNSTREAM]], FactorMatrix[[MODE]:[MODE]], $B48, FactorMatrix[[PHASE]:[PHASE]],\"MAINTENANCE\", FactorMatrix[[GHGSOURCE]:[GHGSOURCE]], \"track mile\", FactorMatrix[[TYPE]:[TYPE]], R$33)*Years","v":0},0,0,0]
[16,0,0,0,0,0,{"$f":"SUMIFS(FactorMatrix[[UPSTREAMMATERIALS]:[UPSTREAMMATERIALS]], FactorMatrix[[MODE]:[MODE]], $B49, FactorMatrix[[PHASE]:[PHASE]],\"MAINTENANCE\", FactorMatrix[[GHGSOURCE]:[GHGSOURCE]], \"track mile\", FactorMatrix[[TYPE]:[TYPE]], G$33)*Years","v":0},{"$f":"SUMIFS(FactorMatrix[[UPSTREAMMATERIALS]:[UPSTREAMMATERIALS]], FactorMatrix[[MODE]:[MODE]], $B49, FactorMatrix[[PHASE]:[PHASE]],\"MAINTENANCE\", FactorMatrix[[GHGSOURCE]:[GHGSOURCE]], \"track mile\", FactorMatrix[[TYPE]:[TYPE]], H$33)*Years","v":0},{"$f":"SUMIFS(FactorMatrix[[UPSTREAMMATERIALS]:[UPSTREAMMATERIALS]], FactorMatrix[[MODE]:[MODE]], $B49, FactorMatrix[[PHASE]:[PHASE]],\"MAINTENANCE\", FactorMatrix[[GHGSOURCE]:[GHGSOURCE]], \"track mile\", FactorMatrix[[TYPE]:[TYPE]], I$33)*Years","v":0},{"$f":"SUMIFS(FactorMatrix[[UPSTREAMMATERIALS]:[UPSTREAMMATERIALS]], FactorMatrix[[MODE]:[MODE]], $B49, FactorMatrix[[PHASE]:[PHASE]],\"MAINTENANCE\", FactorMatrix[[GHGSOURCE]:[GHGSOURCE]], \"track mile\", FactorMatrix[[TYPE]:[TYPE]], J$33)*Years","v":0},{"$f":"SUMIFS(FactorMatrix[[UPSTREAMTRANSPORT]:[UPSTREAMTRANSPORT]], FactorMatrix[[MODE]:[MODE]], $B49, FactorMatrix[[PHASE]:[PHASE]],\"MAINTENANCE\", FactorMatrix[[GHGSOURCE]:[GHGSOURCE]], \"track mile\", FactorMatrix[[TYPE]:[TYPE]], K$33)*Years","v":0},{"$f":"SUMIFS(FactorMatrix[[UPSTREAMTRANSPORT]:[UPSTREAMTRANSPORT]], FactorMatrix[[MODE]:[MODE]], $B49, FactorMatrix[[PHASE]:[PHASE]],\"MAINTENANCE\", FactorMatrix[[GHGSOURCE]:[GHGSOURCE]], \"track mile\", FactorMatrix[[TYPE]:[TYPE]], L$33)*Years","v":0},{"$f":"SUMIFS(FactorMatrix[[UPSTREAMTRANSPORT]:[UPSTREAMTRANSPORT]], FactorMatrix[[MODE]:[MODE]], $B49, FactorMatrix[[PHASE]:[PHASE]],\"MAINTENANCE\", FactorMatrix[[GHGSOURCE]:[GHGSOURCE]], \"track mile\", FactorMatrix[[TYPE]:[TYPE]], M$33)*Years","v":0},{"$f":"SUMIFS(FactorMatrix[[UPSTREAMTRANSPORT]:[UPSTREAMTRANSPORT]], FactorMatrix[[MODE]:[MODE]], $B49, FactorMatrix[[PHASE]:[PHASE]],\"MAINTENANCE\", FactorMatrix[[GHGSOURCE]:[GHGSOURCE]], \"track mile\", FactorMatrix[[TYPE]:[TYPE]], N$33)*Years","v":0},{"$f":"SUMIFS(FactorMatrix[[DOWNSTREAM]:[DOWNSTREAM]], FactorMatrix[[MODE]:[MODE]], $B49, FactorMatrix[[PHASE]:[PHASE]],\"MAINTENANCE\", FactorMatrix[[GHGSOURCE]:[GHGSOURCE]], \"track mile\", FactorMatrix[[TYPE]:[TYPE]], O$33)*Years","v":0},{"$f":"SUMIFS(FactorMatrix[[DOWNSTREAM]:[DOWNSTREAM]], FactorMatrix[[MODE]:[MODE]], $B49, FactorMatrix[[PHASE]:[PHASE]],\"MAINTENANCE\", FactorMatrix[[GHGSOURCE]:[GHGSOURCE]], \"track mile\", FactorMatrix[[TYPE]:[TYPE]], P$33)*Years","v":0},{"$f":"SUMIFS(FactorMatrix[[DOWNSTREAM]:[DOWNSTREAM]], FactorMatrix[[MODE]:[MODE]], $B49, FactorMatrix[[PHASE]:[PHASE]],\"MAINTENANCE\", FactorMatrix[[GHGSOURCE]:[GHGSOURCE]], \"track mile\", FactorMatrix[[TYPE]:[TYPE]], Q$33)*Years","v":0},{"$f":"SUMIFS(FactorMatrix[[DOWNSTREAM]:[DOWNSTREAM]], FactorMatrix[[MODE]:[MODE]], $B49, FactorMatrix[[PHASE]:[PHASE]],\"MAINTENANCE\", FactorMatrix[[GHGSOURCE]:[GHGSOURCE]], \"track mile\", FactorMatrix[[TYPE]:[TYPE]], R$33)*Years","v":0},0,0,0]
[17,0,0,0,0,0,{"$f":"SUMIFS(FactorMatrix[[UPSTREAMMATERIALS]:[UPSTREAMMATERIALS]], FactorMatrix[[MODE]:[MODE]], $B50, FactorMatrix[[PHASE]:[PHASE]],\"MAINTENANCE\", FactorMatrix[[GHGSOURCE]:[GHGSOURCE]], \"track mile\", FactorMatrix[[TYPE]:[TYPE]], G$33)*Years","v":0},{"$f":"SUMIFS(FactorMatrix[[UPSTREAMMATERIALS]:[UPSTREAMMATERIALS]], FactorMatrix[[MODE]:[MODE]], $B50, FactorMatrix[[PHASE]:[PHASE]],\"MAINTENANCE\", FactorMatrix[[GHGSOURCE]:[GHGSOURCE]], \"track mile\", FactorMatrix[[TYPE]:[TYPE]], H$33)*Years","v":0},{"$f":"SUMIFS(FactorMatrix[[UPSTREAMMATERIALS]:[UPSTREAMMATERIALS]], FactorMatrix[[MODE]:[MODE]], $B50, FactorMatrix[[PHASE]:[PHASE]],\"MAINTENANCE\", FactorMatrix[[GHGSOURCE]:[GHGSOURCE]], \"track mile\", FactorMatrix[[TYPE]:[TYPE]], I$33)*Years","v":0},{"$f":"SUMIFS(FactorMatrix[[UPSTREAMMATERIALS]:[UPSTREAMMATERIALS]], FactorMatrix[[MODE]:[MODE]], $B50, FactorMatrix[[PHASE]:[PHASE]],\"MAINTENANCE\", FactorMatrix[[GHGSOURCE]:[GHGSOURCE]], \"track mile\", FactorMatrix[[TYPE]:[TYPE]], J$33)*Years","v":0},{"$f":"SUMIFS(FactorMatrix[[UPSTREAMTRANSPORT]:[UPSTREAMTRANSPORT]], FactorMatrix[[MODE]:[MODE]], $B50, FactorMatrix[[PHASE]:[PHASE]],\"MAINTENANCE\", FactorMatrix[[GHGSOURCE]:[GHGSOURCE]], \"track mile\", FactorMatrix[[TYPE]:[TYPE]], K$33)*Years","v":0},{"$f":"SUMIFS(FactorMatrix[[UPSTREAMTRANSPORT]:[UPSTREAMTRANSPORT]], FactorMatrix[[MODE]:[MODE]], $B50, FactorMatrix[[PHASE]:[PHASE]],\"MAINTENANCE\", FactorMatrix[[GHGSOURCE]:[GHGSOURCE]], \"track mile\", FactorMatrix[[TYPE]:[TYPE]], L$33)*Years","v":0},{"$f":"SUMIFS(FactorMatrix[[UPSTREAMTRANSPORT]:[UPSTREAMTRANSPORT]], FactorMatrix[[MODE]:[MODE]], $B50, FactorMatrix[[PHASE]:[PHASE]],\"MAINTENANCE\", FactorMatrix[[GHGSOURCE]:[GHGSOURCE]], \"track mile\", FactorMatrix[[TYPE]:[TYPE]], M$33)*Years","v":0},{"$f":"SUMIFS(FactorMatrix[[UPSTREAMTRANSPORT]:[UPSTREAMTRANSPORT]], FactorMatrix[[MODE]:[MODE]], $B50, FactorMatrix[[PHASE]:[PHASE]],\"MAINTENANCE\", FactorMatrix[[GHGSOURCE]:[GHGSOURCE]], \"track mile\", FactorMatrix[[TYPE]:[TYPE]], N$33)*Years","v":0},{"$f":"SUMIFS(FactorMatrix[[DOWNSTREAM]:[DOWNSTREAM]], FactorMatrix[[MODE]:[MODE]], $B50, FactorMatrix[[PHASE]:[PHASE]],\"MAINTENANCE\", FactorMatrix[[GHGSOURCE]:[GHGSOURCE]], \"track mile\", FactorMatrix[[TYPE]:[TYPE]], O$33)*Years","v":0},{"$f":"SUMIFS(FactorMatrix[[DOWNSTREAM]:[DOWNSTREAM]], FactorMatrix[[MODE]:[MODE]], $B50, FactorMatrix[[PHASE]:[PHASE]],\"MAINTENANCE\", FactorMatrix[[GHGSOURCE]:[GHGSOURCE]], \"track mile\", FactorMatrix[[TYPE]:[TYPE]], P$33)*Years","v":0},{"$f":"SUMIFS(FactorMatrix[[DOWNSTREAM]:[DOWNSTREAM]], FactorMatrix[[MODE]:[MODE]], $B50, FactorMatrix[[PHASE]:[PHASE]],\"MAINTENANCE\", FactorMatrix[[GHGSOURCE]:[GHGSOURCE]], \"track mile\", FactorMatrix[[TYPE]:[TYPE]], Q$33)*Years","v":0},{"$f":"SUMIFS(FactorMatrix[[DOWNSTREAM]:[DOWNSTREAM]], FactorMatrix[[MODE]:[MODE]], $B50, FactorMatrix[[PHASE]:[PHASE]],\"MAINTENANCE\", FactorMatrix[[GHGSOURCE]:[GHGSOURCE]], \"track mile\", FactorMatrix[[TYPE]:[TYPE]], R$33)*Years","v":0},0,0,0]
[18,0,0,0,0,0,{"$f":"SUMIFS(FactorMatrix[[UPSTREAMMATERIALS]:[UPSTREAMMATERIALS]], FactorMatrix[[MODE]:[MODE]], $B51, FactorMatrix[[PHASE]:[PHASE]],\"MAINTENANCE\", FactorMatrix[[GHGSOURCE]:[GHGSOURCE]], \"track mile\", FactorMatrix[[TYPE]:[TYPE]], G$33)*Years","v":0},{"$f":"SUMIFS(FactorMatrix[[UPSTREAMMATERIALS]:[UPSTREAMMATERIALS]], FactorMatrix[[MODE]:[MODE]], $B51, FactorMatrix[[PHASE]:[PHASE]],\"MAINTENANCE\", FactorMatrix[[GHGSOURCE]:[GHGSOURCE]], \"track mile\", FactorMatrix[[TYPE]:[TYPE]], H$33)*Years","v":0},{"$f":"SUMIFS(FactorMatrix[[UPSTREAMMATERIALS]:[UPSTREAMMATERIALS]], FactorMatrix[[MODE]:[MODE]], $B51, FactorMatrix[[PHASE]:[PHASE]],\"MAINTENANCE\", FactorMatrix[[GHGSOURCE]:[GHGSOURCE]], \"track mile\", FactorMatrix[[TYPE]:[TYPE]], I$33)*Years","v":0},{"$f":"SUMIFS(FactorMatrix[[UPSTREAMMATERIALS]:[UPSTREAMMATERIALS]], FactorMatrix[[MODE]:[MODE]], $B51, FactorMatrix[[PHASE]:[PHASE]],\"MAINTENANCE\", FactorMatrix[[GHGSOURCE]:[GHGSOURCE]], \"track mile\", FactorMatrix[[TYPE]:[TYPE]], J$33)*Years","v":0},{"$f":"SUMIFS(FactorMatrix[[UPSTREAMTRANSPORT]:[UPSTREAMTRANSPORT]], FactorMatrix[[MODE]:[MODE]], $B51, FactorMatrix[[PHASE]:[PHASE]],\"MAINTENANCE\", FactorMatrix[[GHGSOURCE]:[GHGSOURCE]], \"track mile\", FactorMatrix[[TYPE]:[TYPE]], K$33)*Years","v":0},{"$f":"SUMIFS(FactorMatrix[[UPSTREAMTRANSPORT]:[UPSTREAMTRANSPORT]], FactorMatrix[[MODE]:[MODE]], $B51, FactorMatrix[[PHASE]:[PHASE]],\"MAINTENANCE\", FactorMatrix[[GHGSOURCE]:[GHGSOURCE]], \"track mile\", FactorMatrix[[TYPE]:[TYPE]], L$33)*Years","v":0},{"$f":"SUMIFS(FactorMatrix[[UPSTREAMTRANSPORT]:[UPSTREAMTRANSPORT]], FactorMatrix[[MODE]:[MODE]], $B51, FactorMatrix[[PHASE]:[PHASE]],\"MAINTENANCE\", FactorMatrix[[GHGSOURCE]:[GHGSOURCE]], \"track mile\", FactorMatrix[[TYPE]:[TYPE]], M$33)*Years","v":0},{"$f":"SUMIFS(FactorMatrix[[UPSTREAMTRANSPORT]:[UPSTREAMTRANSPORT]], FactorMatrix[[MODE]:[MODE]], $B51, FactorMatrix[[PHASE]:[PHASE]],\"MAINTENANCE\", FactorMatrix[[GHGSOURCE]:[GHGSOURCE]], \"track mile\", FactorMatrix[[TYPE]:[TYPE]], N$33)*Years","v":0},{"$f":"SUMIFS(FactorMatrix[[DOWNSTREAM]:[DOWNSTREAM]], FactorMatrix[[MODE]:[MODE]], $B51, FactorMatrix[[PHASE]:[PHASE]],\"MAINTENANCE\", FactorMatrix[[GHGSOURCE]:[GHGSOURCE]], \"track mile\", FactorMatrix[[TYPE]:[TYPE]], O$33)*Years","v":0},{"$f":"SUMIFS(FactorMatrix[[DOWNSTREAM]:[DOWNSTREAM]], FactorMatrix[[MODE]:[MODE]], $B51, FactorMatrix[[PHASE]:[PHASE]],\"MAINTENANCE\", FactorMatrix[[GHGSOURCE]:[GHGSOURCE]], \"track mile\", FactorMatrix[[TYPE]:[TYPE]], P$33)*Years","v":0},{"$f":"SUMIFS(FactorMatrix[[DOWNSTREAM]:[DOWNSTREAM]], FactorMatrix[[MODE]:[MODE]], $B51, FactorMatrix[[PHASE]:[PHASE]],\"MAINTENANCE\", FactorMatrix[[GHGSOURCE]:[GHGSOURCE]], \"track mile\", FactorMatrix[[TYPE]:[TYPE]], Q$33)*Years","v":0},{"$f":"SUMIFS(FactorMatrix[[DOWNSTREAM]:[DOWNSTREAM]], FactorMatrix[[MODE]:[MODE]], $B51, FactorMatrix[[PHASE]:[PHASE]],\"MAINTENANCE\", FactorMatrix[[GHGSOURCE]:[GHGSOURCE]], \"track mile\", FactorMatrix[[TYPE]:[TYPE]], R$33)*Years","v":0},0,0,0]
[19,0,0,0,0,0,{"$f":"SUMIFS(FactorMatrix[[UPSTREAMMATERIALS]:[UPSTREAMMATERIALS]], FactorMatrix[[MODE]:[MODE]], $B52, FactorMatrix[[PHASE]:[PHASE]],\"MAINTENANCE\", FactorMatrix[[GHGSOURCE]:[GHGSOURCE]], \"track mile\", FactorMatrix[[TYPE]:[TYPE]], G$33)*Years","v":0},{"$f":"SUMIFS(FactorMatrix[[UPSTREAMMATERIALS]:[UPSTREAMMATERIALS]], FactorMatrix[[MODE]:[MODE]], $B52, FactorMatrix[[PHASE]:[PHASE]],\"MAINTENANCE\", FactorMatrix[[GHGSOURCE]:[GHGSOURCE]], \"track mile\", FactorMatrix[[TYPE]:[TYPE]], H$33)*Years","v":0},{"$f":"SUMIFS(FactorMatrix[[UPSTREAMMATERIALS]:[UPSTREAMMATERIALS]], FactorMatrix[[MODE]:[MODE]], $B52, FactorMatrix[[PHASE]:[PHASE]],\"MAINTENANCE\", FactorMatrix[[GHGSOURCE]:[GHGSOURCE]], \"track mile\", FactorMatrix[[TYPE]:[TYPE]], I$33)*Years","v":0},{"$f":"SUMIFS(FactorMatrix[[UPSTREAMMATERIALS]:[UPSTREAMMATERIALS]], FactorMatrix[[MODE]:[MODE]], $B52, FactorMatrix[[PHASE]:[PHASE]],\"MAINTENANCE\", FactorMatrix[[GHGSOURCE]:[GHGSOURCE]], \"track mile\", FactorMatrix[[TYPE]:[TYPE]], J$33)*Years","v":0},{"$f":"SUMIFS(FactorMatrix[[UPSTREAMTRANSPORT]:[UPSTREAMTRANSPORT]], FactorMatrix[[MODE]:[MODE]], $B52, FactorMatrix[[PHASE]:[PHASE]],\"MAINTENANCE\", FactorMatrix[[GHGSOURCE]:[GHGSOURCE]], \"track mile\", FactorMatrix[[TYPE]:[TYPE]], K$33)*Years","v":0},{"$f":"SUMIFS(FactorMatrix[[UPSTREAMTRANSPORT]:[UPSTREAMTRANSPORT]], FactorMatrix[[MODE]:[MODE]], $B52, FactorMatrix[[PHASE]:[PHASE]],\"MAINTENANCE\", FactorMatrix[[GHGSOURCE]:[GHGSOURCE]], \"track mile\", FactorMatrix[[TYPE]:[TYPE]], L$33)*Years","v":0},{"$f":"SUMIFS(FactorMatrix[[UPSTREAMTRANSPORT]:[UPSTREAMTRANSPORT]], FactorMatrix[[MODE]:[MODE]], $B52, FactorMatrix[[PHASE]:[PHASE]],\"MAINTENANCE\", FactorMatrix[[GHGSOURCE]:[GHGSOURCE]], \"track mile\", FactorMatrix[[TYPE]:[TYPE]], M$33)*Years","v":0},{"$f":"SUMIFS(FactorMatrix[[UPSTREAMTRANSPORT]:[UPSTREAMTRANSPORT]], FactorMatrix[[MODE]:[MODE]], $B52, FactorMatrix[[PHASE]:[PHASE]],\"MAINTENANCE\", FactorMatrix[[GHGSOURCE]:[GHGSOURCE]], \"track mile\", FactorMatrix[[TYPE]:[TYPE]], N$33)*Years","v":0},{"$f":"SUMIFS(FactorMatrix[[DOWNSTREAM]:[DOWNSTREAM]], FactorMatrix[[MODE]:[MODE]], $B52, FactorMatrix[[PHASE]:[PHASE]],\"MAINTENANCE\", FactorMatrix[[GHGSOURCE]:[GHGSOURCE]], \"track mile\", FactorMatrix[[TYPE]:[TYPE]], O$33)*Years","v":0},{"$f":"SUMIFS(FactorMatrix[[DOWNSTREAM]:[DOWNSTREAM]], FactorMatrix[[MODE]:[MODE]], $B52, FactorMatrix[[PHASE]:[PHASE]],\"MAINTENANCE\", FactorMatrix[[GHGSOURCE]:[GHGSOURCE]], \"track mile\", FactorMatrix[[TYPE]:[TYPE]], P$33)*Years","v":0},{"$f":"SUMIFS(FactorMatrix[[DOWNSTREAM]:[DOWNSTREAM]], FactorMatrix[[MODE]:[MODE]], $B52, FactorMatrix[[PHASE]:[PHASE]],\"MAINTENANCE\", FactorMatrix[[GHGSOURCE]:[GHGSOURCE]], \"track mile\", FactorMatrix[[TYPE]:[TYPE]], Q$33)*Years","v":0},{"$f":"SUMIFS(FactorMatrix[[DOWNSTREAM]:[DOWNSTREAM]], FactorMatrix[[MODE]:[MODE]], $B52, FactorMatrix[[PHASE]:[PHASE]],\"MAINTENANCE\", FactorMatrix[[GHGSOURCE]:[GHGSOURCE]], \"track mile\", FactorMatrix[[TYPE]:[TYPE]], R$33)*Years","v":0},0,0,0]
[20,0,0,0,0,0,{"$f":"SUMIFS(FactorMatrix[[UPSTREAMMATERIALS]:[UPSTREAMMATERIALS]], FactorMatrix[[MODE]:[MODE]], $B53, FactorMatrix[[PHASE]:[PHASE]],\"MAINTENANCE\", FactorMatrix[[GHGSOURCE]:[GHGSOURCE]], \"track mile\", FactorMatrix[[TYPE]:[TYPE]], G$33)*Years","v":0},{"$f":"SUMIFS(FactorMatrix[[UPSTREAMMATERIALS]:[UPSTREAMMATERIALS]], FactorMatrix[[MODE]:[MODE]], $B53, FactorMatrix[[PHASE]:[PHASE]],\"MAINTENANCE\", FactorMatrix[[GHGSOURCE]:[GHGSOURCE]], \"track mile\", FactorMatrix[[TYPE]:[TYPE]], H$33)*Years","v":0},{"$f":"SUMIFS(FactorMatrix[[UPSTREAMMATERIALS]:[UPSTREAMMATERIALS]], FactorMatrix[[MODE]:[MODE]], $B53, FactorMatrix[[PHASE]:[PHASE]],\"MAINTENANCE\", FactorMatrix[[GHGSOURCE]:[GHGSOURCE]], \"track mile\", FactorMatrix[[TYPE]:[TYPE]], I$33)*Years","v":0},{"$f":"SUMIFS(FactorMatrix[[UPSTREAMMATERIALS]:[UPSTREAMMATERIALS]], FactorMatrix[[MODE]:[MODE]], $B53, FactorMatrix[[PHASE]:[PHASE]],\"MAINTENANCE\", FactorMatrix[[GHGSOURCE]:[GHGSOURCE]], \"track mile\", FactorMatrix[[TYPE]:[TYPE]], J$33)*Years","v":0},{"$f":"SUMIFS(FactorMatrix[[UPSTREAMTRANSPORT]:[UPSTREAMTRANSPORT]], FactorMatrix[[MODE]:[MODE]], $B53, FactorMatrix[[PHASE]:[PHASE]],\"MAINTENANCE\", FactorMatrix[[GHGSOURCE]:[GHGSOURCE]], \"track mile\", FactorMatrix[[TYPE]:[TYPE]], K$33)*Years","v":0},{"$f":"SUMIFS(FactorMatrix[[UPSTREAMTRANSPORT]:[UPSTREAMTRANSPORT]], FactorMatrix[[MODE]:[MODE]], $B53, FactorMatrix[[PHASE]:[PHASE]],\"MAINTENANCE\", FactorMatrix[[GHGSOURCE]:[GHGSOURCE]], \"track mile\", FactorMatrix[[TYPE]:[TYPE]], L$33)*Years","v":0},{"$f":"SUMIFS(FactorMatrix[[UPSTREAMTRANSPORT]:[UPSTREAMTRANSPORT]], FactorMatrix[[MODE]:[MODE]], $B53, FactorMatrix[[PHASE]:[PHASE]],\"MAINTENANCE\", FactorMatrix[[GHGSOURCE]:[GHGSOURCE]], \"track mile\", FactorMatrix[[TYPE]:[TYPE]], M$33)*Years","v":0},{"$f":"SUMIFS(FactorMatrix[[UPSTREAMTRANSPORT]:[UPSTREAMTRANSPORT]], FactorMatrix[[MODE]:[MODE]], $B53, FactorMatrix[[PHASE]:[PHASE]],\"MAINTENANCE\", FactorMatrix[[GHGSOURCE]:[GHGSOURCE]], \"track mile\", FactorMatrix[[TYPE]:[TYPE]], N$33)*Years","v":0},{"$f":"SUMIFS(FactorMatrix[[DOWNSTREAM]:[DOWNSTREAM]], FactorMatrix[[MODE]:[MODE]], $B53, FactorMatrix[[PHASE]:[PHASE]],\"MAINTENANCE\", FactorMatrix[[GHGSOURCE]:[GHGSOURCE]], \"track mile\", FactorMatrix[[TYPE]:[TYPE]], O$33)*Years","v":0},{"$f":"SUMIFS(FactorMatrix[[DOWNSTREAM]:[DOWNSTREAM]], FactorMatrix[[MODE]:[MODE]], $B53, FactorMatrix[[PHASE]:[PHASE]],\"MAINTENANCE\", FactorMatrix[[GHGSOURCE]:[GHGSOURCE]], \"track mile\", FactorMatrix[[TYPE]:[TYPE]], P$33)*Years","v":0},{"$f":"SUMIFS(FactorMatrix[[DOWNSTREAM]:[DOWNSTREAM]], FactorMatrix[[MODE]:[MODE]], $B53, FactorMatrix[[PHASE]:[PHASE]],\"MAINTENANCE\", FactorMatrix[[GHGSOURCE]:[GHGSOURCE]], \"track mile\", FactorMatrix[[TYPE]:[TYPE]], Q$33)*Years","v":0},{"$f":"SUMIFS(FactorMatrix[[DOWNSTREAM]:[DOWNSTREAM]], FactorMatrix[[MODE]:[MODE]], $B53, FactorMatrix[[PHASE]:[PHASE]],\"MAINTENANCE\", FactorMatrix[[GHGSOURCE]:[GHGSOURCE]], \"track mile\", FactorMatrix[[TYPE]:[TYPE]], R$33)*Years","v":0},0,0,0]
[]
["Facility Operations",null,null,null,null,null,null,"RESULTS",null,null,"FINAL RESULTS"]
["INPUTS"]
["row","Transit Mode","Building Type","Square Footage","Upstream Materials","Upstream Transport","Downstream","UPSTREAM MATERIALS","UPSTREAM TRANSPORT","DOWNSTREAM","UPSTREAM MATERIALS","UPSTREAM TRANSPORT","DOWNSTREAM"]
[1,{"$f":"'Facility Operations'!B5","v":0},{"$f":"'Facility Operations'!C5","v":0},{"$f":"'Facility Operations'!D5","v":0},{"$f":"SUMIFS(FactorMatrix[[UPSTREAMMATERIALS]:[UPSTREAMMATERIALS]], FactorMatrix[[MODE]:[MODE]], $B58, FactorMatrix[[PHASE]:[PHASE]], \"Operations\", FactorMatrix[[GHGSOURCE]:[GHGSOURCE]], $C58)*Years","v":0},{"$f":"SUMIFS(FactorMatrix[[UPSTREAMTRANSPORT]:[UPSTREAMTRANSPORT]], FactorMatrix[[MODE]:[MODE]], $B58, FactorMatrix[[PHASE]:[PHASE]], \"Operations\", FactorMatrix[[GHGSOURCE]:[GHGSOURCE]], $C58)*Years","v":0},{"$f":"SUMIFS(FactorMatrix[[DOWNSTREAM]:[DOWNSTREAM]], FactorMatrix[[MODE]:[MODE]], $B58, FactorMatrix[[PHASE]:[PHASE]], \"Operations\", FactorMatrix[[GHGSOURCE]:[GHGSOURCE]], $C58)*Years","v":0},{"$f":"$D58*E58","v":0},{"$f":"$D58*F58","v":0},{"$f":"$D58*G58","v":0},{"$f":"SUM(H58:H77)","v":0},{"$f":"SUM(I58:I77)","v":0},{"$f":"SUM(J58:J77)","v":0}]
[2,{"$f":"'Facility Operations'!B6","v":0},{"$f":"'Facility Operations'!C6","v":0},{"$f":"'Facility Operations'!D6","v":0},{"$f":"SUMIFS(FactorMatrix[[UPSTREAMMATERIALS]:[UPSTREAMMATERIALS]], FactorMatrix[[MODE]:[MODE]], $B59, FactorMatrix[[PHASE]:[PHASE]], \"Operations\", FactorMatrix[[GHGSOURCE]:[GHGSOURCE]], $C59)*Years","v":0},{"$f":"SUMIFS(FactorMatrix[[UPSTREAMTRANSPORT]:[UPSTREAMTRANSPORT]], FactorMatrix[[MODE]:[MODE]], $B59, FactorMatrix[[PHASE]:[PHASE]], \"Operations\", FactorMatrix[[GHGSOURCE]:[GHGSOURCE]], $C59)*Years","v":0},{"$f":"SUMIFS(FactorMatrix[[DOWNSTREAM]:[DOWNSTREAM]], FactorMatrix[[MODE]:[MODE]], $B59, FactorMatrix[[PHASE]:[PHASE]], \"Operations\", FactorMatrix[[GHGSOURCE]:[GHGSOURCE]], $C59)*Years","v":0},{"$f":"$D59*E59","v":0},{"$f":"$D59*F59","v":0},{"$f":"$D59*G59","v":0}]
[3,{"$f":"'Facility Operations'!B7","v":0},{"$f":"'Facility Operations'!C7","v":0},{"$f":"'Facility Operations'!D7","v":0},{"$f":"SUMIFS(FactorMatrix[[UPSTREAMMATERIALS]:[UPSTREAMMATERIALS]], FactorMatrix[[MODE]:[MODE]], $B60, FactorMatrix[[PHASE]:[PHASE]], \"Operations\", FactorMatrix[[GHGSOURCE]:[GHGSOURCE]], $C60)*Years","v":0},{"$f":"SUMIFS(FactorMatrix[[UPSTREAMTRANSPORT]:[UPSTREAMTRANSPORT]], FactorMatrix[[MODE]:[MODE]], $B60, FactorMatrix[[PHASE]:[PHASE]], \"Operations\", FactorMatrix[[GHGSOURCE]:[GHGSOURCE]], $C60)*Years","v":0},{"$f":"SUMIFS(FactorMatrix[[DOWNSTREAM]:[DOWNSTREAM]], FactorMatrix[[MODE]:[MODE]], $B60, FactorMatrix[[PHASE]:[PHASE]], \"Operations\", FactorMatrix[[GHGSOURCE]:[GHGSOURCE]], $C60)*Years","v":0},0,0,0,"Annual"]
[4,{"$f":"'Facility Operations'!B8","v":0},{"$f":"'Facility Operations'!C8","v":0},{"$f":"'Facility Operations'!D8","v":0},{"$f":"SUMIFS(FactorMatrix[[UPSTREAMMATERIALS]:[UPSTREAMMATERIALS]], FactorMatrix[[MODE]:[MODE]], $B61, FactorMatrix[[PHASE]:[PHASE]], \"Operations\", FactorMatrix[[GHGSOURCE]:[GHGSOURCE]], $C61)*Years","v":0},{"$f":"SUMIFS(FactorMatrix[[UPSTREAMTRANSPORT]:[UPSTREAMTRANSPORT]], FactorMatrix[[MODE]:[MODE]], $B61, FactorMatrix[[PHASE]:[PHASE]], \"Operations\", FactorMatrix[[GHGSOURCE]:[GHGSOURCE]], $C61)*Years","v":0},{"$f":"SUMIFS(FactorMatrix[[DOWNSTREAM]:[DOWNSTREAM]], FactorMatrix[[MODE]:[MODE]], $B61, FactorMatrix[[PHASE]:[PHASE]], \"Operations\", FactorMatrix[[GHGSOURCE]:[GHGSOURCE]], $C61)*Years","v":0},0,0,0]
[5,{"$f":"'Facility Operations'!B9","v":0},{"$f":"'Facility Operations'!C9","v":0},{"$f":"'Facility Operations'!D9","v":0},{"$f":"SUMIFS(FactorMatrix[[UPSTREAMMATERIALS]:[UPSTREAMMATERIALS]], FactorMatrix[[MODE]:[MODE]], $B62, FactorMatrix[[PHASE]:[PHASE]], \"Operations\", FactorMatrix[[GHGSOURCE]:[GHGSOURCE]], $C62)*Years","v":0},{"$f":"SUMIFS(FactorMatrix[[UPSTREAMTRANSPORT]:[UPSTREAMTRANSPORT]], FactorMatrix[[MODE]:[MODE]], $B62, FactorMatrix[[PHASE]:[PHASE]], \"Operations\", FactorMatrix[[GHGSOURCE]:[GHGSOURCE]], $C62)*Years","v":0},{"$f":"SUMIFS(FactorMatrix[[DOWNSTREAM]:[DOWNSTREAM]], FactorMatrix[[MODE]:[MODE]], $B62, FactorMatrix[[PHASE]:[PHASE]], \"Operations\", FactorMatrix[[GHGSOURCE]:[GHGSOURCE]], $C62)*Years","v":0},0,0,0,"UPSTREAM MATERIALS","UPSTREAM TRANSPORT","DOWNSTREAM"]
[6,{"$f":"'Facility Operations'!B10","v":0},{"$f":"'Facility Operations'!C10","v":0},{"$f":"'Facility Operations'!D10","v":0},{"$f":"SUMIFS(FactorMatrix[[UPSTREAMMATERIALS]:[UPSTREAMMATERIALS]], FactorMatrix[[MODE]:[MODE]], $B63, FactorMatrix[[PHASE]:[PHASE]], \"Operations\", FactorMatrix[[GHGSOURCE]:[GHGSOURCE]], $C63)*Years","v":0},{"$f":"SUMIFS(FactorMatrix[[UPSTREAMTRANSPORT]:[UPSTREAMTRANSPORT]], FactorMatrix[[MODE]:[MODE]], $B63, FactorMatrix[[PHASE]:[PHASE]], \"Operations\", FactorMatrix[[GHGSOURCE]:[GHGSOURCE]], $C63)*Years","v":0},{"$f":"SUMIFS(FactorMatrix[[DOWNSTREAM]:[DOWNSTREAM]], FactorMatrix[[MODE]:[MODE]], $B63, FactorMatrix[[PHASE]:[PHASE]], \"Operations\", FactorMatrix[[GHGSOURCE]:[GHGSOURCE]], $C63)*Years","v":0},0,0,0,{"$f":"K58/Years","v":{"$error":"#DIV/0!"}},{"$f":"L58/Years","v":{"$error":"#DIV/0!"}},{"$f":"M58/Years","v":{"$error":"#DIV/0!"}}]
[7,{"$f":"'Facility Operations'!B11","v":0},{"$f":"'Facility Operations'!C11","v":0},{"$f":"'Facility Operations'!D11","v":0},{"$f":"SUMIFS(FactorMatrix[[UPSTREAMMATERIALS]:[UPSTREAMMATERIALS]], FactorMatrix[[MODE]:[MODE]], $B64, FactorMatrix[[PHASE]:[PHASE]], \"Operations\", FactorMatrix[[GHGSOURCE]:[GHGSOURCE]], $C64)*Years","v":0},{"$f":"SUMIFS(FactorMatrix[[UPSTREAMTRANSPORT]:[UPSTREAMTRANSPORT]], FactorMatrix[[MODE]:[MODE]], $B64, FactorMatrix[[PHASE]:[PHASE]], \"Operations\", FactorMatrix[[GHGSOURCE]:[GHGSOURCE]], $C64)*Years","v":0},{"$f":"SUMIFS(FactorMatrix[[DOWNSTREAM]:[DOWNSTREAM]], FactorMatrix[[MODE]:[MODE]], $B64, FactorMatrix[[PHASE]:[PHASE]], \"Operations\", FactorMatrix[[GHGSOURCE]:[GHGSOURCE]], $C64)*Years","v":0},0,0,0]
[8,{"$f":"'Facility Operations'!B12","v":0},{"$f":"'Facility Operations'!C12","v":0},{"$f":"'Facility Operations'!D12","v":0},{"$f":"SUMIFS(FactorMatrix[[UPSTREAMMATERIALS]:[UPSTREAMMATERIALS]], FactorMatrix[[MODE]:[MODE]], $B65, FactorMatrix[[PHASE]:[PHASE]], \"Operations\", FactorMatrix[[GHGSOURCE]:[GHGSOURCE]], $C65)*Years","v":0},{"$f":"SUMIFS(FactorMatrix[[UPSTREAMTRANSPORT]:[UPSTREAMTRANSPORT]], FactorMatrix[[MODE]:[MODE]], $B65, FactorMatrix[[PHASE]:[PHASE]], \"Operations\", FactorMatrix[[GHGSOURCE]:[GHGSOURCE]], $C65)*Years","v":0},{"$f":"SUMIFS(FactorMatrix[[DOWNSTREAM]:[DOWNSTREAM]], FactorMatrix[[MODE]:[MODE]], $B65, FactorMatrix[[PHASE]:[PHASE]], \"Operations\", FactorMatrix[[GHGSOURCE]:[GHGSOURCE]], $C65)*Years","v":0},0,0,0]
[9,{"$f":"'Facility Operations'!B13","v":0},{"$f":"'Facility Operations'!C13","v":0},{"$f":"'Facility Operations'!D13","v":0},{"$f":"SUMIFS(FactorMatrix[[UPSTREAMMATERIALS]:[UPSTREAMMATERIALS]], FactorMatrix[[MODE]:[MODE]], $B66, FactorMatrix[[PHASE]:[PHASE]], \"Operations\", FactorMatrix[[GHGSOURCE]:[GHGSOURCE]], $C66)*Years","v":0},{"$f":"SUMIFS(FactorMatrix[[UPSTREAMTRANSPORT]:[UPSTREAMTRANSPORT]], FactorMatrix[[MODE]:[MODE]], $B66, FactorMatrix[[PHASE]:[PHASE]], \"Operations\", FactorMatrix[[GHGSOURCE]:[GHGSOURCE]], $C66)*Years","v":0},{"$f":"SUMIFS(FactorMatrix[[DOWNSTREAM]:[DOWNSTREAM]], FactorMatrix[[MODE]:[MODE]], $B66, FactorMatrix[[PHASE]:[PHASE]], \"Operations\", FactorMatrix[[GHGSOURCE]:[GHGSOURCE]], $C66)*Years","v":0},0,0,0]
[10,{"$f":"'Facility Operations'!B14","v":0},{"$f":"'Facility Operations'!C14","v":0},{"$f":"'Facility Operations'!D14","v":0},{"$f":"SUMIFS(FactorMatrix[[UPSTREAMMATERIALS]:[UPSTREAMMATERIALS]], FactorMatrix[[MODE]:[MODE]], $B67, FactorMatrix[[PHASE]:[PHASE]], \"Operations\", FactorMatrix[[GHGSOURCE]:[GHGSOURCE]], $C67)*Years","v":0},{"$f":"SUMIFS(FactorMatrix[[UPSTREAMTRANSPORT]:[UPSTREAMTRANSPORT]], FactorMatrix[[MODE]:[MODE]], $B67, FactorMatrix[[PHASE]:[PHASE]], \"Operations\", FactorMatrix[[GHGSOURCE]:[GHGSOURCE]], $C67)*Years","v":0},{"$f":"SUMIFS(FactorMatrix[[DOWNSTREAM]:[DOWNSTREAM]], FactorMatrix[[MODE]:[MODE]], $B67, FactorMatrix[[PHASE]:[PHASE]], \"Operations\", FactorMatrix[[GHGSOURCE]:[GHGSOURCE]], $C67)*Years","v":0},0,0,0]
[11,{"$f":"'Facility Operations'!B15","v":0},{"$f":"'Facility Operations'!C15","v":0},{"$f":"'Facility Operations'!D15","v":0},{"$f":"SUMIFS(FactorMatrix[[UPSTREAMMATERIALS]:[UPSTREAMMATERIALS]], FactorMatrix[[MODE]:[MODE]], $B68, FactorMatrix[[PHASE]:[PHASE]], \"Operations\", FactorMatrix[[GHGSOURCE]:[GHGSOURCE]], $C68)*Years","v":0},{"$f":"SUMIFS(FactorMatrix[[UPSTREAMTRANSPORT]:[UPSTREAMTRANSPORT]], FactorMatrix[[MODE]:[MODE]], $B68, FactorMatrix[[PHASE]:[PHASE]], \"Operations\", FactorMatrix[[GHGSOURCE]:[GHGSOURCE]], $C68)*Years","v":0},{"$f":"SUMIFS(FactorMatrix[[DOWNSTREAM]:[DOWNSTREAM]], FactorMatrix[[MODE]:[MODE]], $B68, FactorMatrix[[PHASE]:[PHASE]], \"Operations\", FactorMatrix[[GHGSOURCE]:[GHGSOURCE]], $C68)*Years","v":0},0,0,0]
[12,{"$f":"'Facility Operations'!B16","v":0},{"$f":"'Facility Operations'!C16","v":0},{"$f":"'Facility Operations'!D16","v":0},{"$f":"SUMIFS(FactorMatrix[[UPSTREAMMATERIALS]:[UPSTREAMMATERIALS]], FactorMatrix[[MODE]:[MODE]], $B69, FactorMatrix[[PHASE]:[PHASE]], \"Operations\", FactorMatrix[[GHGSOURCE]:[GHGSOURCE]], $C69)*Years","v":0},{"$f":"SUMIFS(FactorMatrix[[UPSTREAMTRANSPORT]:[UPSTREAMTRANSPORT]], FactorMatrix[[MODE]:[MODE]], $B69, FactorMatrix[[PHASE]:[PHASE]], \"Operations\", FactorMatrix[[GHGSOURCE]:[GHGSOURCE]], $C69)*Years","v":0},{"$f":"SUMIFS(FactorMatrix[[DOWNSTREAM]:[DOWNSTREAM]], FactorMatrix[[MODE]:[MODE]], $B69, FactorMatrix[[PHASE]:[PHASE]], \"Operations\", FactorMatrix[[GHGSOURCE]:[GHGSOURCE]], $C69)*Years","v":0},0,0,0]
[13,{"$f":"'Facility Operations'!B17","v":0},{"$f":"'Facility Operations'!C17","v":0},{"$f":"'Facility Operations'!D17","v":0},{"$f":"SUMIFS(FactorMatrix[[UPSTREAMMATERIALS]:[UPSTREAMMATERIALS]], FactorMatrix[[MODE]:[MODE]], $B70, FactorMatrix[[PHASE]:[PHASE]], \"Operations\", FactorMatrix[[GHGSOURCE]:[GHGSOURCE]], $C70)*Years","v":0},{"$f":"SUMIFS(FactorMatrix[[UPSTREAMTRANSPORT]:[UPSTREAMTRANSPORT]], FactorMatrix[[MODE]:[MODE]], $B70, FactorMatrix[[PHASE]:[PHASE]], \"Operations\", FactorMatrix[[GHGSOURCE]:[GHGSOURCE]], $C70)*Years","v":0},{"$f":"SUMIFS(FactorMatrix[[DOWNSTREAM]:[DOWNSTREAM]], FactorMatrix[[MODE]:[MODE]], $B70, FactorMatrix[[PHASE]:[PHASE]], \"Operations\", FactorMatrix[[GHGSOURCE]:[GHGSOURCE]], $C70)*Years","v":0},0,0,0]
[14,{"$f":"'Facility Operations'!B18","v":0},{"$f":"'Facility Operations'!C18","v":0},{"$f":"'Facility Operations'!D18","v":0},{"$f":"SUMIFS(FactorMatrix[[UPSTREAMMATERIALS]:[UPSTREAMMATERIALS]], FactorMatrix[[MODE]:[MODE]], $B71, FactorMatrix[[PHASE]:[PHASE]], \"Operations\", FactorMatrix[[GHGSOURCE]:[GHGSOURCE]], $C71)*Years","v":0},{"$f":"SUMIFS(FactorMatrix[[UPSTREAMTRANSPORT]:[UPSTREAMTRANSPORT]], FactorMatrix[[MODE]:[MODE]], $B71, FactorMatrix[[PHASE]:[PHASE]], \"Operations\", FactorMatrix[[GHGSOURCE]:[GHGSOURCE]], $C71)*Years","v":0},{"$f":"SUMIFS(FactorMatrix[[DOWNSTREAM]:[DOWNSTREAM]], FactorMatrix[[MODE]:[MODE]], $B71, FactorMatrix[[PHASE]:[PHASE]], \"Operations\", FactorMatrix[[GHGSOURCE]:[GHGSOURCE]], $C71)*Years","v":0},0,0,0]
[15,{"$f":"'Facility Operations'!B19","v":0},{"$f":"'Facility Operations'!C19","v":0},{"$f":"'Facility Operations'!D19","v":0},{"$f":"SUMIFS(FactorMatrix[[UPSTREAMMATERIALS]:[UPSTREAMMATERIALS]], FactorMatrix[[MODE]:[MODE]], $B72, FactorMatrix[[PHASE]:[PHASE]], \"Operations\", FactorMatrix[[GHGSOURCE]:[GHGSOURCE]], $C72)*Years","v":0},{"$f":"SUMIFS(FactorMatrix[[UPSTREAMTRANSPORT]:[UPSTREAMTRANSPORT]], FactorMatrix[[MODE]:[MODE]], $B72, FactorMatrix[[PHASE]:[PHASE]], \"Operations\", FactorMatrix[[GHGSOURCE]:[GHGSOURCE]], $C72)*Years","v":0},{"$f":"SUMIFS(FactorMatrix[[DOWNSTREAM]:[DOWNSTREAM]], FactorMatrix[[MODE]:[MODE]], $B72, FactorMatrix[[PHASE]:[PHASE]], \"Operations\", FactorMatrix[[GHGSOURCE]:[GHGSOURCE]], $C72)*Years","v":0},0,0,0]
[16,{"$f":"'Facility Operations'!B20","v":0},{"$f":"'Facility Operations'!C20","v":0},{"$f":"'Facility Operations'!D20","v":0},{"$f":"SUMIFS(FactorMatrix[[UPSTREAMMATERIALS]:[UPSTREAMMATERIALS]], FactorMatrix[[MODE]:[MODE]], $B73, FactorMatrix[[PHASE]:[PHASE]], \"Operations\", FactorMatrix[[GHGSOURCE]:[GHGSOURCE]], $C73)*Years","v":0},{"$f":"SUMIFS(FactorMatrix[[UPSTREAMTRANSPORT]:[UPSTREAMTRANSPORT]], FactorMatrix[[MODE]:[MODE]], $B73, FactorMatrix[[PHASE]:[PHASE]], \"Operations\", FactorMatrix[[GHGSOURCE]:[GHGSOURCE]], $C73)*Years","v":0},{"$f":"SUMIFS(FactorMatrix[[DOWNSTREAM]:[DOWNSTREAM]], FactorMatrix[[MODE]:[MODE]], $B73, FactorMatrix[[PHASE]:[PHASE]], \"Operations\", FactorMatrix[[GHGSOURCE]:[GHGSOURCE]], $C73)*Years","v":0},0,0,0]
[17,{"$f":"'Facility Operations'!B21","v":0},{"$f":"'Facility Operations'!C21","v":0},{"$f":"'Facility Operations'!D21","v":0},{"$f":"SUMIFS(FactorMatrix[[UPSTREAMMATERIALS]:[UPSTREAMMATERIALS]], FactorMatrix[[MODE]:[MODE]], $B74, FactorMatrix[[PHASE]:[PHASE]], \"Operations\", FactorMatrix[[GHGSOURCE]:[GHGSOURCE]], $C74)*Years","v":0},{"$f":"SUMIFS(FactorMatrix[[UPSTREAMTRANSPORT]:[UPSTREAMTRANSPORT]], FactorMatrix[[MODE]:[MODE]], $B74, FactorMatrix[[PHASE]:[PHASE]], \"Operations\", FactorMatrix[[GHGSOURCE]:[GHGSOURCE]], $C74)*Years","v":0},{"$f":"SUMIFS(FactorMatrix[[DOWNSTREAM]:[DOWNSTREAM]], FactorMatrix[[MODE]:[MODE]], $B74, FactorMatrix[[PHASE]:[PHASE]], \"Operations\", FactorMatrix[[GHGSOURCE]:[GHGSOURCE]], $C74)*Years","v":0},0,0,0]
[18,{"$f":"'Facility Operations'!B22","v":0},{"$f":"'Facility Operations'!C22","v":0},{"$f":"'Facility Operations'!D22","v":0},{"$f":"SUMIFS(FactorMatrix[[UPSTREAMMATERIALS]:[UPSTREAMMATERIALS]], FactorMatrix[[MODE]:[MODE]], $B75, FactorMatrix[[PHASE]:[PHASE]], \"Operations\", FactorMatrix[[GHGSOURCE]:[GHGSOURCE]], $C75)*Years","v":0},{"$f":"SUMIFS(FactorMatrix[[UPSTREAMTRANSPORT]:[UPSTREAMTRANSPORT]], FactorMatrix[[MODE]:[MODE]], $B75, FactorMatrix[[PHASE]:[PHASE]], \"Operations\", FactorMatrix[[GHGSOURCE]:[GHGSOURCE]], $C75)*Years","v":0},{"$f":"SUMIFS(FactorMatrix[[DOWNSTREAM]:[DOWNSTREAM]], FactorMatrix[[MODE]:[MODE]], $B75, FactorMatrix[[PHASE]:[PHASE]], \"Operations\", FactorMatrix[[GHGSOURCE]:[GHGSOURCE]], $C75)*Years","v":0},0,0,0]
[19,{"$f":"'Facility Operations'!B23","v":0},{"$f":"'Facility Operations'!C23","v":0},{"$f":"'Facility Operations'!D23","v":0},{"$f":"SUMIFS(FactorMatrix[[UPSTREAMMATERIALS]:[UPSTREAMMATERIALS]], FactorMatrix[[MODE]:[MODE]], $B76, FactorMatrix[[PHASE]:[PHASE]], \"Operations\", FactorMatrix[[GHGSOURCE]:[GHGSOURCE]], $C76)*Years","v":0},{"$f":"SUMIFS(FactorMatrix[[UPSTREAMTRANSPORT]:[UPSTREAMTRANSPORT]], FactorMatrix[[MODE]:[MODE]], $B76, FactorMatrix[[PHASE]:[PHASE]], \"Operations\", FactorMatrix[[GHGSOURCE]:[GHGSOURCE]], $C76)*Years","v":0},{"$f":"SUMIFS(FactorMatrix[[DOWNSTREAM]:[DOWNSTREAM]], FactorMatrix[[MODE]:[MODE]], $B76, FactorMatrix[[PHASE]:[PHASE]], \"Operations\", FactorMatrix[[GHGSOURCE]:[GHGSOURCE]], $C76)*Years","v":0},0,0,0]
[20,{"$f":"'Facility Operations'!B24","v":0},{"$f":"'Facility Operations'!C24","v":0},{"$f":"'Facility Operations'!D24","v":0},{"$f":"SUMIFS(FactorMatrix[[UPSTREAMMATERIALS]:[UPSTREAMMATERIALS]], FactorMatrix[[MODE]:[MODE]], $B77, FactorMatrix[[PHASE]:[PHASE]], \"Operations\", FactorMatrix[[GHGSOURCE]:[GHGSOURCE]], $C77)*Years","v":0},{"$f":"SUMIFS(FactorMatrix[[UPSTREAMTRANSPORT]:[UPSTREAMTRANSPORT]], FactorMatrix[[MODE]:[MODE]], $B77, FactorMatrix[[PHASE]:[PHASE]], \"Operations\", FactorMatrix[[GHGSOURCE]:[GHGSOURCE]], $C77)*Years","v":0},{"$f":"SUMIFS(FactorMatrix[[DOWNSTREAM]:[DOWNSTREAM]], FactorMatrix[[MODE]:[MODE]], $B77, FactorMatrix[[PHASE]:[PHASE]], \"Operations\", FactorMatrix[[GHGSOURCE]:[GHGSOURCE]], $C77)*Years","v":0},0,0,0]
[]
["Vehicle Operations",null,null,null,null,null,{"$f":"G82/Years","v":{"$error":"#DIV/0!"}},{"$f":"F82*G79","v":{"$error":"#DIV/0!"}},null,"RESULTS",null,null,"FINAL RESULTS"]
["INPUTS",null,null,null,null,null,"Factors"]
["row","Operation Mode ","Fuel Source","eGrid Subregion (if applicable)","NERC Region (Deduced from eGrid)","VMT","Upstream Materials","Upstream Transport","Downstream","UPSTREAM MATERIALS","UPSTREAM TRANSPORT","DOWNSTREAM","UPSTREAM MATERIALS","UPSTREAM TRANSPORT","DOWNSTREAM"]
[1,{"$f":"'Vehicle Operations&Maintenance'!B5","v":0},{"$f":"'Vehicle Operations&Maintenance'!C5","v":0},{"$f":"'Vehicle Operations&Maintenance'!D5","v":0},{"$f":"_xlfn.IFNA(INDEX(Dropdowns!L$3:L$30, MATCH(D82, EGridSubregions, 0)), 0)","v":0},{"$f":"'Vehicle Operations&Maintenance'!E5","v":0},{"$f":"(SUMIFS(FactorMatrix[[UPSTREAMMATERIALS]:[UPSTREAMMATERIALS]], FactorMatrix[[MODE]:[MODE]], $B82, FactorMatrix[[PHASE]:[PHASE]], \"Operations\", FactorMatrix[[GHGSOURCE]:[GHGSOURCE]], \"Vehicle\", FactorMatrix[[TYPE]:[TYPE]], $C82, FactorMatrix[[STATE /REGION]:[STATE /REGION]], $D82)*Years\n+\nSUMIFS(FactorMatrix[[UPSTREAMMATERIALS]:[UPSTREAMMATERIALS]], FactorMatrix[[MODE]:[MODE]], $B82, FactorMatrix[[PHASE]:[PHASE]], \"Operations\", FactorMatrix[[GHGSOURCE]:[GHGSOURCE]], \"Vehicle\", FactorMatrix[[TYPE]:[TYPE]], $C82, FactorMatrix[[STATE /REGION]:[STATE /REGION]], $E82)*Years)/IF(AND(D82=0, E82=0), 2, 1)","v":0},{"$f":"(SUMIFS(FactorMatrix[[UPSTREAMTRANSPORT]:[UPSTREAMTRANSPORT]], FactorMatrix[[MODE]:[MODE]], $B82, FactorMatrix[[PHASE]:[PHASE]], \"Operations\", FactorMatrix[[GHGSOURCE]:[GHGSOURCE]], \"Vehicle\", FactorMatrix[[TYPE]:[TYPE]], $C82, FactorMatrix[[STATE /REGION]:[STATE /REGION]], $D82)*Years\n+\nSUMIFS(FactorMatrix[[UPSTREAMTRANSPORT]:[UPSTREAMTRANSPORT]], FactorMatrix[[MODE]:[MODE]], $B82, FactorMatrix[[PHASE]:[PHASE]], \"Operations\", FactorMatrix[[GHGSOURCE]:[GHGSOURCE]], \"Vehicle\", FactorMatrix[[TYPE]:[TYPE]], $C82, FactorMatrix[[STATE /REGION]:[STATE /REGION]], $E82)*Years)/IF(AND(D82=0, E82=0), 2, 1)","v":0},{"$f":"(SUMIFS(FactorMatrix[[DOWNSTREAM]:[DOWNSTREAM]], FactorMatrix[[MODE]:[MODE]], $B82, FactorMatrix[[PHASE]:[PHASE]], \"Operations\", FactorMatrix[[GHGSOURCE]:[GHGSOURCE]], \"Vehicle\", FactorMatrix[[TYPE]:[TYPE]], $C82, FactorMatrix[[STATE /REGION]:[STATE /REGION]], $D82)*Years\n+\nSUMIFS(FactorMatrix[[DOWNSTREAM]:[DOWNSTREAM]], FactorMatrix[[MODE]:[MODE]], $B82, FactorMatrix[[PHASE]:[PHASE]], \"Operations\", FactorMatrix[[GHGSOURCE]:[GHGSOURCE]], \"Vehicle\", FactorMatrix[[TYPE]:[TYPE]], $C82, FactorMatrix[[STATE /REGION]:[STATE /REGION]], $E82)*Years)/IF(AND(D82=0, E82=0), 2, 1)","v":0},{"$f":"$F82*G82","v":0},{"$f":"$F82*H82","v":0},{"$f":"$F82*I82","v":0},{"$f":"SUM(J82:J101)","v":0},{"$f":"SUM(K82:K101)","v":0},{"$f":"SUM(L82:L101)","v":0}]
[2,{"$f":"'Vehicle Operations&Maintenance'!B6","v":0},{"$f":"'Vehicle Operations&Maintenance'!C6","v":0},{"$f":"'Vehicle Operations&Maintenance'!D6","v":0},{"$f":"_xlfn.IFNA(INDEX(Dropdowns!L$3:L$30, MATCH(D83, EGridSubregions, 0)), 0)","v":0},{"$f":"'Vehicle Operations&Maintenance'!E6","v":0},{"$f":"(SUMIFS(FactorMatrix[[UPSTREAMMATERIALS]:[UPSTREAMMATERIALS]], FactorMatrix[[MODE]:[MODE]], $B83, FactorMatrix[[PHASE]:[PHASE]], \"Operations\", FactorMatrix[[GHGSOURCE]:[GHGSOURCE]], \"Vehicle\", FactorMatrix[[TYPE]:[TYPE]], $C83, FactorMatrix[[STATE /REGION]:[STATE /REGION]], $D83)*Years\n+\nSUMIFS(FactorMatrix[[UPSTREAMMATERIALS]:[UPSTREAMMATERIALS]], FactorMatrix[[MODE]:[MODE]], $B83, FactorMatrix[[PHASE]:[PHASE]], \"Operations\", FactorMatrix[[GHGSOURCE]:[GHGSOURCE]], \"Vehicle\", FactorMatrix[[TYPE]:[TYPE]], $C83, FactorMatrix[[STATE /REGION]:[STATE /REGION]], $E83)*Years)/IF(AND(D83=0, E83=0), 2, 1)","v":0},{"$f":"(SUMIFS(FactorMatrix[[UPSTREAMTRANSPORT]:[UPSTREAMTRANSPORT]], FactorMatrix[[MODE]:[MODE]], $B83, FactorMatrix[[PHASE]:[PHASE]], \"Operations\", FactorMatrix[[GHGSOURCE]:[GHGSOURCE]], \"Vehicle\", FactorMatrix[[TYPE]:[TYPE]], $C83, FactorMatrix[[STATE /REGION]:[STATE /REGION]], $D83)*Years\n+\nSUMIFS(FactorMatrix[[UPSTREAMTRANSPORT]:[UPSTREAMTRANSPORT]], FactorMatrix[[MODE]:[MODE]], $B83, FactorMatrix[[PHASE]:[PHASE]], \"Operations\", FactorMatrix[[GHGSOURCE]:[GHGSOURCE]], \"Vehicle\", FactorMatrix[[TYPE]:[TYPE]], $C83, FactorMatrix[[STATE /REGION]:[STATE /REGION]], $E83)*Years)/IF(AND(D83=0, E83=0), 2, 1)","v":0},{"$f":"(SUMIFS(FactorMatrix[[DOWNSTREAM]:[DOWNSTREAM]], FactorMatrix[[MODE]:[MODE]], $B83, FactorMatrix[[PHASE]:[PHASE]], \"Operations\", FactorMatrix[[GHGSOURCE]:[GHGSOURCE]], \"Vehicle\", FactorMatrix[[TYPE]:[TYPE]], $C83, FactorMatrix[[STATE /REGION]:[STATE /REGION]], $D83)*Years\n+\nSUMIFS(FactorMatrix[[DOWNSTREAM]:[DOWNSTREAM]], FactorMatrix[[MODE]:[MODE]], $B83, FactorMatrix[[PHASE]:[PHASE]], \"Operations\", FactorMatrix[[GHGSOURCE]:[GHGSOURCE]], \"Vehicle\", FactorMatrix[[TYPE]:[TYPE]], $C83, FactorMatrix[[STATE /REGION]:[STATE /REGION]], $E83)*Years)/IF(AND(D83=0, E83=0), 2, 1)","v":0},{"$f":"$F83*G83","v":0},{"$f":"$F83*H83","v":0},{"$f":"$F83*I83","v":0}]
[3,{"$f":"'Vehicle Operations&Maintenance'!B7","v":0},{"$f":"'Vehicle Operations&Maintenance'!C7","v":0},{"$f":"'Vehicle Operations&Maintenance'!D7","v":0},{"$f":"_xlfn.IFNA(INDEX(Dropdowns!L$3:L$30, MATCH(D84, EGridSubregions, 0)), 0)","v":0},{"$f":"'Vehicle Operations&Maintenance'!E7","v":0},{"$f":"(SUMIFS(FactorMatrix[[UPSTREAMMATERIALS]:[UPSTREAMMATERIALS]], FactorMatrix[[MODE]:[MODE]], $B84, FactorMatrix[[PHASE]:[PHASE]], \"Operations\", FactorMatrix[[GHGSOURCE]:[GHGSOURCE]], \"Vehicle\", FactorMatrix[[TYPE]:[TYPE]], $C84, FactorMatrix[[STATE /REGION]:[STATE /REGION]], $D84)*Years\n+\nSUMIFS(FactorMatrix[[UPSTREAMMATERIALS]:[UPSTREAMMATERIALS]], FactorMatrix[[MODE]:[MODE]], $B84, FactorMatrix[[PHASE]:[PHASE]], \"Operations\", FactorMatrix[[GHGSOURCE]:[GHGSOURCE]], \"Vehicle\", FactorMatrix[[TYPE]:[TYPE]], $C84, FactorMatrix[[STATE /REGION]:[STATE /REGION]], $E84)*Years)/IF(AND(D84=0, E84=0), 2, 1)","v":0},{"$f":"(SUMIFS(FactorMatrix[[UPSTREAMTRANSPORT]:[UPSTREAMTRANSPORT]], FactorMatrix[[MODE]:[MODE]], $B84, FactorMatrix[[PHASE]:[PHASE]], \"Operations\", FactorMatrix[[GHGSOURCE]:[GHGSOURCE]], \"Vehicle\", FactorMatrix[[TYPE]:[TYPE]], $C84, FactorMatrix[[STATE /REGION]:[STATE /REGION]], $D84)*Years\n+\nSUMIFS(FactorMatrix[[UPSTREAMTRANSPORT]:[UPSTREAMTRANSPORT]], FactorMatrix[[MODE]:[MODE]], $B84, FactorMatrix[[PHASE]:[PHASE]], \"Operations\", FactorMatrix[[GHGSOURCE]:[GHGSOURCE]], \"Vehicle\", FactorMatrix[[TYPE]:[TYPE]], $C84, FactorMatrix[[STATE /REGION]:[STATE /REGION]], $E84)*Years)/IF(AND(D84=0, E84=0), 2, 1)","v":0},{"$f":"(SUMIFS(FactorMatrix[[DOWNSTREAM]:[DOWNSTREAM]], FactorMatrix[[MODE]:[MODE]], $B84, FactorMatrix[[PHASE]:[PHASE]], \"Operations\", FactorMatrix[[GHGSOURCE]:[GHGSOURCE]], \"Vehicle\", FactorMatrix[[TYPE]:[TYPE]], $C84, FactorMatrix[[STATE /REGION]:[STATE /REGION]], $D84)*Years\n+\nSUMIFS(FactorMatrix[[DOWNSTREAM]:[DOWNSTREAM]], FactorMatrix[[MODE]:[MODE]], $B84, FactorMatrix[[PHASE]:[PHASE]], \"Operations\", FactorMatrix[[GHGSOURCE]:[GHGSOURCE]], \"Vehicle\", FactorMatrix[[TYPE]:[TYPE]], $C84, FactorMatrix[[STATE /REGION]:[STATE /REGION]], $E84)*Years)/IF(AND(D84=0, E84=0), 2, 1)","v":0},0,0,0,"Annual"]
[4,{"$f":"'Vehicle Operations&Maintenance'!B8","v":0},{"$f":"'Vehicle Operations&Maintenance'!C8","v":0},{"$f":"'Vehicle Operations&Maintenance'!D8","v":0},{"$f":"_xlfn.IFNA(INDEX(Dropdowns!L$3:L$30, MATCH(D85, EGridSubregions, 0)), 0)","v":0},{"$f":"'Vehicle Operations&Maintenance'!E8","v":0},{"$f":"(SUMIFS(FactorMatrix[[UPSTREAMMATERIALS]:[UPSTREAMMATERIALS]], FactorMatrix[[MODE]:[MODE]], $B85, FactorMatrix[[PHASE]:[PHASE]], \"Operations\", FactorMatrix[[GHGSOURCE]:[GHGSOURCE]], \"Vehicle\", FactorMatrix[[TYPE]:[TYPE]], $C85, FactorMatrix[[STATE /REGION]:[STATE /REGION]], $D85)*Years\n+\nSUMIFS(FactorMatrix[[UPSTREAMMATERIALS]:[UPSTREAMMATERIALS]], FactorMatrix[[MODE]:[MODE]], $B85, FactorMatrix[[PHASE]:[PHASE]], \"Operations\", FactorMatrix[[GHGSOURCE]:[GHGSOURCE]], \"Vehicle\", FactorMatrix[[TYPE]:[TYPE]], $C85, FactorMatrix[[STATE /REGION]:[STATE /REGION]], $E85)*Years)/IF(AND(D85=0, E85=0), 2, 1)","v":0},{"$f":"(SUMIFS(FactorMatrix[[UPSTREAMTRANSPORT]:[UPSTREAMTRANSPORT]], FactorMatrix[[MODE]:[MODE]], $B85, FactorMatrix[[PHASE]:[PHASE]], \"Operations\", FactorMatrix[[GHGSOURCE]:[GHGSOURCE]], \"Vehicle\", FactorMatrix[[TYPE]:[TYPE]], $C85, FactorMatrix[[STATE /REGION]:[STATE /REGION]], $D85)*Years\n+\nSUMIFS(FactorMatrix[[UPSTREAMTRANSPORT]:[UPSTREAMTRANSPORT]], FactorMatrix[[MODE]:[MODE]], $B85, FactorMatrix[[PHASE]:[PHASE]], \"Operations\", FactorMatrix[[GHGSOURCE]:[GHGSOURCE]], \"Vehicle\", FactorMatrix[[TYPE]:[TYPE]], $C85, FactorMatrix[[STATE /REGION]:[STATE /REGION]], $E85)*Years)/IF(AND(D85=0, E85=0), 2, 1)","v":0},{"$f":"(SUMIFS(FactorMatrix[[DOWNSTREAM]:[DOWNSTREAM]], FactorMatrix[[MODE]:[MODE]], $B85, FactorMatrix[[PHASE]:[PHASE]], \"Operations\", FactorMatrix[[GHGSOURCE]:[GHGSOURCE]], \"Vehicle\", FactorMatrix[[TYPE]:[TYPE]], $C85, FactorMatrix[[STATE /REGION]:[STATE /REGION]], $D85)*Years\n+\nSUMIFS(FactorMatrix[[DOWNSTREAM]:[DOWNSTREAM]], FactorMatrix[[MODE]:[MODE]], $B85, FactorMatrix[[PHASE]:[PHASE]], \"Operations\", FactorMatrix[[GHGSOURCE]:[GHGSOURCE]], \"Vehicle\", FactorMatrix[[TYPE]:[TYPE]], $C85, FactorMatrix[[STATE /REGION]:[STATE /REGION]], $E85)*Years)/IF(AND(D85=0, E85=0), 2, 1)","v":0},0,0,0]
[5,{"$f":"'Vehicle Operations&Maintenance'!B9","v":0},{"$f":"'Vehicle Operations&Maintenance'!C9","v":0},{"$f":"'Vehicle Operations&Maintenance'!D9","v":0},{"$f":"_xlfn.IFNA(INDEX(Dropdowns!L$3:L$30, MATCH(D86, EGridSubregions, 0)), 0)","v":0},{"$f":"'Vehicle Operations&Maintenance'!E9","v":0},{"$f":"(SUMIFS(FactorMatrix[[UPSTREAMMATERIALS]:[UPSTREAMMATERIALS]], FactorMatrix[[MODE]:[MODE]], $B86, FactorMatrix[[PHASE]:[PHASE]], \"Operations\", FactorMatrix[[GHGSOURCE]:[GHGSOURCE]], \"Vehicle\", FactorMatrix[[TYPE]:[TYPE]], $C86, FactorMatrix[[STATE /REGION]:[STATE /REGION]], $D86)*Years\n+\nSUMIFS(FactorMatrix[[UPSTREAMMATERIALS]:[UPSTREAMMATERIALS]], FactorMatrix[[MODE]:[MODE]], $B86, FactorMatrix[[PHASE]:[PHASE]], \"Operations\", FactorMatrix[[GHGSOURCE]:[GHGSOURCE]], \"Vehicle\", FactorMatrix[[TYPE]:[TYPE]], $C86, FactorMatrix[[STATE /REGION]:[STATE /REGION]], $E86)*Years)/IF(AND(D86=0, E86=0), 2, 1)","v":0},{"$f":"(SUMIFS(FactorMatrix[[UPSTREAMTRANSPORT]:[UPSTREAMTRANSPORT]], FactorMatrix[[MODE]:[MODE]], $B86, FactorMatrix[[PHASE]:[PHASE]], \"Operations\", FactorMatrix[[GHGSOURCE]:[GHGSOURCE]], \"Vehicle\", FactorMatrix[[TYPE]:[TYPE]], $C86, FactorMatrix[[STATE /REGION]:[STATE /REGION]], $D86)*Years\n+\nSUMIFS(FactorMatrix[[UPSTREAMTRANSPORT]:[UPSTREAMTRANSPORT]], FactorMatrix[[MODE]:[MODE]], $B86, FactorMatrix[[PHASE]:[PHASE]], \"Operations\", FactorMatrix[[GHGSOURCE]:[GHGSOURCE]], \"Vehicle\", FactorMatrix[[TYPE]:[TYPE]], $C86, FactorMatrix[[STATE /REGION]:[STATE /REGION]], $E86)*Years)/IF(AND(D86=0, E86=0), 2, 1)","v":0},{"$f":"(SUMIFS(FactorMatrix[[DOWNSTREAM]:[DOWNSTREAM]], FactorMatrix[[MODE]:[MODE]], $B86, FactorMatrix[[PHASE]:[PHASE]], \"Operations\", FactorMatrix[[GHGSOURCE]:[GHGSOURCE]], \"Vehicle\", FactorMatrix[[TYPE]:[TYPE]], $C86, FactorMatrix[[STATE /REGION]:[STATE /REGION]], $D86)*Years\n+\nSUMIFS(FactorMatrix[[DOWNSTREAM]:[DOWNSTREAM]], FactorMatrix[[MODE]:[MODE]], $B86, FactorMatrix[[PHASE]:[PHASE]], \"Operations\", FactorMatrix[[GHGSOURCE]:[GHGSOURCE]], \"Vehicle\", FactorMatrix[[TYPE]:[TYPE]], $C86, FactorMatrix[[STATE /REGION]:[STATE /REGION]], $E86)*Years)/IF(AND(D86=0, E86=0), 2, 1)","v":0},0,0,0,"UPSTREAM MATERIALS","UPSTREAM TRANSPORT","DOWNSTREAM"]
[6,{"$f":"'Vehicle Operations&Maintenance'!B10","v":0},{"$f":"'Vehicle Operations&Maintenance'!C10","v":0},{"$f":"'Vehicle Operations&Maintenance'!D10","v":0},{"$f":"_xlfn.IFNA(INDEX(Dropdowns!L$3:L$30, MATCH(D87, EGridSubregions, 0)), 0)","v":0},{"$f":"'Vehicle Operations&Maintenance'!E10","v":0},{"$f":"(SUMIFS(FactorMatrix[[UPSTREAMMATERIALS]:[UPSTREAMMATERIALS]], FactorMatrix[[MODE]:[MODE]], $B87, FactorMatrix[[PHASE]:[PHASE]], \"Operations\", FactorMatrix[[GHGSOURCE]:[GHGSOURCE]], \"Vehicle\", FactorMatrix[[TYPE]:[TYPE]], $C87, FactorMatrix[[STATE /REGION]:[STATE /REGION]], $D87)*Years\n+\nSUMIFS(FactorMatrix[[UPSTREAMMATERIALS]:[UPSTREAMMATERIALS]], FactorMatrix[[MODE]:[MODE]], $B87, FactorMatrix[[PHASE]:[PHASE]], \"Operations\", FactorMatrix[[GHGSOURCE]:[GHGSOURCE]], \"Vehicle\", FactorMatrix[[TYPE]:[TYPE]], $C87, FactorMatrix[[STATE /REGION]:[STATE /REGION]], $E87)*Years)/IF(AND(D87=0, E87=0), 2, 1)","v":0},{"$f":"(SUMIFS(FactorMatrix[[UPSTREAMTRANSPORT]:[UPSTREAMTRANSPORT]], FactorMatrix[[MODE]:[MODE]], $B87, FactorMatrix[[PHASE]:[PHASE]], \"Operations\", FactorMatrix[[GHGSOURCE]:[GHGSOURCE]], \"Vehicle\", FactorMatrix[[TYPE]:[TYPE]], $C87, FactorMatrix[[STATE /REGION]:[STATE /REGION]], $D87)*Years\n+\nSUMIFS(FactorMatrix[[UPSTREAMTRANSPORT]:[UPSTREAMTRANSPORT]], FactorMatrix[[MODE]:[MODE]], $B87, FactorMatrix[[PHASE]:[PHASE]], \"Operations\", FactorMatrix[[GHGSOURCE]:[GHGSOURCE]], \"Vehicle\", FactorMatrix[[TYPE]:[TYPE]], $C87, FactorMatrix[[STATE /REGION]:[STATE /REGION]], $E87)*Years)/IF(AND(D87=0, E87=0), 2, 1)","v":0},{"$f":"(SUMIFS(FactorMatrix[[DOWNSTREAM]:[DOWNSTREAM]], FactorMatrix[[MODE]:[MODE]], $B87, FactorMatrix[[PHASE]:[PHASE]], \"Operations\", FactorMatrix[[GHGSOURCE]:[GHGSOURCE]], \"Vehicle\", FactorMatrix[[TYPE]:[TYPE]], $C87, FactorMatrix[[STATE /REGION]:[STATE /REGION]], $D87)*Years\n+\nSUMIFS(FactorMatrix[[DOWNSTREAM]:[DOWNSTREAM]], FactorMatrix[[MODE]:[MODE]], $B87, FactorMatrix[[PHASE]:[PHASE]], \"Operations\", FactorMatrix[[GHGSOURCE]:[GHGSOURCE]], \"Vehicle\", FactorMatrix[[TYPE]:[TYPE]], $C87, FactorMatrix[[STATE /REGION]:[STATE /REGION]], $E87)*Years)/IF(AND(D87=0, E87=0), 2, 1)","v":0},0,0,0,{"$f":"M82/Years","v":{"$error":"#DIV/0!"}},{"$f":"N82/Years","v":{"$error":"#DIV/0!"}},{"$f":"O82/Years","v":{"$error":"#DIV/0!"}}]
[7,{"$f":"'Vehicle Operations&Maintenance'!B11","v":0},{"$f":"'Vehicle Operations&Maintenance'!C11","v":0},{"$f":"'Vehicle Operations&Maintenance'!D11","v":0},{"$f":"_xlfn.IFNA(INDEX(Dropdowns!L$3:L$30, MATCH(D88, EGridSubregions, 0)), 0)","v":0},{"$f":"'Vehicle Operations&Maintenance'!E11","v":0},{"$f":"(SUMIFS(FactorMatrix[[UPSTREAMMATERIALS]:[UPSTREAMMATERIALS]], FactorMatrix[[MODE]:[MODE]], $B88, FactorMatrix[[PHASE]:[PHASE]], \"Operations\", FactorMatrix[[GHGSOURCE]:[GHGSOURCE]], \"Vehicle\", FactorMatrix[[TYPE]:[TYPE]], $C88, FactorMatrix[[STATE /REGION]:[STATE /REGION]], $D88)*Years\n+\nSUMIFS(FactorMatrix[[UPSTREAMMATERIALS]:[UPSTREAMMATERIALS]], FactorMatrix[[MODE]:[MODE]], $B88, FactorMatrix[[PHASE]:[PHASE]], \"Operations\", FactorMatrix[[GHGSOURCE]:[GHGSOURCE]], \"Vehicle\", FactorMatrix[[TYPE]:[TYPE]], $C88, FactorMatrix[[STATE /REGION]:[STATE /REGION]], $E88)*Years)/IF(AND(D88=0, E88=0), 2, 1)","v":0},{"$f":"(SUMIFS(FactorMatrix[[UPSTREAMTRANSPORT]:[UPSTREAMTRANSPORT]], FactorMatrix[[MODE]:[MODE]], $B88, FactorMatrix[[PHASE]:[PHASE]], \"Operations\", FactorMatrix[[GHGSOURCE]:[GHGSOURCE]], \"Vehicle\", FactorMatrix[[TYPE]:[TYPE]], $C88, FactorMatrix[[STATE /REGION]:[STATE /REGION]], $D88)*Years\n+\nSUMIFS(FactorMatrix[[UPSTREAMTRANSPORT]:[UPSTREAMTRANSPORT]], FactorMatrix[[MODE]:[MODE]], $B88, FactorMatrix[[PHASE]:[PHASE]], \"Operations\", FactorMatrix[[GHGSOURCE]:[GHGSOURCE]], \"Vehicle\", FactorMatrix[[TYPE]:[TYPE]], $C88, FactorMatrix[[STATE /REGION]:[STATE /REGION]], $E88)*Years)/IF(AND(D88=0, E88=0), 2, 1)","v":0},{"$f":"(SUMIFS(FactorMatrix[[DOWNSTREAM]:[DOWNSTREAM]], FactorMatrix[[MODE]:[MODE]], $B88, FactorMatrix[[PHASE]:[PHASE]], \"Operations\", FactorMatrix[[GHGSOURCE]:[GHGSOURCE]], \"Vehicle\", FactorMatrix[[TYPE]:[TYPE]], $C88, FactorMatrix[[STATE /REGION]:[STATE /REGION]], $D88)*Years\n+\nSUMIFS(FactorMatrix[[DOWNSTREAM]:[DOWNSTREAM]], FactorMatrix[[MODE]:[MODE]], $B88, FactorMatrix[[PHASE]:[PHASE]], \"Operations\", FactorMatrix[[GHGSOURCE]:[GHGSOURCE]], \"Vehicle\", FactorMatrix[[TYPE]:[TYPE]], $C88, FactorMatrix[[STATE /REGION]:[STATE /REGION]], $E88)*Years)/IF(AND(D88=0, E88=0), 2, 1)","v":0},0,0,0]
[8,{"$f":"'Vehicle Operations&Maintenance'!B12","v":0},{"$f":"'Vehicle Operations&Maintenance'!C12","v":0},{"$f":"'Vehicle Operations&Maintenance'!D12","v":0},{"$f":"_xlfn.IFNA(INDEX(Dropdowns!L$3:L$30, MATCH(D89, EGridSubregions, 0)), 0)","v":0},{"$f":"'Vehicle Operations&Maintenance'!E12","v":0},{"$f":"(SUMIFS(FactorMatrix[[UPSTREAMMATERIALS]:[UPSTREAMMATERIALS]], FactorMatrix[[MODE]:[MODE]], $B89, FactorMatrix[[PHASE]:[PHASE]], \"Operations\", FactorMatrix[[GHGSOURCE]:[GHGSOURCE]], \"Vehicle\", FactorMatrix[[TYPE]:[TYPE]], $C89, FactorMatrix[[STATE /REGION]:[STATE /REGION]], $D89)*Years\n+\nSUMIFS(FactorMatrix[[UPSTREAMMATERIALS]:[UPSTREAMMATERIALS]], FactorMatrix[[MODE]:[MODE]], $B89, FactorMatrix[[PHASE]:[PHASE]], \"Operations\", FactorMatrix[[GHGSOURCE]:[GHGSOURCE]], \"Vehicle\", FactorMatrix[[TYPE]:[TYPE]], $C89, FactorMatrix[[STATE /REGION]:[STATE /REGION]], $E89)*Years)/IF(AND(D89=0, E89=0), 2, 1)","v":0},{"$f":"(SUMIFS(FactorMatrix[[UPSTREAMTRANSPORT]:[UPSTREAMTRANSPORT]], FactorMatrix[[MODE]:[MODE]], $B89, FactorMatrix[[PHASE]:[PHASE]], \"Operations\", FactorMatrix[[GHGSOURCE]:[GHGSOURCE]], \"Vehicle\", FactorMatrix[[TYPE]:[TYPE]], $C89, FactorMatrix[[STATE /REGION]:[STATE /REGION]], $D89)*Years\n+\nSUMIFS(FactorMatrix[[UPSTREAMTRANSPORT]:[UPSTREAMTRANSPORT]], FactorMatrix[[MODE]:[MODE]], $B89, FactorMatrix[[PHASE]:[PHASE]], \"Operations\", FactorMatrix[[GHGSOURCE]:[GHGSOURCE]], \"Vehicle\", FactorMatrix[[TYPE]:[TYPE]], $C89, FactorMatrix[[STATE /REGION]:[STATE /REGION]], $E89)*Years)/IF(AND(D89=0, E89=0), 2, 1)","v":0},{"$f":"(SUMIFS(FactorMatrix[[DOWNSTREAM]:[DOWNSTREAM]], FactorMatrix[[MODE]:[MODE]], $B89, FactorMatrix[[PHASE]:[PHASE]], \"Operations\", FactorMatrix[[GHGSOURCE]:[GHGSOURCE]], \"Vehicle\", FactorMatrix[[TYPE]:[TYPE]], $C89, FactorMatrix[[STATE /REGION]:[STATE /REGION]], $D89)*Years\n+\nSUMIFS(FactorMatrix[[DOWNSTREAM]:[DOWNSTREAM]], FactorMatrix[[MODE]:[MODE]], $B89, FactorMatrix[[PHASE]:[PHASE]], \"Operations\", FactorMatrix[[GHGSOURCE]:[GHGSOURCE]], \"Vehicle\", FactorMatrix[[TYPE]:[TYPE]], $C89, FactorMatrix[[STATE /REGION]:[STATE /REGION]], $E89)*Years)/IF(AND(D89=0, E89=0), 2, 1)","v":0},0,0,0]
[9,{"$f":"'Vehicle Operations&Maintenance'!B13","v":0},{"$f":"'Vehicle Operations&Maintenance'!C13","v":0},{"$f":"'Vehicle Operations&Maintenance'!D13","v":0},{"$f":"_xlfn.IFNA(INDEX(Dropdowns!L$3:L$30, MATCH(D90, EGridSubregions, 0)), 0)","v":0},{"$f":"'Vehicle Operations&Maintenance'!E13","v":0},{"$f":"(SUMIFS(FactorMatrix[[UPSTREAMMATERIALS]:[UPSTREAMMATERIALS]], FactorMatrix[[MODE]:[MODE]], $B90, FactorMatrix[[PHASE]:[PHASE]], \"Operations\", FactorMatrix[[GHGSOURCE]:[GHGSOURCE]], \"Vehicle\", FactorMatrix[[TYPE]:[TYPE]], $C90, FactorMatrix[[STATE /REGION]:[STATE /REGION]], $D90)*Years\n+\nSUMIFS(FactorMatrix[[UPSTREAMMATERIALS]:[UPSTREAMMATERIALS]], FactorMatrix[[MODE]:[MODE]], $B90, FactorMatrix[[PHASE]:[PHASE]], \"Operations\", FactorMatrix[[GHGSOURCE]:[GHGSOURCE]], \"Vehicle\", FactorMatrix[[TYPE]:[TYPE]], $C90, FactorMatrix[[STATE /REGION]:[STATE /REGION]], $E90)*Years)/IF(AND(D90=0, E90=0), 2, 1)","v":0},{"$f":"(SUMIFS(FactorMatrix[[UPSTREAMTRANSPORT]:[UPSTREAMTRANSPORT]], FactorMatrix[[MODE]:[MODE]], $B90, FactorMatrix[[PHASE]:[PHASE]], \"Operations\", FactorMatrix[[GHGSOURCE]:[GHGSOURCE]], \"Vehicle\", FactorMatrix[[TYPE]:[TYPE]], $C90, FactorMatrix[[STATE /REGION]:[STATE /REGION]], $D90)*Years\n+\nSUMIFS(FactorMatrix[[UPSTREAMTRANSPORT]:[UPSTREAMTRANSPORT]], FactorMatrix[[MODE]:[MODE]], $B90, FactorMatrix[[PHASE]:[PHASE]], \"Operations\", FactorMatrix[[GHGSOURCE]:[GHGSOURCE]], \"Vehicle\", FactorMatrix[[TYPE]:[TYPE]], $C90, FactorMatrix[[STATE /REGION]:[STATE /REGION]], $E90)*Years)/IF(AND(D90=0, E90=0), 2, 1)","v":0},{"$f":"(SUMIFS(FactorMatrix[[DOWNSTREAM]:[DOWNSTREAM]], FactorMatrix[[MODE]:[MODE]], $B90, FactorMatrix[[PHASE]:[PHASE]], \"Operations\", FactorMatrix[[GHGSOURCE]:[GHGSOURCE]], \"Vehicle\", FactorMatrix[[TYPE]:[TYPE]], $C90, FactorMatrix[[STATE /REGION]:[STATE /REGION]], $D90)*Years\n+\nSUMIFS(FactorMatrix[[DOWNSTREAM]:[DOWNSTREAM]], FactorMatrix[[MODE]:[MODE]], $B90, FactorMatrix[[PHASE]:[PHASE]], \"Operations\", FactorMatrix[[GHGSOURCE]:[GHGSOURCE]], \"Vehicle\", FactorMatrix[[TYPE]:[TYPE]], $C90, FactorMatrix[[STATE /REGION]:[STATE /REGION]], $E90)*Years)/IF(AND(D90=0, E90=0), 2, 1)","v":0},0,0,0]
[10,{"$f":"'Vehicle Operations&Maintenance'!B14","v":0},{"$f":"'Vehicle Operations&Maintenance'!C14","v":0},{"$f":"'Vehicle Operations&Maintenance'!D14","v":0},{"$f":"_xlfn.IFNA(INDEX(Dropdowns!L$3:L$30, MATCH(D91, EGridSubregions, 0)), 0)","v":0},{"$f":"'Vehicle Operations&Maintenance'!E14","v":0},{"$f":"(SUMIFS(FactorMatrix[[UPSTREAMMATERIALS]:[UPSTREAMMATERIALS]], FactorMatrix[[MODE]:[MODE]], $B91, FactorMatrix[[PHASE]:[PHASE]], \"Operations\", FactorMatrix[[GHGSOURCE]:[GHGSOURCE]], \"Vehicle\", FactorMatrix[[TYPE]:[TYPE]], $C91, FactorMatrix[[STATE /REGION]:[STATE /REGION]], $D91)*Years\n+\nSUMIFS(FactorMatrix[[UPSTREAMMATERIALS]:[UPSTREAMMATERIALS]], FactorMatrix[[MODE]:[MODE]], $B91, FactorMatrix[[PHASE]:[PHASE]], \"Operations\", FactorMatrix[[GHGSOURCE]:[GHGSOURCE]], \"Vehicle\", FactorMatrix[[TYPE]:[TYPE]], $C91, FactorMatrix[[STATE /REGION]:[STATE /REGION]], $E91)*Years)/IF(AND(D91=0, E91=0), 2, 1)","v":0},{"$f":"(SUMIFS(FactorMatrix[[UPSTREAMTRANSPORT]:[UPSTREAMTRANSPORT]], FactorMatrix[[MODE]:[MODE]], $B91, FactorMatrix[[PHASE]:[PHASE]], \"Operations\", FactorMatrix[[GHGSOURCE]:[GHGSOURCE]], \"Vehicle\", FactorMatrix[[TYPE]:[TYPE]], $C91, FactorMatrix[[STATE /REGION]:[STATE /REGION]], $D91)*Years\n+\nSUMIFS(FactorMatrix[[UPSTREAMTRANSPORT]:[UPSTREAMTRANSPORT]], FactorMatrix[[MODE]:[MODE]], $B91, FactorMatrix[[PHASE]:[PHASE]], \"Operations\", FactorMatrix[[GHGSOURCE]:[GHGSOURCE]], \"Vehicle\", FactorMatrix[[TYPE]:[TYPE]], $C91, FactorMatrix[[STATE /REGION]:[STATE /REGION]], $E91)*Years)/IF(AND(D91=0, E91=0), 2, 1)","v":0},{"$f":"(SUMIFS(FactorMatrix[[DOWNSTREAM]:[DOWNSTREAM]], FactorMatrix[[MODE]:[MODE]], $B91, FactorMatrix[[PHASE]:[PHASE]], \"Operations\", FactorMatrix[[GHGSOURCE]:[GHGSOURCE]], \"Vehicle\", FactorMatrix[[TYPE]:[TYPE]], $C91, FactorMatrix[[STATE /REGION]:[STATE /REGION]], $D91)*Years\n+\nSUMIFS(FactorMatrix[[DOWNSTREAM]:[DOWNSTREAM]], FactorMatrix[[MODE]:[MODE]], $B91, FactorMatrix[[PHASE]:[PHASE]], \"Operations\", FactorMatrix[[GHGSOURCE]:[GHGSOURCE]], \"Vehicle\", FactorMatrix[[TYPE]:[TYPE]], $C91, FactorMatrix[[STATE /REGION]:[STATE /REGION]], $E91)*Years)/IF(AND(D91=0, E91=0), 2, 1)","v":0},0,0,0]
[11,{"$f":"'Vehicle Operations&Maintenance'!B15","v":0},{"$f":"'Vehicle Operations&Maintenance'!C15","v":0},{"$f":"'Vehicle Operations&Maintenance'!D15","v":0},{"$f":"_xlfn.IFNA(INDEX(Dropdowns!L$3:L$30, MATCH(D92, EGridSubregions, 0)), 0)","v":0},{"$f":"'Vehicle Operations&Maintenance'!E15","v":0},{"$f":"(SUMIFS(FactorMatrix[[UPSTREAMMATERIALS]:[UPSTREAMMATERIALS]], FactorMatrix[[MODE]:[MODE]], $B92, FactorMatrix[[PHASE]:[PHASE]], \"Operations\", FactorMatrix[[GHGSOURCE]:[GHGSOURCE]], \"Vehicle\", FactorMatrix[[TYPE]:[TYPE]], $C92, FactorMatrix[[STATE /REGION]:[STATE /REGION]], $D92)*Years\n+\nSUMIFS(FactorMatrix[[UPSTREAMMATERIALS]:[UPSTREAMMATERIALS]], FactorMatrix[[MODE]:[MODE]], $B92, FactorMatrix[[PHASE]:[PHASE]], \"Operations\", FactorMatrix[[GHGSOURCE]:[GHGSOURCE]], \"Vehicle\", FactorMatrix[[TYPE]:[TYPE]], $C92, FactorMatrix[[STATE /REGION]:[STATE /REGION]], $E92)*Years)/IF(AND(D92=0, E92=0), 2, 1)","v":0},{"$f":"(SUMIFS(FactorMatrix[[UPSTREAMTRANSPORT]:[UPSTREAMTRANSPORT]], FactorMatrix[[MODE]:[MODE]], $B92, FactorMatrix[[PHASE]:[PHASE]], \"Operations\", FactorMatrix[[GHGSOURCE]:[GHGSOURCE]], \"Vehicle\", FactorMatrix[[TYPE]:[TYPE]], $C92, FactorMatrix[[STATE /REGION]:[STATE /REGION]], $D92)*Years\n+\nSUMIFS(FactorMatrix[[UPSTREAMTRANSPORT]:[UPSTREAMTRANSPORT]], FactorMatrix[[MODE]:[MODE]], $B92, FactorMatrix[[PHASE]:[PHASE]], \"Operations\", FactorMatrix[[GHGSOURCE]:[GHGSOURCE]], \"Vehicle\", FactorMatrix[[TYPE]:[TYPE]], $C92, FactorMatrix[[STATE /REGION]:[STATE /REGION]], $E92)*Years)/IF(AND(D92=0, E92=0), 2, 1)","v":0},{"$f":"(SUMIFS(FactorMatrix[[DOWNSTREAM]:[DOWNSTREAM]], FactorMatrix[[MODE]:[MODE]], $B92, FactorMatrix[[PHASE]:[PHASE]], \"Operations\", FactorMatrix[[GHGSOURCE]:[GHGSOURCE]], \"Vehicle\", FactorMatrix[[TYPE]:[TYPE]], $C92, FactorMatrix[[STATE /REGION]:[STATE /REGION]], $D92)*Years\n+\nSUMIFS(FactorMatrix[[DOWNSTREAM]:[DOWNSTREAM]], FactorMatrix[[MODE]:[MODE]], $B92, FactorMatrix[[PHASE]:[PHASE]], \"Operations\", FactorMatrix[[GHGSOURCE]:[GHGSOURCE]], \"Vehicle\", FactorMatrix[[TYPE]:[TYPE]], $C92, FactorMatrix[[STATE /REGION]:[STATE /REGION]], $E92)*Years)/IF(AND(D92=0, E92=0), 2, 1)","v":0},0,0,0]
[12,{"$f":"'Vehicle Operations&Maintenance'!B16","v":0},{"$f":"'Vehicle Operations&Maintenance'!C16","v":0},{"$f":"'Vehicle Operations&Maintenance'!D16","v":0},{"$f":"_xlfn.IFNA(INDEX(Dropdowns!L$3:L$30, MATCH(D93, EGridSubregions, 0)), 0)","v":0},{"$f":"'Vehicle Operations&Maintenance'!E16","v":0},{"$f":"(SUMIFS(FactorMatrix[[UPSTREAMMATERIALS]:[UPSTREAMMATERIALS]], FactorMatrix[[MODE]:[MODE]], $B93, FactorMatrix[[PHASE]:[PHASE]], \"Operations\", FactorMatrix[[GHGSOURCE]:[GHGSOURCE]], \"Vehicle\", FactorMatrix[[TYPE]:[TYPE]], $C93, FactorMatrix[[STATE /REGION]:[STATE /REGION]], $D93)*Years\n+\nSUMIFS(FactorMatrix[[UPSTREAMMATERIALS]:[UPSTREAMMATERIALS]], FactorMatrix[[MODE]:[MODE]], $B93, FactorMatrix[[PHASE]:[PHASE]], \"Operations\", FactorMatrix[[GHGSOURCE]:[GHGSOURCE]], \"Vehicle\", FactorMatrix[[TYPE]:[TYPE]], $C93, FactorMatrix[[STATE /REGION]:[STATE /REGION]], $E93)*Years)/IF(AND(D93=0, E93=0), 2, 1)","v":0},{"$f":"(SUMIFS(FactorMatrix[[UPSTREAMTRANSPORT]:[UPSTREAMTRANSPORT]], FactorMatrix[[MODE]:[MODE]], $B93, FactorMatrix[[PHASE]:[PHASE]], \"Operations\", FactorMatrix[[GHGSOURCE]:[GHGSOURCE]], \"Vehicle\", FactorMatrix[[TYPE]:[TYPE]], $C93, FactorMatrix[[STATE /REGION]:[STATE /REGION]], $D93)*Years\n+\nSUMIFS(FactorMatrix[[UPSTREAMTRANSPORT]:[UPSTREAMTRANSPORT]], FactorMatrix[[MODE]:[MODE]], $B93, FactorMatrix[[PHASE]:[PHASE]], \"Operations\", FactorMatrix[[GHGSOURCE]:[GHGSOURCE]], \"Vehicle\", FactorMatrix[[TYPE]:[TYPE]], $C93, FactorMatrix[[STATE /REGION]:[STATE /REGION]], $E93)*Years)/IF(AND(D93=0, E93=0), 2, 1)","v":0},{"$f":"(SUMIFS(FactorMatrix[[DOWNSTREAM]:[DOWNSTREAM]], FactorMatrix[[MODE]:[MODE]], $B93, FactorMatrix[[PHASE]:[PHASE]], \"Operations\", FactorMatrix[[GHGSOURCE]:[GHGSOURCE]], \"Vehicle\", FactorMatrix[[TYPE]:[TYPE]], $C93, FactorMatrix[[STATE /REGION]:[STATE /REGION]], $D93)*Years\n+\nSUMIFS(FactorMatrix[[DOWNSTREAM]:[DOWNSTREAM]], FactorMatrix[[MODE]:[MODE]], $B93, FactorMatrix[[PHASE]:[PHASE]], \"Operations\", FactorMatrix[[GHGSOURCE]:[GHGSOURCE]], \"Vehicle\", FactorMatrix[[TYPE]:[TYPE]], $C93, FactorMatrix[[STATE /REGION]:[STATE /REGION]], $E93)*Years)/IF(AND(D93=0, E93=0), 2, 1)","v":0},0,0,0]
[13,{"$f":"'Vehicle Operations&Maintenance'!B17","v":0},{"$f":"'Vehicle Operations&Maintenance'!C17","v":0},{"$f":"'Vehicle Operations&Maintenance'!D17","v":0},{"$f":"_xlfn.IFNA(INDEX(Dropdowns!L$3:L$30, MATCH(D94, EGridSubregions, 0)), 0)","v":0},{"$f":"'Vehicle Operations&Maintenance'!E17","v":0},{"$f":"(SUMIFS(FactorMatrix[[UPSTREAMMATERIALS]:[UPSTREAMMATERIALS]], FactorMatrix[[MODE]:[MODE]], $B94, FactorMatrix[[PHASE]:[PHASE]], \"Operations\", FactorMatrix[[GHGSOURCE]:[GHGSOURCE]], \"Vehicle\", FactorMatrix[[TYPE]:[TYPE]], $C94, FactorMatrix[[STATE /REGION]:[STATE /REGION]], $D94)*Years\n+\nSUMIFS(FactorMatrix[[UPSTREAMMATERIALS]:[UPSTREAMMATERIALS]], FactorMatrix[[MODE]:[MODE]], $B94, FactorMatrix[[PHASE]:[PHASE]], \"Operations\", FactorMatrix[[GHGSOURCE]:[GHGSOURCE]], \"Vehicle\", FactorMatrix[[TYPE]:[TYPE]], $C94, FactorMatrix[[STATE /REGION]:[STATE /REGION]], $E94)*Years)/IF(AND(D94=0, E94=0), 2, 1)","v":0},{"$f":"(SUMIFS(FactorMatrix[[UPSTREAMTRANSPORT]:[UPSTREAMTRANSPORT]], FactorMatrix[[MODE]:[MODE]], $B94, FactorMatrix[[PHASE]:[PHASE]], \"Operations\", FactorMatrix[[GHGSOURCE]:[GHGSOURCE]], \"Vehicle\", FactorMatrix[[TYPE]:[TYPE]], $C94, FactorMatrix[[STATE /REGION]:[STATE /REGION]], $D94)*Years\n+\nSUMIFS(FactorMatrix[[UPSTREAMTRANSPORT]:[UPSTREAMTRANSPORT]], FactorMatrix[[MODE]:[MODE]], $B94, FactorMatrix[[PHASE]:[PHASE]], \"Operations\", FactorMatrix[[GHGSOURCE]:[GHGSOURCE]], \"Vehicle\", FactorMatrix[[TYPE]:[TYPE]], $C94, FactorMatrix[[STATE /REGION]:[STATE /REGION]], $E94)*Years)/IF(AND(D94=0, E94=0), 2, 1)","v":0},{"$f":"(SUMIFS(FactorMatrix[[DOWNSTREAM]:[DOWNSTREAM]], FactorMatrix[[MODE]:[MODE]], $B94, FactorMatrix[[PHASE]:[PHASE]], \"Operations\", FactorMatrix[[GHGSOURCE]:[GHGSOURCE]], \"Vehicle\", FactorMatrix[[TYPE]:[TYPE]], $C94, FactorMatrix[[STATE /REGION]:[STATE /REGION]], $D94)*Years\n+\nSUMIFS(FactorMatrix[[DOWNSTREAM]:[DOWNSTREAM]], FactorMatrix[[MODE]:[MODE]], $B94, FactorMatrix[[PHASE]:[PHASE]], \"Operations\", FactorMatrix[[GHGSOURCE]:[GHGSOURCE]], \"Vehicle\", FactorMatrix[[TYPE]:[TYPE]], $C94, FactorMatrix[[STATE /REGION]:[STATE /REGION]], $E94)*Years)/IF(AND(D94=0, E94=0), 2, 1)","v":0},0,0,0]
[14,{"$f":"'Vehicle Operations&Maintenance'!B18","v":0},{"$f":"'Vehicle Operations&Maintenance'!C18","v":0},{"$f":"'Vehicle Operations&Maintenance'!D18","v":0},{"$f":"_xlfn.IFNA(INDEX(Dropdowns!L$3:L$30, MATCH(D95, EGridSubregions, 0)), 0)","v":0},{"$f":"'Vehicle Operations&Maintenance'!E18","v":0},{"$f":"(SUMIFS(FactorMatrix[[UPSTREAMMATERIALS]:[UPSTREAMMATERIALS]], FactorMatrix[[MODE]:[MODE]], $B95, FactorMatrix[[PHASE]:[PHASE]], \"Operations\", FactorMatrix[[GHGSOURCE]:[GHGSOURCE]], \"Vehicle\", FactorMatrix[[TYPE]:[TYPE]], $C95, FactorMatrix[[STATE /REGION]:[STATE /REGION]], $D95)*Years\n+\nSUMIFS(FactorMatrix[[UPSTREAMMATERIALS]:[UPSTREAMMATERIALS]], FactorMatrix[[MODE]:[MODE]], $B95, FactorMatrix[[PHASE]:[PHASE]], \"Operations\", FactorMatrix[[GHGSOURCE]:[GHGSOURCE]], \"Vehicle\", FactorMatrix[[TYPE]:[TYPE]], $C95, FactorMatrix[[STATE /REGION]:[STATE /REGION]], $E95)*Years)/IF(AND(D95=0, E95=0), 2, 1)","v":0},{"$f":"(SUMIFS(FactorMatrix[[UPSTREAMTRANSPORT]:[UPSTREAMTRANSPORT]], FactorMatrix[[MODE]:[MODE]], $B95, FactorMatrix[[PHASE]:[PHASE]], \"Operations\", FactorMatrix[[GHGSOURCE]:[GHGSOURCE]], \"Vehicle\", FactorMatrix[[TYPE]:[TYPE]], $C95, FactorMatrix[[STATE /REGION]:[STATE /REGION]], $D95)*Years\n+\nSUMIFS(FactorMatrix[[UPSTREAMTRANSPORT]:[UPSTREAMTRANSPORT]], FactorMatrix[[MODE]:[MODE]], $B95, FactorMatrix[[PHASE]:[PHASE]], \"Operations\", FactorMatrix[[GHGSOURCE]:[GHGSOURCE]], \"Vehicle\", FactorMatrix[[TYPE]:[TYPE]], $C95, FactorMatrix[[STATE /REGION]:[STATE /REGION]], $E95)*Years)/IF(AND(D95=0, E95=0), 2, 1)","v":0},{"$f":"(SUMIFS(FactorMatrix[[DOWNSTREAM]:[DOWNSTREAM]], FactorMatrix[[MODE]:[MODE]], $B95, FactorMatrix[[PHASE]:[PHASE]], \"Operations\", FactorMatrix[[GHGSOURCE]:[GHGSOURCE]], \"Vehicle\", FactorMatrix[[TYPE]:[TYPE]], $C95, FactorMatrix[[STATE /REGION]:[STATE /REGION]], $D95)*Years\n+\nSUMIFS(FactorMatrix[[DOWNSTREAM]:[DOWNSTREAM]], FactorMatrix[[MODE]:[MODE]], $B95, FactorMatrix[[PHASE]:[PHASE]], \"Operations\", FactorMatrix[[GHGSOURCE]:[GHGSOURCE]], \"Vehicle\", FactorMatrix[[TYPE]:[TYPE]], $C95, FactorMatrix[[STATE /REGION]:[STATE /REGION]], $E95)*Years)/IF(AND(D95=0, E95=0), 2, 1)","v":0},0,0,0]
[15,{"$f":"'Vehicle Operations&Maintenance'!B20","v":0},{"$f":"'Vehicle Operations&Maintenance'!C20","v":0},{"$f":"'Vehicle Operations&Maintenance'!D20","v":0},{"$f":"_xlfn.IFNA(INDEX(Dropdowns!L$3:L$30, MATCH(D96, EGridSubregions, 0)), 0)","v":0},{"$f":"'Vehicle Operations&Maintenance'!E20","v":0},{"$f":"(SUMIFS(FactorMatrix[[UPSTREAMMATERIALS]:[UPSTREAMMATERIALS]], FactorMatrix[[MODE]:[MODE]], $B96, FactorMatrix[[PHASE]:[PHASE]], \"Operations\", FactorMatrix[[GHGSOURCE]:[GHGSOURCE]], \"Vehicle\", FactorMatrix[[TYPE]:[TYPE]], $C96, FactorMatrix[[STATE /REGION]:[STATE /REGION]], $D96)*Years\n+\nSUMIFS(FactorMatrix[[UPSTREAMMATERIALS]:[UPSTREAMMATERIALS]], FactorMatrix[[MODE]:[MODE]], $B96, FactorMatrix[[PHASE]:[PHASE]], \"Operations\", FactorMatrix[[GHGSOURCE]:[GHGSOURCE]], \"Vehicle\", FactorMatrix[[TYPE]:[TYPE]], $C96, FactorMatrix[[STATE /REGION]:[STATE /REGION]], $E96)*Years)/IF(AND(D96=0, E96=0), 2, 1)","v":0},{"$f":"(SUMIFS(FactorMatrix[[UPSTREAMTRANSPORT]:[UPSTREAMTRANSPORT]], FactorMatrix[[MODE]:[MODE]], $B96, FactorMatrix[[PHASE]:[PHASE]], \"Operations\", FactorMatrix[[GHGSOURCE]:[GHGSOURCE]], \"Vehicle\", FactorMatrix[[TYPE]:[TYPE]], $C96, FactorMatrix[[STATE /REGION]:[STATE /REGION]], $D96)*Years\n+\nSUMIFS(FactorMatrix[[UPSTREAMTRANSPORT]:[UPSTREAMTRANSPORT]], FactorMatrix[[MODE]:[MODE]], $B96, FactorMatrix[[PHASE]:[PHASE]], \"Operations\", FactorMatrix[[GHGSOURCE]:[GHGSOURCE]], \"Vehicle\", FactorMatrix[[TYPE]:[TYPE]], $C96, FactorMatrix[[STATE /REGION]:[STATE /REGION]], $E96)*Years)/IF(AND(D96=0, E96=0), 2, 1)","v":0},{"$f":"(SUMIFS(FactorMatrix[[DOWNSTREAM]:[DOWNSTREAM]], FactorMatrix[[MODE]:[MODE]], $B96, FactorMatrix[[PHASE]:[PHASE]], \"Operations\", FactorMatrix[[GHGSOURCE]:[GHGSOURCE]], \"Vehicle\", FactorMatrix[[TYPE]:[TYPE]], $C96, FactorMatrix[[STATE /REGION]:[STATE /REGION]], $D96)*Years\n+\nSUMIFS(FactorMatrix[[DOWNSTREAM]:[DOWNSTREAM]], FactorMatrix[[MODE]:[MODE]], $B96, FactorMatrix[[PHASE]:[PHASE]], \"Operations\", FactorMatrix[[GHGSOURCE]:[GHGSOURCE]], \"Vehicle\", FactorMatrix[[TYPE]:[TYPE]], $C96, FactorMatrix[[STATE /REGION]:[STATE /REGION]], $E96)*Years)/IF(AND(D96=0, E96=0), 2, 1)","v":0},0,0,0]
[16,{"$f":"'Vehicle Operations&Maintenance'!B21","v":0},{"$f":"'Vehicle Operations&Maintenance'!C21","v":0},{"$f":"'Vehicle Operations&Maintenance'!D21","v":0},{"$f":"_xlfn.IFNA(INDEX(Dropdowns!L$3:L$30, MATCH(D97, EGridSubregions, 0)), 0)","v":0},{"$f":"'Vehicle Operations&Maintenance'!E21","v":0},{"$f":"(SUMIFS(FactorMatrix[[UPSTREAMMATERIALS]:[UPSTREAMMATERIALS]], FactorMatrix[[MODE]:[MODE]], $B97, FactorMatrix[[PHASE]:[PHASE]], \"Operations\", FactorMatrix[[GHGSOURCE]:[GHGSOURCE]], \"Vehicle\", FactorMatrix[[TYPE]:[TYPE]], $C97, FactorMatrix[[STATE /REGION]:[STATE /REGION]], $D97)*Years\n+\nSUMIFS(FactorMatrix[[UPSTREAMMATERIALS]:[UPSTREAMMATERIALS]], FactorMatrix[[MODE]:[MODE]], $B97, FactorMatrix[[PHASE]:[PHASE]], \"Operations\", FactorMatrix[[GHGSOURCE]:[GHGSOURCE]], \"Vehicle\", FactorMatrix[[TYPE]:[TYPE]], $C97, FactorMatrix[[STATE /REGION]:[STATE /REGION]], $E97)*Years)/IF(AND(D97=0, E97=0), 2, 1)","v":0},{"$f":"(SUMIFS(FactorMatrix[[UPSTREAMTRANSPORT]:[UPSTREAMTRANSPORT]], FactorMatrix[[MODE]:[MODE]], $B97, FactorMatrix[[PHASE]:[PHASE]], \"Operations\", FactorMatrix[[GHGSOURCE]:[GHGSOURCE]], \"Vehicle\", FactorMatrix[[TYPE]:[TYPE]], $C97, FactorMatrix[[STATE /REGION]:[STATE /REGION]], $D97)*Years\n+\nSUMIFS(FactorMatrix[[UPSTREAMTRANSPORT]:[UPSTREAMTRANSPORT]], FactorMatrix[[MODE]:[MODE]], $B97, FactorMatrix[[PHASE]:[PHASE]], \"Operations\", FactorMatrix[[GHGSOURCE]:[GHGSOURCE]], \"Vehicle\", FactorMatrix[[TYPE]:[TYPE]], $C97, FactorMatrix[[STATE /REGION]:[STATE /REGION]], $E97)*Years)/IF(AND(D97=0, E97=0), 2, 1)","v":0},{"$f":"(SUMIFS(FactorMatrix[[DOWNSTREAM]:[DOWNSTREAM]], FactorMatrix[[MODE]:[MODE]], $B97, FactorMatrix[[PHASE]:[PHASE]], \"Operations\", FactorMatrix[[GHGSOURCE]:[GHGSOURCE]], \"Vehicle\", FactorMatrix[[TYPE]:[TYPE]], $C97, FactorMatrix[[STATE /REGION]:[STATE /REGION]], $D97)*Years\n+\nSUMIFS(FactorMatrix[[DOWNSTREAM]:[DOWNSTREAM]], FactorMatrix[[MODE]:[MODE]], $B97, FactorMatrix[[PHASE]:[PHASE]], \"Operations\", FactorMatrix[[GHGSOURCE]:[GHGSOURCE]], \"Vehicle\", FactorMatrix[[TYPE]:[TYPE]], $C97, FactorMatrix[[STATE /REGION]:[STATE /REGION]], $E97)*Years)/IF(AND(D97=0, E97=0), 2, 1)","v":0},0,0,0]
[17,{"$f":"'Vehicle Operations&Maintenance'!B22","v":0},{"$f":"'Vehicle Operations&Maintenance'!C22","v":0},{"$f":"'Vehicle Operations&Maintenance'!D22","v":0},{"$f":"_xlfn.IFNA(INDEX(Dropdowns!L$3:L$30, MATCH(D98, EGridSubregions, 0)), 0)","v":0},{"$f":"'Vehicle Operations&Maintenance'!E22","v":0},{"$f":"(SUMIFS(FactorMatrix[[UPSTREAMMATERIALS]:[UPSTREAMMATERIALS]], FactorMatrix[[MODE]:[MODE]], $B98, FactorMatrix[[PHASE]:[PHASE]], \"Operations\", FactorMatrix[[GHGSOURCE]:[GHGSOURCE]], \"Vehicle\", FactorMatrix[[TYPE]:[TYPE]], $C98, FactorMatrix[[STATE /REGION]:[STATE /REGION]], $D98)*Years\n+\nSUMIFS(FactorMatrix[[UPSTREAMMATERIALS]:[UPSTREAMMATERIALS]], FactorMatrix[[MODE]:[MODE]], $B98, FactorMatrix[[PHASE]:[PHASE]], \"Operations\", FactorMatrix[[GHGSOURCE]:[GHGSOURCE]], \"Vehicle\", FactorMatrix[[TYPE]:[TYPE]], $C98, FactorMatrix[[STATE /REGION]:[STATE /REGION]], $E98)*Years)/IF(AND(D98=0, E98=0), 2, 1)","v":0},{"$f":"(SUMIFS(FactorMatrix[[UPSTREAMTRANSPORT]:[UPSTREAMTRANSPORT]], FactorMatrix[[MODE]:[MODE]], $B98, FactorMatrix[[PHASE]:[PHASE]], \"Operations\", FactorMatrix[[GHGSOURCE]:[GHGSOURCE]], \"Vehicle\", FactorMatrix[[TYPE]:[TYPE]], $C98, FactorMatrix[[STATE /REGION]:[STATE /REGION]], $D98)*Years\n+\nSUMIFS(FactorMatrix[[UPSTREAMTRANSPORT]:[UPSTREAMTRANSPORT]], FactorMatrix[[MODE]:[MODE]], $B98, FactorMatrix[[PHASE]:[PHASE]], \"Operations\", FactorMatrix[[GHGSOURCE]:[GHGSOURCE]], \"Vehicle\", FactorMatrix[[TYPE]:[TYPE]], $C98, FactorMatrix[[STATE /REGION]:[STATE /REGION]], $E98)*Years)/IF(AND(D98=0, E98=0), 2, 1)","v":0},{"$f":"(SUMIFS(FactorMatrix[[DOWNSTREAM]:[DOWNSTREAM]], FactorMatrix[[MODE]:[MODE]], $B98, FactorMatrix[[PHASE]:[PHASE]], \"Operations\", FactorMatrix[[GHGSOURCE]:[GHGSOURCE]], \"Vehicle\", FactorMatrix[[TYPE]:[TYPE]], $C98, FactorMatrix[[STATE /REGION]:[STATE /REGION]], $D98)*Years\n+\nSUMIFS(FactorMatrix[[DOWNSTREAM]:[DOWNSTREAM]], FactorMatrix[[MODE]:[MODE]], $B98, FactorMatrix[[PHASE]:[PHASE]], \"Operations\", FactorMatrix[[GHGSOURCE]:[GHGSOURCE]], \"Vehicle\", FactorMatrix[[TYPE]:[TYPE]], $C98, FactorMatrix[[STATE /REGION]:[STATE /REGION]], $E98)*Years)/IF(AND(D98=0, E98=0), 2, 1)","v":0},0,0,0]
[18,{"$f":"'Vehicle Operations&Maintenance'!B23","v":0},{"$f":"'Vehicle Operations&Maintenance'!C23","v":0},{"$f":"'Vehicle Operations&Maintenance'!D23","v":0},{"$f":"_xlfn.IFNA(INDEX(Dropdowns!L$3:L$30, MATCH(D99, EGridSubregions, 0)), 0)","v":0},{"$f":"'Vehicle Operations&Maintenance'!E23","v":0},{"$f":"(SUMIFS(FactorMatrix[[UPSTREAMMATERIALS]:[UPSTREAMMATERIALS]], FactorMatrix[[MODE]:[MODE]], $B99, FactorMatrix[[PHASE]:[PHASE]], \"Operations\", FactorMatrix[[GHGSOURCE]:[GHGSOURCE]], \"Vehicle\", FactorMatrix[[TYPE]:[TYPE]], $C99, FactorMatrix[[STATE /REGION]:[STATE /REGION]], $D99)*Years\n+\nSUMIFS(FactorMatrix[[UPSTREAMMATERIALS]:[UPSTREAMMATERIALS]], FactorMatrix[[MODE]:[MODE]], $B99, FactorMatrix[[PHASE]:[PHASE]], \"Operations\", FactorMatrix[[GHGSOURCE]:[GHGSOURCE]], \"Vehicle\", FactorMatrix[[TYPE]:[TYPE]], $C99, FactorMatrix[[STATE /REGION]:[STATE /REGION]], $E99)*Years)/IF(AND(D99=0, E99=0), 2, 1)","v":0},{"$f":"(SUMIFS(FactorMatrix[[UPSTREAMTRANSPORT]:[UPSTREAMTRANSPORT]], FactorMatrix[[MODE]:[MODE]], $B99, FactorMatrix[[PHASE]:[PHASE]], \"Operations\", FactorMatrix[[GHGSOURCE]:[GHGSOURCE]], \"Vehicle\", FactorMatrix[[TYPE]:[TYPE]], $C99, FactorMatrix[[STATE /REGION]:[STATE /REGION]], $D99)*Years\n+\nSUMIFS(FactorMatrix[[UPSTREAMTRANSPORT]:[UPSTREAMTRANSPORT]], FactorMatrix[[MODE]:[MODE]], $B99, FactorMatrix[[PHASE]:[PHASE]], \"Operations\", FactorMatrix[[GHGSOURCE]:[GHGSOURCE]], \"Vehicle\", FactorMatrix[[TYPE]:[TYPE]], $C99, FactorMatrix[[STATE /REGION]:[STATE /REGION]], $E99)*Years)/IF(AND(D99=0, E99=0), 2, 1)","v":0},{"$f":"(SUMIFS(FactorMatrix[[DOWNSTREAM]:[DOWNSTREAM]], FactorMatrix[[MODE]:[MODE]], $B99, FactorMatrix[[PHASE]:[PHASE]], \"Operations\", FactorMatrix[[GHGSOURCE]:[GHGSOURCE]], \"Vehicle\", FactorMatrix[[TYPE]:[TYPE]], $C99, FactorMatrix[[STATE /REGION]:[STATE /REGION]], $D99)*Years\n+\nSUMIFS(FactorMatrix[[DOWNSTREAM]:[DOWNSTREAM]], FactorMatrix[[MODE]:[MODE]], $B99, FactorMatrix[[PHASE]:[PHASE]], \"Operations\", FactorMatrix[[GHGSOURCE]:[GHGSOURCE]], \"Vehicle\", FactorMatrix[[TYPE]:[TYPE]], $C99, FactorMatrix[[STATE /REGION]:[STATE /REGION]], $E99)*Years)/IF(AND(D99=0, E99=0), 2, 1)","v":0},0,0,0]
[19,{"$f":"'Vehicle Operations&Maintenance'!B24","v":0},{"$f":"'Vehicle Operations&Maintenance'!C24","v":0},{"$f":"'Vehicle Operations&Maintenance'!D24","v":0},{"$f":"_xlfn.IFNA(INDEX(Dropdowns!L$3:L$30, MATCH(D100, EGridSubregions, 0)), 0)","v":0},{"$f":"'Vehicle Operations&Maintenance'!E24","v":0},{"$f":"(SUMIFS(FactorMatrix[[UPSTREAMMATERIALS]:[UPSTREAMMATERIALS]], FactorMatrix[[MODE]:[MODE]], $B100, FactorMatrix[[PHASE]:[PHASE]], \"Operations\", FactorMatrix[[GHGSOURCE]:[GHGSOURCE]], \"Vehicle\", FactorMatrix[[TYPE]:[TYPE]], $C100, FactorMatrix[[STATE /REGION]:[STATE /REGION]], $D100)*Years\n+\nSUMIFS(FactorMatrix[[UPSTREAMMATERIALS]:[UPSTREAMMATERIALS]], FactorMatrix[[MODE]:[MODE]], $B100, FactorMatrix[[PHASE]:[PHASE]], \"Operations\", FactorMatrix[[GHGSOURCE]:[GHGSOURCE]], \"Vehicle\", FactorMatrix[[TYPE]:[TYPE]], $C100, FactorMatrix[[STATE /REGION]:[STATE /REGION]], $E100)*Years)/IF(AND(D100=0, E100=0), 2, 1)","v":0},{"$f":"(SUMIFS(FactorMatrix[[UPSTREAMTRANSPORT]:[UPSTREAMTRANSPORT]], FactorMatrix[[MODE]:[MODE]], $B100, FactorMatrix[[PHASE]:[PHASE]], \"Operations\", FactorMatrix[[GHGSOURCE]:[GHGSOURCE]], \"Vehicle\", FactorMatrix[[TYPE]:[TYPE]], $C100, FactorMatrix[[STATE /REGION]:[STATE /REGION]], $D100)*Years\n+\nSUMIFS(FactorMatrix[[UPSTREAMTRANSPORT]:[UPSTREAMTRANSPORT]], FactorMatrix[[MODE]:[MODE]], $B100, FactorMatrix[[PHASE]:[PHASE]], \"Operations\", FactorMatrix[[GHGSOURCE]:[GHGSOURCE]], \"Vehicle\", FactorMatrix[[TYPE]:[TYPE]], $C100, FactorMatrix[[STATE /REGION]:[STATE /REGION]], $E100)*Years)/IF(AND(D100=0, E100=0), 2, 1)","v":0},{"$f":"(SUMIFS(FactorMatrix[[DOWNSTREAM]:[DOWNSTREAM]], FactorMatrix[[MODE]:[MODE]], $B100, FactorMatrix[[PHASE]:[PHASE]], \"Operations\", FactorMatrix[[GHGSOURCE]:[GHGSOURCE]], \"Vehicle\", FactorMatrix[[TYPE]:[TYPE]], $C100, FactorMatrix[[STATE /REGION]:[STATE /REGION]], $D100)*Years\n+\nSUMIFS(FactorMatrix[[DOWNSTREAM]:[DOWNSTREAM]], FactorMatrix[[MODE]:[MODE]], $B100, FactorMatrix[[PHASE]:[PHASE]], \"Operations\", FactorMatrix[[GHGSOURCE]:[GHGSOURCE]], \"Vehicle\", FactorMatrix[[TYPE]:[TYPE]], $C100, FactorMatrix[[STATE /REGION]:[STATE /REGION]], $E100)*Years)/IF(AND(D100=0, E100=0), 2, 1)","v":0},0,0,0]
[20,{"$f":"'Vehicle Operations&Maintenance'!B25","v":0},{"$f":"'Vehicle Operations&Maintenance'!C25","v":0},{"$f":"'Vehicle Operations&Maintenance'!D25","v":0},{"$f":"_xlfn.IFNA(INDEX(Dropdowns!L$3:L$30, MATCH(D101, EGridSubregions, 0)), 0)","v":0},{"$f":"'Vehicle Operations&Maintenance'!E25","v":0},{"$f":"(SUMIFS(FactorMatrix[[UPSTREAMMATERIALS]:[UPSTREAMMATERIALS]], FactorMatrix[[MODE]:[MODE]], $B101, FactorMatrix[[PHASE]:[PHASE]], \"Operations\", FactorMatrix[[GHGSOURCE]:[GHGSOURCE]], \"Vehicle\", FactorMatrix[[TYPE]:[TYPE]], $C101, FactorMatrix[[STATE /REGION]:[STATE /REGION]], $D101)*Years\n+\nSUMIFS(FactorMatrix[[UPSTREAMMATERIALS]:[UPSTREAMMATERIALS]], FactorMatrix[[MODE]:[MODE]], $B101, FactorMatrix[[PHASE]:[PHASE]], \"Operations\", FactorMatrix[[GHGSOURCE]:[GHGSOURCE]], \"Vehicle\", FactorMatrix[[TYPE]:[TYPE]], $C101, FactorMatrix[[STATE /REGION]:[STATE /REGION]], $E101)*Years)/IF(AND(D101=0, E101=0), 2, 1)","v":0},{"$f":"(SUMIFS(FactorMatrix[[UPSTREAMTRANSPORT]:[UPSTREAMTRANSPORT]], FactorMatrix[[MODE]:[MODE]], $B101, FactorMatrix[[PHASE]:[PHASE]], \"Operations\", FactorMatrix[[GHGSOURCE]:[GHGSOURCE]], \"Vehicle\", FactorMatrix[[TYPE]:[TYPE]], $C101, FactorMatrix[[STATE /REGION]:[STATE /REGION]], $D101)*Years\n+\nSUMIFS(FactorMatrix[[UPSTREAMTRANSPORT]:[UPSTREAMTRANSPORT]], FactorMatrix[[MODE]:[MODE]], $B101, FactorMatrix[[PHASE]:[PHASE]], \"Operations\", FactorMatrix[[GHGSOURCE]:[GHGSOURCE]], \"Vehicle\", FactorMatrix[[TYPE]:[TYPE]], $C101, FactorMatrix[[STATE /REGION]:[STATE /REGION]], $E101)*Years)/IF(AND(D101=0, E101=0), 2, 1)","v":0},{"$f":"(SUMIFS(FactorMatrix[[DOWNSTREAM]:[DOWNSTREAM]], FactorMatrix[[MODE]:[MODE]], $B101, FactorMatrix[[PHASE]:[PHASE]], \"Operations\", FactorMatrix[[GHGSOURCE]:[GHGSOURCE]], \"Vehicle\", FactorMatrix[[TYPE]:[TYPE]], $C101, FactorMatrix[[STATE /REGION]:[STATE /REGION]], $D101)*Years\n+\nSUMIFS(FactorMatrix[[DOWNSTREAM]:[DOWNSTREAM]], FactorMatrix[[MODE]:[MODE]], $B101, FactorMatrix[[PHASE]:[PHASE]], \"Operations\", FactorMatrix[[GHGSOURCE]:[GHGSOURCE]], \"Vehicle\", FactorMatrix[[TYPE]:[TYPE]], $C101, FactorMatrix[[STATE /REGION]:[STATE /REGION]], $E101)*Years)/IF(AND(D101=0, E101=0), 2, 1)","v":0},0,0,0]
[]
["Vehicle Maintenance",null,null,null,null,null,"RESULTS",null,null,"FINAL RESULTS"]
["INPUTS"]
["row","Operation Mode ","VMT","Upstream Materials","Upstream Transport","Downstream","UPSTREAM MATERIALS","UPSTREAM TRANSPORT","DOWNSTREAM","UPSTREAM MATERIALS","UPSTREAM TRANSPORT","DOWNSTREAM"]
[1,{"$f":"B82","v":0},{"$f":"F82","v":0},{"$f":" SUMIFS(FactorMatrix[[UPSTREAMMATERIALS]:[UPSTREAMMATERIALS]], FactorMatrix[[MODE]:[MODE]], $B106, FactorMatrix[[PHASE]:[PHASE]], \"Maintenance\", FactorMatrix[[GHGSOURCE]:[GHGSOURCE]], \"Vehicle\")*Years","v":0},{"$f":" SUMIFS(FactorMatrix[[UPSTREAMTRANSPORT]:[UPSTREAMTRANSPORT]], FactorMatrix[[MODE]:[MODE]], $B106, FactorMatrix[[PHASE]:[PHASE]], \"Maintenance\", FactorMatrix[[GHGSOURCE]:[GHGSOURCE]], \"Vehicle\")*Years","v":0},{"$f":" SUMIFS(FactorMatrix[[DOWNSTREAM]:[DOWNSTREAM]], FactorMatrix[[MODE]:[MODE]], $B106, FactorMatrix[[PHASE]:[PHASE]], \"Maintenance\", FactorMatrix[[GHGSOURCE]:[GHGSOURCE]], \"Vehicle\")*Years","v":0},{"$f":"$C106*D106","v":0},0,{"$f":"$C106*F106","v":0},{"$f":"SUM(G106:G125)","v":0},{"$f":"SUM(H106:H125)","v":0},0]
[2,0,{"$f":"F83","v":0},{"$f":" SUMIFS(FactorMatrix[[UPSTREAMMATERIALS]:[UPSTREAMMATERIALS]], FactorMatrix[[MODE]:[MODE]], $B107, FactorMatrix[[PHASE]:[PHASE]], \"Maintenance\", FactorMatrix[[GHGSOURCE]:[GHGSOURCE]], \"Vehicle\")*Years","v":0},{"$f":" SUMIFS(FactorMatrix[[UPSTREAMTRANSPORT]:[UPSTREAMTRANSPORT]], FactorMatrix[[MODE]:[MODE]], $B107, FactorMatrix[[PHASE]:[PHASE]], \"Maintenance\", FactorMatrix[[GHGSOURCE]:[GHGSOURCE]], \"Vehicle\")*Years","v":0},{"$f":" SUMIFS(FactorMatrix[[DOWNSTREAM]:[DOWNSTREAM]], FactorMatrix[[MODE]:[MODE]], $B107, FactorMatrix[[PHASE]:[PHASE]], \"Maintenance\", FactorMatrix[[GHGSOURCE]:[GHGSOURCE]], \"Vehicle\")*Years","v":0},{"$f":"$C107*D107","v":0},{"$f":"$C107*E107","v":0},{"$f":"$C107*F107","v":0}]
[3,0,0,{"$f":" SUMIFS(FactorMatrix[[UPSTREAMMATERIALS]:[UPSTREAMMATERIALS]], FactorMatrix[[MODE]:[MODE]], $B108, FactorMatrix[[PHASE]:[PHASE]], \"Maintenance\", FactorMatrix[[GHGSOURCE]:[GHGSOURCE]], \"Vehicle\")*Years","v":0},{"$f":" SUMIFS(FactorMatrix[[UPSTREAMTRANSPORT]:[UPSTREAMTRANSPORT]], FactorMatrix[[MODE]:[MODE]], $B108, FactorMatrix[[PHASE]:[PHASE]], \"Maintenance\", FactorMatrix[[GHGSOURCE]:[GHGSOURCE]], \"Vehicle\")*Years","v":0},{"$f":" SUMIFS(FactorMatrix[[DOWNSTREAM]:[DOWNSTREAM]], FactorMatrix[[MODE]:[MODE]], $B108, FactorMatrix[[PHASE]:[PHASE]], \"Maintenance\", FactorMatrix[[GHGSOURCE]:[GHGSOURCE]], \"Vehicle\")*Years","v":0},0,0,0,"Annual"]
[4,0,0,{"$f":" SUMIFS(FactorMatrix[[UPSTREAMMATERIALS]:[UPSTREAMMATERIALS]], FactorMatrix[[MODE]:[MODE]], $B109, FactorMatrix[[PHASE]:[PHASE]], \"Maintenance\", FactorMatrix[[GHGSOURCE]:[GHGSOURCE]], \"Vehicle\")*Years","v":0},{"$f":" SUMIFS(FactorMatrix[[UPSTREAMTRANSPORT]:[UPSTREAMTRANSPORT]], FactorMatrix[[MODE]:[MODE]], $B109, FactorMatrix[[PHASE]:[PHASE]], \"Maintenance\", FactorMatrix[[GHGSOURCE]:[GHGSOURCE]], \"Vehicle\")*Years","v":0},{"$f":" SUMIFS(FactorMatrix[[DOWNSTREAM]:[DOWNSTREAM]], FactorMatrix[[MODE]:[MODE]], $B109, FactorMatrix[[PHASE]:[PHASE]], \"Maintenance\", FactorMatrix[[GHGSOURCE]:[GHGSOURCE]], \"Vehicle\")*Years","v":0},0,0,0]
[5,0,0,{"$f":" SUMIFS(FactorMatrix[[UPSTREAMMATERIALS]:[UPSTREAMMATERIALS]], FactorMatrix[[MODE]:[MODE]], $B110, FactorMatrix[[PHASE]:[PHASE]], \"Maintenance\", FactorMatrix[[GHGSOURCE]:[GHGSOURCE]], \"Vehicle\")*Years","v":0},{"$f":" SUMIFS(FactorMatrix[[UPSTREAMTRANSPORT]:[UPSTREAMTRANSPORT]], FactorMatrix[[MODE]:[MODE]], $B110, FactorMatrix[[PHASE]:[PHASE]], \"Maintenance\", FactorMatrix[[GHGSOURCE]:[GHGSOURCE]], \"Vehicle\")*Years","v":0},{"$f":" SUMIFS(FactorMatrix[[DOWNSTREAM]:[DOWNSTREAM]], FactorMatrix[[MODE]:[MODE]], $B110, FactorMatrix[[PHASE]:[PHASE]], \"Maintenance\", FactorMatrix[[GHGSOURCE]:[GHGSOURCE]], \"Vehicle\")*Years","v":0},0,0,0,"UPSTREAM MATERIALS","UPSTREAM TRANSPORT","DOWNSTREAM"]
[6,0,null,{"$f":" SUMIFS(FactorMatrix[[UPSTREAMMATERIALS]:[UPSTREAMMATERIALS]], FactorMatrix[[MODE]:[MODE]], $B111, FactorMatrix[[PHASE]:[PHASE]], \"Maintenance\", FactorMatrix[[GHGSOURCE]:[GHGSOURCE]], \"Vehicle\")*Years","v":0},{"$f":" SUMIFS(FactorMatrix[[UPSTREAMTRANSPORT]:[UPSTREAMTRANSPORT]], FactorMatrix[[MODE]:[MODE]], $B111, FactorMatrix[[PHASE]:[PHASE]], \"Maintenance\", FactorMatrix[[GHGSOURCE]:[GHGSOURCE]], \"Vehicle\")*Years","v":0},{"$f":" SUMIFS(FactorMatrix[[DOWNSTREAM]:[DOWNSTREAM]], FactorMatrix[[MODE]:[MODE]], $B111, FactorMatrix[[PHASE]:[PHASE]], \"Maintenance\", FactorMatrix[[GHGSOURCE]:[GHGSOURCE]], \"Vehicle\")*Years","v":0},0,0,0,{"$f":"J106/Years","v":{"$error":"#DIV/0!"}},{"$f":"K106/Years","v":{"$error":"#DIV/0!"}},{"$f":"L106/Years","v":{"$error":"#DIV/0!"}}]
[7,0,null,{"$f":" SUMIFS(FactorMatrix[[UPSTREAMMATERIALS]:[UPSTREAMMATERIALS]], FactorMatrix[[MODE]:[MODE]], $B112, FactorMatrix[[PHASE]:[PHASE]], \"Maintenance\", FactorMatrix[[GHGSOURCE]:[GHGSOURCE]], \"Vehicle\")*Years","v":0},{"$f":" SUMIFS(FactorMatrix[[UPSTREAMTRANSPORT]:[UPSTREAMTRANSPORT]], FactorMatrix[[MODE]:[MODE]], $B112, FactorMatrix[[PHASE]:[PHASE]], \"Maintenance\", FactorMatrix[[GHGSOURCE]:[GHGSOURCE]], \"Vehicle\")*Years","v":0},{"$f":" SUMIFS(FactorMatrix[[DOWNSTREAM]:[DOWNSTREAM]], FactorMatrix[[MODE]:[MODE]], $B112, FactorMatrix[[PHASE]:[PHASE]], \"Maintenance\", FactorMatrix[[GHGSOURCE]:[GHGSOURCE]], \"Vehicle\")*Years","v":0},0,0,0]
[8,0,null,{"$f":" SUMIFS(FactorMatrix[[UPSTREAMMATERIALS]:[UPSTREAMMATERIALS]], FactorMatrix[[MODE]:[MODE]], $B113, FactorMatrix[[PHASE]:[PHASE]], \"Maintenance\", FactorMatrix[[GHGSOURCE]:[GHGSOURCE]], \"Vehicle\")*Years","v":0},{"$f":" SUMIFS(FactorMatrix[[UPSTREAMTRANSPORT]:[UPSTREAMTRANSPORT]], FactorMatrix[[MODE]:[MODE]], $B113, FactorMatrix[[PHASE]:[PHASE]], \"Maintenance\", FactorMatrix[[GHGSOURCE]:[GHGSOURCE]], \"Vehicle\")*Years","v":0},{"$f":" SUMIFS(FactorMatrix[[DOWNSTREAM]:[DOWNSTREAM]], FactorMatrix[[MODE]:[MODE]], $B113, FactorMatrix[[PHASE]:[PHASE]], \"Maintenance\", FactorMatrix[[GHGSOURCE]:[GHGSOURCE]], \"Vehicle\")*Years","v":0},0,0,0]
[9,0,null,{"$f":" SUMIFS(FactorMatrix[[UPSTREAMMATERIALS]:[UPSTREAMMATERIALS]], FactorMatrix[[MODE]:[MODE]], $B114, FactorMatrix[[PHASE]:[PHASE]], \"Maintenance\", FactorMatrix[[GHGSOURCE]:[GHGSOURCE]], \"Vehicle\")*Years","v":0},{"$f":" SUMIFS(FactorMatrix[[UPSTREAMTRANSPORT]:[UPSTREAMTRANSPORT]], FactorMatrix[[MODE]:[MODE]], $B114, FactorMatrix[[PHASE]:[PHASE]], \"Maintenance\", FactorMatrix[[GHGSOURCE]:[GHGSOURCE]], \"Vehicle\")*Years","v":0},{"$f":" SUMIFS(FactorMatrix[[DOWNSTREAM]:[DOWNSTREAM]], FactorMatrix[[MODE]:[MODE]], $B114, FactorMatrix[[PHASE]:[PHASE]], \"Maintenance\", FactorMatrix[[GHGSOURCE]:[GHGSOURCE]], \"Vehicle\")*Years","v":0},0,0,0]
[10,0,null,{"$f":" SUMIFS(FactorMatrix[[UPSTREAMMATERIALS]:[UPSTREAMMATERIALS]], FactorMatrix[[MODE]:[MODE]], $B115, FactorMatrix[[PHASE]:[PHASE]], \"Maintenance\", FactorMatrix[[GHGSOURCE]:[GHGSOURCE]], \"Vehicle\")*Years","v":0},{"$f":" SUMIFS(FactorMatrix[[UPSTREAMTRANSPORT]:[UPSTREAMTRANSPORT]], FactorMatrix[[MODE]:[MODE]], $B115, FactorMatrix[[PHASE]:[PHASE]], \"Maintenance\", FactorMatrix[[GHGSOURCE]:[GHGSOURCE]], \"Vehicle\")*Years","v":0},{"$f":" SUMIFS(FactorMatrix[[DOWNSTREAM]:[DOWNSTREAM]], FactorMatrix[[MODE]:[MODE]], $B115, FactorMatrix[[PHASE]:[PHASE]], \"Maintenance\", FactorMatrix[[GHGSOURCE]:[GHGSOURCE]], \"Vehicle\")*Years","v":0},0,0,0]
[11,0,null,{"$f":" SUMIFS(FactorMatrix[[UPSTREAMMATERIALS]:[UPSTREAMMATERIALS]], FactorMatrix[[MODE]:[MODE]], $B116, FactorMatrix[[PHASE]:[PHASE]], \"Maintenance\", FactorMatrix[[GHGSOURCE]:[GHGSOURCE]], \"Vehicle\")*Years","v":0},{"$f":" SUMIFS(FactorMatrix[[UPSTREAMTRANSPORT]:[UPSTREAMTRANSPORT]], FactorMatrix[[MODE]:[MODE]], $B116, FactorMatrix[[PHASE]:[PHASE]], \"Maintenance\", FactorMatrix[[GHGSOURCE]:[GHGSOURCE]], \"Vehicle\")*Years","v":0},{"$f":" SUMIFS(FactorMatrix[[DOWNSTREAM]:[DOWNSTREAM]], FactorMatrix[[MODE]:[MODE]], $B116, FactorMatrix[[PHASE]:[PHASE]], \"Maintenance\", FactorMatrix[[GHGSOURCE]:[GHGSOURCE]], \"Vehicle\")*Years","v":0},0,0,0]
[12,0,null,{"$f":" SUMIFS(FactorMatrix[[UPSTREAMMATERIALS]:[UPSTREAMMATERIALS]], FactorMatrix[[MODE]:[MODE]], $B117, FactorMatrix[[PHASE]:[PHASE]], \"Maintenance\", FactorMatrix[[GHGSOURCE]:[GHGSOURCE]], \"Vehicle\")*Years","v":0},{"$f":" SUMIFS(FactorMatrix[[UPSTREAMTRANSPORT]:[UPSTREAMTRANSPORT]], FactorMatrix[[MODE]:[MODE]], $B117, FactorMatrix[[PHASE]:[PHASE]], \"Maintenance\", FactorMatrix[[GHGSOURCE]:[GHGSOURCE]], \"Vehicle\")*Years","v":0},{"$f":" SUMIFS(FactorMatrix[[DOWNSTREAM]:[DOWNSTREAM]], FactorMatrix[[MODE]:[MODE]], $B117, FactorMatrix[[PHASE]:[PHASE]], \"Maintenance\", FactorMatrix[[GHGSOURCE]:[GHGSOURCE]], \"Vehicle\")*Years","v":0},0,0,0]
[13,0,null,{"$f":" SUMIFS(FactorMatrix[[UPSTREAMMATERIALS]:[UPSTREAMMATERIALS]], FactorMatrix[[MODE]:[MODE]], $B118, FactorMatrix[[PHASE]:[PHASE]], \"Maintenance\", FactorMatrix[[GHGSOURCE]:[GHGSOURCE]], \"Vehicle\")*Years","v":0},{"$f":" SUMIFS(FactorMatrix[[UPSTREAMTRANSPORT]:[UPSTREAMTRANSPORT]], FactorMatrix[[MODE]:[MODE]], $B118, FactorMatrix[[PHASE]:[PHASE]], \"Maintenance\", FactorMatrix[[GHGSOURCE]:[GHGSOURCE]], \"Vehicle\")*Years","v":0},{"$f":" SUMIFS(FactorMatrix[[DOWNSTREAM]:[DOWNSTREAM]], FactorMatrix[[MODE]:[MODE]], $B118, FactorMatrix[[PHASE]:[PHASE]], \"Maintenance\", FactorMatrix[[GHGSOURCE]:[GHGSOURCE]], \"Vehicle\")*Years","v":0},0,0,0]
[14,0,null,{"$f":" SUMIFS(FactorMatrix[[UPSTREAMMATERIALS]:[UPSTREAMMATERIALS]], FactorMatrix[[MODE]:[MODE]], $B119, FactorMatrix[[PHASE]:[PHASE]], \"Maintenance\", FactorMatrix[[GHGSOURCE]:[GHGSOURCE]], \"Vehicle\")*Years","v":0},{"$f":" SUMIFS(FactorMatrix[[UPSTREAMTRANSPORT]:[UPSTREAMTRANSPORT]], FactorMatrix[[MODE]:[MODE]], $B119, FactorMatrix[[PHASE]:[PHASE]], \"Maintenance\", FactorMatrix[[GHGSOURCE]:[GHGSOURCE]], \"Vehicle\")*Years","v":0},{"$f":" SUMIFS(FactorMatrix[[DOWNSTREAM]:[DOWNSTREAM]], FactorMatrix[[MODE]:[MODE]], $B119, FactorMatrix[[PHASE]:[PHASE]], \"Maintenance\", FactorMatrix[[GHGSOURCE]:[GHGSOURCE]], \"Vehicle\")*Years","v":0},0,0,0]
[15,0,null,{"$f":" SUMIFS(FactorMatrix[[UPSTREAMMATERIALS]:[UPSTREAMMATERIALS]], FactorMatrix[[MODE]:[MODE]], $B120, FactorMatrix[[PHASE]:[PHASE]], \"Maintenance\", FactorMatrix[[GHGSOURCE]:[GHGSOURCE]], \"Vehicle\")*Years","v":0},{"$f":" SUMIFS(FactorMatrix[[UPSTREAMTRANSPORT]:[UPSTREAMTRANSPORT]], FactorMatrix[[MODE]:[MODE]], $B120, FactorMatrix[[PHASE]:[PHASE]], \"Maintenance\", FactorMatrix[[GHGSOURCE]:[GHGSOURCE]], \"Vehicle\")*Years","v":0},{"$f":" SUMIFS(FactorMatrix[[DOWNSTREAM]:[DOWNSTREAM]], FactorMatrix[[MODE]:[MODE]], $B120, FactorMatrix[[PHASE]:[PHASE]], \"Maintenance\", FactorMatrix[[GHGSOURCE]:[GHGSOURCE]], \"Vehicle\")*Years","v":0},0,0,0]
[16,0,null,{"$f":" SUMIFS(FactorMatrix[[UPSTREAMMATERIALS]:[UPSTREAMMATERIALS]], FactorMatrix[[MODE]:[MODE]], $B121, FactorMatrix[[PHASE]:[PHASE]], \"Maintenance\", FactorMatrix[[GHGSOURCE]:[GHGSOURCE]], \"Vehicle\")*Years","v":0},{"$f":" SUMIFS(FactorMatrix[[UPSTREAMTRANSPORT]:[UPSTREAMTRANSPORT]], FactorMatrix[[MODE]:[MODE]], $B121, FactorMatrix[[PHASE]:[PHASE]], \"Maintenance\", FactorMatrix[[GHGSOURCE]:[GHGSOURCE]], \"Vehicle\")*Years","v":0},{"$f":" SUMIFS(FactorMatrix[[DOWNSTREAM]:[DOWNSTREAM]], FactorMatrix[[MODE]:[MODE]], $B121, FactorMatrix[[PHASE]:[PHASE]], \"Maintenance\", FactorMatrix[[GHGSOURCE]:[GHGSOURCE]], \"Vehicle\")*Years","v":0},0,0,0]
[17,0,null,{"$f":" SUMIFS(FactorMatrix[[UPSTREAMMATERIALS]:[UPSTREAMMATERIALS]], FactorMatrix[[MODE]:[MODE]], $B122, FactorMatrix[[PHASE]:[PHASE]], \"Maintenance\", FactorMatrix[[GHGSOURCE]:[GHGSOURCE]], \"Vehicle\")*Years","v":0},{"$f":" SUMIFS(FactorMatrix[[UPSTREAMTRANSPORT]:[UPSTREAMTRANSPORT]], FactorMatrix[[MODE]:[MODE]], $B122, FactorMatrix[[PHASE]:[PHASE]], \"Maintenance\", FactorMatrix[[GHGSOURCE]:[GHGSOURCE]], \"Vehicle\")*Years","v":0},{"$f":" SUMIFS(FactorMatrix[[DOWNSTREAM]:[DOWNSTREAM]], FactorMatrix[[MODE]:[MODE]], $B122, FactorMatrix[[PHASE]:[PHASE]], \"Maintenance\", FactorMatrix[[GHGSOURCE]:[GHGSOURCE]], \"Vehicle\")*Years","v":0},0,0,0]
[18,0,null,{"$f":" SUMIFS(FactorMatrix[[UPSTREAMMATERIALS]:[UPSTREAMMATERIALS]], FactorMatrix[[MODE]:[MODE]], $B123, FactorMatrix[[PHASE]:[PHASE]], \"Maintenance\", FactorMatrix[[GHGSOURCE]:[GHGSOURCE]], \"Vehicle\")*Years","v":0},{"$f":" SUMIFS(FactorMatrix[[UPSTREAMTRANSPORT]:[UPSTREAMTRANSPORT]], FactorMatrix[[MODE]:[MODE]], $B123, FactorMatrix[[PHASE]:[PHASE]], \"Maintenance\", FactorMatrix[[GHGSOURCE]:[GHGSOURCE]], \"Vehicle\")*Years","v":0},{"$f":" SUMIFS(FactorMatrix[[DOWNSTREAM]:[DOWNSTREAM]], FactorMatrix[[MODE]:[MODE]], $B123, FactorMatrix[[PHASE]:[PHASE]], \"Maintenance\", FactorMatrix[[GHGSOURCE]:[GHGSOURCE]], \"Vehicle\")*Years","v":0},0,0,0]
[19,0,null,{"$f":" SUMIFS(FactorMatrix[[UPSTREAMMATERIALS]:[UPSTREAMMATERIALS]], FactorMatrix[[MODE]:[MODE]], $B124, FactorMatrix[[PHASE]:[PHASE]], \"Maintenance\", FactorMatrix[[GHGSOURCE]:[GHGSOURCE]], \"Vehicle\")*Years","v":0},{"$f":" SUMIFS(FactorMatrix[[UPSTREAMTRANSPORT]:[UPSTREAMTRANSPORT]], FactorMatrix[[MODE]:[MODE]], $B124, FactorMatrix[[PHASE]:[PHASE]], \"Maintenance\", FactorMatrix[[GHGSOURCE]:[GHGSOURCE]], \"Vehicle\")*Years","v":0},{"$f":" SUMIFS(FactorMatrix[[DOWNSTREAM]:[DOWNSTREAM]], FactorMatrix[[MODE]:[MODE]], $B124, FactorMatrix[[PHASE]:[PHASE]], \"Maintenance\", FactorMatrix[[GHGSOURCE]:[GHGSOURCE]], \"Vehicle\")*Years","v":0},0,0,0]
[20,0,null,{"$f":" SUMIFS(FactorMatrix[[UPSTREAMMATERIALS]:[UPSTREAMMATERIALS]], FactorMatrix[[MODE]:[MODE]], $B125, FactorMatrix[[PHASE]:[PHASE]], \"Maintenance\", FactorMatrix[[GHGSOURCE]:[GHGSOURCE]], \"Vehicle\")*Years","v":0},{"$f":" SUMIFS(FactorMatrix[[UPSTREAMTRANSPORT]:[UPSTREAMTRANSPORT]], FactorMatrix[[MODE]:[MODE]], $B125, FactorMatrix[[PHASE]:[PHASE]], \"Maintenance\", FactorMatrix[[GHGSOURCE]:[GHGSOURCE]], \"Vehicle\")*Years","v":0},{"$f":" SUMIFS(FactorMatrix[[DOWNSTREAM]:[DOWNSTREAM]], FactorMatrix[[MODE]:[MODE]], $B125, FactorMatrix[[PHASE]:[PHASE]], \"Maintenance\", FactorMatrix[[GHGSOURCE]:[GHGSOURCE]], \"Vehicle\")*Years","v":0},0,0,0]
[]
["Displaced Emissions",null,null,null,null,null,{"$f":"G130/Years","v":{"$error":"#DIV/0!"}},null,null,"RESULTS",null,null,"FINAL RESULTS"]
["INPUTS",null,null,null,null,null,"Factors"]
["row","Operation Mode ","Fuel Source","eGrid Subregion (if applicable)","NERC Region (Deduced from eGrid","VMT","Upstream Materials","Upstream Transport","Downstream","UPSTREAM MATERIALS","UPSTREAM TRANSPORT","DOWNSTREAM","UPSTREAM MATERIALS","UPSTREAM TRANSPORT","DOWNSTREAM"]
[1,{"$f":"'Displaced Emissions'!B5","v":0},{"$f":"'Displaced Emissions'!C5","v":0},{"$f":"'Displaced Emissions'!D5","v":0},{"$f":"_xlfn.IFNA(INDEX(Dropdowns!L$3:L$30, MATCH(D130, EGridSubregions, 0)), 0)","v":0},{"$f":"'Displaced Emissions'!E5","v":0},{"$f":"(SUMIFS(FactorMatrix[[UPSTREAMMATERIALS]:[UPSTREAMMATERIALS]], FactorMatrix[[MODE]:[MODE]], $B130, FactorMatrix[[PHASE]:[PHASE]], \"Operations\", FactorMatrix[[GHGSOURCE]:[GHGSOURCE]], \"Vehicle\", FactorMatrix[[TYPE]:[TYPE]], $C130, FactorMatrix[[STATE /REGION]:[STATE /REGION]], $D130)*Years\n+\nSUMIFS(FactorMatrix[[UPSTREAMMATERIALS]:[UPSTREAMMATERIALS]], FactorMatrix[[MODE]:[MODE]], $B130, FactorMatrix[[PHASE]:[PHASE]], \"Operations\", FactorMatrix[[GHGSOURCE]:[GHGSOURCE]], \"Vehicle\", FactorMatrix[[TYPE]:[TYPE]], $C130, FactorMatrix[[STATE /REGION]:[STATE /REGION]], $E130)*Years)/IF(AND(D130=0, E130=0), 2, 1)","v":0},{"$f":"(SUMIFS(FactorMatrix[[UPSTREAMTRANSPORT]:[UPSTREAMTRANSPORT]], FactorMatrix[[MODE]:[MODE]], $B130, FactorMatrix[[PHASE]:[PHASE]], \"Operations\", FactorMatrix[[GHGSOURCE]:[GHGSOURCE]], \"Vehicle\", FactorMatrix[[TYPE]:[TYPE]], $C130, FactorMatrix[[STATE /REGION]:[STATE /REGION]], $D130)*Years\n+\nSUMIFS(FactorMatrix[[UPSTREAMTRANSPORT]:[UPSTREAMTRANSPORT]], FactorMatrix[[MODE]:[MODE]], $B130, FactorMatrix[[PHASE]:[PHASE]], \"Operations\", FactorMatrix[[GHGSOURCE]:[GHGSOURCE]], \"Vehicle\", FactorMatrix[[TYPE]:[TYPE]], $C130, FactorMatrix[[STATE /REGION]:[STATE /REGION]], $E130)*Years)/IF(AND(D130=0, E130=0), 2, 1)","v":0},{"$f":"(SUMIFS(FactorMatrix[[DOWNSTREAM]:[DOWNSTREAM]], FactorMatrix[[MODE]:[MODE]], $B130, FactorMatrix[[PHASE]:[PHASE]], \"Operations\", FactorMatrix[[GHGSOURCE]:[GHGSOURCE]], \"Vehicle\", FactorMatrix[[TYPE]:[TYPE]], $C130, FactorMatrix[[STATE /REGION]:[STATE /REGION]], $D130)*Years\n+\nSUMIFS(FactorMatrix[[DOWNSTREAM]:[DOWNSTREAM]], FactorMatrix[[MODE]:[MODE]], $B130, FactorMatrix[[PHASE]:[PHASE]], \"Operations\", FactorMatrix[[GHGSOURCE]:[GHGSOURCE]], \"Vehicle\", FactorMatrix[[TYPE]:[TYPE]], $C130, FactorMatrix[[STATE /REGION]:[STATE /REGION]], $E130)*Years)/IF(AND(D130=0, E130=0), 2, 1)","v":0},{"$f":"$F130*G130","v":0},{"$f":"$F130*H130","v":0},{"$f":"$F130*I130","v":0},{"$f":"SUM(J130:J149)","v":0},{"$f":"SUM(K130:K149)","v":0},{"$f":"SUM(L130:L149)","v":0}]
[2,{"$f":"'Displaced Emissions'!B6","v":0},{"$f":"'Displaced Emissions'!C6","v":0},{"$f":"'Displaced Emissions'!D6","v":0},{"$f":"_xlfn.IFNA(INDEX(Dropdowns!L$3:L$30, MATCH(D131, EGridSubregions, 0)), 0)","v":0},{"$f":"'Displaced Emissions'!E6","v":0},{"$f":"(SUMIFS(FactorMatrix[[UPSTREAMMATERIALS]:[UPSTREAMMATERIALS]], FactorMatrix[[MODE]:[MODE]], $B131, FactorMatrix[[PHASE]:[PHASE]], \"Operations\", FactorMatrix[[GHGSOURCE]:[GHGSOURCE]], \"Vehicle\", FactorMatrix[[TYPE]:[TYPE]], $C131, FactorMatrix[[STATE /REGION]:[STATE /REGION]], $D131)*Years\n+\nSUMIFS(FactorMatrix[[UPSTREAMMATERIALS]:[UPSTREAMMATERIALS]], FactorMatrix[[MODE]:[MODE]], $B131, FactorMatrix[[PHASE]:[PHASE]], \"Operations\", FactorMatrix[[GHGSOURCE]:[GHGSOURCE]], \"Vehicle\", FactorMatrix[[TYPE]:[TYPE]], $C131, FactorMatrix[[STATE /REGION]:[STATE /REGION]], $E131)*Years)/IF(AND(D131=0, E131=0), 2, 1)","v":0},{"$f":"(SUMIFS(FactorMatrix[[UPSTREAMTRANSPORT]:[UPSTREAMTRANSPORT]], FactorMatrix[[MODE]:[MODE]], $B131, FactorMatrix[[PHASE]:[PHASE]], \"Operations\", FactorMatrix[[GHGSOURCE]:[GHGSOURCE]], \"Vehicle\", FactorMatrix[[TYPE]:[TYPE]], $C131, FactorMatrix[[STATE /REGION]:[STATE /REGION]], $D131)*Years\n+\nSUMIFS(FactorMatrix[[UPSTREAMTRANSPORT]:[UPSTREAMTRANSPORT]], FactorMatrix[[MODE]:[MODE]], $B131, FactorMatrix[[PHASE]:[PHASE]], \"Operations\", FactorMatrix[[GHGSOURCE]:[GHGSOURCE]], \"Vehicle\", FactorMatrix[[TYPE]:[TYPE]], $C131, FactorMatrix[[STATE /REGION]:[STATE /REGION]], $E131)*Years)/IF(AND(D131=0, E131=0), 2, 1)","v":0},{"$f":"(SUMIFS(FactorMatrix[[DOWNSTREAM]:[DOWNSTREAM]], FactorMatrix[[MODE]:[MODE]], $B131, FactorMatrix[[PHASE]:[PHASE]], \"Operations\", FactorMatrix[[GHGSOURCE]:[GHGSOURCE]], \"Vehicle\", FactorMatrix[[TYPE]:[TYPE]], $C131, FactorMatrix[[STATE /REGION]:[STATE /REGION]], $D131)*Years\n+\nSUMIFS(FactorMatrix[[DOWNSTREAM]:[DOWNSTREAM]], FactorMatrix[[MODE]:[MODE]], $B131, FactorMatrix[[PHASE]:[PHASE]], \"Operations\", FactorMatrix[[GHGSOURCE]:[GHGSOURCE]], \"Vehicle\", FactorMatrix[[TYPE]:[TYPE]], $C131, FactorMatrix[[STATE /REGION]:[STATE /REGION]], $E131)*Years)/IF(AND(D131=0, E131=0), 2, 1)","v":0},{"$f":"$F131*G131","v":0},0,0]
[3,{"$f":"'Displaced Emissions'!B7","v":0},{"$f":"'Displaced Emissions'!C7","v":0},{"$f":"'Displaced Emissions'!D7","v":0},{"$f":"_xlfn.IFNA(INDEX(Dropdowns!L$3:L$30, MATCH(D132, EGridSubregions, 0)), 0)","v":0},{"$f":"'Displaced Emissions'!E7","v":0},{"$f":"(SUMIFS(FactorMatrix[[UPSTREAMMATERIALS]:[UPSTREAMMATERIALS]], FactorMatrix[[MODE]:[MODE]], $B132, FactorMatrix[[PHASE]:[PHASE]], \"Operations\", FactorMatrix[[GHGSOURCE]:[GHGSOURCE]], \"Vehicle\", FactorMatrix[[TYPE]:[TYPE]], $C132, FactorMatrix[[STATE /REGION]:[STATE /REGION]], $D132)*Years\n+\nSUMIFS(FactorMatrix[[UPSTREAMMATERIALS]:[UPSTREAMMATERIALS]], FactorMatrix[[MODE]:[MODE]], $B132, FactorMatrix[[PHASE]:[PHASE]], \"Operations\", FactorMatrix[[GHGSOURCE]:[GHGSOURCE]], \"Vehicle\", FactorMatrix[[TYPE]:[TYPE]], $C132, FactorMatrix[[STATE /REGION]:[STATE /REGION]], $E132)*Years)/IF(AND(D132=0, E132=0), 2, 1)","v":0},{"$f":"(SUMIFS(FactorMatrix[[UPSTREAMTRANSPORT]:[UPSTREAMTRANSPORT]], FactorMatrix[[MODE]:[MODE]], $B132, FactorMatrix[[PHASE]:[PHASE]], \"Operations\", FactorMatrix[[GHGSOURCE]:[GHGSOURCE]], \"Vehicle\", FactorMatrix[[TYPE]:[TYPE]], $C132, FactorMatrix[[STATE /REGION]:[STATE /REGION]], $D132)*Years\n+\nSUMIFS(FactorMatrix[[UPSTREAMTRANSPORT]:[UPSTREAMTRANSPORT]], FactorMatrix[[MODE]:[MODE]], $B132, FactorMatrix[[PHASE]:[PHASE]], \"Operations\", FactorMatrix[[GHGSOURCE]:[GHGSOURCE]], \"Vehicle\", FactorMatrix[[TYPE]:[TYPE]], $C132, FactorMatrix[[STATE /REGION]:[STATE /REGION]], $E132)*Years)/IF(AND(D132=0, E132=0), 2, 1)","v":0},{"$f":"(SUMIFS(FactorMatrix[[DOWNSTREAM]:[DOWNSTREAM]], FactorMatrix[[MODE]:[MODE]], $B132, FactorMatrix[[PHASE]:[PHASE]], \"Operations\", FactorMatrix[[GHGSOURCE]:[GHGSOURCE]], \"Vehicle\", FactorMatrix[[TYPE]:[TYPE]], $C132, FactorMatrix[[STATE /REGION]:[STATE /REGION]], $D132)*Years\n+\nSUMIFS(FactorMatrix[[DOWNSTREAM]:[DOWNSTREAM]], FactorMatrix[[MODE]:[MODE]], $B132, FactorMatrix[[PHASE]:[PHASE]], \"Operations\", FactorMatrix[[GHGSOURCE]:[GHGSOURCE]], \"Vehicle\", FactorMatrix[[TYPE]:[TYPE]], $C132, FactorMatrix[[STATE /REGION]:[STATE /REGION]], $E132)*Years)/IF(AND(D132=0, E132=0), 2, 1)","v":0},0,0,0,"Annual"]
[4,{"$f":"'Displaced Emissions'!B8","v":0},{"$f":"'Displaced Emissions'!C8","v":0},{"$f":"'Displaced Emissions'!D8","v":0},{"$f":"_xlfn.IFNA(INDEX(Dropdowns!L$3:L$30, MATCH(D133, EGridSubregions, 0)), 0)","v":0},{"$f":"'Displaced Emissions'!E8","v":0},{"$f":"(SUMIFS(FactorMatrix[[UPSTREAMMATERIALS]:[UPSTREAMMATERIALS]], FactorMatrix[[MODE]:[MODE]], $B133, FactorMatrix[[PHASE]:[PHASE]], \"Operations\", FactorMatrix[[GHGSOURCE]:[GHGSOURCE]], \"Vehicle\", FactorMatrix[[TYPE]:[TYPE]], $C133, FactorMatrix[[STATE /REGION]:[STATE /REGION]], $D133)*Years\n+\nSUMIFS(FactorMatrix[[UPSTREAMMATERIALS]:[UPSTREAMMATERIALS]], FactorMatrix[[MODE]:[MODE]], $B133, FactorMatrix[[PHASE]:[PHASE]], \"Operations\", FactorMatrix[[GHGSOURCE]:[GHGSOURCE]], \"Vehicle\", FactorMatrix[[TYPE]:[TYPE]], $C133, FactorMatrix[[STATE /REGION]:[STATE /REGION]], $E133)*Years)/IF(AND(D133=0, E133=0), 2, 1)","v":0},{"$f":"(SUMIFS(FactorMatrix[[UPSTREAMTRANSPORT]:[UPSTREAMTRANSPORT]], FactorMatrix[[MODE]:[MODE]], $B133, FactorMatrix[[PHASE]:[PHASE]], \"Operations\", FactorMatrix[[GHGSOURCE]:[GHGSOURCE]], \"Vehicle\", FactorMatrix[[TYPE]:[TYPE]], $C133, FactorMatrix[[STATE /REGION]:[STATE /REGION]], $D133)*Years\n+\nSUMIFS(FactorMatrix[[UPSTREAMTRANSPORT]:[UPSTREAMTRANSPORT]], FactorMatrix[[MODE]:[MODE]], $B133, FactorMatrix[[PHASE]:[PHASE]], \"Operations\", FactorMatrix[[GHGSOURCE]:[GHGSOURCE]], \"Vehicle\", FactorMatrix[[TYPE]:[TYPE]], $C133, FactorMatrix[[STATE /REGION]:[STATE /REGION]], $E133)*Years)/IF(AND(D133=0, E133=0), 2, 1)","v":0},{"$f":"(SUMIFS(FactorMatrix[[DOWNSTREAM]:[DOWNSTREAM]], FactorMatrix[[MODE]:[MODE]], $B133, FactorMatrix[[PHASE]:[PHASE]], \"Operations\", FactorMatrix[[GHGSOURCE]:[GHGSOURCE]], \"Vehicle\", FactorMatrix[[TYPE]:[TYPE]], $C133, FactorMatrix[[STATE /REGION]:[STATE /REGION]], $D133)*Years\n+\nSUMIFS(FactorMatrix[[DOWNSTREAM]:[DOWNSTREAM]], FactorMatrix[[MODE]:[MODE]], $B133, FactorMatrix[[PHASE]:[PHASE]], \"Operations\", FactorMatrix[[GHGSOURCE]:[GHGSOURCE]], \"Vehicle\", FactorMatrix[[TYPE]:[TYPE]], $C133, FactorMatrix[[STATE /REGION]:[STATE /REGION]], $E133)*Years)/IF(AND(D133=0, E133=0), 2, 1)","v":0},0,0,0]
[5,{"$f":"'Displaced Emissions'!B9","v":0},{"$f":"'Displaced Emissions'!C9","v":0},{"$f":"'Displaced Emissions'!D9","v":0},{"$f":"_xlfn.IFNA(INDEX(Dropdowns!L$3:L$30, MATCH(D134, EGridSubregions, 0)), 0)","v":0},{"$f":"'Displaced Emissions'!E9","v":0},{"$f":"(SUMIFS(FactorMatrix[[UPSTREAMMATERIALS]:[UPSTREAMMATERIALS]], FactorMatrix[[MODE]:[MODE]], $B134, FactorMatrix[[PHASE]:[PHASE]], \"Operations\", FactorMatrix[[GHGSOURCE]:[GHGSOURCE]], \"Vehicle\", FactorMatrix[[TYPE]:[TYPE]], $C134, FactorMatrix[[STATE /REGION]:[STATE /REGION]], $D134)*Years\n+\nSUMIFS(FactorMatrix[[UPSTREAMMATERIALS]:[UPSTREAMMATERIALS]], FactorMatrix[[MODE]:[MODE]], $B134, FactorMatrix[[PHASE]:[PHASE]], \"Operations\", FactorMatrix[[GHGSOURCE]:[GHGSOURCE]], \"Vehicle\", FactorMatrix[[TYPE]:[TYPE]], $C134, FactorMatrix[[STATE /REGION]:[STATE /REGION]], $E134)*Years)/IF(AND(D134=0, E134=0), 2, 1)","v":0},{"$f":"(SUMIFS(FactorMatrix[[UPSTREAMTRANSPORT]:[UPSTREAMTRANSPORT]], FactorMatrix[[MODE]:[MODE]], $B134, FactorMatrix[[PHASE]:[PHASE]], \"Operations\", FactorMatrix[[GHGSOURCE]:[GHGSOURCE]], \"Vehicle\", FactorMatrix[[TYPE]:[TYPE]], $C134, FactorMatrix[[STATE /REGION]:[STATE /REGION]], $D134)*Years\n+\nSUMIFS(FactorMatrix[[UPSTREAMTRANSPORT]:[UPSTREAMTRANSPORT]], FactorMatrix[[MODE]:[MODE]], $B134, FactorMatrix[[PHASE]:[PHASE]], \"Operations\", FactorMatrix[[GHGSOURCE]:[GHGSOURCE]], \"Vehicle\", FactorMatrix[[TYPE]:[TYPE]], $C134, FactorMatrix[[STATE /REGION]:[STATE /REGION]], $E134)*Years)/IF(AND(D134=0, E134=0), 2, 1)","v":0},{"$f":"(SUMIFS(FactorMatrix[[DOWNSTREAM]:[DOWNSTREAM]], FactorMatrix[[MODE]:[MODE]], $B134, FactorMatrix[[PHASE]:[PHASE]], \"Operations\", FactorMatrix[[GHGSOURCE]:[GHGSOURCE]], \"Vehicle\", FactorMatrix[[TYPE]:[TYPE]], $C134, FactorMatrix[[STATE /REGION]:[STATE /REGION]], $D134)*Years\n+\nSUMIFS(FactorMatrix[[DOWNSTREAM]:[DOWNSTREAM]], FactorMatrix[[MODE]:[MODE]], $B134, FactorMatrix[[PHASE]:[PHASE]], \"Operations\", FactorMatrix[[GHGSOURCE]:[GHGSOURCE]], \"Vehicle\", FactorMatrix[[TYPE]:[TYPE]], $C134, FactorMatrix[[STATE /REGION]:[STATE /REGION]], $E134)*Years)/IF(AND(D134=0, E134=0), 2, 1)","v":0},0,0,0,"UPSTREAM MATERIALS","UPSTREAM TRANSPORT","DOWNSTREAM"]
[6,{"$f":"'Displaced Emissions'!B10","v":0},{"$f":"'Displaced Emissions'!C10","v":0},{"$f":"'Displaced Emissions'!D10","v":0},{"$f":"_xlfn.IFNA(INDEX(Dropdowns!L$3:L$30, MATCH(D135, EGridSubregions, 0)), 0)","v":0},{"$f":"'Displaced Emissions'!E10","v":0},{"$f":"(SUMIFS(FactorMatrix[[UPSTREAMMATERIALS]:[UPSTREAMMATERIALS]], FactorMatrix[[MODE]:[MODE]], $B135, FactorMatrix[[PHASE]:[PHASE]], \"Operations\", FactorMatrix[[GHGSOURCE]:[GHGSOURCE]], \"Vehicle\", FactorMatrix[[TYPE]:[TYPE]], $C135, FactorMatrix[[STATE /REGION]:[STATE /REGION]], $D135)*Years\n+\nSUMIFS(FactorMatrix[[UPSTREAMMATERIALS]:[UPSTREAMMATERIALS]], FactorMatrix[[MODE]:[MODE]], $B135, FactorMatrix[[PHASE]:[PHASE]], \"Operations\", FactorMatrix[[GHGSOURCE]:[GHGSOURCE]], \"Vehicle\", FactorMatrix[[TYPE]:[TYPE]], $C135, FactorMatrix[[STATE /REGION]:[STATE /REGION]], $E135)*Years)/IF(AND(D135=0, E135=0), 2, 1)","v":0},{"$f":"(SUMIFS(FactorMatrix[[UPSTREAMTRANSPORT]:[UPSTREAMTRANSPORT]], FactorMatrix[[MODE]:[MODE]], $B135, FactorMatrix[[PHASE]:[PHASE]], \"Operations\", FactorMatrix[[GHGSOURCE]:[GHGSOURCE]], \"Vehicle\", FactorMatrix[[TYPE]:[TYPE]], $C135, FactorMatrix[[STATE /REGION]:[STATE /REGION]], $D135)*Years\n+\nSUMIFS(FactorMatrix[[UPSTREAMTRANSPORT]:[UPSTREAMTRANSPORT]], FactorMatrix[[MODE]:[MODE]], $B135, FactorMatrix[[PHASE]:[PHASE]], \"Operations\", FactorMatrix[[GHGSOURCE]:[GHGSOURCE]], \"Vehicle\", FactorMatrix[[TYPE]:[TYPE]], $C135, FactorMatrix[[STATE /REGION]:[STATE /REGION]], $E135)*Years)/IF(AND(D135=0, E135=0), 2, 1)","v":0},{"$f":"(SUMIFS(FactorMatrix[[DOWNSTREAM]:[DOWNSTREAM]], FactorMatrix[[MODE]:[MODE]], $B135, FactorMatrix[[PHASE]:[PHASE]], \"Operations\", FactorMatrix[[GHGSOURCE]:[GHGSOURCE]], \"Vehicle\", FactorMatrix[[TYPE]:[TYPE]], $C135, FactorMatrix[[STATE /REGION]:[STATE /REGION]], $D135)*Years\n+\nSUMIFS(FactorMatrix[[DOWNSTREAM]:[DOWNSTREAM]], FactorMatrix[[MODE]:[MODE]], $B135, FactorMatrix[[PHASE]:[PHASE]], \"Operations\", FactorMatrix[[GHGSOURCE]:[GHGSOURCE]], \"Vehicle\", FactorMatrix[[TYPE]:[TYPE]], $C135, FactorMatrix[[STATE /REGION]:[STATE /REGION]], $E135)*Years)/IF(AND(D135=0, E135=0), 2, 1)","v":0},0,0,0,{"$f":"M130/Years","v":{"$error":"#DIV/0!"}},{"$f":"N130/Years","v":{"$error":"#DIV/0!"}},{"$f":"O130/Years","v":{"$error":"#DIV/0!"}}]
[7,{"$f":"'Displaced Emissions'!B11","v":0},{"$f":"'Displaced Emissions'!C11","v":0},{"$f":"'Displaced Emissions'!D11","v":0},{"$f":"_xlfn.IFNA(INDEX(Dropdowns!L$3:L$30, MATCH(D136, EGridSubregions, 0)), 0)","v":0},{"$f":"'Displaced Emissions'!E11","v":0},{"$f":"(SUMIFS(FactorMatrix[[UPSTREAMMATERIALS]:[UPSTREAMMATERIALS]], FactorMatrix[[MODE]:[MODE]], $B136, FactorMatrix[[PHASE]:[PHASE]], \"Operations\", FactorMatrix[[GHGSOURCE]:[GHGSOURCE]], \"Vehicle\", FactorMatrix[[TYPE]:[TYPE]], $C136, FactorMatrix[[STATE /REGION]:[STATE /REGION]], $D136)*Years\n+\nSUMIFS(FactorMatrix[[UPSTREAMMATERIALS]:[UPSTREAMMATERIALS]], FactorMatrix[[MODE]:[MODE]], $B136, FactorMatrix[[PHASE]:[PHASE]], \"Operations\", FactorMatrix[[GHGSOURCE]:[GHGSOURCE]], \"Vehicle\", FactorMatrix[[TYPE]:[TYPE]], $C136, FactorMatrix[[STATE /REGION]:[STATE /REGION]], $E136)*Years)/IF(AND(D136=0, E136=0), 2, 1)","v":0},{"$f":"(SUMIFS(FactorMatrix[[UPSTREAMTRANSPORT]:[UPSTREAMTRANSPORT]], FactorMatrix[[MODE]:[MODE]], $B136, FactorMatrix[[PHASE]:[PHASE]], \"Operations\", FactorMatrix[[GHGSOURCE]:[GHGSOURCE]], \"Vehicle\", FactorMatrix[[TYPE]:[TYPE]], $C136, FactorMatrix[[STATE /REGION]:[STATE /REGION]], $D136)*Years\n+\nSUMIFS(FactorMatrix[[UPSTREAMTRANSPORT]:[UPSTREAMTRANSPORT]], FactorMatrix[[MODE]:[MODE]], $B136, FactorMatrix[[PHASE]:[PHASE]], \"Operations\", FactorMatrix[[GHGSOURCE]:[GHGSOURCE]], \"Vehicle\", FactorMatrix[[TYPE]:[TYPE]], $C136, FactorMatrix[[STATE /REGION]:[STATE /REGION]], $E136)*Years)/IF(AND(D136=0, E136=0), 2, 1)","v":0},{"$f":"(SUMIFS(FactorMatrix[[DOWNSTREAM]:[DOWNSTREAM]], FactorMatrix[[MODE]:[MODE]], $B136, FactorMatrix[[PHASE]:[PHASE]], \"Operations\", FactorMatrix[[GHGSOURCE]:[GHGSOURCE]], \"Vehicle\", FactorMatrix[[TYPE]:[TYPE]], $C136, FactorMatrix[[STATE /REGION]:[STATE /REGION]], $D136)*Years\n+\nSUMIFS(FactorMatrix[[DOWNSTREAM]:[DOWNSTREAM]], FactorMatrix[[MODE]:[MODE]], $B136, FactorMatrix[[PHASE]:[PHASE]], \"Operations\", FactorMatrix[[GHGSOURCE]:[GHGSOURCE]], \"Vehicle\", FactorMatrix[[TYPE]:[TYPE]], $C136, FactorMatrix[[STATE /REGION]:[STATE /REGION]], $E136)*Years)/IF(AND(D136=0, E136=0), 2, 1)","v":0},0,0,0]
[8,{"$f":"'Displaced Emissions'!B12","v":0},{"$f":"'Displaced Emissions'!C12","v":0},{"$f":"'Displaced Emissions'!D12","v":0},{"$f":"_xlfn.IFNA(INDEX(Dropdowns!L$3:L$30, MATCH(D137, EGridSubregions, 0)), 0)","v":0},{"$f":"'Displaced Emissions'!E12","v":0},{"$f":"(SUMIFS(FactorMatrix[[UPSTREAMMATERIALS]:[UPSTREAMMATERIALS]], FactorMatrix[[MODE]:[MODE]], $B137, FactorMatrix[[PHASE]:[PHASE]], \"Operations\", FactorMatrix[[GHGSOURCE]:[GHGSOURCE]], \"Vehicle\", FactorMatrix[[TYPE]:[TYPE]], $C137, FactorMatrix[[STATE /REGION]:[STATE /REGION]], $D137)*Years\n+\nSUMIFS(FactorMatrix[[UPSTREAMMATERIALS]:[UPSTREAMMATERIALS]], FactorMatrix[[MODE]:[MODE]], $B137, FactorMatrix[[PHASE]:[PHASE]], \"Operations\", FactorMatrix[[GHGSOURCE]:[GHGSOURCE]], \"Vehicle\", FactorMatrix[[TYPE]:[TYPE]], $C137, FactorMatrix[[STATE /REGION]:[STATE /REGION]], $E137)*Years)/IF(AND(D137=0, E137=0), 2, 1)","v":0},{"$f":"(SUMIFS(FactorMatrix[[UPSTREAMTRANSPORT]:[UPSTREAMTRANSPORT]], FactorMatrix[[MODE]:[MODE]], $B137, FactorMatrix[[PHASE]:[PHASE]], \"Operations\", FactorMatrix[[GHGSOURCE]:[GHGSOURCE]], \"Vehicle\", FactorMatrix[[TYPE]:[TYPE]], $C137, FactorMatrix[[STATE /REGION]:[STATE /REGION]], $D137)*Years\n+\nSUMIFS(FactorMatrix[[UPSTREAMTRANSPORT]:[UPSTREAMTRANSPORT]], FactorMatrix[[MODE]:[MODE]], $B137, FactorMatrix[[PHASE]:[PHASE]], \"Operations\", FactorMatrix[[GHGSOURCE]:[GHGSOURCE]], \"Vehicle\", FactorMatrix[[TYPE]:[TYPE]], $C137, FactorMatrix[[STATE /REGION]:[STATE /REGION]], $E137)*Years)/IF(AND(D137=0, E137=0), 2, 1)","v":0},{"$f":"(SUMIFS(FactorMatrix[[DOWNSTREAM]:[DOWNSTREAM]], FactorMatrix[[MODE]:[MODE]], $B137, FactorMatrix[[PHASE]:[PHASE]], \"Operations\", FactorMatrix[[GHGSOURCE]:[GHGSOURCE]], \"Vehicle\", FactorMatrix[[TYPE]:[TYPE]], $C137, FactorMatrix[[STATE /REGION]:[STATE /REGION]], $D137)*Years\n+\nSUMIFS(FactorMatrix[[DOWNSTREAM]:[DOWNSTREAM]], FactorMatrix[[MODE]:[MODE]], $B137, FactorMatrix[[PHASE]:[PHASE]], \"Operations\", FactorMatrix[[GHGSOURCE]:[GHGSOURCE]], \"Vehicle\", FactorMatrix[[TYPE]:[TYPE]], $C137, FactorMatrix[[STATE /REGION]:[STATE /REGION]], $E137)*Years)/IF(AND(D137=0, E137=0), 2, 1)","v":0},0,0,0]
[9,{"$f":"'Displaced Emissions'!B13","v":0},{"$f":"'Displaced Emissions'!C13","v":0},{"$f":"'Displaced Emissions'!D13","v":0},{"$f":"_xlfn.IFNA(INDEX(Dropdowns!L$3:L$30, MATCH(D138, EGridSubregions, 0)), 0)","v":0},{"$f":"'Displaced Emissions'!E13","v":0},{"$f":"(SUMIFS(FactorMatrix[[UPSTREAMMATERIALS]:[UPSTREAMMATERIALS]], FactorMatrix[[MODE]:[MODE]], $B138, FactorMatrix[[PHASE]:[PHASE]], \"Operations\", FactorMatrix[[GHGSOURCE]:[GHGSOURCE]], \"Vehicle\", FactorMatrix[[TYPE]:[TYPE]], $C138, FactorMatrix[[STATE /REGION]:[STATE /REGION]], $D138)*Years\n+\nSUMIFS(FactorMatrix[[UPSTREAMMATERIALS]:[UPSTREAMMATERIALS]], FactorMatrix[[MODE]:[MODE]], $B138, FactorMatrix[[PHASE]:[PHASE]], \"Operations\", FactorMatrix[[GHGSOURCE]:[GHGSOURCE]], \"Vehicle\", FactorMatrix[[TYPE]:[TYPE]], $C138, FactorMatrix[[STATE /REGION]:[STATE /REGION]], $E138)*Years)/IF(AND(D138=0, E138=0), 2, 1)","v":0},{"$f":"(SUMIFS(FactorMatrix[[UPSTREAMTRANSPORT]:[UPSTREAMTRANSPORT]], FactorMatrix[[MODE]:[MODE]], $B138, FactorMatrix[[PHASE]:[PHASE]], \"Operations\", FactorMatrix[[GHGSOURCE]:[GHGSOURCE]], \"Vehicle\", FactorMatrix[[TYPE]:[TYPE]], $C138, FactorMatrix[[STATE /REGION]:[STATE /REGION]], $D138)*Years\n+\nSUMIFS(FactorMatrix[[UPSTREAMTRANSPORT]:[UPSTREAMTRANSPORT]], FactorMatrix[[MODE]:[MODE]], $B138, FactorMatrix[[PHASE]:[PHASE]], \"Operations\", FactorMatrix[[GHGSOURCE]:[GHGSOURCE]], \"Vehicle\", FactorMatrix[[TYPE]:[TYPE]], $C138, FactorMatrix[[STATE /REGION]:[STATE /REGION]], $E138)*Years)/IF(AND(D138=0, E138=0), 2, 1)","v":0},{"$f":"(SUMIFS(FactorMatrix[[DOWNSTREAM]:[DOWNSTREAM]], FactorMatrix[[MODE]:[MODE]], $B138, FactorMatrix[[PHASE]:[PHASE]], \"Operations\", FactorMatrix[[GHGSOURCE]:[GHGSOURCE]], \"Vehicle\", FactorMatrix[[TYPE]:[TYPE]], $C138, FactorMatrix[[STATE /REGION]:[STATE /REGION]], $D138)*Years\n+\nSUMIFS(FactorMatrix[[DOWNSTREAM]:[DOWNSTREAM]], FactorMatrix[[MODE]:[MODE]], $B138, FactorMatrix[[PHASE]:[PHASE]], \"Operations\", FactorMatrix[[GHGSOURCE]:[GHGSOURCE]], \"Vehicle\", FactorMatrix[[TYPE]:[TYPE]], $C138, FactorMatrix[[STATE /REGION]:[STATE /REGION]], $E138)*Years)/IF(AND(D138=0, E138=0), 2, 1)","v":0},0,0,0]
[10,{"$f":"'Displaced Emissions'!B14","v":0},{"$f":"'Displaced Emissions'!C14","v":0},{"$f":"'Displaced Emissions'!D14","v":0},{"$f":"_xlfn.IFNA(INDEX(Dropdowns!L$3:L$30, MATCH(D139, EGridSubregions, 0)), 0)","v":0},{"$f":"'Displaced Emissions'!E14","v":0},{"$f":"(SUMIFS(FactorMatrix[[UPSTREAMMATERIALS]:[UPSTREAMMATERIALS]], FactorMatrix[[MODE]:[MODE]], $B139, FactorMatrix[[PHASE]:[PHASE]], \"Operations\", FactorMatrix[[GHGSOURCE]:[GHGSOURCE]], \"Vehicle\", FactorMatrix[[TYPE]:[TYPE]], $C139, FactorMatrix[[STATE /REGION]:[STATE /REGION]], $D139)*Years\n+\nSUMIFS(FactorMatrix[[UPSTREAMMATERIALS]:[UPSTREAMMATERIALS]], FactorMatrix[[MODE]:[MODE]], $B139, FactorMatrix[[PHASE]:[PHASE]], \"Operations\", FactorMatrix[[GHGSOURCE]:[GHGSOURCE]], \"Vehicle\", FactorMatrix[[TYPE]:[TYPE]], $C139, FactorMatrix[[STATE /REGION]:[STATE /REGION]], $E139)*Years)/IF(AND(D139=0, E139=0), 2, 1)","v":0},{"$f":"(SUMIFS(FactorMatrix[[UPSTREAMTRANSPORT]:[UPSTREAMTRANSPORT]], FactorMatrix[[MODE]:[MODE]], $B139, FactorMatrix[[PHASE]:[PHASE]], \"Operations\", FactorMatrix[[GHGSOURCE]:[GHGSOURCE]], \"Vehicle\", FactorMatrix[[TYPE]:[TYPE]], $C139, FactorMatrix[[STATE /REGION]:[STATE /REGION]], $D139)*Years\n+\nSUMIFS(FactorMatrix[[UPSTREAMTRANSPORT]:[UPSTREAMTRANSPORT]], FactorMatrix[[MODE]:[MODE]], $B139, FactorMatrix[[PHASE]:[PHASE]], \"Operations\", FactorMatrix[[GHGSOURCE]:[GHGSOURCE]], \"Vehicle\", FactorMatrix[[TYPE]:[TYPE]], $C139, FactorMatrix[[STATE /REGION]:[STATE /REGION]], $E139)*Years)/IF(AND(D139=0, E139=0), 2, 1)","v":0},{"$f":"(SUMIFS(FactorMatrix[[DOWNSTREAM]:[DOWNSTREAM]], FactorMatrix[[MODE]:[MODE]], $B139, FactorMatrix[[PHASE]:[PHASE]], \"Operations\", FactorMatrix[[GHGSOURCE]:[GHGSOURCE]], \"Vehicle\", FactorMatrix[[TYPE]:[TYPE]], $C139, FactorMatrix[[STATE /REGION]:[STATE /REGION]], $D139)*Years\n+\nSUMIFS(FactorMatrix[[DOWNSTREAM]:[DOWNSTREAM]], FactorMatrix[[MODE]:[MODE]], $B139, FactorMatrix[[PHASE]:[PHASE]], \"Operations\", FactorMatrix[[GHGSOURCE]:[GHGSOURCE]], \"Vehicle\", FactorMatrix[[TYPE]:[TYPE]], $C139, FactorMatrix[[STATE /REGION]:[STATE /REGION]], $E139)*Years)/IF(AND(D139=0, E139=0), 2, 1)","v":0},0,0,0]
[11,{"$f":"'Displaced Emissions'!B15","v":0},{"$f":"'Displaced Emissions'!C15","v":0},{"$f":"'Displaced Emissions'!D15","v":0},{"$f":"_xlfn.IFNA(INDEX(Dropdowns!L$3:L$30, MATCH(D140, EGridSubregions, 0)), 0)","v":0},{"$f":"'Displaced Emissions'!E15","v":0},{"$f":"(SUMIFS(FactorMatrix[[UPSTREAMMATERIALS]:[UPSTREAMMATERIALS]], FactorMatrix[[MODE]:[MODE]], $B140, FactorMatrix[[PHASE]:[PHASE]], \"Operations\", FactorMatrix[[GHGSOURCE]:[GHGSOURCE]], \"Vehicle\", FactorMatrix[[TYPE]:[TYPE]], $C140, FactorMatrix[[STATE /REGION]:[STATE /REGION]], $D140)*Years\n+\nSUMIFS(FactorMatrix[[UPSTREAMMATERIALS]:[UPSTREAMMATERIALS]], FactorMatrix[[MODE]:[MODE]], $B140, FactorMatrix[[PHASE]:[PHASE]], \"Operations\", FactorMatrix[[GHGSOURCE]:[GHGSOURCE]], \"Vehicle\", FactorMatrix[[TYPE]:[TYPE]], $C140, FactorMatrix[[STATE /REGION]:[STATE /REGION]], $E140)*Years)/IF(AND(D140=0, E140=0), 2, 1)","v":0},{"$f":"(SUMIFS(FactorMatrix[[UPSTREAMTRANSPORT]:[UPSTREAMTRANSPORT]], FactorMatrix[[MODE]:[MODE]], $B140, FactorMatrix[[PHASE]:[PHASE]], \"Operations\", FactorMatrix[[GHGSOURCE]:[GHGSOURCE]], \"Vehicle\", FactorMatrix[[TYPE]:[TYPE]], $C140, FactorMatrix[[STATE /REGION]:[STATE /REGION]], $D140)*Years\n+\nSUMIFS(FactorMatrix[[UPSTREAMTRANSPORT]:[UPSTREAMTRANSPORT]], FactorMatrix[[MODE]:[MODE]], $B140, FactorMatrix[[PHASE]:[PHASE]], \"Operations\", FactorMatrix[[GHGSOURCE]:[GHGSOURCE]], \"Vehicle\", FactorMatrix[[TYPE]:[TYPE]], $C140, FactorMatrix[[STATE /REGION]:[STATE /REGION]], $E140)*Years)/IF(AND(D140=0, E140=0), 2, 1)","v":0},{"$f":"(SUMIFS(FactorMatrix[[DOWNSTREAM]:[DOWNSTREAM]], FactorMatrix[[MODE]:[MODE]], $B140, FactorMatrix[[PHASE]:[PHASE]], \"Operations\", FactorMatrix[[GHGSOURCE]:[GHGSOURCE]], \"Vehicle\", FactorMatrix[[TYPE]:[TYPE]], $C140, FactorMatrix[[STATE /REGION]:[STATE /REGION]], $D140)*Years\n+\nSUMIFS(FactorMatrix[[DOWNSTREAM]:[DOWNSTREAM]], FactorMatrix[[MODE]:[MODE]], $B140, FactorMatrix[[PHASE]:[PHASE]], \"Operations\", FactorMatrix[[GHGSOURCE]:[GHGSOURCE]], \"Vehicle\", FactorMatrix[[TYPE]:[TYPE]], $C140, FactorMatrix[[STATE /REGION]:[STATE /REGION]], $E140)*Years)/IF(AND(D140=0, E140=0), 2, 1)","v":0},0,0,0]
[12,{"$f":"'Displaced Emissions'!B16","v":0},{"$f":"'Displaced Emissions'!C16","v":0},{"$f":"'Displaced Emissions'!D16","v":0},{"$f":"_xlfn.IFNA(INDEX(Dropdowns!L$3:L$30, MATCH(D141, EGridSubregions, 0)), 0)","v":0},{"$f":"'Displaced Emissions'!E16","v":0},{"$f":"(SUMIFS(FactorMatrix[[UPSTREAMMATERIALS]:[UPSTREAMMATERIALS]], FactorMatrix[[MODE]:[MODE]], $B141, FactorMatrix[[PHASE]:[PHASE]], \"Operations\", FactorMatrix[[GHGSOURCE]:[GHGSOURCE]], \"Vehicle\", FactorMatrix[[TYPE]:[TYPE]], $C141, FactorMatrix[[STATE /REGION]:[STATE /REGION]], $D141)*Years\n+\nSUMIFS(FactorMatrix[[UPSTREAMMATERIALS]:[UPSTREAMMATERIALS]], FactorMatrix[[MODE]:[MODE]], $B141, FactorMatrix[[PHASE]:[PHASE]], \"Operations\", FactorMatrix[[GHGSOURCE]:[GHGSOURCE]], \"Vehicle\", FactorMatrix[[TYPE]:[TYPE]], $C141, FactorMatrix[[STATE /REGION]:[STATE /REGION]], $E141)*Years)/IF(AND(D141=0, E141=0), 2, 1)","v":0},{"$f":"(SUMIFS(FactorMatrix[[UPSTREAMTRANSPORT]:[UPSTREAMTRANSPORT]], FactorMatrix[[MODE]:[MODE]], $B141, FactorMatrix[[PHASE]:[PHASE]], \"Operations\", FactorMatrix[[GHGSOURCE]:[GHGSOURCE]], \"Vehicle\", FactorMatrix[[TYPE]:[TYPE]], $C141, FactorMatrix[[STATE /REGION]:[STATE /REGION]], $D141)*Years\n+\nSUMIFS(FactorMatrix[[UPSTREAMTRANSPORT]:[UPSTREAMTRANSPORT]], FactorMatrix[[MODE]:[MODE]], $B141, FactorMatrix[[PHASE]:[PHASE]], \"Operations\", FactorMatrix[[GHGSOURCE]:[GHGSOURCE]], \"Vehicle\", FactorMatrix[[TYPE]:[TYPE]], $C141, FactorMatrix[[STATE /REGION]:[STATE /REGION]], $E141)*Years)/IF(AND(D141=0, E141=0), 2, 1)","v":0},{"$f":"(SUMIFS(FactorMatrix[[DOWNSTREAM]:[DOWNSTREAM]], FactorMatrix[[MODE]:[MODE]], $B141, FactorMatrix[[PHASE]:[PHASE]], \"Operations\", FactorMatrix[[GHGSOURCE]:[GHGSOURCE]], \"Vehicle\", FactorMatrix[[TYPE]:[TYPE]], $C141, FactorMatrix[[STATE /REGION]:[STATE /REGION]], $D141)*Years\n+\nSUMIFS(FactorMatrix[[DOWNSTREAM]:[DOWNSTREAM]], FactorMatrix[[MODE]:[MODE]], $B141, FactorMatrix[[PHASE]:[PHASE]], \"Operations\", FactorMatrix[[GHGSOURCE]:[GHGSOURCE]], \"Vehicle\", FactorMatrix[[TYPE]:[TYPE]], $C141, FactorMatrix[[STATE /REGION]:[STATE /REGION]], $E141)*Years)/IF(AND(D141=0, E141=0), 2, 1)","v":0},0,0,0]
[13,{"$f":"'Displaced Emissions'!B17","v":0},{"$f":"'Displaced Emissions'!C17","v":0},{"$f":"'Displaced Emissions'!D17","v":0},{"$f":"_xlfn.IFNA(INDEX(Dropdowns!L$3:L$30, MATCH(D142, EGridSubregions, 0)), 0)","v":0},{"$f":"'Displaced Emissions'!E17","v":0},{"$f":"(SUMIFS(FactorMatrix[[UPSTREAMMATERIALS]:[UPSTREAMMATERIALS]], FactorMatrix[[MODE]:[MODE]], $B142, FactorMatrix[[PHASE]:[PHASE]], \"Operations\", FactorMatrix[[GHGSOURCE]:[GHGSOURCE]], \"Vehicle\", FactorMatrix[[TYPE]:[TYPE]], $C142, FactorMatrix[[STATE /REGION]:[STATE /REGION]], $D142)*Years\n+\nSUMIFS(FactorMatrix[[UPSTREAMMATERIALS]:[UPSTREAMMATERIALS]], FactorMatrix[[MODE]:[MODE]], $B142, FactorMatrix[[PHASE]:[PHASE]], \"Operations\", FactorMatrix[[GHGSOURCE]:[GHGSOURCE]], \"Vehicle\", FactorMatrix[[TYPE]:[TYPE]], $C142, FactorMatrix[[STATE /REGION]:[STATE /REGION]], $E142)*Years)/IF(AND(D142=0, E142=0), 2, 1)","v":0},{"$f":"(SUMIFS(FactorMatrix[[UPSTREAMTRANSPORT]:[UPSTREAMTRANSPORT]], FactorMatrix[[MODE]:[MODE]], $B142, FactorMatrix[[PHASE]:[PHASE]], \"Operations\", FactorMatrix[[GHGSOURCE]:[GHGSOURCE]], \"Vehicle\", FactorMatrix[[TYPE]:[TYPE]], $C142, FactorMatrix[[STATE /REGION]:[STATE /REGION]], $D142)*Years\n+\nSUMIFS(FactorMatrix[[UPSTREAMTRANSPORT]:[UPSTREAMTRANSPORT]], FactorMatrix[[MODE]:[MODE]], $B142, FactorMatrix[[PHASE]:[PHASE]], \"Operations\", FactorMatrix[[GHGSOURCE]:[GHGSOURCE]], \"Vehicle\", FactorMatrix[[TYPE]:[TYPE]], $C142, FactorMatrix[[STATE /REGION]:[STATE /REGION]], $E142)*Years)/IF(AND(D142=0, E142=0), 2, 1)","v":0},{"$f":"(SUMIFS(FactorMatrix[[DOWNSTREAM]:[DOWNSTREAM]], FactorMatrix[[MODE]:[MODE]], $B142, FactorMatrix[[PHASE]:[PHASE]], \"Operations\", FactorMatrix[[GHGSOURCE]:[GHGSOURCE]], \"Vehicle\", FactorMatrix[[TYPE]:[TYPE]], $C142, FactorMatrix[[STATE /REGION]:[STATE /REGION]], $D142)*Years\n+\nSUMIFS(FactorMatrix[[DOWNSTREAM]:[DOWNSTREAM]], FactorMatrix[[MODE]:[MODE]], $B142, FactorMatrix[[PHASE]:[PHASE]], \"Operations\", FactorMatrix[[GHGSOURCE]:[GHGSOURCE]], \"Vehicle\", FactorMatrix[[TYPE]:[TYPE]], $C142, FactorMatrix[[STATE /REGION]:[STATE /REGION]], $E142)*Years)/IF(AND(D142=0, E142=0), 2, 1)","v":0},0,0,0]
[14,{"$f":"'Displaced Emissions'!B18","v":0},{"$f":"'Displaced Emissions'!C18","v":0},{"$f":"'Displaced Emissions'!D18","v":0},{"$f":"_xlfn.IFNA(INDEX(Dropdowns!L$3:L$30, MATCH(D143, EGridSubregions, 0)), 0)","v":0},{"$f":"'Displaced Emissions'!E18","v":0},{"$f":"(SUMIFS(FactorMatrix[[UPSTREAMMATERIALS]:[UPSTREAMMATERIALS]], FactorMatrix[[MODE]:[MODE]], $B143, FactorMatrix[[PHASE]:[PHASE]], \"Operations\", FactorMatrix[[GHGSOURCE]:[GHGSOURCE]], \"Vehicle\", FactorMatrix[[TYPE]:[TYPE]], $C143, FactorMatrix[[STATE /REGION]:[STATE /REGION]], $D143)*Years\n+\nSUMIFS(FactorMatrix[[UPSTREAMMATERIALS]:[UPSTREAMMATERIALS]], FactorMatrix[[MODE]:[MODE]], $B143, FactorMatrix[[PHASE]:[PHASE]], \"Operations\", FactorMatrix[[GHGSOURCE]:[GHGSOURCE]], \"Vehicle\", FactorMatrix[[TYPE]:[TYPE]], $C143, FactorMatrix[[STATE /REGION]:[STATE /REGION]], $E143)*Years)/IF(AND(D143=0, E143=0), 2, 1)","v":0},{"$f":"(SUMIFS(FactorMatrix[[UPSTREAMTRANSPORT]:[UPSTREAMTRANSPORT]], FactorMatrix[[MODE]:[MODE]], $B143, FactorMatrix[[PHASE]:[PHASE]], \"Operations\", FactorMatrix[[GHGSOURCE]:[GHGSOURCE]], \"Vehicle\", FactorMatrix[[TYPE]:[TYPE]], $C143, FactorMatrix[[STATE /REGION]:[STATE /REGION]], $D143)*Years\n+\nSUMIFS(FactorMatrix[[UPSTREAMTRANSPORT]:[UPSTREAMTRANSPORT]], FactorMatrix[[MODE]:[MODE]], $B143, FactorMatrix[[PHASE]:[PHASE]], \"Operations\", FactorMatrix[[GHGSOURCE]:[GHGSOURCE]], \"Vehicle\", FactorMatrix[[TYPE]:[TYPE]], $C143, FactorMatrix[[STATE /REGION]:[STATE /REGION]], $E143)*Years)/IF(AND(D143=0, E143=0), 2, 1)","v":0},{"$f":"(SUMIFS(FactorMatrix[[DOWNSTREAM]:[DOWNSTREAM]], FactorMatrix[[MODE]:[MODE]], $B143, FactorMatrix[[PHASE]:[PHASE]], \"Operations\", FactorMatrix[[GHGSOURCE]:[GHGSOURCE]], \"Vehicle\", FactorMatrix[[TYPE]:[TYPE]], $C143, FactorMatrix[[STATE /REGION]:[STATE /REGION]], $D143)*Years\n+\nSUMIFS(FactorMatrix[[DOWNSTREAM]:[DOWNSTREAM]], FactorMatrix[[MODE]:[MODE]], $B143, FactorMatrix[[PHASE]:[PHASE]], \"Operations\", FactorMatrix[[GHGSOURCE]:[GHGSOURCE]], \"Vehicle\", FactorMatrix[[TYPE]:[TYPE]], $C143, FactorMatrix[[STATE /REGION]:[STATE /REGION]], $E143)*Years)/IF(AND(D143=0, E143=0), 2, 1)","v":0},0,0,0]
[15,{"$f":"'Displaced Emissions'!B19","v":0},{"$f":"'Displaced Emissions'!C19","v":0},{"$f":"'Displaced Emissions'!D19","v":0},{"$f":"_xlfn.IFNA(INDEX(Dropdowns!L$3:L$30, MATCH(D144, EGridSubregions, 0)), 0)","v":0},{"$f":"'Displaced Emissions'!E19","v":0},{"$f":"(SUMIFS(FactorMatrix[[UPSTREAMMATERIALS]:[UPSTREAMMATERIALS]], FactorMatrix[[MODE]:[MODE]], $B144, FactorMatrix[[PHASE]:[PHASE]], \"Operations\", FactorMatrix[[GHGSOURCE]:[GHGSOURCE]], \"Vehicle\", FactorMatrix[[TYPE]:[TYPE]], $C144, FactorMatrix[[STATE /REGION]:[STATE /REGION]], $D144)*Years\n+\nSUMIFS(FactorMatrix[[UPSTREAMMATERIALS]:[UPSTREAMMATERIALS]], FactorMatrix[[MODE]:[MODE]], $B144, FactorMatrix[[PHASE]:[PHASE]], \"Operations\", FactorMatrix[[GHGSOURCE]:[GHGSOURCE]], \"Vehicle\", FactorMatrix[[TYPE]:[TYPE]], $C144, FactorMatrix[[STATE /REGION]:[STATE /REGION]], $E144)*Years)/IF(AND(D144=0, E144=0), 2, 1)","v":0},{"$f":"(SUMIFS(FactorMatrix[[UPSTREAMTRANSPORT]:[UPSTREAMTRANSPORT]], FactorMatrix[[MODE]:[MODE]], $B144, FactorMatrix[[PHASE]:[PHASE]], \"Operations\", FactorMatrix[[GHGSOURCE]:[GHGSOURCE]], \"Vehicle\", FactorMatrix[[TYPE]:[TYPE]], $C144, FactorMatrix[[STATE /REGION]:[STATE /REGION]], $D144)*Years\n+\nSUMIFS(FactorMatrix[[UPSTREAMTRANSPORT]:[UPSTREAMTRANSPORT]], FactorMatrix[[MODE]:[MODE]], $B144, FactorMatrix[[PHASE]:[PHASE]], \"Operations\", FactorMatrix[[GHGSOURCE]:[GHGSOURCE]], \"Vehicle\", FactorMatrix[[TYPE]:[TYPE]], $C144, FactorMatrix[[STATE /REGION]:[STATE /REGION]], $E144)*Years)/IF(AND(D144=0, E144=0), 2, 1)","v":0},{"$f":"(SUMIFS(FactorMatrix[[DOWNSTREAM]:[DOWNSTREAM]], FactorMatrix[[MODE]:[MODE]], $B144, FactorMatrix[[PHASE]:[PHASE]], \"Operations\", FactorMatrix[[GHGSOURCE]:[GHGSOURCE]], \"Vehicle\", FactorMatrix[[TYPE]:[TYPE]], $C144, FactorMatrix[[STATE /REGION]:[STATE /REGION]], $D144)*Years\n+\nSUMIFS(FactorMatrix[[DOWNSTREAM]:[DOWNSTREAM]], FactorMatrix[[MODE]:[MODE]], $B144, FactorMatrix[[PHASE]:[PHASE]], \"Operations\", FactorMatrix[[GHGSOURCE]:[GHGSOURCE]], \"Vehicle\", FactorMatrix[[TYPE]:[TYPE]], $C144, FactorMatrix[[STATE /REGION]:[STATE /REGION]], $E144)*Years)/IF(AND(D144=0, E144=0), 2, 1)","v":0},0,0,0]
[16,{"$f":"'Displaced Emissions'!B20","v":0},{"$f":"'Displaced Emissions'!C20","v":0},{"$f":"'Displaced Emissions'!D20","v":0},{"$f":"_xlfn.IFNA(INDEX(Dropdowns!L$3:L$30, MATCH(D145, EGridSubregions, 0)), 0)","v":0},{"$f":"'Displaced Emissions'!E20","v":0},{"$f":"(SUMIFS(FactorMatrix[[UPSTREAMMATERIALS]:[UPSTREAMMATERIALS]], FactorMatrix[[MODE]:[MODE]], $B145, FactorMatrix[[PHASE]:[PHASE]], \"Operations\", FactorMatrix[[GHGSOURCE]:[GHGSOURCE]], \"Vehicle\", FactorMatrix[[TYPE]:[TYPE]], $C145, FactorMatrix[[STATE /REGION]:[STATE /REGION]], $D145)*Years\n+\nSUMIFS(FactorMatrix[[UPSTREAMMATERIALS]:[UPSTREAMMATERIALS]], FactorMatrix[[MODE]:[MODE]], $B145, FactorMatrix[[PHASE]:[PHASE]], \"Operations\", FactorMatrix[[GHGSOURCE]:[GHGSOURCE]], \"Vehicle\", FactorMatrix[[TYPE]:[TYPE]], $C145, FactorMatrix[[STATE /REGION]:[STATE /REGION]], $E145)*Years)/IF(AND(D145=0, E145=0), 2, 1)","v":0},{"$f":"(SUMIFS(FactorMatrix[[UPSTREAMTRANSPORT]:[UPSTREAMTRANSPORT]], FactorMatrix[[MODE]:[MODE]], $B145, FactorMatrix[[PHASE]:[PHASE]], \"Operations\", FactorMatrix[[GHGSOURCE]:[GHGSOURCE]], \"Vehicle\", FactorMatrix[[TYPE]:[TYPE]], $C145, FactorMatrix[[STATE /REGION]:[STATE /REGION]], $D145)*Years\n+\nSUMIFS(FactorMatrix[[UPSTREAMTRANSPORT]:[UPSTREAMTRANSPORT]], FactorMatrix[[MODE]:[MODE]], $B145, FactorMatrix[[PHASE]:[PHASE]], \"Operations\", FactorMatrix[[GHGSOURCE]:[GHGSOURCE]], \"Vehicle\", FactorMatrix[[TYPE]:[TYPE]], $C145, FactorMatrix[[STATE /REGION]:[STATE /REGION]], $E145)*Years)/IF(AND(D145=0, E145=0), 2, 1)","v":0},{"$f":"(SUMIFS(FactorMatrix[[DOWNSTREAM]:[DOWNSTREAM]], FactorMatrix[[MODE]:[MODE]], $B145, FactorMatrix[[PHASE]:[PHASE]], \"Operations\", FactorMatrix[[GHGSOURCE]:[GHGSOURCE]], \"Vehicle\", FactorMatrix[[TYPE]:[TYPE]], $C145, FactorMatrix[[STATE /REGION]:[STATE /REGION]], $D145)*Years\n+\nSUMIFS(FactorMatrix[[DOWNSTREAM]:[DOWNSTREAM]], FactorMatrix[[MODE]:[MODE]], $B145, FactorMatrix[[PHASE]:[PHASE]], \"Operations\", FactorMatrix[[GHGSOURCE]:[GHGSOURCE]], \"Vehicle\", FactorMatrix[[TYPE]:[TYPE]], $C145, FactorMatrix[[STATE /REGION]:[STATE /REGION]], $E145)*Years)/IF(AND(D145=0, E145=0), 2, 1)","v":0},0,0,0]
[17,{"$f":"'Displaced Emissions'!B21","v":0},{"$f":"'Displaced Emissions'!C21","v":0},{"$f":"'Displaced Emissions'!D21","v":0},{"$f":"_xlfn.IFNA(INDEX(Dropdowns!L$3:L$30, MATCH(D146, EGridSubregions, 0)), 0)","v":0},{"$f":"'Displaced Emissions'!E21","v":0},{"$f":"(SUMIFS(FactorMatrix[[UPSTREAMMATERIALS]:[UPSTREAMMATERIALS]], FactorMatrix[[MODE]:[MODE]], $B146, FactorMatrix[[PHASE]:[PHASE]], \"Operations\", FactorMatrix[[GHGSOURCE]:[GHGSOURCE]], \"Vehicle\", FactorMatrix[[TYPE]:[TYPE]], $C146, FactorMatrix[[STATE /REGION]:[STATE /REGION]], $D146)*Years\n+\nSUMIFS(FactorMatrix[[UPSTREAMMATERIALS]:[UPSTREAMMATERIALS]], FactorMatrix[[MODE]:[MODE]], $B146, FactorMatrix[[PHASE]:[PHASE]], \"Operations\", FactorMatrix[[GHGSOURCE]:[GHGSOURCE]], \"Vehicle\", FactorMatrix[[TYPE]:[TYPE]], $C146, FactorMatrix[[STATE /REGION]:[STATE /REGION]], $E146)*Years)/IF(AND(D146=0, E146=0), 2, 1)","v":0},{"$f":"(SUMIFS(FactorMatrix[[UPSTREAMTRANSPORT]:[UPSTREAMTRANSPORT]], FactorMatrix[[MODE]:[MODE]], $B146, FactorMatrix[[PHASE]:[PHASE]], \"Operations\", FactorMatrix[[GHGSOURCE]:[GHGSOURCE]], \"Vehicle\", FactorMatrix[[TYPE]:[TYPE]], $C146, FactorMatrix[[STATE /REGION]:[STATE /REGION]], $D146)*Years\n+\nSUMIFS(FactorMatrix[[UPSTREAMTRANSPORT]:[UPSTREAMTRANSPORT]], FactorMatrix[[MODE]:[MODE]], $B146, FactorMatrix[[PHASE]:[PHASE]], \"Operations\", FactorMatrix[[GHGSOURCE]:[GHGSOURCE]], \"Vehicle\", FactorMatrix[[TYPE]:[TYPE]], $C146, FactorMatrix[[STATE /REGION]:[STATE /REGION]], $E146)*Years)/IF(AND(D146=0, E146=0), 2, 1)","v":0},{"$f":"(SUMIFS(FactorMatrix[[DOWNSTREAM]:[DOWNSTREAM]], FactorMatrix[[MODE]:[MODE]], $B146, FactorMatrix[[PHASE]:[PHASE]], \"Operations\", FactorMatrix[[GHGSOURCE]:[GHGSOURCE]], \"Vehicle\", FactorMatrix[[TYPE]:[TYPE]], $C146, FactorMatrix[[STATE /REGION]:[STATE /REGION]], $D146)*Years\n+\nSUMIFS(FactorMatrix[[DOWNSTREAM]:[DOWNSTREAM]], FactorMatrix[[MODE]:[MODE]], $B146, FactorMatrix[[PHASE]:[PHASE]], \"Operations\", FactorMatrix[[GHGSOURCE]:[GHGSOURCE]], \"Vehicle\", FactorMatrix[[TYPE]:[TYPE]], $C146, FactorMatrix[[STATE /REGION]:[STATE /REGION]], $E146)*Years)/IF(AND(D146=0, E146=0), 2, 1)","v":0},0,0,0]
[18,{"$f":"'Displaced Emissions'!B22","v":0},{"$f":"'Displaced Emissions'!C22","v":0},{"$f":"'Displaced Emissions'!D22","v":0},{"$f":"_xlfn.IFNA(INDEX(Dropdowns!L$3:L$30, MATCH(D147, EGridSubregions, 0)), 0)","v":0},{"$f":"'Displaced Emissions'!E22","v":0},{"$f":"(SUMIFS(FactorMatrix[[UPSTREAMMATERIALS]:[UPSTREAMMATERIALS]], FactorMatrix[[MODE]:[MODE]], $B147, FactorMatrix[[PHASE]:[PHASE]], \"Operations\", FactorMatrix[[GHGSOURCE]:[GHGSOURCE]], \"Vehicle\", FactorMatrix[[TYPE]:[TYPE]], $C147, FactorMatrix[[STATE /REGION]:[STATE /REGION]], $D147)*Years\n+\nSUMIFS(FactorMatrix[[UPSTREAMMATERIALS]:[UPSTREAMMATERIALS]], FactorMatrix[[MODE]:[MODE]], $B147, FactorMatrix[[PHASE]:[PHASE]], \"Operations\", FactorMatrix[[GHGSOURCE]:[GHGSOURCE]], \"Vehicle\", FactorMatrix[[TYPE]:[TYPE]], $C147, FactorMatrix[[STATE /REGION]:[STATE /REGION]], $E147)*Years)/IF(AND(D147=0, E147=0), 2, 1)","v":0},{"$f":"(SUMIFS(FactorMatrix[[UPSTREAMTRANSPORT]:[UPSTREAMTRANSPORT]], FactorMatrix[[MODE]:[MODE]], $B147, FactorMatrix[[PHASE]:[PHASE]], \"Operations\", FactorMatrix[[GHGSOURCE]:[GHGSOURCE]], \"Vehicle\", FactorMatrix[[TYPE]:[TYPE]], $C147, FactorMatrix[[STATE /REGION]:[STATE /REGION]], $D147)*Years\n+\nSUMIFS(FactorMatrix[[UPSTREAMTRANSPORT]:[UPSTREAMTRANSPORT]], FactorMatrix[[MODE]:[MODE]], $B147, FactorMatrix[[PHASE]:[PHASE]], \"Operations\", FactorMatrix[[GHGSOURCE]:[GHGSOURCE]], \"Vehicle\", FactorMatrix[[TYPE]:[TYPE]], $C147, FactorMatrix[[STATE /REGION]:[STATE /REGION]], $E147)*Years)/IF(AND(D147=0, E147=0), 2, 1)","v":0},{"$f":"(SUMIFS(FactorMatrix[[DOWNSTREAM]:[DOWNSTREAM]], FactorMatrix[[MODE]:[MODE]], $B147, FactorMatrix[[PHASE]:[PHASE]], \"Operations\", FactorMatrix[[GHGSOURCE]:[GHGSOURCE]], \"Vehicle\", FactorMatrix[[TYPE]:[TYPE]], $C147, FactorMatrix[[STATE /REGION]:[STATE /REGION]], $D147)*Years\n+\nSUMIFS(FactorMatrix[[DOWNSTREAM]:[DOWNSTREAM]], FactorMatrix[[MODE]:[MODE]], $B147, FactorMatrix[[PHASE]:[PHASE]], \"Operations\", FactorMatrix[[GHGSOURCE]:[GHGSOURCE]], \"Vehicle\", FactorMatrix[[TYPE]:[TYPE]], $C147, FactorMatrix[[STATE /REGION]:[STATE /REGION]], $E147)*Years)/IF(AND(D147=0, E147=0), 2, 1)","v":0},0,0,0]
[19,{"$f":"'Displaced Emissions'!B23","v":0},{"$f":"'Displaced Emissions'!C23","v":0},{"$f":"'Displaced Emissions'!D23","v":0},{"$f":"_xlfn.IFNA(INDEX(Dropdowns!L$3:L$30, MATCH(D148, EGridSubregions, 0)), 0)","v":0},{"$f":"'Displaced Emissions'!E23","v":0},{"$f":"(SUMIFS(FactorMatrix[[UPSTREAMMATERIALS]:[UPSTREAMMATERIALS]], FactorMatrix[[MODE]:[MODE]], $B148, FactorMatrix[[PHASE]:[PHASE]], \"Operations\", FactorMatrix[[GHGSOURCE]:[GHGSOURCE]], \"Vehicle\", FactorMatrix[[TYPE]:[TYPE]], $C148, FactorMatrix[[STATE /REGION]:[STATE /REGION]], $D148)*Years\n+\nSUMIFS(FactorMatrix[[UPSTREAMMATERIALS]:[UPSTREAMMATERIALS]], FactorMatrix[[MODE]:[MODE]], $B148, FactorMatrix[[PHASE]:[PHASE]], \"Operations\", FactorMatrix[[GHGSOURCE]:[GHGSOURCE]], \"Vehicle\", FactorMatrix[[TYPE]:[TYPE]], $C148, FactorMatrix[[STATE /REGION]:[STATE /REGION]], $E148)*Years)/IF(AND(D148=0, E148=0), 2, 1)","v":0},{"$f":"(SUMIFS(FactorMatrix[[UPSTREAMTRANSPORT]:[UPSTREAMTRANSPORT]], FactorMatrix[[MODE]:[MODE]], $B148, FactorMatrix[[PHASE]:[PHASE]], \"Operations\", FactorMatrix[[GHGSOURCE]:[GHGSOURCE]], \"Vehicle\", FactorMatrix[[TYPE]:[TYPE]], $C148, FactorMatrix[[STATE /REGION]:[STATE /REGION]], $D148)*Years\n+\nSUMIFS(FactorMatrix[[UPSTREAMTRANSPORT]:[UPSTREAMTRANSPORT]], FactorMatrix[[MODE]:[MODE]], $B148, FactorMatrix[[PHASE]:[PHASE]], \"Operations\", FactorMatrix[[GHGSOURCE]:[GHGSOURCE]], \"Vehicle\", FactorMatrix[[TYPE]:[TYPE]], $C148, FactorMatrix[[STATE /REGION]:[STATE /REGION]], $E148)*Years)/IF(AND(D148=0, E148=0), 2, 1)","v":0},{"$f":"(SUMIFS(FactorMatrix[[DOWNSTREAM]:[DOWNSTREAM]], FactorMatrix[[MODE]:[MODE]], $B148, FactorMatrix[[PHASE]:[PHASE]], \"Operations\", FactorMatrix[[GHGSOURCE]:[GHGSOURCE]], \"Vehicle\", FactorMatrix[[TYPE]:[TYPE]], $C148, FactorMatrix[[STATE /REGION]:[STATE /REGION]], $D148)*Years\n+\nSUMIFS(FactorMatrix[[DOWNSTREAM]:[DOWNSTREAM]], FactorMatrix[[MODE]:[MODE]], $B148, FactorMatrix[[PHASE]:[PHASE]], \"Operations\", FactorMatrix[[GHGSOURCE]:[GHGSOURCE]], \"Vehicle\", FactorMatrix[[TYPE]:[TYPE]], $C148, FactorMatrix[[STATE /REGION]:[STATE /REGION]], $E148)*Years)/IF(AND(D148=0, E148=0), 2, 1)","v":0},0,0,0]
[20,{"$f":"'Displaced Emissions'!B24","v":0},{"$f":"'Displaced Emissions'!C24","v":0},{"$f":"'Displaced Emissions'!D24","v":0},{"$f":"_xlfn.IFNA(INDEX(Dropdowns!L$3:L$30, MATCH(D149, EGridSubregions, 0)), 0)","v":0},{"$f":"'Displaced Emissions'!E24","v":0},{"$f":"(SUMIFS(FactorMatrix[[UPSTREAMMATERIALS]:[UPSTREAMMATERIALS]], FactorMatrix[[MODE]:[MODE]], $B149, FactorMatrix[[PHASE]:[PHASE]], \"Operations\", FactorMatrix[[GHGSOURCE]:[GHGSOURCE]], \"Vehicle\", FactorMatrix[[TYPE]:[TYPE]], $C149, FactorMatrix[[STATE /REGION]:[STATE /REGION]], $D149)*Years\n+\nSUMIFS(FactorMatrix[[UPSTREAMMATERIALS]:[UPSTREAMMATERIALS]], FactorMatrix[[MODE]:[MODE]], $B149, FactorMatrix[[PHASE]:[PHASE]], \"Operations\", FactorMatrix[[GHGSOURCE]:[GHGSOURCE]], \"Vehicle\", FactorMatrix[[TYPE]:[TYPE]], $C149, FactorMatrix[[STATE /REGION]:[STATE /REGION]], $E149)*Years)/IF(AND(D149=0, E149=0), 2, 1)","v":0},{"$f":"(SUMIFS(FactorMatrix[[UPSTREAMTRANSPORT]:[UPSTREAMTRANSPORT]], FactorMatrix[[MODE]:[MODE]], $B149, FactorMatrix[[PHASE]:[PHASE]], \"Operations\", FactorMatrix[[GHGSOURCE]:[GHGSOURCE]], \"Vehicle\", FactorMatrix[[TYPE]:[TYPE]], $C149, FactorMatrix[[STATE /REGION]:[STATE /REGION]], $D149)*Years\n+\nSUMIFS(FactorMatrix[[UPSTREAMTRANSPORT]:[UPSTREAMTRANSPORT]], FactorMatrix[[MODE]:[MODE]], $B149, FactorMatrix[[PHASE]:[PHASE]], \"Operations\", FactorMatrix[[GHGSOURCE]:[GHGSOURCE]], \"Vehicle\", FactorMatrix[[TYPE]:[TYPE]], $C149, FactorMatrix[[STATE /REGION]:[STATE /REGION]], $E149)*Years)/IF(AND(D149=0, E149=0), 2, 1)","v":0},{"$f":"(SUMIFS(FactorMatrix[[DOWNSTREAM]:[DOWNSTREAM]], FactorMatrix[[MODE]:[MODE]], $B149, FactorMatrix[[PHASE]:[PHASE]], \"Operations\", FactorMatrix[[GHGSOURCE]:[GHGSOURCE]], \"Vehicle\", FactorMatrix[[TYPE]:[TYPE]], $C149, FactorMatrix[[STATE /REGION]:[STATE /REGION]], $D149)*Years\n+\nSUMIFS(FactorMatrix[[DOWNSTREAM]:[DOWNSTREAM]], FactorMatrix[[MODE]:[MODE]], $B149, FactorMatrix[[PHASE]:[PHASE]], \"Operations\", FactorMatrix[[GHGSOURCE]:[GHGSOURCE]], \"Vehicle\", FactorMatrix[[TYPE]:[TYPE]], $C149, FactorMatrix[[STATE /REGION]:[STATE /REGION]], $E149)*Years)/IF(AND(D149=0, E149=0), 2, 1)","v":0},0,0,0]
[]
["Collected Results"]
[null,"Upstream Materials","Upstream Transport","Downstream ","Total "]
["Construction ",{"$f":"AL12","v":{"$error":"#DIV/0!"}},{"$f":"AM12","v":{"$error":"#DIV/0!"}},{"$f":"AN12","v":{"$error":"#DIV/0!"}},{"$f":"SUM(B153:D153)","v":{"$error":"#DIV/0!"}}]
["Transitway Maintenance",{"$f":"V39","v":{"$error":"#DIV/0!"}},{"$f":"W39","v":{"$error":"#DIV/0!"}},{"$f":"X39","v":{"$error":"#DIV/0!"}},{"$error":"#DIV/0!"}]
["Facility Operations",{"$f":"K63","v":{"$error":"#DIV/0!"}},{"$f":"L63","v":{"$error":"#DIV/0!"}},{"$f":"M63","v":{"$error":"#DIV/0!"}},{"$error":"#DIV/0!"}]
["Vehicle Operations",{"$f":"M87","v":{"$error":"#DIV/0!"}},{"$f":"N87","v":{"$error":"#DIV/0!"}},{"$f":"O87","v":{"$error":"#DIV/0!"}},{"$error":"#DIV/0!"}]
["Vehicle Maintenance",{"$f":"J111","v":{"$error":"#DIV/0!"}},{"$f":"K111","v":{"$error":"#DIV/0!"}},{"$f":"L111","v":{"$error":"#DIV/0!"}},{"$error":"#DIV/0!"}]
["Displaced Emissions",{"$f":"M135","v":{"$error":"#DIV/0!"}},{"$f":"N135","v":{"$error":"#DIV/0!"}},{"$f":"O135","v":{"$error":"#DIV/0!"}},{"$error":"#DIV/0!"}]

{"sheet":"FactorMatrix","index":8,"n_rows":349,"n_cols":9,"rows_kept":349,"cut":false,"hidden":true,"merged":[]}
["MODE","PHASE","GHGSOURCE","TYPE","STATE /REGION","UPSTREAMMATERIALS","UPSTREAMTRANSPORT","DOWNSTREAM","MTCO2eq"]
["HEAVY RAIL","CONSTRUCTION","TRACK MILE","UNDERGROUND","Average US",163642,4592,5046," /mi "]
["HEAVY RAIL","CONSTRUCTION","TRACK MILE","UNDERGROUND","AL",163642,4592,4967," /mi "]
["HEAVY RAIL","CONSTRUCTION","TRACK MILE","UNDERGROUND","AK",163642,4592,4977," /mi "]
["HEAVY RAIL","CONSTRUCTION","TRACK MILE","UNDERGROUND","AZ",163642,4592,4987," /mi "]
["HEAVY RAIL","CONSTRUCTION","TRACK MILE","UNDERGROUND","AR",163642,4592,5165," /mi "]
["HEAVY RAIL","CONSTRUCTION","TRACK MILE","UNDERGROUND","CA",163642,4592,4503," /mi "]
["HEAVY RAIL","CONSTRUCTION","TRACK MILE","UNDERGROUND","CO",163642,4592,5520," /mi "]
["HEAVY RAIL","CONSTRUCTION","TRACK MILE","UNDERGROUND","CT",163642,4592,4552," /mi "]
["HEAVY RAIL","CONSTRUCTION","TRACK MILE","UNDERGROUND","DC",163642,4592,4532," /mi "]
["HEAVY RAIL","CONSTRUCTION","TRACK MILE","UNDERGROUND","DE",163642,4592,4937," /mi "]
["HEAVY RAIL","CONSTRUCTION","TRACK MILE","UNDERGROUND","FL",163642,4592,5076," /mi "]
["HEAVY RAIL","CONSTRUCTION","TRACK MILE","UNDERGROUND","GA",163642,4592,5056," /mi "]
["HEAVY RAIL","CONSTRUCTION","TRACK MILE","UNDERGROUND","HI",163642,4592,5570," /mi "]
["HEAVY RAIL","CONSTRUCTION","TRACK MILE","UNDERGROUND","ID",163642,4592,4246," /mi "]
["HEAVY RAIL","CONSTRUCTION","TRACK MILE","UNDERGROUND","IL",163642,4592,4868," /mi "]
["HEAVY RAIL","CONSTRUCTION","TRACK MILE","UNDERGROUND","IN",163642,4592,5886," /mi "]
["HEAVY RAIL","CONSTRUCTION","TRACK MILE","UNDERGROUND","IA",163642,4592,5046," /mi "]
["HEAVY RAIL","CONSTRUCTION","TRACK MILE","UNDERGROUND","KS",163642,4592,5244," /mi "]
["HEAVY RAIL","CONSTRUCTION","TRACK MILE","UNDERGROUND","KY",163642,4592,6004," /mi "]
["HEAVY RAIL","CONSTRUCTION","TRACK MILE","UNDERGROUND","LA",163642,4592,4928," /mi "]
["HEAVY RAIL","CONSTRUCTION","TRACK MILE","UNDERGROUND","ME",163642,4592,4404," /mi "]
["HEAVY RAIL","CONSTRUCTION","TRACK MILE","UNDERGROUND","MD",163642,4592,5066," /mi "]
["HEAVY RAIL","CONSTRUCTION","TRACK MILE","UNDERGROUND","MA",163642,4592,4878," /mi "]
["HEAVY RAIL","CONSTRUCTION","TRACK MILE","UNDERGROUND","MI",163642,4592,5155," /mi "]
["HEAVY RAIL","CONSTRUCTION","TRACK MILE","UNDERGROUND","MN",163642,4592,5066," /mi "]
["HEAVY RAIL","CONSTRUCTION","TRACK MILE","UNDERGROUND","MS",163642,4592,4987," /mi "]
["HEAVY RAIL","CONSTRUCTION","TRACK MILE","UNDERGROUND","MO",163642,4592,5738," /mi "]
["HEAVY RAIL","CONSTRUCTION","TRACK MILE","UNDERGROUND","MT",163642,4592,5303," /mi "]
["HEAVY RAIL","CONSTRUCTION","TRACK MILE","UNDERGROUND","NE",163642,4592,5333," /mi "]
["HEAVY RAIL","CONSTRUCTION","TRACK MILE","UNDERGROUND","NV",163642,4592,4819," /mi "]
["HEAVY RAIL","CONSTRUCTION","TRACK MILE","UNDERGROUND","NH",163642,4592,4374," /mi "]
["HEAVY RAIL","CONSTRUCTION","TRACK MILE","UNDERGROUND","NJ",163642,4592,4612," /mi "]
["HEAVY RAIL","CONSTRUCTION","TRACK MILE","UNDERGROUND","NM",163642,4592,5619," /mi "]
["HEAVY RAIL","CONSTRUCTION","TRACK MILE","UNDERGROUND","NY",163642,4592,4523," /mi "]
["HEAVY RAIL","CONSTRUCTION","TRACK MILE","UNDERGROUND","NC",163642,4592,4918," /mi "]
["HEAVY RAIL","CONSTRUCTION","TRACK MILE","UNDERGROUND","ND",163642,4592,5718," /mi "]
["HEAVY RAIL","CONSTRUCTION","TRACK MILE","UNDERGROUND","OH",163642,4592,5520," /mi "]
["HEAVY RAIL","CONSTRUCTION","TRACK MILE","UNDERGROUND","OK",163642,4592,5096," /mi "]
["HEAVY RAIL","CONSTRUCTION","TRACK MILE","UNDERGROUND","OR",163642,4592,4365," /mi "]
["HEAVY RAIL","CONSTRUCTION","TRACK MILE","UNDERGROUND","PA",163642,4592,4908," /mi "]
["HEAVY RAIL","CONSTRUCTION","TRACK MILE","UNDERGROUND","RI",163642,4592,4918," /mi "]
["HEAVY RAIL","CONSTRUCTION","TRACK MILE","UNDERGROUND","SC",163642,4592,4681," /mi "]
["HEAVY RAIL","CONSTRUCTION","TRACK MILE","UNDERGROUND","SD",163642,4592,4572," /mi "]
["HEAVY RAIL","CONSTRUCTION","TRACK MILE","UNDERGROUND","TN",163642,4592,5046," /mi "]
["HEAVY RAIL","CONSTRUCTION","TRACK MILE","UNDERGROUND","TX",163642,4592,5096," /mi "]
["HEAVY RAIL","CONSTRUCTION","TRACK MILE","UNDERGROUND","UT",163642,4592,5678," /mi "]
["HEAVY RAIL","CONSTRUCTION","TRACK MILE","UNDERGROUND","VT",163642,4592,4127," /mi "]
["HEAVY RAIL","CONSTRUCTION","TRACK MILE","UNDERGROUND","VA",163642,4592,4868," /mi "]
["HEAVY RAIL","CONSTRUCTION","TRACK MILE","UNDERGROUND","WA",163642,4592,4246," /mi "]
["HEAVY RAIL","CONSTRUCTION","TRACK MILE","UNDERGROUND","WV",163642,4592,6024," /mi "]
["HEAVY RAIL","CONSTRUCTION","TRACK MILE","UNDERGROUND","WI",163642,4592,5441," /mi "]
["HEAVY RAIL","CONSTRUCTION","TRACK MILE","UNDERGROUND","WY",163642,4592,6073," /mi "]
["HEAVY RAIL","CONSTRUCTION","TRACK MILE","ELEVATED",0,5343,167,912," /mi "]
["HEAVY RAIL","CONSTRUCTION","TRACK MILE","AT-GRADE",0,695,110,460," /mi "]
["HEAVY RAIL","CONSTRUCTION","TRACK MILE","CATENARY",0,3161,0,0," /mi "]
["HEAVY RAIL","CONSTRUCTION","STATION","UNDERGROUND",0,209486,5964,1640," /facility "]
["HEAVY RAIL","CONSTRUCTION","STATION","ELEVATED",0,194969,5573,1135," /facility "]
["HEAVY RAIL","CONSTRUCTION","STATION","AT-GRADE",0,119188,3433,457," /facility "]
["HEAVY RAIL","MAINTENANCE","TRACK MILE","UNDERGROUND",0,0,0,4.42," /mi/yr "]
["HEAVY RAIL","MAINTENANCE","TRACK MILE","ELEVATED",0,0,0,4.42," /mi/yr "]
["HEAVY RAIL","MAINTENANCE","TRACK MILE","AT-GRADE",0,0,0,4.42," /mi/yr "]
["HEAVY RAIL","MAINTENANCE","VEHICLE",0,0,0,0,2.9E-4," /veh0mil/yr "]
["HEAVY RAIL","OPERATIONS","VEHICLE","ELECTRIC","US MIX",2.4870300877030422E-3,0,0," /veh0mile/yr "]
["HEAVY RAIL","OPERATIONS","VEHICLE","ELECTRIC","AKGD",2.8479956247451717E-3,0,0," /veh0mile/yr "]
["HEAVY RAIL","OPERATIONS","VEHICLE","ELECTRIC","AKMS",1.4007971321059081E-3,0,0," /veh0mile/yr "]
["HEAVY RAIL","OPERATIONS","VEHICLE","ELECTRIC","AZNM",2.4314480626054786E-3,0,0," /veh0mile/yr "]
["HEAVY RAIL","OPERATIONS","VEHICLE","ELECTRIC","CAMX",1.156796768203852E-3,0,0," /veh0mile/yr "]
["HEAVY RAIL","OPERATIONS","VEHICLE","ELECTRIC","ERCT",2.2167480704415594E-3,0,0," /veh0mile/yr "]
["HEAVY RAIL","OPERATIONS","VEHICLE","ELECTRIC","FRCC",2.1967909878267532E-3,0,0," /veh0mile/yr "]
["HEAVY RAIL","OPERATIONS","VEHICLE","ELECTRIC","HIMS",3.0380249630884704E-3,0,0," /veh0mile/yr "]
["HEAVY RAIL","OPERATIONS","VEHICLE","ELECTRIC","HIOA",4.338965533875732E-3,0,0," /veh0mile/yr "]
["HEAVY RAIL","OPERATIONS","VEHICLE","ELECTRIC","MROE",3.8435272735005046E-3,0,0," /veh0mile/yr "]
["HEAVY RAIL","OPERATIONS","VEHICLE","ELECTRIC","MROW",2.8114940342483948E-3,0,0," /veh0mile/yr "]
["HEAVY RAIL","OPERATIONS","VEHICLE","ELECTRIC","NEWE",1.254823803232371E-3,0,0," /veh0mile/yr "]
["HEAVY RAIL","OPERATIONS","VEHICLE","ELECTRIC","NWPP",1.8292035820178573E-3,0,0," /veh0mile/yr "]
["HEAVY RAIL","OPERATIONS","VEHICLE","ELECTRIC","NYCW",1.410402145129077E-3,0,0," /veh0mile/yr "]
["HEAVY RAIL","OPERATIONS","VEHICLE","ELECTRIC","NYLI",3.0973117789235421E-3,0,0," /veh0mile/yr "]
["HEAVY RAIL","OPERATIONS","VEHICLE","ELECTRIC","NYUP",5.921668399395027E-4,0,0," /veh0mile/yr "]
["HEAVY RAIL","OPERATIONS","VEHICLE","ELECTRIC","PRMS",3.9216404230627347E-3,null,null," /veh0mile/yr "]
["HEAVY RAIL","OPERATIONS","VEHICLE","ELECTRIC","RFCE",1.7748564871661297E-3,0,0," /veh0mile/yr "]
["HEAVY RAIL","OPERATIONS","VEHICLE","ELECTRIC","RFCM",3.0415798343105377E-3,0,0," /veh0mile/yr "]
["HEAVY RAIL","OPERATIONS","VEHICLE","ELECTRIC","RFCW",2.7300851963551996E-3,0,0," /veh0mile/yr "]
["HEAVY RAIL","OPERATIONS","VEHICLE","ELECTRIC","RMPA",3.1776660981911778E-3,0,0," /veh0mile/yr "]
["HEAVY RAIL","OPERATIONS","VEHICLE","ELECTRIC","SPNO",2.7381833911977486E-3,0,0," /veh0mile/yr "]
["HEAVY RAIL","OPERATIONS","VEHICLE","ELECTRIC","SPSO",2.5580893970133366E-3,0,0," /veh0mile/yr "]
["HEAVY RAIL","OPERATIONS","VEHICLE","ELECTRIC","SRMV",2.0571905088638265E-3,0,0," /veh0mile/yr "]
["HEAVY RAIL","OPERATIONS","VEHICLE","ELECTRIC","SRMW",4.0553000236002211E-3,0,0," /veh0mile/yr "]
["HEAVY RAIL","OPERATIONS","VEHICLE","ELECTRIC","SRSO",2.4748942299785306E-3,0,0," /veh0mile/yr "]
["HEAVY RAIL","OPERATIONS","VEHICLE","ELECTRIC","SRTV",2.428154915283249E-3,0,0," /veh0mile/yr "]
["HEAVY RAIL","OPERATIONS","VEHICLE","ELECTRIC","SRVC",1.7257057551801108E-3,0,0," /veh0mile/yr "]
["HEAVY RAIL","OPERATIONS","STATION",0,0,0,0,7.3920000000000001E-3," /sq0ft/yr "]
["HEAVY RAIL","OPERATIONS","MAINTENANCE/STORAGE FACILITY","ELECTRICITY",0,0,0,5.5880000000000001E-3," /sq0ft/yr "]
["HEAVY RAIL","OPERATIONS","MAINTENANCE/STORAGE FACILITY","HEAT",0,0,0,1.7899999999999999E-3," /sq0ft/yr "]
["COMMUTER RAIL","CONSTRUCTION","TRACK MILE","UNDERGROUND","Average US",163642,4592,5046," /mi "]
["COMMUTER RAIL","CONSTRUCTION","TRACK MILE","UNDERGROUND","AL",163642,4592,4967," /mi "]
["COMMUTER RAIL","CONSTRUCTION","TRACK MILE","UNDERGROUND","AK",163642,4592,4977," /mi "]
["COMMUTER RAIL","CONSTRUCTION","TRACK MILE","UNDERGROUND","AZ",163642,4592,4987," /mi "]
["COMMUTER RAIL","CONSTRUCTION","TRACK MILE","UNDERGROUND","AR",163642,4592,5165," /mi "]
["COMMUTER RAIL","CONSTRUCTION","TRACK MILE","UNDERGROUND","CA",163642,4592,4503," /mi "]
["COMMUTER RAIL","CONSTRUCTION","TRACK MILE","UNDERGROUND","CO",163642,4592,5520," /mi "]
["COMMUTER RAIL","CONSTRUCTION","TRACK MILE","UNDERGROUND","CT",163642,4592,4552," /mi "]
["COMMUTER RAIL","CONSTRUCTION","TRACK MILE","UNDERGROUND","DC",163642,4592,4532," /mi "]
["COMMUTER RAIL","CONSTRUCTION","TRACK MILE","UNDERGROUND","DE",163642,4592,4937," /mi "]
["COMMUTER RAIL","CONSTRUCTION","TRACK MILE","UNDERGROUND","FL",163642,4592,5076," /mi "]
["COMMUTER RAIL","CONSTRUCTION","TRACK MILE","UNDERGROUND","GA",163642,4592,5056," /mi "]
["COMMUTER RAIL","CONSTRUCTION","TRACK MILE","UNDERGROUND","HI",163642,4592,5570," /mi "]
["COMMUTER RAIL","CONSTRUCTION","TRACK MILE","UNDERGROUND","ID",163642,4592,4246," /mi "]
["COMMUTER RAIL","CONSTRUCTION","TRACK MILE","UNDERGROUND","IL",163642,4592,4868," /mi "]
["COMMUTER RAIL","CONSTRUCTION","TRACK MILE","UNDERGROUND","IN",163642,4592,5886," /mi "]
["COMMUTER RAIL","CONSTRUCTION","TRACK MILE","UNDERGROUND","IA",163642,4592,5046," /mi "]
["COMMUTER RAIL","CONSTRUCTION","TRACK MILE","UNDERGROUND","KS",163642,4592,5244," /mi "]
["COMMUTER RAIL","CONSTRUCTION","TRACK MILE","UNDERGROUND","KY",163642,4592,6004," /mi "]
["COMMUTER RAIL","CONSTRUCTION","TRACK MILE","UNDERGROUND","LA",163642,4592,4928," /mi "]
["COMMUTER RAIL","CONSTRUCTION","TRACK MILE","UNDERGROUND","ME",163642,4592,4404," /mi "]
["COMMUTER RAIL","CONSTRUCTION","TRACK MILE","UNDERGROUND","MD",163642,4592,5066," /mi "]
["COMMUTER RAIL","CONSTRUCTION","TRACK MILE","UNDERGROUND","MA",163642,4592,4878," /mi "]
["COMMUTER RAIL","CONSTRUCTION","TRACK MILE","UNDERGROUND","MI",163642,4592,5155," /mi "]
["COMMUTER RAIL","CONSTRUCTION","TRACK MILE","UNDERGROUND","MN",163642,4592,5066," /mi "]
["COMMUTER RAIL","CONSTRUCTION","TRACK MILE","UNDERGROUND","MS",163642,4592,4987," /mi "]
["COMMUTER RAIL","CONSTRUCTION","TRACK MILE","UNDERGROUND","MO",163642,4592,5738," /mi "]
["COMMUTER RAIL","CONSTRUCTION","TRACK MILE","UNDERGROUND","MT",163642,4592,5303," /mi "]
["COMMUTER RAIL","CONSTRUCTION","TRACK MILE","UNDERGROUND","NE",163642,4592,5333," /mi "]
["COMMUTER RAIL","CONSTRUCTION","TRACK MILE","UNDERGROUND","NV",163642,4592,4819," /mi "]
["COMMUTER RAIL","CONSTRUCTION","TRACK MILE","UNDERGROUND","NH",163642,4592,4374," /mi "]
["COMMUTER RAIL","CONSTRUCTION","TRACK MILE","UNDERGROUND","NJ",163642,4592,4612," /mi "]
["COMMUTER RAIL","CONSTRUCTION","TRACK MILE","UNDERGROUND","NM",163642,4592,5619," /mi "]
["COMMUTER RAIL","CONSTRUCTION","TRACK MILE","UNDERGROUND","NY",163642,4592,4523," /mi "]
["COMMUTER RAIL","CONSTRUCTION","TRACK MILE","UNDERGROUND","NC",163642,4592,4918," /mi "]
["COMMUTER RAIL","CONSTRUCTION","TRACK MILE","UNDERGROUND","ND",163642,4592,5718," /mi "]
["COMMUTER RAIL","CONSTRUCTION","TRACK MILE","UNDERGROUND","OH",163642,4592,5520," /mi "]
["COMMUTER RAIL","CONSTRUCTION","TRACK MILE","UNDERGROUND","OK",163642,4592,5096," /mi "]
["COMMUTER RAIL","CONSTRUCTION","TRACK MILE","UNDERGROUND","OR",163642,4592,4365," /mi "]
["COMMUTER RAIL","CONSTRUCTION","TRACK MILE","UNDERGROUND","PA",163642,4592,4908," /mi "]
["COMMUTER RAIL","CONSTRUCTION","TRACK MILE","UNDERGROUND","RI",163642,4592,4918," /mi "]
["COMMUTER RAIL","CONSTRUCTION","TRACK MILE","UNDERGROUND","SC",163642,4592,4681," /mi "]
["COMMUTER RAIL","CONSTRUCTION","TRACK MILE","UNDERGROUND","SD",163642,4592,4572," /mi "]
["COMMUTER RAIL","CONSTRUCTION","TRACK MILE","UNDERGROUND","TN",163642,4592,5046," /mi "]
["COMMUTER RAIL","CONSTRUCTION","TRACK MILE","UNDERGROUND","TX",163642,4592,5096," /mi "]
["COMMUTER RAIL","CONSTRUCTION","TRACK MILE","UNDERGROUND","UT",163642,4592,5678," /mi "]
["COMMUTER RAIL","CONSTRUCTION","TRACK MILE","UNDERGROUND","VT",163642,4592,4127," /mi "]
["COMMUTER RAIL","CONSTRUCTION","TRACK MILE","UNDERGROUND","VA",163642,4592,4868," /mi "]
["COMMUTER RAIL","CONSTRUCTION","TRACK MILE","UNDERGROUND","WA",163642,4592,4246," /mi "]
["COMMUTER RAIL","CONSTRUCTION","TRACK MILE","UNDERGROUND","WV",163642,4592,6024," /mi "]
["COMMUTER RAIL","CONSTRUCTION","TRACK MILE","UNDERGROUND","WI",163642,4592,5441," /mi "]
["COMMUTER RAIL","CONSTRUCTION","TRACK MILE","UNDERGROUND","WY",163642,4592,6073," /mi "]
["COMMUTER RAIL","CONSTRUCTION","TRACK MILE","ELEVATED",0,5343,167,912," /mi "]
["COMMUTER RAIL","CONSTRUCTION","TRACK MILE","AT-GRADE",0,695,110,460," /mi "]
["COMMUTER RAIL","CONSTRUCTION","TRACK MILE","CATENARY",0,3161,0,0," /mi "]
["COMMUTER RAIL","CONSTRUCTION","STATION","UNDERGROUND",0,209486,5964,2085," /facility "]
["COMMUTER RAIL","CONSTRUCTION","STATION","ELEVATED",0,194969,5573,1442," /facility "]
["COMMUTER RAIL","CONSTRUCTION","STATION","AT-GRADE",0,119188,3433,581," /facility "]
["COMMUTER RAIL","MAINTENANCE","TRACK MILE","UNDERGROUND",0,0,0,4.42," /mi/yr "]
["COMMUTER RAIL","MAINTENANCE","TRACK MILE","ELEVATED",0,0,0,4.42," /mi/yr "]
["COMMUTER RAIL","MAINTENANCE","TRACK MILE","AT-GRADE",0,0,0,4.42," /mi/yr "]
["COMMUTER RAIL","MAINTENANCE","VEHICLE",0,0,0,0,9.7499999999999996E-4," /veh0mil/yr "]
["COMMUTER RAIL","OPERATIONS","VEHICLE","ELECTRIC","US MIX",6.1700000000000001E-3,0,0," /veh0mile/yr "]
["COMMUTER RAIL","OPERATIONS","VEHICLE","ELECTRIC","AKGD",7.0699999999999999E-3,0,0," /veh0mile/yr "]
["COMMUTER RAIL","OPERATIONS","VEHICLE","ELECTRIC","AKMS",3.48E-3,0,0," /veh0mile/yr "]
["COMMUTER RAIL","OPERATIONS","VEHICLE","ELECTRIC","AZNM",6.0299999999999998E-3,0,0," /veh0mile/yr "]
["COMMUTER RAIL","OPERATIONS","VEHICLE","ELECTRIC","CAMX",2.8700000000000002E-3,0,0," /veh0mile/yr "]
["COMMUTER RAIL","OPERATIONS","VEHICLE","ELECTRIC","ERCT",5.4999999999999997E-3,0,0," /veh0mile/yr "]
["COMMUTER RAIL","OPERATIONS","VEHICLE","ELECTRIC","FRCC",5.45E-3,0,0," /veh0mile/yr "]
["COMMUTER RAIL","OPERATIONS","VEHICLE","ELECTRIC","HIMS",7.5399999999999998E-3,0,0," /veh0mile/yr "]
["COMMUTER RAIL","OPERATIONS","VEHICLE","ELECTRIC","HIOA",1.077E-2,0,0," /veh0mile/yr "]
["COMMUTER RAIL","OPERATIONS","VEHICLE","ELECTRIC","MROE",9.5399999999999999E-3,0,0," /veh0mile/yr "]
["COMMUTER RAIL","OPERATIONS","VEHICLE","ELECTRIC","MROW",6.9800000000000001E-3,0,0," /veh0mile/yr "]
["COMMUTER RAIL","OPERATIONS","VEHICLE","ELECTRIC","NEWE",3.1099999999999999E-3,0,0," /veh0mile/yr "]
["COMMUTER RAIL","OPERATIONS","VEHICLE","ELECTRIC","NWPP",4.5399999999999998E-3,0,0," /veh0mile/yr "]
["COMMUTER RAIL","OPERATIONS","VEHICLE","ELECTRIC","NYCW",3.5000000000000001E-3,0,0," /veh0mile/yr "]
["COMMUTER RAIL","OPERATIONS","VEHICLE","ELECTRIC","NYLI",7.6899999999999998E-3,0,0," /veh0mile/yr "]
["COMMUTER RAIL","OPERATIONS","VEHICLE","ELECTRIC","NYUP",1.47E-3,0,0," /veh0mile/yr "]
["COMMUTER RAIL","OPERATIONS","VEHICLE","ELECTRIC","PRMS",9.7300000000000008E-3,0,0," /veh0mile/yr "]
["COMMUTER RAIL","OPERATIONS","VEHICLE","ELECTRIC","RFCE",4.4000000000000003E-3,0,0," /veh0mile/yr "]
["COMMUTER RAIL","OPERATIONS","VEHICLE","ELECTRIC","RFCM",7.5500000000000003E-3,0,0," /veh0mile/yr "]
["COMMUTER RAIL","OPERATIONS","VEHICLE","ELECTRIC","RFCW",6.77E-3,0,0," /veh0mile/yr "]
["COMMUTER RAIL","OPERATIONS","VEHICLE","ELECTRIC","RMPA",7.8799999999999999E-3,0,0," /veh0mile/yr "]
["COMMUTER RAIL","OPERATIONS","VEHICLE","ELECTRIC","SPNO",6.79E-3,0,0," /veh0mile/yr "]
["COMMUTER RAIL","OPERATIONS","VEHICLE","ELECTRIC","SPSO",6.3499999999999997E-3,0,0," /veh0mile/yr "]
["COMMUTER RAIL","OPERATIONS","VEHICLE","ELECTRIC","SRMV",5.1000000000000004E-3,0,0," /veh0mile/yr "]
["COMMUTER RAIL","OPERATIONS","VEHICLE","ELECTRIC","SRMW",1.0059999999999999E-2,0,0," /veh0mile/yr "]
["COMMUTER RAIL","OPERATIONS","VEHICLE","ELECTRIC","SRSO",6.1399999999999996E-3,0,0," /veh0mile/yr "]
["COMMUTER RAIL","OPERATIONS","VEHICLE","ELECTRIC","SRTV",6.0200000000000002E-3,0,0," /veh0mile/yr "]
["COMMUTER RAIL","OPERATIONS","VEHICLE","ELECTRIC","SRVC",4.28E-3,0,0," /veh0mile/yr "]
["COMMUTER RAIL","OPERATIONS","VEHICLE","DIESEL",0,0,0,2.8029999999999999E-2,"/veh-mile/yr "]
["COMMUTER RAIL","OPERATIONS","STATION",0,0,0,0,7.3920000000000001E-3," /sq0ft/yr "]
["COMMUTER RAIL","OPERATIONS","MAINTENANCE/STORAGE FACILITY","ELECTRICITY",0,0,0,5.5880000000000001E-3," /sq0ft/yr "]
["COMMUTER RAIL","OPERATIONS","MAINTENANCE/STORAGE FACILITY","HEAT",0,0,0,1.7930000000000001E-3," /sq0ft/yr "]
["LIGHT RAIL OR STREETCAR","CONSTRUCTION","TRACK MILE","UNDERGROUND","Average US",163642,4592,5046," /mi "]
["LIGHT RAIL OR STREETCAR","CONSTRUCTION","TRACK MILE","UNDERGROUND","AL",163642,4592,4967," /mi "]
["LIGHT RAIL OR STREETCAR","CONSTRUCTION","TRACK MILE","UNDERGROUND","AK",163642,4592,4977," /mi "]
["LIGHT RAIL OR STREETCAR","CONSTRUCTION","TRACK MILE","UNDERGROUND","AZ",163642,4592,4987," /mi "]
["LIGHT RAIL OR STREETCAR","CONSTRUCTION","TRACK MILE","UNDERGROUND","AR",163642,4592,5165," /mi "]
["LIGHT RAIL OR STREETCAR","CONSTRUCTION","TRACK MILE","UNDERGROUND","CA",163642,4592,4503," /mi "]
["LIGHT RAIL OR STREETCAR","CONSTRUCTION","TRACK MILE","UNDERGROUND","CO",163642,4592,5520," /mi "]
["LIGHT RAIL OR STREETCAR","CONSTRUCTION","TRACK MILE","UNDERGROUND","CT",163642,4592,4552," /mi "]
["LIGHT RAIL OR STREETCAR","CONSTRUCTION","TRACK MILE","UNDERGROUND","DC",163642,4592,4532," /mi "]
["LIGHT RAIL OR STREETCAR","CONSTRUCTION","TRACK MILE","UNDERGROUND","DE",163642,4592,4937," /mi "]
["LIGHT RAIL OR STREETCAR","CONSTRUCTION","TRACK MILE","UNDERGROUND","FL",163642,4592,5076," /mi "]
["LIGHT RAIL OR STREETCAR","CONSTRUCTION","TRACK MILE","UNDERGROUND","GA",163642,4592,5056," /mi "]
["LIGHT RAIL OR STREETCAR","CONSTRUCTION","TRACK MILE","UNDERGROUND","HI",163642,4592,5570," /mi "]
["LIGHT RAIL OR STREETCAR","CONSTRUCTION","TRACK MILE","UNDERGROUND","ID",163642,4592,4246," /mi "]
["LIGHT RAIL OR STREETCAR","CONSTRUCTION","TRACK MILE","UNDERGROUND","IL",163642,4592,4868," /mi "]
["LIGHT RAIL OR STREETCAR","CONSTRUCTION","TRACK MILE","UNDERGROUND","IN",163642,4592,5886," /mi "]
["LIGHT RAIL OR STREETCAR","CONSTRUCTION","TRACK MILE","UNDERGROUND","IA",163642,4592,5046," /mi "]
["LIGHT RAIL OR STREETCAR","CONSTRUCTION","TRACK MILE","UNDERGROUND","KS",163642,4592,5244," /mi "]
["LIGHT RAIL OR STREETCAR","CONSTRUCTION","TRACK MILE","UNDERGROUND","KY",163642,4592,6004," /mi "]
["LIGHT RAIL OR STREETCAR","CONSTRUCTION","TRACK MILE","UNDERGROUND","LA",163642,4592,4928," /mi "]
["LIGHT RAIL OR STREETCAR","CONSTRUCTION","TRACK MILE","UNDERGROUND","ME",163642,4592,4404," /mi "]
["LIGHT RAIL OR STREETCAR","CONSTRUCTION","TRACK MILE","UNDERGROUND","MD",163642,4592,5066," /mi "]
["LIGHT RAIL OR STREETCAR","CONSTRUCTION","TRACK MILE","UNDERGROUND","MA",163642,4592,4878," /mi "]
["LIGHT RAIL OR STREETCAR","CONSTRUCTION","TRACK MILE","UNDERGROUND","MI",163642,4592,5155," /mi "]
["LIGHT RAIL OR STREETCAR","CONSTRUCTION","TRACK MILE","UNDERGROUND","MN",163642,4592,5066," /mi "]
["LIGHT RAIL OR STREETCAR","CONSTRUCTION","TRACK MILE","UNDERGROUND","MS",163642,4592,4987," /mi "]
["LIGHT RAIL OR STREETCAR","CONSTRUCTION","TRACK MILE","UNDERGROUND","MO",163642,4592,5738," /mi "]
["LIGHT RAIL OR STREETCAR","CONSTRUCTION","TRACK MILE","UNDERGROUND","MT",163642,4592,5303," /mi "]
["LIGHT RAIL OR STREETCAR","CONSTRUCTION","TRACK MILE","UNDERGROUND","NE",163642,4592,5333," /mi "]
["LIGHT RAIL OR STREETCAR","CONSTRUCTION","TRACK MILE","UNDERGROUND","NV",163642,4592,4819," /mi "]
["LIGHT RAIL OR STREETCAR","CONSTRUCTION","TRACK MILE","UNDERGROUND","NH",163642,4592,4374," /mi "]
["LIGHT RAIL OR STREETCAR","CONSTRUCTION","TRACK MILE","UNDERGROUND","NJ",163642,4592,4612," /mi "]
["LIGHT RAIL OR STREETCAR","CONSTRUCTION","TRACK MILE","UNDERGROUND","NM",163642,4592,5619," /mi "]
["LIGHT RAIL OR STREETCAR","CONSTRUCTION","TRACK MILE","UNDERGROUND","NY",163642,4592,4523," /mi "]
["LIGHT RAIL OR STREETCAR","CONSTRUCTION","TRACK MILE","UNDERGROUND","NC",163642,4592,4918," /mi "]
["LIGHT RAIL OR STREETCAR","CONSTRUCTION","TRACK MILE","UNDERGROUND","ND",163642,4592,5718," /mi "]
["LIGHT RAIL OR STREETCAR","CONSTRUCTION","TRACK MILE","UNDERGROUND","OH",163642,4592,5520," /mi "]
["LIGHT RAIL OR STREETCAR","CONSTRUCTION","TRACK MILE","UNDERGROUND","OK",163642,4592,5096," /mi "]
["LIGHT RAIL OR STREETCAR","CONSTRUCTION","TRACK MILE","UNDERGROUND","OR",163642,4592,4365," /mi "]
["LIGHT RAIL OR STREETCAR","CONSTRUCTION","TRACK MILE","UNDERGROUND","PA",163642,4592,4908," /mi "]
["LIGHT RAIL OR STREETCAR","CONSTRUCTION","TRACK MILE","UNDERGROUND","RI",163642,4592,4918," /mi "]
["LIGHT RAIL OR STREETCAR","CONSTRUCTION","TRACK MILE","UNDERGROUND","SC",163642,4592,4681," /mi "]
["LIGHT RAIL OR STREETCAR","CONSTRUCTION","TRACK MILE","UNDERGROUND","SD",163642,4592,4572," /mi "]
["LIGHT RAIL OR STREETCAR","CONSTRUCTION","TRACK MILE","UNDERGROUND","TN",163642,4592,5046," /mi "]
["LIGHT RAIL OR STREETCAR","CONSTRUCTION","TRACK MILE","UNDERGROUND","TX",163642,4592,5096," /mi "]
["LIGHT RAIL OR STREETCAR","CONSTRUCTION","TRACK MILE","UNDERGROUND","UT",163642,4592,5678," /mi "]
["LIGHT RAIL OR STREETCAR","CONSTRUCTION","TRACK MILE","UNDERGROUND","VT",163642,4592,4127," /mi "]
["LIGHT RAIL OR STREETCAR","CONSTRUCTION","TRACK MILE","UNDERGROUND","VA",163642,4592,4868," /mi "]
["LIGHT RAIL OR STREETCAR","CONSTRUCTION","TRACK MILE","UNDERGROUND","WA",163642,4592,4246," /mi "]
["LIGHT RAIL OR STREETCAR","CONSTRUCTION","TRACK MILE","UNDERGROUND","WV",163642,4592,6024," /mi "]
["LIGHT RAIL OR STREETCAR","CONSTRUCTION","TRACK MILE","UNDERGROUND","WI",163642,4592,5441," /mi "]
["LIGHT RAIL OR STREETCAR","CONSTRUCTION","TRACK MILE","UNDERGROUND","WY",163642,4592,6073," /mi "]
["LIGHT RAIL OR STREETCAR","CONSTRUCTION","TRACK MILE","ELEVATED",0,4901,146,793," /mi "]
["LIGHT RAIL OR STREETCAR","CONSTRUCTION","TRACK MILE","AT-GRADE",0,348,77,138," /mi "]
["LIGHT RAIL OR STREETCAR","CONSTRUCTION","TRACK MILE","CONVERTED OR UPGRADED",0,201,68,95," /mi "]
["LIGHT RAIL OR STREETCAR","CONSTRUCTION","TRACK MILE","CATENARY",0,3161,0,0," /mi "]
["LIGHT RAIL OR STREETCAR","CONSTRUCTION","STATION","UNDERGROUND",0,52253,1487,782," /facility "]
["LIGHT RAIL OR STREETCAR","CONSTRUCTION","STATION","ELEVATED",0,8337,2399,383," /facility "]
["LIGHT RAIL OR STREETCAR","CONSTRUCTION","STATION","AT-GRADE",0,3674,112,11," /facility "]
["LIGHT RAIL OR STREETCAR","MAINTENANCE","TRACK MILE","UNDERGROUND",0,0,0,4.42," /mi/yr "]
["LIGHT RAIL OR STREETCAR","MAINTENANCE","TRACK MILE","ELEVATED",0,0,0,4.42," /mi/yr "]
["LIGHT RAIL OR STREETCAR","MAINTENANCE","TRACK MILE","AT-GRADE",0,0,0,4.42," /mi/yr "]
["LIGHT RAIL OR STREETCAR","MAINTENANCE","TRACK MILE","CONVERTED OR UPGRADED",0,0,0,4.42," /mi/yr "]
["LIGHT RAIL OR STREETCAR","MAINTENANCE","VEHICLE",0,0,0,0,1.2E-5," /veh0mile/yr "]
["LIGHT RAIL OR STREETCAR","OPERATIONS","VEHICLE","ELECTRIC","US",3.5847359325371906E-3,0,0," /veh0mile/yr "]
["LIGHT RAIL OR STREETCAR","OPERATIONS","VEHICLE","ELECTRIC","AKGD",4.1050216087903397E-3,0,0," /veh0mile/yr "]
["LIGHT RAIL OR STREETCAR","OPERATIONS","VEHICLE","ELECTRIC","AKMS",2.0190699897373629E-3,0,0," /veh0mile/yr "]
["LIGHT RAIL OR STREETCAR","OPERATIONS","VEHICLE","ELECTRIC","AZNM",3.5046215488972084E-3,0,0," /veh0mile/yr "]
["LIGHT RAIL OR STREETCAR","OPERATIONS","VEHICLE","ELECTRIC","CAMX",1.6673746578808515E-3,0,0," /veh0mile/yr "]
["LIGHT RAIL OR STREETCAR","OPERATIONS","VEHICLE","ELECTRIC","ERCT",3.1951589571775092E-3,0,0," /veh0mile/yr "]
["LIGHT RAIL OR STREETCAR","OPERATIONS","VEHICLE","ELECTRIC","FRCC",3.1663933738773158E-3,0,0," /veh0mile/yr "]
["LIGHT RAIL OR STREETCAR","OPERATIONS","VEHICLE","ELECTRIC","HIMS",4.3789246068938461E-3,0,0," /veh0mile/yr "]
["LIGHT RAIL OR STREETCAR","OPERATIONS","VEHICLE","ELECTRIC","HIOA",6.2540641290311349E-3,0,0," /veh0mile/yr "]
["LIGHT RAIL OR STREETCAR","OPERATIONS","VEHICLE","ELECTRIC","MROE",5.5399532129219217E-3,0,0," /veh0mile/yr "]
["LIGHT RAIL OR STREETCAR","OPERATIONS","VEHICLE","ELECTRIC","MROW",4.0524092324079521E-3,0,0," /veh0mile/yr "]
["LIGHT RAIL OR STREETCAR","OPERATIONS","VEHICLE","ELECTRIC","NEWE",1.8086680972181127E-3,0,0," /veh0mile/yr "]
["LIGHT RAIL OR STREETCAR","OPERATIONS","VEHICLE","ELECTRIC","NWPP",2.636563120328483E-3,0,0," /veh0mile/yr "]
["LIGHT RAIL OR STREETCAR","OPERATIONS","VEHICLE","ELECTRIC","NYCW",2.0329143881171355E-3,0,0," /veh0mile/yr "]
["LIGHT RAIL OR STREETCAR","OPERATIONS","VEHICLE","ELECTRIC","NYLI",4.4643789727660272E-3,0,0," /veh0mile/yr "]
["LIGHT RAIL OR STREETCAR","OPERATIONS","VEHICLE","ELECTRIC","NYUP",8.535327978877261E-4,0,0," /veh0mile/yr "]
["LIGHT RAIL OR STREETCAR","OPERATIONS","VEHICLE","ELECTRIC","PRMS",5.6525433321263068E-3,0,0," /veh0mile/yr "]
["LIGHT RAIL OR STREETCAR","OPERATIONS","VEHICLE","ELECTRIC","RFCE",2.5582287307658997E-3,0,0," /veh0mile/yr "]
["LIGHT RAIL OR STREETCAR","OPERATIONS","VEHICLE","ELECTRIC","RFCM",4.3840484993100644E-3,0,0," /veh0mile/yr "]
["LIGHT RAIL OR STREETCAR","OPERATIONS","VEHICLE","ELECTRIC","RFCW",3.9350687997912496E-3,0,0," /veh0mile/yr "]
["LIGHT RAIL OR STREETCAR","OPERATIONS","VEHICLE","ELECTRIC","RMPA",4.5801994515923582E-3,0,0," /veh0mile/yr "]
["LIGHT RAIL OR STREETCAR","OPERATIONS","VEHICLE","ELECTRIC","SPNO",3.9467413123934533E-3,0,0," /veh0mile/yr "]
["LIGHT RAIL OR STREETCAR","OPERATIONS","VEHICLE","ELECTRIC","SPSO",3.6871588427727269E-3,0,0," /veh0mile/yr "]
["LIGHT RAIL OR STREETCAR","OPERATIONS","VEHICLE","ELECTRIC","SRMV",2.9651771298068669E-3,0,0," /veh0mile/yr "]
["LIGHT RAIL OR STREETCAR","OPERATIONS","VEHICLE","ELECTRIC","SRMW",5.8451965594211201E-3,0,0," /veh0mile/yr "]
["LIGHT RAIL OR STREETCAR","OPERATIONS","VEHICLE","ELECTRIC","SRSO",3.5672436450605262E-3,0,0," /veh0mile/yr "]
["LIGHT RAIL OR STREETCAR","OPERATIONS","VEHICLE","ELECTRIC","SRTV",3.4998748980241434E-3,0,0," /veh0mile/yr "]
["LIGHT RAIL OR STREETCAR","OPERATIONS","VEHICLE","ELECTRIC","SRVC",2.4873842339775587E-3,0,0," /veh0mile/yr "]
["LIGHT RAIL OR STREETCAR","OPERATIONS","STATION",0,0,0,0,7.3920000000000001E-3," /sq0ft/yr "]
["LIGHT RAIL OR STREETCAR","OPERATIONS","MAINTENANCE/STORAGE FACILITY","ELECTRICITY",0,0,0,5.5880000000000001E-3," /sq0ft/yr "]
["LIGHT RAIL OR STREETCAR","OPERATIONS","MAINTENANCE/STORAGE FACILITY","HEAT",0,0,0,1.7899999999999999E-3," /sq0ft/yr "]
["BUS/BRT","CONSTRUCTION","TRACK MILE","AT-GRADE",0,196,24,250,"/mi"]
["BUS/BRT","CONSTRUCTION","TRACK MILE","CONVERTED OR UPGRADED",0,98,13,89,"/mi"]
["BUS/BRT","CONSTRUCTION","TRACK MILE","CATENARY",0,902,0,0,"/mi"]
["BUS/BRT","CONSTRUCTION","STATION","UNDERGROUND",0,3674,112,11,"/facility"]
["BUS/BRT","CONSTRUCTION","STATION","ELEVATED",0,3674,112,11,"/facility"]
["BUS/BRT","CONSTRUCTION","STATION","AT-GRADE",0,3674,112,11,"/facility"]
["BUS/BRT","MAINTENANCE","TRACK MILE","AT-GRADE",0,0,0,0.50631999999999999,"/mi/yr"]
["BUS/BRT","MAINTENANCE","TRACK MILE","CONVERTED OR UPGRADED",0,0,0,0.50631999999999999,"/mi/yr"]
["BUS/BRT","MAINTENANCE","VEHICLE",0,0,0,0,5.0000000000000002E-5,"/veh0mile/yr"]
["BUS/BRT","OPERATIONS","VEHICLE","DIESEL",0,5.1199999999999998E-4,0,2.4989999999999999E-3," /veh0mile/yr "]
["BUS/BRT","OPERATIONS","VEHICLE","CNG",0,5.6999999999999998E-4,0,2.5590000000000001E-3," /veh0mile/yr "]
["BUS/BRT","OPERATIONS","VEHICLE","HYBRID DIESEL",0,3.6499999999999998E-4,0,1.786E-3," /veh0mile/yr "]
["BUS/BRT","OPERATIONS","VEHICLE","GAS",0,2.2800000000000001E-4,0,9.810000000000001E-4," /veh0mile/yr "]
["BUS/BRT","OPERATIONS","VEHICLE","ELECTRIC","US",1.222E-3,0,0," /veh0mile/yr "]
["BUS/BRT","OPERATIONS","VEHICLE","ELECTRIC","ASCC",1.57E-3,0,0," /veh0mile/yr "]
["BUS/BRT","OPERATIONS","VEHICLE","ELECTRIC","FRCC",1.3630000000000001E-3,0,0," /veh0mile/yr "]
["BUS/BRT","OPERATIONS","VEHICLE","ELECTRIC","HICC",2.4620000000000002E-3,0,0," /veh0mile/yr "]
["BUS/BRT","OPERATIONS","VEHICLE","ELECTRIC","MRO",1.8E-3,0,0," /veh0mile/yr "]
["BUS/BRT","OPERATIONS","VEHICLE","ELECTRIC","NPCC",7.0399999999999998E-4,0,0," /veh0mile/yr "]
["BUS/BRT","OPERATIONS","VEHICLE","ELECTRIC","RFC",1.281E-3,0,0," /veh0mile/yr "]
["BUS/BRT","OPERATIONS","VEHICLE","ELECTRIC","SERC",1.253E-3,0,0," /veh0mile/yr "]
["BUS/BRT","OPERATIONS","VEHICLE","ELECTRIC","SPP",1.503E-3,0,0," /veh0mile/yr "]
["BUS/BRT","OPERATIONS","VEHICLE","ELECTRIC","TRE",1.2849999999999999E-3,0,0," /veh0mile/yr "]
["BUS/BRT","OPERATIONS","VEHICLE","ELECTRIC","WECC",1.031E-3,0,0," /veh0mile/yr "]
["BUS/BRT","OPERATIONS","STATION","ELECTRICITY",0,0,0,7.3920000000000001E-3,"/sq0ft/yr"]
["BUS/BRT","OPERATIONS","STATION","HEAT",0,0,0,1.65E-3,"/sq0ft/yr"]
["BUS/BRT","OPERATIONS","MAINTENANCE/STORAGE FACILITY","ELECTRICITY",0,0,0,9.7680000000000006E-3,"/sq0ft/yr"]
["BUS/BRT","OPERATIONS","MAINTENANCE/STORAGE FACILITY","HEAT",0,0,0,1.0300000000000001E-3,"/sq0ft/yr"]
["VANPOOL","OPERATIONS","VEHICLE","DIESEL",0,2.4399999999999999E-4,0,1.194E-3," /veh0mile/yr "]
["VANPOOL","OPERATIONS","VEHICLE","GAS",0,2.2800000000000001E-4,0,9.810000000000001E-4," /veh0mile/yr "]
["SCHOOL BUS","OPERATIONS","VEHICLE","DIESEL",0,2.72E-4,0,1.3320000000000001E-3," /veh0mile/yr "]
["SCHOOL BUS","OPERATIONS","VEHICLE","CNG",0,3.0299999999999999E-4,0,1.3550000000000001E-3," /veh0mile/yr "]
["DR BUS","OPERATIONS","VEHICLE","DIESEL",0,2.4399999999999999E-4,0,1.194E-3," /veh0mile/yr "]
["DR BUS","OPERATIONS","VEHICLE","CNG",0,2.72E-4,0,1.214E-3," /veh0mile/yr "]
["SEDAN/AUTO","OPERATIONS","VEHICLE","GAS",0,7.7000000000000001E-5,0,3.3225907233820103E-4," /veh0mile/yr "]
["SEDAN/AUTO","OPERATIONS","VEHICLE","DIESEL",0,5.8E-5,0,2.8600000000000001E-4," /veh0mile/yr "]
["SEDAN/AUTO","OPERATIONS","VEHICLE","HYBRID ELECTRIC",0,5.3999999999999998E-5,0,2.3800000000000001E-4," /veh0mile/yr "]
["SEDAN/AUTO","OPERATIONS","VEHICLE","ALL ELECTRIC","US",1.5699999999999999E-4,0,0," /veh0mile/yr "]
["SEDAN/AUTO","OPERATIONS","VEHICLE","ALL ELECTRIC","ASCC",2.0100000000000001E-4,0,0," /veh0mile/yr "]
["SEDAN/AUTO","OPERATIONS","VEHICLE","ALL ELECTRIC","FRCC",1.75E-4,0,0," /veh0mile/yr "]
["SEDAN/AUTO","OPERATIONS","VEHICLE","ALL ELECTRIC","HICC",3.1599999999999998E-4,0,0," /veh0mile/yr "]
["SEDAN/AUTO","OPERATIONS","VEHICLE","ALL ELECTRIC","MRO",2.3000000000000001E-4,0,0," /veh0mile/yr "]
["SEDAN/AUTO","OPERATIONS","VEHICLE","ALL ELECTRIC","NPCC",9.0000000000000006E-5,0,0," /veh0mile/yr "]
["SEDAN/AUTO","OPERATIONS","VEHICLE","ALL ELECTRIC","RFC",1.64E-4,0,0," /veh0mile/yr "]
["SEDAN/AUTO","OPERATIONS","VEHICLE","ALL ELECTRIC","SERC",1.6100000000000001E-4,0,0," /veh0mile/yr "]
["SEDAN/AUTO","OPERATIONS","VEHICLE","ALL ELECTRIC","SPP",1.93E-4,0,0," /veh0mile/yr "]
["SEDAN/AUTO","OPERATIONS","VEHICLE","ALL ELECTRIC","TRE",1.65E-4,0,0," /veh0mile/yr "]
["SEDAN/AUTO","OPERATIONS","VEHICLE","ALL ELECTRIC","WECC",1.27E-4,0,0," /veh0mile/yr "]
["SEDAN/AUTO","OPERATIONS","VEHICLE","PLUG-IN HYBRID ELECTRIC","US",1.06E-4,0,1.1900000000000001E-4," /veh0mile/yr "]
["SEDAN/AUTO","OPERATIONS","VEHICLE","PLUG-IN HYBRID ELECTRIC","ASCC",1.2799999999999999E-4,0,1.1900000000000001E-4," /veh0mile/yr "]
["SEDAN/AUTO","OPERATIONS","VEHICLE","PLUG-IN HYBRID ELECTRIC","FRCC",1.1400000000000001E-4,0,1.1900000000000001E-4," /veh0mile/yr "]
["SEDAN/AUTO","OPERATIONS","VEHICLE","PLUG-IN HYBRID ELECTRIC","HICC",1.84E-4,0,1.1900000000000001E-4," /veh0mile/yr "]
["SEDAN/AUTO","OPERATIONS","VEHICLE","PLUG-IN HYBRID ELECTRIC","MRO",1.4100000000000001E-4,0,1.1900000000000001E-4," /veh0mile/yr "]
["SEDAN/AUTO","OPERATIONS","VEHICLE","PLUG-IN HYBRID ELECTRIC","NPCC",7.2000000000000002E-5,0,1.1900000000000001E-4," /veh0mile/yr "]
["SEDAN/AUTO","OPERATIONS","VEHICLE","PLUG-IN HYBRID ELECTRIC","RFC",1.0900000000000001E-4,0,1.1900000000000001E-4," /veh0mile/yr "]
["SEDAN/AUTO","OPERATIONS","VEHICLE","PLUG-IN HYBRID ELECTRIC","SERC",1.07E-4,0,1.1900000000000001E-4," /veh0mile/yr "]
["SEDAN/AUTO","OPERATIONS","VEHICLE","PLUG-IN HYBRID ELECTRIC","SPP",1.2300000000000001E-4,0,1.1900000000000001E-4," /veh0mile/yr "]
["SEDAN/AUTO","OPERATIONS","VEHICLE","PLUG-IN HYBRID ELECTRIC","TRE",1.0900000000000001E-4,0,1.1900000000000001E-4," /veh0mile/yr "]
["SEDAN/AUTO","OPERATIONS","VEHICLE","PLUG-IN HYBRID ELECTRIC","WECC",9.0000000000000006E-5,0,1.1900000000000001E-4," /veh0mile/yr "]
["PARKING","CONSTRUCTION","LOT < 50",0,0,0.17,7.0000000000000007E-2,0.18,"/space"]
["PARKING","CONSTRUCTION","GARAGE < 50",0,0,5.3,0.14000000000000001,1,"/space"]
["PARKING","CONSTRUCTION","LOT 50 0 500",0,0,0.2114,9.1200000000000003E-2,0.2082,"/space"]
["PARKING","CONSTRUCTION","GARAGE 50 0 500",0,0,5.3688000000000002,0.14660000000000001,0.74739999999999995,"/space"]
["PARKING","CONSTRUCTION","LOT > 500",0,0,0.22838,0.1128,0.20827999999999999,"/space"]
["PARKING","CONSTRUCTION","GARAGE > 500",0,0,5.4149000000000003,0.15423999999999999,0.74221999999999999,"/space"]
["C STORAGE","CONSTRUCTION",null,0,0,0,0,0.83679999999999999,"/tree/yr"]